Workbook

Sheet GUIA PARA PREENCHIMENTO
A1: GUIA PARA PREENCHIMENTO
A3: 1 - Preencher apenas as guias azuis:
A5: 2 - Recomendamos preencher somente as células com fundo azul claro. As demais possuem fórmulas e sugerimos não alterá-las.

Sheet MODELO PROPOSTA
B2: MODELO DA PROPOSTA COMPLETA
B4: .
B5: I – FORMALIZAÇÃO
B7: PREGÃO ELETRÔNICO N. 900008/2025
B8: OBJETO: Prestação de serviços continuados de manutenção, operação e modernização de sistemas de climatização, ventilação, refrigeração e combate a incêndio, incluindo instalação e manutenção corretiva sob demanda, em regime de dedicação exclusiva de mão de obra, pelo período de 36 (trinta e seis) meses.
B9: LICITANTE: _____________________________________________________
B10: CNPJ: ________________________________________________________
B11: ENDEREÇO COMPLETO: _________________________________________
B12: TELEFONE:_____________________________________________________
B13: E-MAIL: ________________________________________________________
B15: Apresentamos nossa proposta para o item único da presente licitação, de acordo com as disposições do Edital.
B16: Decorre do conteúdo da presente proposta a explicitação do seguinte PREÇO DE JULGAMENTO (GLOBAL para 36 MESES) PARA O ITEM:
B17: =Resumo!H130 -> 51266215.8
B18: =Extenso_Valor(B17) -> 
B20: (por extenso)
B22: No valor proposto estão incluídos todos os custos e todas as despesas, diretas e indiretas, para a execução dos serviços objeto da licitação, em conformidade com as especificações e demais condições e exigências constantes do Edital.
B23: Informamos que eventuais rubricas dispostas em Acordo ou Convenção Coletiva de Trabalho que não se relacionem ao custo direto da venda do serviço, tais como “Participação nos Resultados” e “Abono substitutivo de Participação nos Resultados”, serão consideradas nos custos indiretos da proposta.
B24: O prazo de validade da presente proposta é de ______ (por extenso) dias. (observado o disposto no Título 4 do Edital).
B26: Convenção coletiva de trabalho ou a norma coletiva a que estamos obrigados:
B27: Data-Base:
B28: Número do Registro no SRT:
B29: Regime de tributação da empresa:
B30: Empresa é beneficiada pela desoneração da folha de pagamento instituída pela Lei n. 12.546, de 2001, alterada pela Lei n. 13.161, de 2015?
B31: Empresa adere ao PAT (Programa de Alimentação do Trabalhador)?
B32: Na hipótese de adesão ao PAT e de previsão de qualquer desconto no valor do auxílio-alimentação em norma coletiva, os valores do auxílio-alimentação apresentados nesta proposta deverão corresponder aos valores líquidos efetivamente pagos pela empresa aos seus empregados.
B34: DECLARAÇÕES
B35: Declaramos que:
B36: a) disponibilizaremos todos os itens necessários à execução dos serviços, sejam eles insumos ou materiais, bem como pessoal técnico adequado para a realização do objeto da presente licitação;
B37: b) seremos responsável pelo descarte ambientalmente responsável de qualquer resíduo do serviço a ser prestado, objeto desta licitação – incluindo consumíveis, peças usadas, embalagens – e que temos conhecimento da legislação ambiental sobre o descarte de materiais, em especial a Lei n. 9.605/1998 e a Lei n. 12.305/2010, além da NBR 10.004.
B40: A SEREM PRESTADAS SOMENTE NA HIPÓTESE DE LICITANTE MICROEMPRESA OU EMPRESA DE PEQUENO PORTE, EM CONFORMIDADE COM OS ARTIGOS 17, 18, 30 E 31 DA LEI COMPLEMENTAR N. 123/2006, E O ACÓRDÃO TCU 2798/2010-PLENÁRIO
B43: Declaramos que:
B44: a) em se tratando dos serviços vedados descritos no artigo 17 da Lei Complementar n. 123/2006, notadamente os descritos no inciso XII (cessão ou locação de mão de obra), ressalvados os serviços listados nos § 5º-C, inciso VI, c/c § 5º-H do art. 18 ou no § 1º do art. 17 da referida Lei, a proposta apresentada não contempla qualquer benefício tributário referente ao SIMPLES NACIONAL, conforme os itens 4.20 e 4.21 do Edital;
B47: b) na hipótese de contratação desta Microempresa ou Empresa de Pequeno Porte inscrita no SIMPLES NACIONAL e executora de atividade vedada, ficamos sujeitos à exclusão obrigatória no SIMPLES NACIONAL a contar do mês seguinte ao da contratação, em consequência do que dispõem o artigo 17, inciso XII e o artigo 31, inciso II da Lei Complementar n, 123/2006, devendo entregar à Câmara dos Deputados, à título de comprovação, cópia de ofício – com comprovante de entrega e recebimento, que comunique a assinatura do contrato de prestação de serviços mediante cessão de mão de obra e encaminhado pela contratada à Secretaria Especial da Receita Federal do Brasil até o último dia útil do mês subsequente ao da contratação, consoante artigo 30, § 1º, inciso II da Lei Complementar n. 123/2006.
B51: A SEREM PRESTADAS SOMENTE NA HIPÓTESE DE LICITANTE NÃO BENEFICIADA PELA DESONERAÇÃO DA FOLHA DE PAGAMENTO INSTITUÍDA PELA LEI N. 12.546, DE 2011, ALTERADA PELA LEI N. 13.161, DE 2015
B54: Declaramos, sob as penas da Lei, que:
B55: a) não recolhemos a contribuição previdenciária incidente sobre o valor da receita bruta, em substituição às contribuições previdenciárias incidentes sobre a folha de pagamento, previstas nos incisos I e III do caput do artigo 22 da Lei n. 8.212/1991, na forma do caput do artigo 7º (ou 8º) da Lei n. 12.546/2011, alterada pela Lei n. 13.161/2015;;
B58: b) temos ciência que nossa manifestação, conforme alínea “a” anterior, será remetida à Secretaria Especial da Receita Federal do Brasil e que, em caso de constatação de falsidade, estará sujeita às sanções administrativas cabíveis, sem prejuízo do encaminhamento dos documentos ao Ministério Público para apuração de eventual responsabilidade criminal desta declarante.
B62: A SEREM PRESTADAS SOMENTE PARA A LICITANTE QUE SEJA A ATUAL TITULAR DO CONTRATO QUE SERÁ SUCEDIDO PELA CONTRATAÇÃO DECORRENTE DO PREGÃO EM EPÍGRAFE, NA HIPÓTESE DE HAVER SALÁRIO(S) PRATICADO(S) NO CONTRATO VIGENTE SUPERIOR(ES) AOS MÍNIMOS FIXADOS NO EDITAL E QUE TENHA OPTADO POR TOMAR COMO BASE EM SEUS LANCES E NA PRESENTE PROPOSTA DE PREÇOS SALÁRIO(S) FIXADO(S) NESTE EDITAL:
B65: Declaramos que:
B66: a) estamos cientes de que deveremos apresentar à Câmara dos Deputados, no prazo improrrogável de 60 (sessenta) dias, contado da data de início da vigência do contrato, a convenção ou o acordo coletivo de trabalho, entabulado com a participação do sindicato dos trabalhadores, em que se autoriza a redução salarial, na forma do art. 7°, VI, da Constituição Federal, considerado, ainda, o disposto no subitem 10.10.2.1 do Título 10 da minuta do Termo de Contrato anexa;
B70: b) estamos cientes de que, na hipótese de não cumprirmos o disposto no teor da declaração da alínea anterior (“a”) e não logrado êxito na contratação de remanescente, sendo necessária a realização de nova licitação, caso participemos do certame, deveremos tomar como base em nossos lances e em nossa proposta de preços o(s) salário(s) maior(es), absorvendo ou acrescentando eventual diferença no BDI, sob pena de desclassificação.
B73: É OBRIGATÓRIA A COMPROVAÇÃO A QUE SE REFERE O ITEM 4.3 DO TÍTULO 4 DO TERMO DE REFERÊNCIA
B76: (referente ao valor do Fator Acidentário de Prevenção (FAP)).
B80: DADOS PARA ASSINATURA DO CONTRATO
B81: Nome do signatário
B82: Cargo
B83: Qualificação (CPF, naturalidade e domicílio)
B84: OBS.: O signatário deve possuir poderes de administração estabelecidos em contrato social e/ou possuir procuração com poderes para assinar contratos em nome da empresa. A documentação comprobatória deverá ser encaminhada quando da assinatura do contrato.
B86: MODALIDADE DE GARANTIA:
B87: De acordo com o disposto no Termo de Referência anexo ao Edital, informamos que, caso o objeto nos seja adjudicado, optaremos pela seguinte modalidade de garantia de execução do contrato (artigos 96 e seguintes da Lei 14.133/2021):
B88: ____________________________________
B92: Brasília, de de | G92: 2025
B94: Assinatura do representante legal da empresa
B97: Nome do representante legal da empresa

Sheet Remunerações
B1: QUADRO DE REMUNERAÇÕES
C3: ITEM | D3: POSTO DE TRABALHO | E3: QUANTIDADE | F3: SALÁRIO | G3: ADICIONAL DE PERICULOSIDADE | H3: ADICIONAL DE INSALUBRIDADE | I3: ADICIONAL NOTURNO | J3: SOBREAVISO OU HORA EXTRA | K3: SALÁRIO COM ADICIONAIS
C4: 1 | D4: =HLOOKUP(C4,'Dados Gerais'!$D$6:$BI$11,6) -> COORDENADOR DE SERVIÇOS DE MANUTENÇÃO | E4: =HLOOKUP($C4,'Dados Gerais'!$D$6:$BI$15,10) -> 1 | F4: ='1'!$F$9 -> 9062.38 | G4: ='1'!$F$10 -> 0 | H4: ='1'!$F$11 -> 0 | I4: ='1'!$F$12 -> 0 | J4: ='1'!$F$13+'1'!$F$14 -> 1428.01 | K4: =SUM(F4:J4) -> 10490.39
C5: =C4+1 -> 2 | D5: =HLOOKUP(C5,'Dados Gerais'!$D$6:$BI$11,6) -> SUPERVISOR DE MANUTENÇÃO ELETROMECÂNICA | E5: =HLOOKUP($C5,'Dados Gerais'!$D$6:$BI$15,10) -> 4 | F5: ='2'!$F$9 -> 7340.02 | G5: ='2'!$F$10 -> 0 | H5: ='2'!$F$11 -> 0 | I5: ='2'!$F$12 -> 0 | J5: ='2'!$F$13+'2'!$F$14 -> 1156.61 | K5: 8496.63
C6: =C5+1 -> 3 | D6: =HLOOKUP(C6,'Dados Gerais'!$D$6:$BI$11,6) -> ENCARREGADO ELETROMECÂNICO DE INSTALAÇÕES | E6: =HLOOKUP($C6,'Dados Gerais'!$D$6:$BI$15,10) -> 5 | F6: ='3'!$F$9 -> 5547.7 | G6: ='3'!$F$10 -> 1664.31 | H6: ='3'!$F$11 -> 0 | I6: ='3'!$F$12 -> 0 | J6: ='3'!$F$13+'3'!$F$14 -> 874.18 | K6: 8086.19
C7: 4 | D7: =HLOOKUP(C7,'Dados Gerais'!$D$6:$BI$11,6) -> MESTRE DE MANUTENÇÃO ELETRÔNICA | E7: =HLOOKUP($C7,'Dados Gerais'!$D$6:$BI$15,10) -> 2 | F7: ='4'!$F$9 -> 4472.06 | G7: ='4'!$F$10 -> 0 | H7: ='4'!$F$11 -> 303.6 | I7: ='4'!$F$12 -> 0 | J7: ='4'!$F$13+'4'!$F$14 -> 0 | K7: 4775.66
C8: 5 | D8: =HLOOKUP(C8,'Dados Gerais'!$D$6:$BI$11,6) -> MESTRE ELETRICISTA DE MANUTENÇÃO | E8: =HLOOKUP($C8,'Dados Gerais'!$D$6:$BI$15,10) -> 7 | F8: ='5'!$F$9 -> 3800 | G8: ='5'!$F$10 -> 1140 | H8: ='5'!$F$11 -> 0 | I8: ='5'!$F$12 -> 0 | J8: ='5'!$F$13+'5'!$F$14 -> 0 | K8: 4940
C9: 6 | D9: =HLOOKUP(C9,'Dados Gerais'!$D$6:$BI$11,6) -> MECÂNICO DE MÁQUINAS PESADAS - MANUTENÇÃO | E9: =HLOOKUP($C9,'Dados Gerais'!$D$6:$BI$15,10) -> 26 | F9: ='6'!$F$9 -> 3765.58 | G9: ='6'!$F$10 -> 0 | H9: ='6'!$F$11 -> 303.6 | I9: ='6'!$F$12 -> 0 | J9: ='6'!$F$13+'6'!$F$14 -> 0 | K9: 4069.18
C10: 7 | D10: =HLOOKUP(C10,'Dados Gerais'!$D$6:$BI$11,6) -> OPERADOR ELETROMECÂNICO - EXPEDIENTE | E10: =HLOOKUP($C10,'Dados Gerais'!$D$6:$BI$15,10) -> 4 | F10: ='7'!$F$9 -> 2727.34 | G10: ='7'!$F$10 -> 0 | H10: ='7'!$F$11 -> 303.6 | I10: ='7'!$F$12 -> 0 | J10: ='7'!$F$13+'7'!$F$14 -> 0 | K10: 3030.94
C11: 8 | D11: =HLOOKUP(C11,'Dados Gerais'!$D$6:$BI$11,6) -> OPERADOR ELETROMECÂNICO – PLANTONISTA DIURNO | E11: =HLOOKUP($C11,'Dados Gerais'!$D$6:$BI$15,10) -> 6 | F11: ='8'!$F$9 -> 2727.34 | G11: ='8'!$F$10 -> 0 | H11: ='8'!$F$11 -> 303.6 | I11: ='8'!$F$12 -> 0 | J11: ='8'!$F$13+'8'!$F$14 -> 0 | K11: 3030.94
C12: 9 | D12: =HLOOKUP(C12,'Dados Gerais'!$D$6:$BI$11,6) -> OPERADOR ELETROMECÂNICO – PLANTONISTA NOTURNO | E12: =HLOOKUP($C12,'Dados Gerais'!$D$6:$BI$15,10) -> 6 | F12: ='9'!$F$9 -> 2727.34 | G12: ='9'!$F$10 -> 0 | H12: ='9'!$F$11 -> 303.6 | I12: ='9'!$F$12 -> 289.32 | J12: ='9'!$F$13+'9'!$F$14 -> 0 | K12: 3320.26
C13: 10 | D13: =HLOOKUP(C13,'Dados Gerais'!$D$6:$BI$11,6) -> AUXILIAR MECÂNICO DE AR CONDICIONADO | E13: =HLOOKUP($C13,'Dados Gerais'!$D$6:$BI$15,10) -> 19 | F13: ='10'!$F$9 -> 1921.17 | G13: ='10'!$F$10 -> 0 | H13: ='10'!$F$11 -> 303.6 | I13: ='10'!$F$12 -> 0 | J13: ='10'!$F$13+'10'!$F$14 -> 0 | K13: 2224.77
C14: 11 | D14: =HLOOKUP(C14,'Dados Gerais'!$D$6:$BI$11,6) -> CONTROLADOR DE MATERIAIS | E14: =HLOOKUP($C14,'Dados Gerais'!$D$6:$BI$15,10) -> 3 | F14: ='11'!$F$9 -> 3500 | G14: ='11'!$F$10 -> 0 | H14: ='11'!$F$11 -> 0 | I14: ='11'!$F$12 -> 0 | J14: ='11'!$F$13+'11'!$F$14 -> 0 | K14: 3500
C15: 12 | D15: =HLOOKUP(C15,'Dados Gerais'!$D$6:$BI$11,6) -> COORDENADOR DE FACILITIES | E15: =HLOOKUP($C15,'Dados Gerais'!$D$6:$BI$15,10) -> 5 | F15: ='12'!$F$9 -> 9424.87 | G15: ='12'!$F$10 -> 0 | H15: ='12'!$F$11 -> 0 | I15: ='12'!$F$12 -> 0 | J15: ='12'!$F$13+'12'!$F$14 -> 0 | K15: 9424.87
C16: 13 | D16: =HLOOKUP(C16,'Dados Gerais'!$D$6:$BI$11,6) -> OPERADOR DE CENTRAL DE DETECÇÃO E ALARME DE INCÊNDIO - PLANTONISTA DIURNO | E16: =HLOOKUP($C16,'Dados Gerais'!$D$6:$BI$15,10) -> 4 | F16: ='13'!$F$9 -> 2933.92 | G16: ='13'!$F$10 -> 880.18 | H16: ='13'!$F$11 -> 0 | I16: ='13'!$F$12 -> 0 | J16: ='13'!$F$13+'13'!$F$14 -> 200.04 | K16: 4014.14
C17: 14 | D17: =HLOOKUP(C17,'Dados Gerais'!$D$6:$BI$11,6) -> OPERADOR DE CENTRAL DE DETECÇÃO E ALARME DE INCÊNDIO - PLANTONISTA NOTURNO | E17: =HLOOKUP($C17,'Dados Gerais'!$D$6:$BI$15,10) -> 4 | F17: ='14'!$F$9 -> 2933.92 | G17: ='14'!$F$10 -> 880.18 | H17: ='14'!$F$11 -> 0 | I17: ='14'!$F$12 -> 364.07 | J17: ='14'!$F$13+'14'!$F$14 -> 200.04 | K17: 4378.21
C18: 15 | D18: =HLOOKUP(C18,'Dados Gerais'!$D$6:$BI$11,6) -> 0 | E18: =HLOOKUP($C18,'Dados Gerais'!$D$6:$BI$15,10) -> 0 | F18: =#REF! ->  | G18: =#REF! ->  | H18: =#REF! ->  | I18: =#REF! ->  | J18: =#REF!+#REF! -> 
C19: 16 | D19: =HLOOKUP(C19,'Dados Gerais'!$D$6:$BI$11,6) -> 0 | E19: =HLOOKUP($C19,'Dados Gerais'!$D$6:$BI$15,10) -> 0 | F19: =#REF! ->  | G19: =#REF! ->  | H19: =#REF! ->  | I19: =#REF! ->  | J19: =#REF!+#REF! -> 
C20: 17 | D20: =HLOOKUP(C20,'Dados Gerais'!$D$6:$BI$11,6) -> 0 | E20: =HLOOKUP($C20,'Dados Gerais'!$D$6:$BI$15,10) -> 0 | F20: =#REF! ->  | G20: =#REF! ->  | H20: =#REF! ->  | I20: =#REF! ->  | J20: =#REF!+#REF! -> 
C21: 18 | D21: =HLOOKUP(C21,'Dados Gerais'!$D$6:$BI$11,6) -> 0 | E21: =HLOOKUP($C21,'Dados Gerais'!$D$6:$BI$15,10) -> 0 | F21: =#REF! ->  | G21: =#REF! ->  | H21: =#REF! ->  | I21: =#REF! ->  | J21: =#REF!+#REF! -> 
C22: 19 | D22: =HLOOKUP(C22,'Dados Gerais'!$D$6:$BI$11,6) -> 0 | E22: =HLOOKUP($C22,'Dados Gerais'!$D$6:$BI$15,10) -> 0 | F22: =#REF! ->  | G22: =#REF! ->  | H22: =#REF! ->  | I22: =#REF! ->  | J22: =#REF!+#REF! -> 
C23: 20 | D23: =HLOOKUP(C23,'Dados Gerais'!$D$6:$BI$11,6) -> 0 | E23: =HLOOKUP($C23,'Dados Gerais'!$D$6:$BI$15,10) -> 0 | F23: =#REF! ->  | G23: =#REF! ->  | H23: =#REF! ->  | I23: =#REF! ->  | J23: =#REF!+#REF! -> 
C24: 21 | D24: =HLOOKUP(C24,'Dados Gerais'!$D$6:$BI$11,6) -> 0 | E24: =HLOOKUP($C24,'Dados Gerais'!$D$6:$BI$15,10) -> 0 | F24: ='1'!$F$9 -> 9062.38 | G24: ='1'!$F$10 -> 0 | H24: ='1'!$F$11 -> 0 | I24: ='1'!$F$12 -> 0 | J24: ='1'!$F$13+'1'!$F$14 -> 1428.01 | K24: 10490.39
C25: 22 | D25: =HLOOKUP(C25,'Dados Gerais'!$D$6:$BI$11,6) -> 0 | E25: =HLOOKUP($C25,'Dados Gerais'!$D$6:$BI$15,10) -> 0 | F25: ='1'!$F$9 -> 9062.38 | G25: ='1'!$F$10 -> 0 | H25: ='1'!$F$11 -> 0 | I25: ='1'!$F$12 -> 0 | J25: ='1'!$F$13+'1'!$F$14 -> 1428.01 | K25: 10490.39
C26: 23 | D26: =HLOOKUP(C26,'Dados Gerais'!$D$6:$BI$11,6) -> 0 | E26: =HLOOKUP($C26,'Dados Gerais'!$D$6:$BI$15,10) -> 0 | F26: ='1'!$F$9 -> 9062.38 | G26: ='1'!$F$10 -> 0 | H26: ='1'!$F$11 -> 0 | I26: ='1'!$F$12 -> 0 | J26: ='1'!$F$13+'1'!$F$14 -> 1428.01 | K26: 10490.39
C27: 24 | D27: =HLOOKUP(C27,'Dados Gerais'!$D$6:$BI$11,6) -> 0 | E27: =HLOOKUP($C27,'Dados Gerais'!$D$6:$BI$15,10) -> 0 | F27: ='1'!$F$9 -> 9062.38 | G27: ='1'!$F$10 -> 0 | H27: ='1'!$F$11 -> 0 | I27: ='1'!$F$12 -> 0 | J27: ='1'!$F$13+'1'!$F$14 -> 1428.01 | K27: 10490.39
C28: 25 | D28: =HLOOKUP(C28,'Dados Gerais'!$D$6:$BI$11,6) -> 0 | E28: =HLOOKUP($C28,'Dados Gerais'!$D$6:$BI$15,10) -> 0 | F28: ='1'!$F$9 -> 9062.38 | G28: ='1'!$F$10 -> 0 | H28: ='1'!$F$11 -> 0 | I28: ='1'!$F$12 -> 0 | J28: ='1'!$F$13+'1'!$F$14 -> 1428.01 | K28: 10490.39
C29: 26 | D29: =HLOOKUP(C29,'Dados Gerais'!$D$6:$BI$11,6) -> 0 | E29: =HLOOKUP($C29,'Dados Gerais'!$D$6:$BI$15,10) -> 0 | F29: ='1'!$F$9 -> 9062.38 | G29: ='1'!$F$10 -> 0 | H29: ='1'!$F$11 -> 0 | I29: ='1'!$F$12 -> 0 | J29: ='1'!$F$13+'1'!$F$14 -> 1428.01 | K29: 10490.39
C30: 27 | D30: =HLOOKUP(C30,'Dados Gerais'!$D$6:$BI$11,6) -> 0 | E30: =HLOOKUP($C30,'Dados Gerais'!$D$6:$BI$15,10) -> 0 | F30: ='1'!$F$9 -> 9062.38 | G30: ='1'!$F$10 -> 0 | H30: ='1'!$F$11 -> 0 | I30: ='1'!$F$12 -> 0 | J30: ='1'!$F$13+'1'!$F$14 -> 1428.01 | K30: 10490.39
C31: 28 | D31: =HLOOKUP(C31,'Dados Gerais'!$D$6:$BI$11,6) -> 0 | E31: =HLOOKUP($C31,'Dados Gerais'!$D$6:$BI$15,10) -> 0 | F31: ='1'!$F$9 -> 9062.38 | G31: ='1'!$F$10 -> 0 | H31: ='1'!$F$11 -> 0 | I31: ='1'!$F$12 -> 0 | J31: ='1'!$F$13+'1'!$F$14 -> 1428.01 | K31: 10490.39
C32: 29 | D32: =HLOOKUP(C32,'Dados Gerais'!$D$6:$BI$11,6) -> 0 | E32: =HLOOKUP($C32,'Dados Gerais'!$D$6:$BI$15,10) -> 0 | F32: ='1'!$F$9 -> 9062.38 | G32: ='1'!$F$10 -> 0 | H32: ='1'!$F$11 -> 0 | I32: ='1'!$F$12 -> 0 | J32: ='1'!$F$13+'1'!$F$14 -> 1428.01 | K32: 10490.39
C33: 30 | D33: =HLOOKUP(C33,'Dados Gerais'!$D$6:$BI$11,6) -> 0 | E33: =HLOOKUP($C33,'Dados Gerais'!$D$6:$BI$15,10) -> 0 | F33: ='1'!$F$9 -> 9062.38 | G33: ='1'!$F$10 -> 0 | H33: ='1'!$F$11 -> 0 | I33: ='1'!$F$12 -> 0 | J33: ='1'!$F$13+'1'!$F$14 -> 1428.01 | K33: 10490.39
C34: 31 | D34: =HLOOKUP(C34,'Dados Gerais'!$D$6:$BI$11,6) -> 0 | E34: =HLOOKUP($C34,'Dados Gerais'!$D$6:$BI$15,10) -> 0 | F34: ='1'!$F$9 -> 9062.38 | G34: ='1'!$F$10 -> 0 | H34: ='1'!$F$11 -> 0 | I34: ='1'!$F$12 -> 0 | J34: ='1'!$F$13+'1'!$F$14 -> 1428.01 | K34: 10490.39
C35: 32 | D35: =HLOOKUP(C35,'Dados Gerais'!$D$6:$BI$11,6) -> 0 | E35: =HLOOKUP($C35,'Dados Gerais'!$D$6:$BI$15,10) -> 0 | F35: ='1'!$F$9 -> 9062.38 | G35: ='1'!$F$10 -> 0 | H35: ='1'!$F$11 -> 0 | I35: ='1'!$F$12 -> 0 | J35: ='1'!$F$13+'1'!$F$14 -> 1428.01 | K35: 10490.39
C36: 33 | D36: =HLOOKUP(C36,'Dados Gerais'!$D$6:$BI$11,6) -> 0 | E36: =HLOOKUP($C36,'Dados Gerais'!$D$6:$BI$15,10) -> 0 | F36: ='1'!$F$9 -> 9062.38 | G36: ='1'!$F$10 -> 0 | H36: ='1'!$F$11 -> 0 | I36: ='1'!$F$12 -> 0 | J36: ='1'!$F$13+'1'!$F$14 -> 1428.01 | K36: 10490.39
C37: 34 | D37: =HLOOKUP(C37,'Dados Gerais'!$D$6:$BI$11,6) -> 0 | E37: =HLOOKUP($C37,'Dados Gerais'!$D$6:$BI$15,10) -> 0 | F37: ='1'!$F$9 -> 9062.38 | G37: ='1'!$F$10 -> 0 | H37: ='1'!$F$11 -> 0 | I37: ='1'!$F$12 -> 0 | J37: ='1'!$F$13+'1'!$F$14 -> 1428.01 | K37: 10490.39
C38: 35 | D38: =HLOOKUP(C38,'Dados Gerais'!$D$6:$BI$11,6) -> 0 | E38: =HLOOKUP($C38,'Dados Gerais'!$D$6:$BI$15,10) -> 0 | F38: ='1'!$F$9 -> 9062.38 | G38: ='1'!$F$10 -> 0 | H38: ='1'!$F$11 -> 0 | I38: ='1'!$F$12 -> 0 | J38: ='1'!$F$13+'1'!$F$14 -> 1428.01 | K38: 10490.39
C39: 36 | D39: =HLOOKUP(C39,'Dados Gerais'!$D$6:$BI$11,6) -> 0 | E39: =HLOOKUP($C39,'Dados Gerais'!$D$6:$BI$15,10) -> 0 | F39: ='1'!$F$9 -> 9062.38 | G39: ='1'!$F$10 -> 0 | H39: ='1'!$F$11 -> 0 | I39: ='1'!$F$12 -> 0 | J39: ='1'!$F$13+'1'!$F$14 -> 1428.01 | K39: 10490.39
C40: 37 | D40: =HLOOKUP(C40,'Dados Gerais'!$D$6:$BI$11,6) -> 0 | E40: =HLOOKUP($C40,'Dados Gerais'!$D$6:$BI$15,10) -> 0 | F40: ='1'!$F$9 -> 9062.38 | G40: ='1'!$F$10 -> 0 | H40: ='1'!$F$11 -> 0 | I40: ='1'!$F$12 -> 0 | J40: ='1'!$F$13+'1'!$F$14 -> 1428.01 | K40: 10490.39
C41: 38 | D41: =HLOOKUP(C41,'Dados Gerais'!$D$6:$BI$11,6) -> 0 | E41: =HLOOKUP($C41,'Dados Gerais'!$D$6:$BI$15,10) -> 0 | F41: ='1'!$F$9 -> 9062.38 | G41: ='1'!$F$10 -> 0 | H41: ='1'!$F$11 -> 0 | I41: ='1'!$F$12 -> 0 | J41: ='1'!$F$13+'1'!$F$14 -> 1428.01 | K41: 10490.39
C42: 39 | D42: =HLOOKUP(C42,'Dados Gerais'!$D$6:$BI$11,6) -> 0 | E42: =HLOOKUP($C42,'Dados Gerais'!$D$6:$BI$15,10) -> 0 | F42: ='1'!$F$9 -> 9062.38 | G42: ='1'!$F$10 -> 0 | H42: ='1'!$F$11 -> 0 | I42: ='1'!$F$12 -> 0 | J42: ='1'!$F$13+'1'!$F$14 -> 1428.01 | K42: 10490.39
C43: 40 | D43: =HLOOKUP(C43,'Dados Gerais'!$D$6:$BI$11,6) -> 0 | E43: =HLOOKUP($C43,'Dados Gerais'!$D$6:$BI$15,10) -> 0 | F43: ='1'!$F$9 -> 9062.38 | G43: ='1'!$F$10 -> 0 | H43: ='1'!$F$11 -> 0 | I43: ='1'!$F$12 -> 0 | J43: ='1'!$F$13+'1'!$F$14 -> 1428.01 | K43: 10490.39
C44: 41 | D44: =HLOOKUP(C44,'Dados Gerais'!$D$6:$BI$11,6) -> 0 | E44: =HLOOKUP($C44,'Dados Gerais'!$D$6:$BI$15,10) -> 0 | F44: ='1'!$F$9 -> 9062.38 | G44: ='1'!$F$10 -> 0 | H44: ='1'!$F$11 -> 0 | I44: ='1'!$F$12 -> 0 | J44: ='1'!$F$13+'1'!$F$14 -> 1428.01 | K44: 10490.39
D46: TOTAL | E46: =SUM(E4:E44) -> 96

Sheet Resumo
B1: 1.1 - DETEC - FATURA ORDINÁRIA
B4: 1.1.1 RESUMO - TOTAIS MENSAIS - FATURA ORDINÁRIA (SEM O 13º E SEM OS ITENS SOB DEMANDA)
C7: ITEM | D7: POSTO DE TRABALHO | E7: QUANTIDADE | F7: PREÇO UNIT (SEM O 13º) | G7: DESTAQUE DO 13º | H7: PREÇO POR EMPREGADO | I7: PREÇO TOTAL (MENSAL)
C8: 1 | D8: =HLOOKUP(C8,'Dados Gerais'!$D$6:$BI$11,6) -> COORDENADOR DE SERVIÇOS DE MANUTENÇÃO | E8: ='Dados Gerais'!D$15 -> 1 | F8: ='1'!$E$115 -> 22682.72 | G8: 0 | H8: =G8+F8 -> 22682.72 | I8: =H8*E8 -> 22682.72
C9: 2 | D9: =HLOOKUP(C9,'Dados Gerais'!$D$6:$BI$11,6) -> SUPERVISOR DE MANUTENÇÃO ELETROMECÂNICA | E9: ='Dados Gerais'!E$15 -> 4 | F9: ='2'!$E$115 -> 18708.05 | G9: 0 | H9: =G9+F9 -> 18708.05 | I9: =H9*E9 -> 74832.2
C10: 3 | D10: =HLOOKUP(C10,'Dados Gerais'!$D$6:$BI$11,6) -> ENCARREGADO ELETROMECÂNICO DE INSTALAÇÕES | E10: ='Dados Gerais'!F$15 -> 5 | F10: ='3'!$E$115 -> 17896.28 | G10: 0 | H10: =G10+F10 -> 17896.28 | I10: =H10*E10 -> 89481.4
C11: 4 | D11: =HLOOKUP(C11,'Dados Gerais'!$D$6:$BI$11,6) -> MESTRE DE MANUTENÇÃO ELETRÔNICA | E11: ='Dados Gerais'!G$15 -> 2 | F11: ='4'!$E$115 -> 11352.93 | G11: 0 | H11: =G11+F11 -> 11352.93 | I11: =H11*E11 -> 22705.86
C12: 5 | D12: =HLOOKUP(C12,'Dados Gerais'!$D$6:$BI$11,6) -> MESTRE ELETRICISTA DE MANUTENÇÃO | E12: ='Dados Gerais'!H$15 -> 7 | F12: ='5'!$E$115 -> 11688.05 | G12: 0 | H12: =G12+F12 -> 11688.05 | I12: =H12*E12 -> 81816.35
C13: 6 | D13: =HLOOKUP(C13,'Dados Gerais'!$D$6:$BI$11,6) -> MECÂNICO DE MÁQUINAS PESADAS - MANUTENÇÃO | E13: ='Dados Gerais'!I$15 -> 26 | F13: ='6'!$E$115 -> 9957.35 | G13: 0 | H13: 9957.35 | I13: 258891.1
C14: 7 | D14: =HLOOKUP(C14,'Dados Gerais'!$D$6:$BI$11,6) -> OPERADOR ELETROMECÂNICO - EXPEDIENTE | E14: ='Dados Gerais'!J$15 -> 4 | F14: ='7'!$E$115 -> 7865.08 | G14: 0 | H14: 7865.08 | I14: 31460.32
C15: 8 | D15: =HLOOKUP(C15,'Dados Gerais'!$D$6:$BI$11,6) -> OPERADOR ELETROMECÂNICO – PLANTONISTA DIURNO | E15: ='Dados Gerais'!K$15 -> 6 | F15: ='8'!$E$115 -> 7282.32 | G15: 0 | H15: 7282.32 | I15: 43693.92
C16: 9 | D16: =HLOOKUP(C16,'Dados Gerais'!$D$6:$BI$11,6) -> OPERADOR ELETROMECÂNICO – PLANTONISTA NOTURNO | E16: ='Dados Gerais'!L$15 -> 6 | F16: ='9'!$E$115 -> 7872.13 | G16: 0 | H16: 7872.13 | I16: 47232.78
C17: 10 | D17: =HLOOKUP(C17,'Dados Gerais'!$D$6:$BI$11,6) -> AUXILIAR MECÂNICO DE AR CONDICIONADO | E17: ='Dados Gerais'!M$15 -> 19 | F17: ='10'!$E$115 -> 6310.42 | G17: 0 | H17: 6310.42 | I17: 119897.98
C18: 11 | D18: =HLOOKUP(C18,'Dados Gerais'!$D$6:$BI$11,6) -> CONTROLADOR DE MATERIAIS | E18: ='Dados Gerais'!N$15 -> 3 | F18: ='11'!$E$115 -> 8805.6 | G18: 0 | H18: 8805.6 | I18: 26416.8
C19: 12 | D19: =HLOOKUP(C19,'Dados Gerais'!$D$6:$BI$11,6) -> COORDENADOR DE FACILITIES | E19: ='Dados Gerais'!O$15 -> 5 | F19: ='12'!$E$115 -> 20477.82 | G19: 0 | H19: 20477.82 | I19: 102389.1
C20: 13 | D20: =HLOOKUP(C20,'Dados Gerais'!$D$6:$BI$11,6) -> OPERADOR DE CENTRAL DE DETECÇÃO E ALARME DE INCÊNDIO - PLANTONISTA DIURNO | E20: ='Dados Gerais'!P$15 -> 4 | F20: ='13'!$E$115 -> 9249.69 | G20: 0 | H20: 9249.69 | I20: 36998.76
C21: 14 | D21: =HLOOKUP(C21,'Dados Gerais'!$D$6:$BI$11,6) -> OPERADOR DE CENTRAL DE DETECÇÃO E ALARME DE INCÊNDIO - PLANTONISTA NOTURNO | E21: ='Dados Gerais'!Q$15 -> 4 | F21: ='14'!$E$115 -> 9991.87 | G21: 0 | H21: 9991.87 | I21: 39967.48
D23: TOTAL MENSAL - SALÁRIOS | I23: =SUM(I8:I22) -> 998466.77
B26: 1.1.2 RESUMO - TOTAIS MENSAIS - FATURA ORDINÁRIA - DESTAQUE DO 13º SALÁRIO
C29: ITEM | D29: POSTO DE TRABALHO | E29: QUANTIDADE | F29: PREÇO UNIT (SEM O 13º) | G29: DESTAQUE DO 13º | H29: PREÇO POR EMPREGADO | I29: PREÇO TOTAL (MENSAL)
C30: 1 | D30: =HLOOKUP(C30,'Dados Gerais'!$D$6:$BI$11,6) -> COORDENADOR DE SERVIÇOS DE MANUTENÇÃO | E30: ='Dados Gerais'!D$15 -> 1 | F30: 0 | G30: ='1'!$E$116 -> 1599.96 | H30: =G30+F30 -> 1599.96 | I30: =H30*E30 -> 1599.96
C31: 2 | D31: =HLOOKUP(C31,'Dados Gerais'!$D$6:$BI$11,6) -> SUPERVISOR DE MANUTENÇÃO ELETROMECÂNICA | E31: ='Dados Gerais'!E$15 -> 4 | F31: 0 | G31: ='2'!$E$116 -> 1295.88 | H31: =G31+F31 -> 1295.88 | I31: =H31*E31 -> 5183.52
C32: 3 | D32: =HLOOKUP(C32,'Dados Gerais'!$D$6:$BI$11,6) -> ENCARREGADO ELETROMECÂNICO DE INSTALAÇÕES | E32: ='Dados Gerais'!F$15 -> 5 | F32: 0 | G32: ='3'!$E$116 -> 1233.27 | H32: =G32+F32 -> 1233.27 | I32: =H32*E32 -> 6166.35
C33: 4 | D33: =HLOOKUP(C33,'Dados Gerais'!$D$6:$BI$11,6) -> MESTRE DE MANUTENÇÃO ELETRÔNICA | E33: ='Dados Gerais'!G$15 -> 2 | F33: 0 | G33: ='4'!$E$116 -> 728.37 | H33: =G33+F33 -> 728.37 | I33: =H33*E33 -> 1456.74
C34: 5 | D34: =HLOOKUP(C34,'Dados Gerais'!$D$6:$BI$11,6) -> MESTRE ELETRICISTA DE MANUTENÇÃO | E34: ='Dados Gerais'!H$15 -> 7 | F34: 0 | G34: ='5'!$E$116 -> 753.43 | H34: =G34+F34 -> 753.43 | I34: =H34*E34 -> 5274.01
C35: 6 | D35: =HLOOKUP(C35,'Dados Gerais'!$D$6:$BI$11,6) -> MECÂNICO DE MÁQUINAS PESADAS - MANUTENÇÃO | E35: ='Dados Gerais'!I$15 -> 26 | F35: 0 | G35: ='6'!$E$116 -> 620.62 | H35: =G35+F35 -> 620.62 | I35: =H35*E35 -> 16136.12
C36: 7 | D36: =HLOOKUP(C36,'Dados Gerais'!$D$6:$BI$11,6) -> OPERADOR ELETROMECÂNICO - EXPEDIENTE | E36: ='Dados Gerais'!J$15 -> 4 | F36: 0 | G36: ='7'!$E$116 -> 462.26 | H36: 462.26 | I36: 1849.04
C37: 8 | D37: =HLOOKUP(C37,'Dados Gerais'!$D$6:$BI$11,6) -> OPERADOR ELETROMECÂNICO – PLANTONISTA DIURNO | E37: ='Dados Gerais'!K$15 -> 6 | F37: 0 | G37: ='8'!$E$116 -> 462.26 | H37: 462.26 | I37: 2773.56
C38: 9 | D38: =HLOOKUP(C38,'Dados Gerais'!$D$6:$BI$11,6) -> OPERADOR ELETROMECÂNICO – PLANTONISTA NOTURNO | E38: ='Dados Gerais'!L$15 -> 6 | F38: 0 | G38: ='9'!$E$116 -> 506.4 | H38: 506.4 | I38: 3038.4
C39: 10 | D39: =HLOOKUP(C39,'Dados Gerais'!$D$6:$BI$11,6) -> AUXILIAR MECÂNICO DE AR CONDICIONADO | E39: ='Dados Gerais'!M$15 -> 19 | F39: 0 | G39: ='10'!$E$116 -> 339.32 | H39: 339.32 | I39: 6447.08
C40: 11 | D40: =HLOOKUP(C40,'Dados Gerais'!$D$6:$BI$11,6) -> CONTROLADOR DE MATERIAIS | E40: ='Dados Gerais'!N$15 -> 3 | F40: 0 | G40: ='11'!$E$116 -> 533.8 | H40: 533.8 | I40: 1601.4
C41: 12 | D41: =HLOOKUP(C41,'Dados Gerais'!$D$6:$BI$11,6) -> COORDENADOR DE FACILITIES | E41: ='Dados Gerais'!O$15 -> 5 | F41: 0 | G41: ='12'!$E$116 -> 1437.44 | H41: 1437.44 | I41: 7187.2
C42: 13 | D42: =HLOOKUP(C42,'Dados Gerais'!$D$6:$BI$11,6) -> OPERADOR DE CENTRAL DE DETECÇÃO E ALARME DE INCÊNDIO - PLANTONISTA DIURNO | E42: ='Dados Gerais'!P$15 -> 4 | F42: 0 | G42: ='13'!$E$116 -> 612.23 | H42: 612.23 | I42: 2448.92
C43: 14 | D43: =HLOOKUP(C43,'Dados Gerais'!$D$6:$BI$11,6) -> OPERADOR DE CENTRAL DE DETECÇÃO E ALARME DE INCÊNDIO - PLANTONISTA NOTURNO | E43: ='Dados Gerais'!Q$15 -> 4 | F43: 0 | G43: ='14'!$E$116 -> 667.74 | H43: 667.74 | I43: 2670.96
D45: TOTAL MENSAL - DESTAQUE DO 13º | I45: =SUM(I30:I44) -> 63833.26
B48: 1.1.3 RESUMO - TOTAIS MENSAIS - FATURA ORDINÁRIA TOTAL
C51: ITEM | D51: POSTO DE TRABALHO | E51: QUANTIDADE | F51: PREÇO UNIT (SEM O 13º) | G51: DESTAQUE DO 13º | H51: PREÇO POR EMPREGADO | I51: PREÇO TOTAL (MENSAL)
C52: 1 | D52: =HLOOKUP(C52,'Dados Gerais'!$D$6:$BI$11,6) -> COORDENADOR DE SERVIÇOS DE MANUTENÇÃO | E52: ='Dados Gerais'!D$15 -> 1 | F52: =F8 -> 22682.72 | G52: =G30 -> 1599.96 | H52: =G52+F52 -> 24282.68 | I52: =H52*E52 -> 24282.68
C53: 2 | D53: =HLOOKUP(C53,'Dados Gerais'!$D$6:$BI$11,6) -> SUPERVISOR DE MANUTENÇÃO ELETROMECÂNICA | E53: ='Dados Gerais'!E$15 -> 4 | F53: =F9 -> 18708.05 | G53: =G31 -> 1295.88 | H53: =G53+F53 -> 20003.93 | I53: =H53*E53 -> 80015.72
C54: 3 | D54: =HLOOKUP(C54,'Dados Gerais'!$D$6:$BI$11,6) -> ENCARREGADO ELETROMECÂNICO DE INSTALAÇÕES | E54: ='Dados Gerais'!F$15 -> 5 | F54: 17896.28 | G54: 1233.27 | H54: 19129.55 | I54: 95647.75
C55: 4 | D55: =HLOOKUP(C55,'Dados Gerais'!$D$6:$BI$11,6) -> MESTRE DE MANUTENÇÃO ELETRÔNICA | E55: ='Dados Gerais'!G$15 -> 2 | F55: 11352.93 | G55: 728.37 | H55: 12081.3 | I55: 24162.6
C56: 5 | D56: =HLOOKUP(C56,'Dados Gerais'!$D$6:$BI$11,6) -> MESTRE ELETRICISTA DE MANUTENÇÃO | E56: ='Dados Gerais'!H$15 -> 7 | F56: 11688.05 | G56: 753.43 | H56: 12441.48 | I56: 87090.36
C57: 6 | D57: =HLOOKUP(C57,'Dados Gerais'!$D$6:$BI$11,6) -> MECÂNICO DE MÁQUINAS PESADAS - MANUTENÇÃO | E57: ='Dados Gerais'!I$15 -> 26 | F57: 9957.35 | G57: 620.62 | H57: 10577.97 | I57: 275027.22
C58: 7 | D58: =HLOOKUP(C58,'Dados Gerais'!$D$6:$BI$11,6) -> OPERADOR ELETROMECÂNICO - EXPEDIENTE | E58: ='Dados Gerais'!J$15 -> 4 | F58: 7865.08 | G58: 462.26 | H58: 8327.34 | I58: 33309.36
C59: 8 | D59: =HLOOKUP(C59,'Dados Gerais'!$D$6:$BI$11,6) -> OPERADOR ELETROMECÂNICO – PLANTONISTA DIURNO | E59: ='Dados Gerais'!K$15 -> 6 | F59: 7282.32 | G59: 462.26 | H59: 7744.58 | I59: 46467.48
C60: 9 | D60: =HLOOKUP(C60,'Dados Gerais'!$D$6:$BI$11,6) -> OPERADOR ELETROMECÂNICO – PLANTONISTA NOTURNO | E60: ='Dados Gerais'!L$15 -> 6 | F60: 7872.13 | G60: 506.4 | H60: 8378.53 | I60: 50271.18
C61: 10 | D61: =HLOOKUP(C61,'Dados Gerais'!$D$6:$BI$11,6) -> AUXILIAR MECÂNICO DE AR CONDICIONADO | E61: ='Dados Gerais'!M$15 -> 19 | F61: 6310.42 | G61: 339.32 | H61: 6649.74 | I61: 126345.06
C62: 11 | D62: =HLOOKUP(C62,'Dados Gerais'!$D$6:$BI$11,6) -> CONTROLADOR DE MATERIAIS | E62: ='Dados Gerais'!N$15 -> 3 | F62: 8805.6 | G62: 533.8 | H62: 9339.4 | I62: 28018.2
C63: 12 | D63: =HLOOKUP(C63,'Dados Gerais'!$D$6:$BI$11,6) -> COORDENADOR DE FACILITIES | E63: ='Dados Gerais'!O$15 -> 5 | F63: 20477.82 | G63: 1437.44 | H63: 21915.26 | I63: 109576.3
C64: 13 | D64: =HLOOKUP(C64,'Dados Gerais'!$D$6:$BI$11,6) -> OPERADOR DE CENTRAL DE DETECÇÃO E ALARME DE INCÊNDIO - PLANTONISTA DIURNO | E64: ='Dados Gerais'!P$15 -> 4 | F64: 9249.69 | G64: 612.23 | H64: 9861.92 | I64: 39447.68
C65: 14 | D65: =HLOOKUP(C65,'Dados Gerais'!$D$6:$BI$11,6) -> OPERADOR DE CENTRAL DE DETECÇÃO E ALARME DE INCÊNDIO - PLANTONISTA NOTURNO | E65: ='Dados Gerais'!Q$15 -> 4 | F65: 9991.87 | G65: 667.74 | H65: 10659.61 | I65: 42638.44
D67: TOTAL MENSAL - SALÁRIOS | I67: =SUM(I52:I66) -> 1062300.03
B70: RESUMO - TOTAIS MENSAIS - ITENS COMPLEMENTARES À FOLHA
C73: ITEM | D73: DESCRIÇÃO | I73: PREÇO TOTAL (MENSAL)
C74: SREP | D74: SISTEMA DE REGISTRO ELETRÔNICO DE PRESENÇA - SREP | I74: =SREP!M46 -> 1366.9
C75: EPI - N.REL | D75: EQUIPAMENTOS DE PROTEÇÃO INDIVIDUAL NÃO RELACIONADOS DIRETAMENTE A UM POSTO DE TRABALHO | I75: ='EPI - Rel'!L49 -> 0
C76: EPI - N.REL | D76: EPI NÃO RELACIONADOS DIRETAMENTE A UM POSTO DE TRABALHO | I76: ='EPI - N.Rel'!J38 -> 7661.31
C77: UNIF. | D77: UNIFORMES NÃO RELACIONADOS DIRETAMENTE A UM POSTO DE TRABALHO | I77: =Uniformes!K15 -> 5159.88
C78: FERRAM. | D78: FERRAMENTAS NÃO RELACIONADAS DIRETAMENTE A UM POSTO DE TRABALHO | I78: =Ferramentas!M240 -> 8087.8
C79: EQUIPAM | D79: EQUIPAMENTOS NÃO RELACIONADOS DIRETAMENTE A UM POSTO DE TRABALHO | I79: =Equipamentos!M43 -> 5447
C80: CONSUMO | D80: MATERIAIS DE CONSUMO | I80: ='Mat Consumo'!J76 -> 14894.01
C81: PROF.NÃO.RESID | D81: PROFISSIONAL NÃO-RESIDENTE | I81: =Prof.N.Resid!J11 -> 15361.92
C82: VEÍCULOS | D82: VEÍCULOS PARA TRANSPORTE DE COLABORADORES E DE MATERIAIS | I82: =Veículos!J25 -> 3754.69
C83: SERV.ADIC | D83: SERVIÇOS ADICIONAIS | I83: =Serv.Adicionais!J14 -> 31234.1
D85: TOTAL MENSAL - ITENS COMPLEMENTARES À FOLHA | I85: =SUM(I74:I84) -> 92967.61
B89: RESUMO - TOTAIS MENSAIS - ITENS SOB DEMANDA
C92: ITEM | D92: DESCRIÇÃO | I92: PREÇO TOTAL (MENSAL)
C93: TRANSP. | D93: PREVISÃO DE MOVIMENTAÇÕES EM TRANSPORTE POR CHAMADO | I93: ='Demanda - Transp. p. chamado'!J16 -> 595.04
C94: DEMANDA - HE | D94: HORAS EXTRAS - SOB DEMANDA | I94: ='Demanda - H.Extras'!M46 -> 17285.39
C95: DEMANDA - INST | D95: MATERIAIS E SERVIÇOS PARA INSTALAÇÃO - SOB DEMANDA | I95: ='Demanda - Instalação'!K733 -> 143042.46
C96: DEMANDA - MANUT | D96: MATERIAIS E SERVIÇOS PARA MANUTENÇÃO - SOB DEMANDA | I96: ='Demanda - Corretiva'!K1855 -> 107871.02
D98: TOTAL MENSAL - ITENS SOB DEMANDA | I98: =SUM(I93:I97) -> 268793.91
D100: TOTAL MENSAL
D101: DESCRIÇÃO | H101: VALOR
D102: FATURA MENSAL ORDINÁRIA - DETEC | H102: =I67 -> 1062300.03
D103: ESTIMATIVA MENSAL - ITENS COMPLEMENTARES À FOLHA | H103: =I85 -> 92967.61
D104: ESTIMATIVA MENSAL - ITENS SOB DEMANDA | H104: =I98 -> 268793.91
G106: TOTAL MENSAL DA CONTRATAÇÃO | H106: =ROUND(SUM(H102:H105),2) -> 1424061.55
D108: TOTAL GLOBAL DA CONTRATAÇÃO - 12 MESES
G110: 12 x TOTAL MENSAL | H110: =ROUND(H106*12,2) -> 17088738.6
D112: TOTAL MENSAL - ITENS SOB DEMANDA
D113: DESCRIÇÃO | H113: VALOR
D114: Materiais não relacionados diretamente a um posto de trabalho - AQUISIÇÃO SOB DEMANDA | H114: =#REF! -> 
D115: Equipamentos não relacionados diretamente a um posto de trabalho - AQUISIÇÃO SOB DEMANDA | H115: =#REF! -> 
G117: TOTAL MENSAL DA CONTRATAÇÃO | H117: =SUM(H114:H116) -> 
D119: TOTAL ANUAL - ITENS SOB DEMANDA
G121: 12 x TOTAL MENSAL | H121: =H117*12 -> 
D123: TOTAL ANUAL GLOBAL DA CONTRATAÇÃO
H125: =H121+H110 -> 
D128: TOTAL GLOBAL DA CONTRATAÇÃO - 36 MESES
G130: 36 x TOTAL MENSAL | H130: =ROUND(H106*36,2) -> 51266215.8
D132: TOTAL MENSAL - ITENS SOB DEMANDA
D133: DESCRIÇÃO | H133: VALOR
D134: Materiais não relacionados diretamente a um posto de trabalho - AQUISIÇÃO SOB DEMANDA | H134: =#REF! -> 
D135: Equipamentos não relacionados diretamente a um posto de trabalho - AQUISIÇÃO SOB DEMANDA | H135: =#REF! -> 
G137: TOTAL MENSAL DA CONTRATAÇÃO | H137: =SUM(H134:H136) -> 
D139: TOTAL ANUAL - ITENS SOB DEMANDA
G141: 12 x TOTAL MENSAL | H141: =H137*12 -> 
D143: TOTAL ANUAL GLOBAL DA CONTRATAÇÃO
H145: =H141+H130 -> 

Sheet 1
B2: PLANILHA DE ESTIMATIVA DE CUSTOS
B3: Padrão IN 05/2017 e IN 07/2018 - MPDG
B5: 1 | D5: =HLOOKUP($B$5,'Dados Gerais'!$D$6:$BI$22,6) -> COORDENADOR DE SERVIÇOS DE MANUTENÇÃO | E5: QUANTIDADE | F5: =HLOOKUP($B$5,'Dados Gerais'!$D$6:$BI$22,10) -> 1
B6: CCT | D6: =HLOOKUP($B$5,'Dados Gerais'!$D$6:$BI$22,16) -> SINDUSCON/DF x STICOMBE/DF CCT 2024/2025 - 2º TA - N.º DF000276/2024 | E6: DATA-BASE | F6: =HLOOKUP($B$5,'Dados Gerais'!$D$6:$BI$22,17) -> 2024-05-01
B8: MÓDULO 1 - COMPOSIÇÃO DA REMUNERAÇÃO | F8: Valor
C9: A | D9: Salário-Base | F9: =HLOOKUP($B$5,'Dados Gerais'!$D$6:$BI$22,8) -> 9062.38
C10: B | D10: Adicional de Periculosidade | F10: =HLOOKUP($B$5,'Dados Gerais'!$D$6:$BI$39,26) -> 0
C11: C | D11: Adicional de Insalubridade | F11: =HLOOKUP($B$5,'Dados Gerais'!$D$6:$BI$39,32) -> 0
C12: D | D12: Adicional Noturno | F12: =HLOOKUP($B$5,'Dados Gerais'!$D$6:$BI$52,47) -> 0 | H12: * Nota 1 - O Módulo 1 refere-se ao valor mensal devido ao empregado pela prestação do serviço no período de 12 meses.
C13: E | D13: Adicional de Hora Extra | F13: =HLOOKUP($B$5,'Dados Gerais'!$D$6:$BI$69,64) -> 0 | H13: * Nota 2 - O adicional de hora extra no feriado trabalhado foi suprimido pela Lei 13.467/17
C14: F | D14: Outros (adicional de sobreaviso) | F14: =HLOOKUP($B$5,'Dados Gerais'!$D$6:$BI$69,34) -> 1428.01 | H14: * Nota 3 - ART. 7º, § 2º, DA LEI Nº 605/49.Sendo mensalista o obreiro, o adicional noturno pago de forma fixa já é considerado integrado para os efeitos do pagamento do repouso semanal remunerado, nos termos do art. 7º, § 2º, da Lei nº 605/49.
D16: TOTAL DA REMUNERAÇÃO | F16: =SUM(F9:F14) -> 10490.39
B18: MÓDULO 2 - ENCARGOS E BENEFÍCIOS ANUAIS, MENSAIS E DIÁRIOS | E18: Percentuais | F18: Valor
B19: Submódulo 2.1 - 13º Salário, Férias e Adicional de Férias
C20: A | D20: 13º Salário - Calculado no Módulo 7 - Destacado | E20: 0 | F20: =ROUND(E20*F$16,2) -> 0
C21: B | D21: Adicional de Férias | E21: ='[1]Encargos Sociais'!E31 -> 0.0303 | F21: =ROUND(E21*(F$16),2) -> 317.86 | H21: * Nota 1 - O adicional de férias foi calculado dividindo-se por 11, para comportar os 11 meses presentes e ainda o ausente do posto
B23: Submódulo 2.2 - Encargos Previdenciários (GPS), Fundo de Garantia por Tempo de Serviço (FGTS) e Outras Contribuições
C24: A | D24: INSS (art. 22, inciso I, Lei nº 8.212/91) | E24: ='Encargos Sociais'!E14 -> 0.2 | F24: =ROUND(E24*($F$16+$F$41+$F$73),2) -> 2394.33 | H24: * Nota 1 - Os percentuais dos encargos previdenciários, do FGTS e demais contribuições são estabelecidos por legislação vigente.
C25: B | D25: Salário Educação (art. 3º, inciso I, Decreto nº 87.043/82) | E25: ='Encargos Sociais'!E15 -> 0.025 | F25: =ROUND(E25*($F$16+$F$41+$F$73),2) -> 299.29 | H25: * Nota 2 - O SAT, a depender do grau de risco do serviço, irá variar entre 1%, para risco leve, de 2%, para risco médio, e de 3% para risco grave.
C26: C | D26: SAT/RAT (art. 22, II, Lei 8.212/91 e Anexo V, Decreto 6.042/07) - Enquadramento 8211-3/00 | E26: ='Encargos Sociais'!E16 -> 0.01 | F26: 119.72 | H26: * Nota 3 - Base de cálculo - remuneração + ausências + terço constitucional (férias)
C27: D | D27: SESC ou SESI (art. 30, Lei nº 8.036/90 e art. 1º, Lei 8.154/90) | E27: ='Encargos Sociais'!E17 -> 0.015 | F27: 179.57
C28: E | D28: SENAI ou SENAC (Decreto nº 2.318/86) | E28: ='Encargos Sociais'!E18 -> 0.01 | F28: 119.72
C29: F | D29: SEBRAE (§ 3º, art. 8º, Lei 8.029/90, alterada pela Lei nº 8.154/90) | E29: ='Encargos Sociais'!E19 -> 0.006 | F29: 71.83
C30: G | D30: INCRA (art. 1º, I, Decreto Lei 1.146/70 e Lei 7.787, de 30/06/89) | E30: ='Encargos Sociais'!E20 -> 0.002 | F30: 23.94
C31: H | D31: FGTS (Lei Complementar nº 110/01 e art. 30, Lei nº 8.036/90) | E31: ='Encargos Sociais'!E21 -> 0.08 | F31: 957.73
C32: I | D32: SECONCI (Convenções Coletivas de Trabalho da construção) | E32: ='Encargos Sociais'!E22 -> 0.01 | F32: 119.72
B34: Submódulo 2.3 - Benefícios Mensais e Diários
C35: A | D35: Auxílio Transporte | F35: =HLOOKUP($B$5,'Dados Gerais'!$D$6:$BI$95,83) -> 539.97 | H35: * Nota 1 - O valor informado deverá ser o custo real do benefício (descontado o valor eventualmente pago pelo empregado).
C36: B | D36: Auxílio Alimentação | F36: =HLOOKUP($B$5,'Dados Gerais'!$D$6:$BI$95,90) -> 910 | H36: * Nota 2 - Observar a previsão dos benefícios contidos em Acordos, Convenções e Dissídios Coletivos de Trabalho e o disposto no art. 6º da IN 5/2017
C37: C | D37: Assistência Médica e Familiar | F37: =HLOOKUP($B$5,'Dados Gerais'!$D$6:$BI$103,98) -> 0
C38: D | D38: Outros (Seguro de vida, auxílio funeral, auxílio odontológico e auxílio creche) | F38: =HLOOKUP($B$5,'Dados Gerais'!$D$6:$BI$121,115) -> 13.95
D40: QUADRO-RESUMO DO MÓDULO 2
D41: 2.1 - 13º Salário, Férias e Adicional de Férias - 13º Destacado - Calculado no Módulo 7 | E41: =SUM(E20:E21) -> 0.0303 | F41: =F20+F21 -> 317.86
D42: 2.2 - Encargos Previdenciários (GPS), Fundo de Garantia por Tempo de Serviço (FGTS) e Contribuições | E42: =SUM(E24:E32) -> 0.358 | F42: =SUM(F24:F32) -> 4285.85
D43: 2.3 - Benefícios Mensais e Diários | F43: =SUM(F35:F38) -> 1463.92
D45: TOTAL DOS ENCARGOS E BENEFÍCIOS | F45: =SUM(F41:F43) -> 6067.63
B47: MÓDULO 3 - PREVISÃO PARA RESCISÃO | E47: Percentuais | F47: Valor
C48: A | D48: Aviso Prévio Indenizado (Art. 7º, inciso XXI, da CF/1988 e arts. 477, 487, §1º, e 491 da CLT) | E48: ='Encargos Sociais'!E36 -> 0.0035 | F48: =ROUND(E48*($F$16+$F$73+$F$41),2) -> 41.9 | H48: * Nota 1 - Base de cálculo - remuneração + ausências + 1/3 férias
C49: B | D49: Incidência do FGTS sobre o Aviso Prévio Indenizado (Súmula 305 TST) | E49: ='Encargos Sociais'!E37 -> 0.0003 | F49: 3.59
C50: C | D50: Multa do FGTS e Contribuição Social sobre o Aviso Prévio Indenizado (Art. 18, §1º, da Lei 8.036/1990 e art. 1º da LC nº 110/2001) | E50: ='Encargos Sociais'!E38 -> 0.0011 | F50: 13.17
C51: D | D51: Aviso Prévio Trabalhado (Art. 488, parágrafo único, CLT) | E51: ='Encargos Sociais'!E39 -> 0.0078 | F51: 93.38
C52: E | D52: Incidência de GPS, FGTS e outras contribuições sobre o Aviso Prévio Trabalhado | E52: ='Encargos Sociais'!E40 -> 0.0028 | F52: 33.52
C53: F | D53: Multa do FGTS e Contribuição Social sobre o Aviso Prévio Trabalhado | E53: ='Encargos Sociais'!E41 -> 0.0309 | F53: 369.92
D55: TOTAL DE PREVISÃO PARA RESCISÃO | F55: =SUM(F48:F53) -> 555.48
B57: MÓDULO 4 - CUSTO DO PROFISSIONAL AUSENTE | E57: Percentuais | F57: Valor
B58: Submódulo 4.1 - Ausências Legais
C59: A | D59: Férias (Arts. 129 e 130, inc. I, da CLT) | E59: ='Encargos Sociais'!E25 -> 0.0909 | F59: =ROUND(E59*$F$16,2) -> 953.58 | H59: * Nota 1 - O Módulo 4 refere-se às previsões para custear ausências do próprio profissional (titular do cargo)
C60: B | D60: Ausências Legais (Arts. 131 e 473 da CLT) | E60: ='Encargos Sociais'!E26 -> 0.0079 | F60: 82.87 | H60: * Nota 2 - As férias foram calculadas dividindo-se por 11, para comportar os 11 meses presentes e ainda o ausente do posto
C61: C | D61: Licença-Paternidade (Art. 7º, XIX, e art. 10, §1º, do ADCT, CF/1988 e Art. 1º, II, da Lei 11.770/2008) | E61: ='Encargos Sociais'!E27 -> 0.0008 | F61: 8.39
C62: D | D62: Ausência por Acidente de Trabalho (Art. 131, III, da CLT) | E62: ='Encargos Sociais'!E28 -> 0.0009 | F62: 9.44
C63: E | D63: Afastamento Maternidade (Art. 71 da Lei nº 8.213/1991) | E63: ='Encargos Sociais'!E29 -> 0.0033 | F63: 34.62
C64: F | D64: Auxílio Enfermidade - Doença (Art. 59 da Lei nº 8.213/1991) | E64: ='Encargos Sociais'!E30 -> 0.0071 | F64: 74.48
B66: Submódulo 4.2 - Intrajornada
C67: A | D67: Intervalo para repouso ou alimentação | E67: ='Encargos Sociais'!E33 -> 0 | F67: =ROUND(E67*$F$16,2) -> 0
D69: QUADRO-RESUMO DO MÓDULO 4 | F69: Valor
D70: 4.1 - Ausências Legais | E70: =SUM(E59:E64) -> 0.1109 | F70: =ROUND(E70*$F$16,2) -> 1163.38
D71: 4.2 - Intrajornada | E71: =E67 -> 0 | F71: =ROUND(E71*$F$16,2) -> 0
D73: TOTAL DE PREVISÃO PARA RESCISÃO E INTERVALO INTRAJORNADA | F73: =SUM(F70:F71) -> 1163.38
B75: MÓDULO 5 - INSUMOS DIVERSOS | F75: Valor
C76: A | D76: Uniformes - aquisição | F76: 0
C77: B | D77: Materiais de consumo relacionados ao posto - aquisição | F77: 0
C78: C | D78: Ferramentas relacionadas ao posto - remuneração da sua depreciação / manutenção | F78: 0
C79: D | D79: Equipamentos relacionados ao posto - remuneração da sua depreciação / manutenção | F79: 0
C80: E | D80: Equipamentos de Proteção Individual - EPI - aquisição | F80: ='EPI - Rel'!J26 -> 76.32
D82: TOTAL DE INSUMOS DIVERSOS | F82: =SUM(F76:F81) -> 76.32 | H82: * Nota - Valores mensais por empregado
B84: MÓDULO 6 - CUSTOS INDIRETOS, TRIBUTOS E LUCRO - BDI | E84: Percentuais | F84: Valor
C85: A | D85: Custos Indiretos | E85: ='BDI - Geral'!E7 -> 0.0357
C86: A.1 | D86: Administração Central | E86: ='BDI - Geral'!E8 -> 0.0303
C87: A.2 | D87: Seguros, Garantias e Riscos | E87: ='BDI - Geral'!E9 -> 0.0054
C88: B | D88: Lucro | E88: ='BDI - Geral'!E11 -> 0.04
C89: C | D89: Tributos | E89: =SUM(E90:E91) -> 0.124
C90: C.1 | D90: Tributos Federais (COFINS, PIS e CPRB) | E90: ='BDI - Geral'!E19 -> 0.074
C91: C.2 | D91: Tributos Distritais (ISS) | E91: ='BDI - Geral'!E24 -> 0.05
C92: D | D92: Despesas Financeiras | E92: ='BDI - Geral'!E14 -> 0.0051
D94: TOTAL DE BDI | E94: ='BDI - Geral'!E27 -> 0.2359 | F94: =ROUND(E94*E102,2) -> 4329.52
D96: QUADRO-RESUMO DO CUSTO MENSAL POR EMPREGADO - SEM O 13º | E96: Valor
D97: Módulo 1 - Composição da Remuneração | E97: =F16 -> 10490.39
D98: Módulo 2 - Encargos e Benefícios Anuais, Mensais e Diários | E98: =F45 -> 6067.63
D99: Módulo 3 - Provisão para Rescisão | E99: =F55 -> 555.48
D100: Módulo 4 - Custo de Reposição do Profissional Ausente | E100: =F73 -> 1163.38
D101: Módulo 5 - Insumos Diversos | E101: =F82 -> 76.32
D102: SUBTOTAL (A+B+C+D+E) | E102: =SUM(E97:E101) -> 18353.2
D103: Módulo 6 - Custos Indiretos, Tributos e Lucro | E103: =F94 -> 4329.52
D105: TOTAL DO POSTO | E105: =SUM(E102:E103) -> 22682.72
B107: MÓDULO 7 - DESTAQUE DO MÓDULO 2 - 13º SALÁRIO | E107: Percentuais | F107: Valor
C108: A | D108: 13º Salário | E108: ='Encargos Sociais'!E32*12/11 -> 0.09087272727 | F108: =ROUND(E108*F$16,2) -> 953.29 | H108: * Nota 1 - Incluindo-se a reincidência das férias do substituto sobre o titular
C109: B | D109: Encargos Sociais sobre o 13º Salário - Taxa calculada no SUBMÓDULO 2.2 | E109: =SUM($E$24:$E$32) -> 0.358 | F109: =ROUND(E109*$F$108,2) -> 341.28 | H109: * Nota 2 - 13º e reflexos calculados à parte a fim de aprovisionamento
C110: C | D110: BDI sobre o 13º Salário - Taxa calculada no MÓDULO 6 | E110: =E94 -> 0.2359 | F110: =ROUND(E110*($F$108+$F$109),2) -> 305.39
D112: TOTAL DO DESTAQUE DO 13º SALÁRIO | F112: =SUM(F108:F110) -> 1599.96
D114: QUADRO-RESUMO DO CUSTO MENSAL POR EMPREGADO | E114: Valor
D115: Custo total - sem o 13º Salário | E115: =ROUND(E105,2) -> 22682.72
D116: Destaque do 13º Salário (valor mensal) | E116: =ROUND(F112,2) -> 1599.96
D118: TOTAL DO POSTO | E118: =E115+E116 -> 24282.68

Sheet 2
B2: PLANILHA DE ESTIMATIVA DE CUSTOS
B3: Padrão IN 05/2017 e IN 07/2018 - MPDG
B5: 2 | D5: =HLOOKUP($B$5,'Dados Gerais'!$D$6:$BI$22,6) -> SUPERVISOR DE MANUTENÇÃO ELETROMECÂNICA | E5: QUANTIDADE | F5: =HLOOKUP($B$5,'Dados Gerais'!$D$6:$BI$22,10) -> 4
B6: CCT | D6: =HLOOKUP($B$5,'Dados Gerais'!$D$6:$BI$22,16) -> SINDUSCON/DF x STICOMBE/DF CCT 2024/2025 - 2º TA - N.º DF000276/2024 | E6: DATA-BASE | F6: =HLOOKUP($B$5,'Dados Gerais'!$D$6:$BI$22,17) -> 2024-05-01
B8: MÓDULO 1 - COMPOSIÇÃO DA REMUNERAÇÃO | F8: Valor
C9: A | D9: Salário-Base | F9: =HLOOKUP($B$5,'Dados Gerais'!$D$6:$BI$22,8) -> 7340.02
C10: B | D10: Adicional de Periculosidade | F10: =HLOOKUP($B$5,'Dados Gerais'!$D$6:$BI$39,26) -> 0
C11: C | D11: Adicional de Insalubridade | F11: =HLOOKUP($B$5,'Dados Gerais'!$D$6:$BI$39,32) -> 0
C12: D | D12: Adicional Noturno | F12: =HLOOKUP($B$5,'Dados Gerais'!$D$6:$BI$52,47) -> 0 | H12: * Nota 1 - O Módulo 1 refere-se ao valor mensal devido ao empregado pela prestação do serviço no período de 12 meses.
C13: E | D13: Adicional de Hora Extra | F13: =HLOOKUP($B$5,'Dados Gerais'!$D$6:$BI$69,64) -> 0 | H13: * Nota 2 - O adicional de hora extra no feriado trabalhado foi suprimido pela Lei 13.467/17
C14: F | D14: Outros (adicional de sobreaviso) | F14: =HLOOKUP($B$5,'Dados Gerais'!$D$6:$BI$69,34) -> 1156.61 | H14: * Nota 3 - ART. 7º, § 2º, DA LEI Nº 605/49.Sendo mensalista o obreiro, o adicional noturno pago de forma fixa já é considerado integrado para os efeitos do pagamento do repouso semanal remunerado, nos termos do art. 7º, § 2º, da Lei nº 605/49.
D16: TOTAL DA REMUNERAÇÃO | F16: =SUM(F9:F14) -> 8496.63
B18: MÓDULO 2 - ENCARGOS E BENEFÍCIOS ANUAIS, MENSAIS E DIÁRIOS | E18: Percentuais | F18: Valor
B19: Submódulo 2.1 - 13º Salário, Férias e Adicional de Férias
C20: A | D20: 13º Salário - Calculado no Módulo 7 - Destacado | E20: 0 | F20: =ROUND(E20*F$16,2) -> 0
C21: B | D21: Adicional de Férias | E21: ='[1]Encargos Sociais'!E31 -> 0.0303 | F21: =ROUND(E21*(F$16),2) -> 257.45 | H21: * Nota 1 - O adicional de férias foi calculado dividindo-se por 11, para comportar os 11 meses presentes e ainda o ausente do posto
B23: Submódulo 2.2 - Encargos Previdenciários (GPS), Fundo de Garantia por Tempo de Serviço (FGTS) e Outras Contribuições
C24: A | D24: INSS (art. 22, inciso I, Lei nº 8.212/91) | E24: ='Encargos Sociais'!E14 -> 0.2 | F24: =ROUND(E24*($F$16+$F$41+$F$73),2) -> 1939.27 | H24: * Nota 1 - Os percentuais dos encargos previdenciários, do FGTS e demais contribuições são estabelecidos por legislação vigente.
C25: B | D25: Salário Educação (art. 3º, inciso I, Decreto nº 87.043/82) | E25: ='Encargos Sociais'!E15 -> 0.025 | F25: =ROUND(E25*($F$16+$F$41+$F$73),2) -> 242.41 | H25: * Nota 2 - O SAT, a depender do grau de risco do serviço, irá variar entre 1%, para risco leve, de 2%, para risco médio, e de 3% para risco grave.
C26: C | D26: SAT/RAT (art. 22, II, Lei 8.212/91 e Anexo V, Decreto 6.042/07) - Enquadramento 8211-3/00 | E26: ='Encargos Sociais'!E16 -> 0.01 | F26: 96.96 | H26: * Nota 3 - Base de cálculo - remuneração + ausências + terço constitucional (férias)
C27: D | D27: SESC ou SESI (art. 30, Lei nº 8.036/90 e art. 1º, Lei 8.154/90) | E27: ='Encargos Sociais'!E17 -> 0.015 | F27: 145.45
C28: E | D28: SENAI ou SENAC (Decreto nº 2.318/86) | E28: ='Encargos Sociais'!E18 -> 0.01 | F28: 96.96
C29: F | D29: SEBRAE (§ 3º, art. 8º, Lei 8.029/90, alterada pela Lei nº 8.154/90) | E29: ='Encargos Sociais'!E19 -> 0.006 | F29: 58.18
C30: G | D30: INCRA (art. 1º, I, Decreto Lei 1.146/70 e Lei 7.787, de 30/06/89) | E30: ='Encargos Sociais'!E20 -> 0.002 | F30: 19.39
C31: H | D31: FGTS (Lei Complementar nº 110/01 e art. 30, Lei nº 8.036/90) | E31: ='Encargos Sociais'!E21 -> 0.08 | F31: 775.71
C32: I | D32: SECONCI (Convenções Coletivas de Trabalho da construção) | E32: ='Encargos Sociais'!E22 -> 0.01 | F32: 96.96
B34: Submódulo 2.3 - Benefícios Mensais e Diários
C35: A | D35: Auxílio Transporte | F35: =HLOOKUP($B$5,'Dados Gerais'!$D$6:$BI$95,83) -> 539.97 | H35: * Nota 1 - O valor informado deverá ser o custo real do benefício (descontado o valor eventualmente pago pelo empregado).
C36: B | D36: Auxílio Alimentação | F36: =HLOOKUP($B$5,'Dados Gerais'!$D$6:$BI$95,90) -> 910 | H36: * Nota 2 - Observar a previsão dos benefícios contidos em Acordos, Convenções e Dissídios Coletivos de Trabalho e o disposto no art. 6º da IN 5/2017
C37: C | D37: Assistência Médica e Familiar | F37: =HLOOKUP($B$5,'Dados Gerais'!$D$6:$BI$103,98) -> 0
C38: D | D38: Outros (Seguro de vida, auxílio funeral, auxílio odontológico e auxílio creche) | F38: =HLOOKUP($B$5,'Dados Gerais'!$D$6:$BI$121,115) -> 13.95
D40: QUADRO-RESUMO DO MÓDULO 2
D41: 2.1 - 13º Salário, Férias e Adicional de Férias - 13º Destacado - Calculado no Módulo 7 | E41: =SUM(E20:E21) -> 0.0303 | F41: =F20+F21 -> 257.45
D42: 2.2 - Encargos Previdenciários (GPS), Fundo de Garantia por Tempo de Serviço (FGTS) e Contribuições | E42: =SUM(E24:E32) -> 0.358 | F42: =SUM(F24:F32) -> 3471.29
D43: 2.3 - Benefícios Mensais e Diários | F43: =SUM(F35:F38) -> 1463.92
D45: TOTAL DOS ENCARGOS E BENEFÍCIOS | F45: =SUM(F41:F43) -> 5192.66
B47: MÓDULO 3 - PREVISÃO PARA RESCISÃO | E47: Percentuais | F47: Valor
C48: A | D48: Aviso Prévio Indenizado (Art. 7º, inciso XXI, da CF/1988 e arts. 477, 487, §1º, e 491 da CLT) | E48: ='Encargos Sociais'!E36 -> 0.0035 | F48: =ROUND(E48*($F$16+$F$73+$F$41),2) -> 33.94 | H48: * Nota 1 - Base de cálculo - remuneração + ausências + 1/3 férias
C49: B | D49: Incidência do FGTS sobre o Aviso Prévio Indenizado (Súmula 305 TST) | E49: ='Encargos Sociais'!E37 -> 0.0003 | F49: 2.91
C50: C | D50: Multa do FGTS e Contribuição Social sobre o Aviso Prévio Indenizado (Art. 18, §1º, da Lei 8.036/1990 e art. 1º da LC nº 110/2001) | E50: ='Encargos Sociais'!E38 -> 0.0011 | F50: 10.67
C51: D | D51: Aviso Prévio Trabalhado (Art. 488, parágrafo único, CLT) | E51: ='Encargos Sociais'!E39 -> 0.0078 | F51: 75.63
C52: E | D52: Incidência de GPS, FGTS e outras contribuições sobre o Aviso Prévio Trabalhado | E52: ='Encargos Sociais'!E40 -> 0.0028 | F52: 27.15
C53: F | D53: Multa do FGTS e Contribuição Social sobre o Aviso Prévio Trabalhado | E53: ='Encargos Sociais'!E41 -> 0.0309 | F53: 299.62
D55: TOTAL DE PREVISÃO PARA RESCISÃO | F55: =SUM(F48:F53) -> 449.92
B57: MÓDULO 4 - CUSTO DO PROFISSIONAL AUSENTE | E57: Percentuais | F57: Valor
B58: Submódulo 4.1 - Ausências Legais
C59: A | D59: Férias (Arts. 129 e 130, inc. I, da CLT) | E59: ='Encargos Sociais'!E25 -> 0.0909 | F59: =ROUND(E59*$F$16,2) -> 772.34 | H59: * Nota 1 - O Módulo 4 refere-se às previsões para custear ausências do próprio profissional (titular do cargo)
C60: B | D60: Ausências Legais (Arts. 131 e 473 da CLT) | E60: ='Encargos Sociais'!E26 -> 0.0079 | F60: 67.12 | H60: * Nota 2 - As férias foram calculadas dividindo-se por 11, para comportar os 11 meses presentes e ainda o ausente do posto
C61: C | D61: Licença-Paternidade (Art. 7º, XIX, e art. 10, §1º, do ADCT, CF/1988 e Art. 1º, II, da Lei 11.770/2008) | E61: ='Encargos Sociais'!E27 -> 0.0008 | F61: 6.8
C62: D | D62: Ausência por Acidente de Trabalho (Art. 131, III, da CLT) | E62: ='Encargos Sociais'!E28 -> 0.0009 | F62: 7.65
C63: E | D63: Afastamento Maternidade (Art. 71 da Lei nº 8.213/1991) | E63: ='Encargos Sociais'!E29 -> 0.0033 | F63: 28.04
C64: F | D64: Auxílio Enfermidade - Doença (Art. 59 da Lei nº 8.213/1991) | E64: ='Encargos Sociais'!E30 -> 0.0071 | F64: 60.33
B66: Submódulo 4.2 - Intrajornada
C67: A | D67: Intervalo para repouso ou alimentação | E67: ='Encargos Sociais'!E33 -> 0 | F67: =ROUND(E67*$F$16,2) -> 0
D69: QUADRO-RESUMO DO MÓDULO 4 | F69: Valor
D70: 4.1 - Ausências Legais | E70: =SUM(E59:E64) -> 0.1109 | F70: =ROUND(E70*$F$16,2) -> 942.28
D71: 4.2 - Intrajornada | E71: =E67 -> 0 | F71: =ROUND(E71*$F$16,2) -> 0
D73: TOTAL DE PREVISÃO PARA RESCISÃO E INTERVALO INTRAJORNADA | F73: =SUM(F70:F71) -> 942.28
B75: MÓDULO 5 - INSUMOS DIVERSOS | F75: Valor
C76: A | D76: Uniformes - aquisição | F76: 0
C77: B | D77: Materiais de consumo relacionados ao posto - aquisição | F77: 0
C78: C | D78: Ferramentas relacionadas ao posto - remuneração da sua depreciação / manutenção | F78: 0
C79: D | D79: Equipamentos relacionados ao posto - remuneração da sua depreciação / manutenção | F79: 0
C80: E | D80: Equipamentos de Proteção Individual - EPI - aquisição | F80: ='EPI - Rel'!J8 -> 55.7
D82: TOTAL DE INSUMOS DIVERSOS | F82: =SUM(F76:F81) -> 55.7 | H82: * Nota - Valores mensais por empregado
B84: MÓDULO 6 - CUSTOS INDIRETOS, TRIBUTOS E LUCRO - BDI | E84: Percentuais | F84: Valor
C85: A | D85: Custos Indiretos | E85: ='BDI - Geral'!E7 -> 0.0357
C86: A.1 | D86: Administração Central | E86: ='BDI - Geral'!E8 -> 0.0303
C87: A.2 | D87: Seguros, Garantias e Riscos | E87: ='BDI - Geral'!E9 -> 0.0054
C88: B | D88: Lucro | E88: ='BDI - Geral'!E11 -> 0.04
C89: C | D89: Tributos | E89: =SUM(E90:E91) -> 0.124
C90: C.1 | D90: Tributos Federais (COFINS, PIS e CPRB) | E90: ='BDI - Geral'!E19 -> 0.074
C91: C.2 | D91: Tributos Distritais (ISS) | E91: ='BDI - Geral'!E24 -> 0.05
C92: D | D92: Despesas Financeiras | E92: ='BDI - Geral'!E14 -> 0.0051
D94: TOTAL DE BDI | E94: ='BDI - Geral'!E27 -> 0.2359 | F94: =ROUND(E94*E102,2) -> 3570.86
D96: QUADRO-RESUMO DO CUSTO MENSAL POR EMPREGADO - SEM O 13º | E96: Valor
D97: Módulo 1 - Composição da Remuneração | E97: =F16 -> 8496.63
D98: Módulo 2 - Encargos e Benefícios Anuais, Mensais e Diários | E98: =F45 -> 5192.66
D99: Módulo 3 - Provisão para Rescisão | E99: =F55 -> 449.92
D100: Módulo 4 - Custo de Reposição do Profissional Ausente | E100: =F73 -> 942.28
D101: Módulo 5 - Insumos Diversos | E101: =F82 -> 55.7
D102: SUBTOTAL (A+B+C+D+E) | E102: =SUM(E97:E101) -> 15137.19
D103: Módulo 6 - Custos Indiretos, Tributos e Lucro | E103: =F94 -> 3570.86
D105: TOTAL DO POSTO | E105: =SUM(E102:E103) -> 18708.05
B107: MÓDULO 7 - DESTAQUE DO MÓDULO 2 - 13º SALÁRIO | E107: Percentuais | F107: Valor
C108: A | D108: 13º Salário | E108: ='Encargos Sociais'!E32*12/11 -> 0.09087272727 | F108: =ROUND(E108*F$16,2) -> 772.11 | H108: * Nota 1 - Incluindo-se a reincidência das férias do substituto sobre o titular
C109: B | D109: Encargos Sociais sobre o 13º Salário - Taxa calculada no SUBMÓDULO 2.2 | E109: =SUM($E$24:$E$32) -> 0.358 | F109: =ROUND(E109*$F$108,2) -> 276.42 | H109: * Nota 2 - 13º e reflexos calculados à parte a fim de aprovisionamento
C110: C | D110: BDI sobre o 13º Salário - Taxa calculada no MÓDULO 6 | E110: =E94 -> 0.2359 | F110: =ROUND(E110*($F$108+$F$109),2) -> 247.35
D112: TOTAL DO DESTAQUE DO 13º SALÁRIO | F112: =SUM(F108:F110) -> 1295.88
D114: QUADRO-RESUMO DO CUSTO MENSAL POR EMPREGADO | E114: Valor
D115: Custo total - sem o 13º Salário | E115: =ROUND(E105,2) -> 18708.05
D116: Destaque do 13º Salário (valor mensal) | E116: =ROUND(F112,2) -> 1295.88
D118: TOTAL DO POSTO | E118: =E115+E116 -> 20003.93

Sheet 3
B2: PLANILHA DE ESTIMATIVA DE CUSTOS
B3: Padrão IN 05/2017 e IN 07/2018 - MPDG
B5: 3 | D5: =HLOOKUP($B$5,'Dados Gerais'!$D$6:$BI$22,6) -> ENCARREGADO ELETROMECÂNICO DE INSTALAÇÕES | E5: QUANTIDADE | F5: =HLOOKUP($B$5,'Dados Gerais'!$D$6:$BI$22,10) -> 5
B6: CCT | D6: =HLOOKUP($B$5,'Dados Gerais'!$D$6:$BI$22,16) -> SINDUSCON/DF x STICOMBE/DF CCT 2024/2025 - 2º TA - N.º DF000276/2024 | E6: DATA-BASE | F6: =HLOOKUP($B$5,'Dados Gerais'!$D$6:$BI$22,17) -> 2024-05-01
B8: MÓDULO 1 - COMPOSIÇÃO DA REMUNERAÇÃO | F8: Valor
C9: A | D9: Salário-Base | F9: =HLOOKUP($B$5,'Dados Gerais'!$D$6:$BI$22,8) -> 5547.7
C10: B | D10: Adicional de Periculosidade | F10: =HLOOKUP($B$5,'Dados Gerais'!$D$6:$BI$39,26) -> 1664.31
C11: C | D11: Adicional de Insalubridade | F11: =HLOOKUP($B$5,'Dados Gerais'!$D$6:$BI$39,32) -> 0
C12: D | D12: Adicional Noturno | F12: =HLOOKUP($B$5,'Dados Gerais'!$D$6:$BI$52,47) -> 0 | H12: * Nota 1 - O Módulo 1 refere-se ao valor mensal devido ao empregado pela prestação do serviço no período de 12 meses.
C13: E | D13: Adicional de Hora Extra | F13: =HLOOKUP($B$5,'Dados Gerais'!$D$6:$BI$69,64) -> 0 | H13: * Nota 2 - O adicional de hora extra no feriado trabalhado foi suprimido pela Lei 13.467/17
C14: F | D14: Outros (adicional de sobreaviso) | F14: =HLOOKUP($B$5,'Dados Gerais'!$D$6:$BI$69,34) -> 874.18 | H14: * Nota 3 - ART. 7º, § 2º, DA LEI Nº 605/49.Sendo mensalista o obreiro, o adicional noturno pago de forma fixa já é considerado integrado para os efeitos do pagamento do repouso semanal remunerado, nos termos do art. 7º, § 2º, da Lei nº 605/49.
D16: TOTAL DA REMUNERAÇÃO | F16: =SUM(F9:F14) -> 8086.19
B18: MÓDULO 2 - ENCARGOS E BENEFÍCIOS ANUAIS, MENSAIS E DIÁRIOS | E18: Percentuais | F18: Valor
B19: Submódulo 2.1 - 13º Salário, Férias e Adicional de Férias
C20: A | D20: 13º Salário - Calculado no Módulo 7 - Destacado | E20: 0 | F20: =ROUND(E20*F$16,2) -> 0
C21: B | D21: Adicional de Férias | E21: ='[1]Encargos Sociais'!E31 -> 0.0303 | F21: =ROUND(E21*(F$16),2) -> 245.01 | H21: * Nota 1 - O adicional de férias foi calculado dividindo-se por 11, para comportar os 11 meses presentes e ainda o ausente do posto
B23: Submódulo 2.2 - Encargos Previdenciários (GPS), Fundo de Garantia por Tempo de Serviço (FGTS) e Outras Contribuições
C24: A | D24: INSS (art. 22, inciso I, Lei nº 8.212/91) | E24: ='Encargos Sociais'!E14 -> 0.2 | F24: =ROUND(E24*($F$16+$F$41+$F$73),2) -> 1845.59 | H24: * Nota 1 - Os percentuais dos encargos previdenciários, do FGTS e demais contribuições são estabelecidos por legislação vigente.
C25: B | D25: Salário Educação (art. 3º, inciso I, Decreto nº 87.043/82) | E25: ='Encargos Sociais'!E15 -> 0.025 | F25: =ROUND(E25*($F$16+$F$41+$F$73),2) -> 230.7 | H25: * Nota 2 - O SAT, a depender do grau de risco do serviço, irá variar entre 1%, para risco leve, de 2%, para risco médio, e de 3% para risco grave.
C26: C | D26: SAT/RAT (art. 22, II, Lei 8.212/91 e Anexo V, Decreto 6.042/07) - Enquadramento 8211-3/00 | E26: ='Encargos Sociais'!E16 -> 0.01 | F26: 92.28 | H26: * Nota 3 - Base de cálculo - remuneração + ausências + terço constitucional (férias)
C27: D | D27: SESC ou SESI (art. 30, Lei nº 8.036/90 e art. 1º, Lei 8.154/90) | E27: ='Encargos Sociais'!E17 -> 0.015 | F27: 138.42
C28: E | D28: SENAI ou SENAC (Decreto nº 2.318/86) | E28: ='Encargos Sociais'!E18 -> 0.01 | F28: 92.28
C29: F | D29: SEBRAE (§ 3º, art. 8º, Lei 8.029/90, alterada pela Lei nº 8.154/90) | E29: ='Encargos Sociais'!E19 -> 0.006 | F29: 55.37
C30: G | D30: INCRA (art. 1º, I, Decreto Lei 1.146/70 e Lei 7.787, de 30/06/89) | E30: ='Encargos Sociais'!E20 -> 0.002 | F30: 18.46
C31: H | D31: FGTS (Lei Complementar nº 110/01 e art. 30, Lei nº 8.036/90) | E31: ='Encargos Sociais'!E21 -> 0.08 | F31: 738.24
C32: I | D32: SECONCI (Convenções Coletivas de Trabalho da construção) | E32: ='Encargos Sociais'!E22 -> 0.01 | F32: 92.28
B34: Submódulo 2.3 - Benefícios Mensais e Diários
C35: A | D35: Auxílio Transporte | F35: =HLOOKUP($B$5,'Dados Gerais'!$D$6:$BI$95,83) -> 539.97 | H35: * Nota 1 - O valor informado deverá ser o custo real do benefício (descontado o valor eventualmente pago pelo empregado).
C36: B | D36: Auxílio Alimentação | F36: =HLOOKUP($B$5,'Dados Gerais'!$D$6:$BI$95,90) -> 910 | H36: * Nota 2 - Observar a previsão dos benefícios contidos em Acordos, Convenções e Dissídios Coletivos de Trabalho e o disposto no art. 6º da IN 5/2017
C37: C | D37: Assistência Médica e Familiar | F37: =HLOOKUP($B$5,'Dados Gerais'!$D$6:$BI$103,98) -> 0
C38: D | D38: Outros (Seguro de vida, auxílio funeral, auxílio odontológico e auxílio creche) | F38: =HLOOKUP($B$5,'Dados Gerais'!$D$6:$BI$121,115) -> 13.95
D40: QUADRO-RESUMO DO MÓDULO 2
D41: 2.1 - 13º Salário, Férias e Adicional de Férias - 13º Destacado - Calculado no Módulo 7 | E41: =SUM(E20:E21) -> 0.0303 | F41: =F20+F21 -> 245.01
D42: 2.2 - Encargos Previdenciários (GPS), Fundo de Garantia por Tempo de Serviço (FGTS) e Contribuições | E42: =SUM(E24:E32) -> 0.358 | F42: =SUM(F24:F32) -> 3303.62
D43: 2.3 - Benefícios Mensais e Diários | F43: =SUM(F35:F38) -> 1463.92
D45: TOTAL DOS ENCARGOS E BENEFÍCIOS | F45: =SUM(F41:F43) -> 5012.55
B47: MÓDULO 3 - PREVISÃO PARA RESCISÃO | E47: Percentuais | F47: Valor
C48: A | D48: Aviso Prévio Indenizado (Art. 7º, inciso XXI, da CF/1988 e arts. 477, 487, §1º, e 491 da CLT) | E48: ='Encargos Sociais'!E36 -> 0.0035 | F48: =ROUND(E48*($F$16+$F$73+$F$41),2) -> 32.3 | H48: * Nota 1 - Base de cálculo - remuneração + ausências + 1/3 férias
C49: B | D49: Incidência do FGTS sobre o Aviso Prévio Indenizado (Súmula 305 TST) | E49: ='Encargos Sociais'!E37 -> 0.0003 | F49: 2.77
C50: C | D50: Multa do FGTS e Contribuição Social sobre o Aviso Prévio Indenizado (Art. 18, §1º, da Lei 8.036/1990 e art. 1º da LC nº 110/2001) | E50: ='Encargos Sociais'!E38 -> 0.0011 | F50: 10.15
C51: D | D51: Aviso Prévio Trabalhado (Art. 488, parágrafo único, CLT) | E51: ='Encargos Sociais'!E39 -> 0.0078 | F51: 71.98
C52: E | D52: Incidência de GPS, FGTS e outras contribuições sobre o Aviso Prévio Trabalhado | E52: ='Encargos Sociais'!E40 -> 0.0028 | F52: 25.84
C53: F | D53: Multa do FGTS e Contribuição Social sobre o Aviso Prévio Trabalhado | E53: ='Encargos Sociais'!E41 -> 0.0309 | F53: 285.14
D55: TOTAL DE PREVISÃO PARA RESCISÃO | F55: =SUM(F48:F53) -> 428.18
B57: MÓDULO 4 - CUSTO DO PROFISSIONAL AUSENTE | E57: Percentuais | F57: Valor
B58: Submódulo 4.1 - Ausências Legais
C59: A | D59: Férias (Arts. 129 e 130, inc. I, da CLT) | E59: ='Encargos Sociais'!E25 -> 0.0909 | F59: =ROUND(E59*$F$16,2) -> 735.03 | H59: * Nota 1 - O Módulo 4 refere-se às previsões para custear ausências do próprio profissional (titular do cargo)
C60: B | D60: Ausências Legais (Arts. 131 e 473 da CLT) | E60: ='Encargos Sociais'!E26 -> 0.0079 | F60: 63.88 | H60: * Nota 2 - As férias foram calculadas dividindo-se por 11, para comportar os 11 meses presentes e ainda o ausente do posto
C61: C | D61: Licença-Paternidade (Art. 7º, XIX, e art. 10, §1º, do ADCT, CF/1988 e Art. 1º, II, da Lei 11.770/2008) | E61: ='Encargos Sociais'!E27 -> 0.0008 | F61: 6.47
C62: D | D62: Ausência por Acidente de Trabalho (Art. 131, III, da CLT) | E62: ='Encargos Sociais'!E28 -> 0.0009 | F62: 7.28
C63: E | D63: Afastamento Maternidade (Art. 71 da Lei nº 8.213/1991) | E63: ='Encargos Sociais'!E29 -> 0.0033 | F63: 26.68
C64: F | D64: Auxílio Enfermidade - Doença (Art. 59 da Lei nº 8.213/1991) | E64: ='Encargos Sociais'!E30 -> 0.0071 | F64: 57.41
B66: Submódulo 4.2 - Intrajornada
C67: A | D67: Intervalo para repouso ou alimentação | E67: ='Encargos Sociais'!E33 -> 0 | F67: =ROUND(E67*$F$16,2) -> 0
D69: QUADRO-RESUMO DO MÓDULO 4 | F69: Valor
D70: 4.1 - Ausências Legais | E70: =SUM(E59:E64) -> 0.1109 | F70: =ROUND(E70*$F$16,2) -> 896.76
D71: 4.2 - Intrajornada | E71: =E67 -> 0 | F71: =ROUND(E71*$F$16,2) -> 0
D73: TOTAL DE PREVISÃO PARA RESCISÃO E INTERVALO INTRAJORNADA | F73: =SUM(F70:F71) -> 896.76
B75: MÓDULO 5 - INSUMOS DIVERSOS | F75: Valor
C76: A | D76: Uniformes - aquisição | F76: 0
C77: B | D77: Materiais de consumo relacionados ao posto - aquisição | F77: 0
C78: C | D78: Ferramentas relacionadas ao posto - remuneração da sua depreciação / manutenção | F78: 0
C79: D | D79: Equipamentos relacionados ao posto - remuneração da sua depreciação / manutenção | F79: 0
C80: E | D80: Equipamentos de Proteção Individual - EPI - aquisição | F80: ='EPI - Rel'!J44 -> 56.68
D82: TOTAL DE INSUMOS DIVERSOS | F82: =SUM(F76:F81) -> 56.68 | H82: * Nota - Valores mensais por empregado
B84: MÓDULO 6 - CUSTOS INDIRETOS, TRIBUTOS E LUCRO - BDI | E84: Percentuais | F84: Valor
C85: A | D85: Custos Indiretos | E85: ='BDI - Geral'!E7 -> 0.0357
C86: A.1 | D86: Administração Central | E86: ='BDI - Geral'!E8 -> 0.0303
C87: A.2 | D87: Seguros, Garantias e Riscos | E87: ='BDI - Geral'!E9 -> 0.0054
C88: B | D88: Lucro | E88: ='BDI - Geral'!E11 -> 0.04
C89: C | D89: Tributos | E89: =SUM(E90:E91) -> 0.124
C90: C.1 | D90: Tributos Federais (COFINS, PIS e CPRB) | E90: ='BDI - Geral'!E19 -> 0.074
C91: C.2 | D91: Tributos Distritais (ISS) | E91: ='BDI - Geral'!E24 -> 0.05
C92: D | D92: Despesas Financeiras | E92: ='BDI - Geral'!E14 -> 0.0051
D94: TOTAL DE BDI | E94: ='BDI - Geral'!E27 -> 0.2359 | F94: =ROUND(E94*E102,2) -> 3415.92
D96: QUADRO-RESUMO DO CUSTO MENSAL POR EMPREGADO - SEM O 13º | E96: Valor
D97: Módulo 1 - Composição da Remuneração | E97: =F16 -> 8086.19
D98: Módulo 2 - Encargos e Benefícios Anuais, Mensais e Diários | E98: =F45 -> 5012.55
D99: Módulo 3 - Provisão para Rescisão | E99: =F55 -> 428.18
D100: Módulo 4 - Custo de Reposição do Profissional Ausente | E100: =F73 -> 896.76
D101: Módulo 5 - Insumos Diversos | E101: =F82 -> 56.68
D102: SUBTOTAL (A+B+C+D+E) | E102: =SUM(E97:E101) -> 14480.36
D103: Módulo 6 - Custos Indiretos, Tributos e Lucro | E103: =F94 -> 3415.92
D105: TOTAL DO POSTO | E105: =SUM(E102:E103) -> 17896.28
B107: MÓDULO 7 - DESTAQUE DO MÓDULO 2 - 13º SALÁRIO | E107: Percentuais | F107: Valor
C108: A | D108: 13º Salário | E108: ='Encargos Sociais'!E32*12/11 -> 0.09087272727 | F108: =ROUND(E108*F$16,2) -> 734.81 | H108: * Nota 1 - Incluindo-se a reincidência das férias do substituto sobre o titular
C109: B | D109: Encargos Sociais sobre o 13º Salário - Taxa calculada no SUBMÓDULO 2.2 | E109: =SUM($E$24:$E$32) -> 0.358 | F109: =ROUND(E109*$F$108,2) -> 263.06 | H109: * Nota 2 - 13º e reflexos calculados à parte a fim de aprovisionamento
C110: C | D110: BDI sobre o 13º Salário - Taxa calculada no MÓDULO 6 | E110: =E94 -> 0.2359 | F110: =ROUND(E110*($F$108+$F$109),2) -> 235.4
D112: TOTAL DO DESTAQUE DO 13º SALÁRIO | F112: =SUM(F108:F110) -> 1233.27
D114: QUADRO-RESUMO DO CUSTO MENSAL POR EMPREGADO | E114: Valor
D115: Custo total - sem o 13º Salário | E115: =ROUND(E105,2) -> 17896.28
D116: Destaque do 13º Salário (valor mensal) | E116: =ROUND(F112,2) -> 1233.27
D118: TOTAL DO POSTO | E118: =E115+E116 -> 19129.55

Sheet 4
B2: PLANILHA DE ESTIMATIVA DE CUSTOS
B3: Padrão IN 05/2017 e IN 07/2018 - MPDG
B5: 4 | D5: =HLOOKUP($B$5,'Dados Gerais'!$D$6:$BI$22,6) -> MESTRE DE MANUTENÇÃO ELETRÔNICA | E5: QUANTIDADE | F5: =HLOOKUP($B$5,'Dados Gerais'!$D$6:$BI$22,10) -> 2
B6: CCT | D6: =HLOOKUP($B$5,'Dados Gerais'!$D$6:$BI$22,16) -> SINDUSCON/DF x STICOMBE/DF CCT 2024/2025 - 2º TA - N.º DF000276/2024 | E6: DATA-BASE | F6: =HLOOKUP($B$5,'Dados Gerais'!$D$6:$BI$22,17) -> 2024-05-01
B8: MÓDULO 1 - COMPOSIÇÃO DA REMUNERAÇÃO | F8: Valor
C9: A | D9: Salário-Base | F9: =HLOOKUP($B$5,'Dados Gerais'!$D$6:$BI$22,8) -> 4472.06
C10: B | D10: Adicional de Periculosidade | F10: =HLOOKUP($B$5,'Dados Gerais'!$D$6:$BI$39,26) -> 0
C11: C | D11: Adicional de Insalubridade | F11: =HLOOKUP($B$5,'Dados Gerais'!$D$6:$BI$39,32) -> 303.6
C12: D | D12: Adicional Noturno | F12: =HLOOKUP($B$5,'Dados Gerais'!$D$6:$BI$52,47) -> 0 | H12: * Nota 1 - O Módulo 1 refere-se ao valor mensal devido ao empregado pela prestação do serviço no período de 12 meses.
C13: E | D13: Adicional de Hora Extra | F13: =HLOOKUP($B$5,'Dados Gerais'!$D$6:$BI$69,64) -> 0 | H13: * Nota 2 - O adicional de hora extra no feriado trabalhado foi suprimido pela Lei 13.467/17
C14: F | D14: Outros (adicional de sobreaviso) | F14: =HLOOKUP($B$5,'Dados Gerais'!$D$6:$BI$69,34) -> 0 | H14: * Nota 3 - ART. 7º, § 2º, DA LEI Nº 605/49.Sendo mensalista o obreiro, o adicional noturno pago de forma fixa já é considerado integrado para os efeitos do pagamento do repouso semanal remunerado, nos termos do art. 7º, § 2º, da Lei nº 605/49.
D16: TOTAL DA REMUNERAÇÃO | F16: =SUM(F9:F14) -> 4775.66
B18: MÓDULO 2 - ENCARGOS E BENEFÍCIOS ANUAIS, MENSAIS E DIÁRIOS | E18: Percentuais | F18: Valor
B19: Submódulo 2.1 - 13º Salário, Férias e Adicional de Férias
C20: A | D20: 13º Salário - Calculado no Módulo 7 - Destacado | E20: 0 | F20: =ROUND(E20*F$16,2) -> 0
C21: B | D21: Adicional de Férias | E21: ='[1]Encargos Sociais'!E31 -> 0.0303 | F21: =ROUND(E21*(F$16),2) -> 144.7 | H21: * Nota 1 - O adicional de férias foi calculado dividindo-se por 11, para comportar os 11 meses presentes e ainda o ausente do posto
B23: Submódulo 2.2 - Encargos Previdenciários (GPS), Fundo de Garantia por Tempo de Serviço (FGTS) e Outras Contribuições
C24: A | D24: INSS (art. 22, inciso I, Lei nº 8.212/91) | E24: ='Encargos Sociais'!E14 -> 0.2 | F24: =ROUND(E24*($F$16+$F$41+$F$73),2) -> 1090 | H24: * Nota 1 - Os percentuais dos encargos previdenciários, do FGTS e demais contribuições são estabelecidos por legislação vigente.
C25: B | D25: Salário Educação (art. 3º, inciso I, Decreto nº 87.043/82) | E25: ='Encargos Sociais'!E15 -> 0.025 | F25: =ROUND(E25*($F$16+$F$41+$F$73),2) -> 136.25 | H25: * Nota 2 - O SAT, a depender do grau de risco do serviço, irá variar entre 1%, para risco leve, de 2%, para risco médio, e de 3% para risco grave.
C26: C | D26: SAT/RAT (art. 22, II, Lei 8.212/91 e Anexo V, Decreto 6.042/07) - Enquadramento 8211-3/00 | E26: ='Encargos Sociais'!E16 -> 0.01 | F26: 54.5 | H26: * Nota 3 - Base de cálculo - remuneração + ausências + terço constitucional (férias)
C27: D | D27: SESC ou SESI (art. 30, Lei nº 8.036/90 e art. 1º, Lei 8.154/90) | E27: ='Encargos Sociais'!E17 -> 0.015 | F27: 81.75
C28: E | D28: SENAI ou SENAC (Decreto nº 2.318/86) | E28: ='Encargos Sociais'!E18 -> 0.01 | F28: 54.5
C29: F | D29: SEBRAE (§ 3º, art. 8º, Lei 8.029/90, alterada pela Lei nº 8.154/90) | E29: ='Encargos Sociais'!E19 -> 0.006 | F29: 32.7
C30: G | D30: INCRA (art. 1º, I, Decreto Lei 1.146/70 e Lei 7.787, de 30/06/89) | E30: ='Encargos Sociais'!E20 -> 0.002 | F30: 10.9
C31: H | D31: FGTS (Lei Complementar nº 110/01 e art. 30, Lei nº 8.036/90) | E31: ='Encargos Sociais'!E21 -> 0.08 | F31: 436
C32: I | D32: SECONCI (Convenções Coletivas de Trabalho da construção) | E32: ='Encargos Sociais'!E22 -> 0.01 | F32: 54.5
B34: Submódulo 2.3 - Benefícios Mensais e Diários
C35: A | D35: Auxílio Transporte | F35: =HLOOKUP($B$5,'Dados Gerais'!$D$6:$BI$95,83) -> 539.97 | H35: * Nota 1 - O valor informado deverá ser o custo real do benefício (descontado o valor eventualmente pago pelo empregado).
C36: B | D36: Auxílio Alimentação | F36: =HLOOKUP($B$5,'Dados Gerais'!$D$6:$BI$95,90) -> 910 | H36: * Nota 2 - Observar a previsão dos benefícios contidos em Acordos, Convenções e Dissídios Coletivos de Trabalho e o disposto no art. 6º da IN 5/2017
C37: C | D37: Assistência Médica e Familiar | F37: =HLOOKUP($B$5,'Dados Gerais'!$D$6:$BI$103,98) -> 0
C38: D | D38: Outros (Seguro de vida, auxílio funeral, auxílio odontológico e auxílio creche) | F38: =HLOOKUP($B$5,'Dados Gerais'!$D$6:$BI$121,115) -> 13.95
D40: QUADRO-RESUMO DO MÓDULO 2
D41: 2.1 - 13º Salário, Férias e Adicional de Férias - 13º Destacado - Calculado no Módulo 7 | E41: =SUM(E20:E21) -> 0.0303 | F41: =F20+F21 -> 144.7
D42: 2.2 - Encargos Previdenciários (GPS), Fundo de Garantia por Tempo de Serviço (FGTS) e Contribuições | E42: =SUM(E24:E32) -> 0.358 | F42: =SUM(F24:F32) -> 1951.1
D43: 2.3 - Benefícios Mensais e Diários | F43: =SUM(F35:F38) -> 1463.92
D45: TOTAL DOS ENCARGOS E BENEFÍCIOS | F45: =SUM(F41:F43) -> 3559.72
B47: MÓDULO 3 - PREVISÃO PARA RESCISÃO | E47: Percentuais | F47: Valor
C48: A | D48: Aviso Prévio Indenizado (Art. 7º, inciso XXI, da CF/1988 e arts. 477, 487, §1º, e 491 da CLT) | E48: ='Encargos Sociais'!E36 -> 0.0035 | F48: =ROUND(E48*($F$16+$F$73+$F$41),2) -> 19.07 | H48: * Nota 1 - Base de cálculo - remuneração + ausências + 1/3 férias
C49: B | D49: Incidência do FGTS sobre o Aviso Prévio Indenizado (Súmula 305 TST) | E49: ='Encargos Sociais'!E37 -> 0.0003 | F49: 1.63
C50: C | D50: Multa do FGTS e Contribuição Social sobre o Aviso Prévio Indenizado (Art. 18, §1º, da Lei 8.036/1990 e art. 1º da LC nº 110/2001) | E50: ='Encargos Sociais'!E38 -> 0.0011 | F50: 5.99
C51: D | D51: Aviso Prévio Trabalhado (Art. 488, parágrafo único, CLT) | E51: ='Encargos Sociais'!E39 -> 0.0078 | F51: 42.51
C52: E | D52: Incidência de GPS, FGTS e outras contribuições sobre o Aviso Prévio Trabalhado | E52: ='Encargos Sociais'!E40 -> 0.0028 | F52: 15.26
C53: F | D53: Multa do FGTS e Contribuição Social sobre o Aviso Prévio Trabalhado | E53: ='Encargos Sociais'!E41 -> 0.0309 | F53: 168.4
D55: TOTAL DE PREVISÃO PARA RESCISÃO | F55: =SUM(F48:F53) -> 252.86
B57: MÓDULO 4 - CUSTO DO PROFISSIONAL AUSENTE | E57: Percentuais | F57: Valor
B58: Submódulo 4.1 - Ausências Legais
C59: A | D59: Férias (Arts. 129 e 130, inc. I, da CLT) | E59: ='Encargos Sociais'!E25 -> 0.0909 | F59: =ROUND(E59*$F$16,2) -> 434.11 | H59: * Nota 1 - O Módulo 4 refere-se às previsões para custear ausências do próprio profissional (titular do cargo)
C60: B | D60: Ausências Legais (Arts. 131 e 473 da CLT) | E60: ='Encargos Sociais'!E26 -> 0.0079 | F60: 37.73 | H60: * Nota 2 - As férias foram calculadas dividindo-se por 11, para comportar os 11 meses presentes e ainda o ausente do posto
C61: C | D61: Licença-Paternidade (Art. 7º, XIX, e art. 10, §1º, do ADCT, CF/1988 e Art. 1º, II, da Lei 11.770/2008) | E61: ='Encargos Sociais'!E27 -> 0.0008 | F61: 3.82
C62: D | D62: Ausência por Acidente de Trabalho (Art. 131, III, da CLT) | E62: ='Encargos Sociais'!E28 -> 0.0009 | F62: 4.3
C63: E | D63: Afastamento Maternidade (Art. 71 da Lei nº 8.213/1991) | E63: ='Encargos Sociais'!E29 -> 0.0033 | F63: 15.76
C64: F | D64: Auxílio Enfermidade - Doença (Art. 59 da Lei nº 8.213/1991) | E64: ='Encargos Sociais'!E30 -> 0.0071 | F64: 33.91
B66: Submódulo 4.2 - Intrajornada
C67: A | D67: Intervalo para repouso ou alimentação | E67: ='Encargos Sociais'!E33 -> 0 | F67: =ROUND(E67*$F$16,2) -> 0
D69: QUADRO-RESUMO DO MÓDULO 4 | F69: Valor
D70: 4.1 - Ausências Legais | E70: =SUM(E59:E64) -> 0.1109 | F70: =ROUND(E70*$F$16,2) -> 529.62
D71: 4.2 - Intrajornada | E71: =E67 -> 0 | F71: =ROUND(E71*$F$16,2) -> 0
D73: TOTAL DE PREVISÃO PARA RESCISÃO E INTERVALO INTRAJORNADA | F73: =SUM(F70:F71) -> 529.62
B75: MÓDULO 5 - INSUMOS DIVERSOS | F75: Valor
C76: A | D76: Uniformes - aquisição | F76: 0
C77: B | D77: Materiais de consumo relacionados ao posto - aquisição | F77: 0
C78: C | D78: Ferramentas relacionadas ao posto - remuneração da sua depreciação / manutenção | F78: 0
C79: D | D79: Equipamentos relacionados ao posto - remuneração da sua depreciação / manutenção | F79: 0
C80: E | D80: Equipamentos de Proteção Individual - EPI - aquisição | F80: ='EPI - Rel'!J61 -> 68.1
D82: TOTAL DE INSUMOS DIVERSOS | F82: =SUM(F76:F81) -> 68.1 | H82: * Nota - Valores mensais por empregado
B84: MÓDULO 6 - CUSTOS INDIRETOS, TRIBUTOS E LUCRO - BDI | E84: Percentuais | F84: Valor
C85: A | D85: Custos Indiretos | E85: ='BDI - Geral'!E7 -> 0.0357
C86: A.1 | D86: Administração Central | E86: ='BDI - Geral'!E8 -> 0.0303
C87: A.2 | D87: Seguros, Garantias e Riscos | E87: ='BDI - Geral'!E9 -> 0.0054
C88: B | D88: Lucro | E88: ='BDI - Geral'!E11 -> 0.04
C89: C | D89: Tributos | E89: =SUM(E90:E91) -> 0.124
C90: C.1 | D90: Tributos Federais (COFINS, PIS e CPRB) | E90: ='BDI - Geral'!E19 -> 0.074
C91: C.2 | D91: Tributos Distritais (ISS) | E91: ='BDI - Geral'!E24 -> 0.05
C92: D | D92: Despesas Financeiras | E92: ='BDI - Geral'!E14 -> 0.0051
D94: TOTAL DE BDI | E94: ='BDI - Geral'!E27 -> 0.2359 | F94: =ROUND(E94*E102,2) -> 2166.97
D96: QUADRO-RESUMO DO CUSTO MENSAL POR EMPREGADO - SEM O 13º | E96: Valor
D97: Módulo 1 - Composição da Remuneração | E97: =F16 -> 4775.66
D98: Módulo 2 - Encargos e Benefícios Anuais, Mensais e Diários | E98: =F45 -> 3559.72
D99: Módulo 3 - Provisão para Rescisão | E99: =F55 -> 252.86
D100: Módulo 4 - Custo de Reposição do Profissional Ausente | E100: =F73 -> 529.62
D101: Módulo 5 - Insumos Diversos | E101: =F82 -> 68.1
D102: SUBTOTAL (A+B+C+D+E) | E102: =SUM(E97:E101) -> 9185.96
D103: Módulo 6 - Custos Indiretos, Tributos e Lucro | E103: =F94 -> 2166.97
D105: TOTAL DO POSTO | E105: =SUM(E102:E103) -> 11352.93
B107: MÓDULO 7 - DESTAQUE DO MÓDULO 2 - 13º SALÁRIO | E107: Percentuais | F107: Valor
C108: A | D108: 13º Salário | E108: ='Encargos Sociais'!E32*12/11 -> 0.09087272727 | F108: =ROUND(E108*F$16,2) -> 433.98 | H108: * Nota 1 - Incluindo-se a reincidência das férias do substituto sobre o titular
C109: B | D109: Encargos Sociais sobre o 13º Salário - Taxa calculada no SUBMÓDULO 2.2 | E109: =SUM($E$24:$E$32) -> 0.358 | F109: =ROUND(E109*$F$108,2) -> 155.36 | H109: * Nota 2 - 13º e reflexos calculados à parte a fim de aprovisionamento
C110: C | D110: BDI sobre o 13º Salário - Taxa calculada no MÓDULO 6 | E110: =E94 -> 0.2359 | F110: =ROUND(E110*($F$108+$F$109),2) -> 139.03
D112: TOTAL DO DESTAQUE DO 13º SALÁRIO | F112: =SUM(F108:F110) -> 728.37
D114: QUADRO-RESUMO DO CUSTO MENSAL POR EMPREGADO | E114: Valor
D115: Custo total - sem o 13º Salário | E115: =ROUND(E105,2) -> 11352.93
D116: Destaque do 13º Salário (valor mensal) | E116: =ROUND(F112,2) -> 728.37
D118: TOTAL DO POSTO | E118: =E115+E116 -> 12081.3

Sheet 5
B2: PLANILHA DE ESTIMATIVA DE CUSTOS
B3: Padrão IN 05/2017 e IN 07/2018 - MPDG
B5: 5 | D5: =HLOOKUP($B$5,'Dados Gerais'!$D$6:$BI$22,6) -> MESTRE ELETRICISTA DE MANUTENÇÃO | E5: QUANTIDADE | F5: =HLOOKUP($B$5,'Dados Gerais'!$D$6:$BI$22,10) -> 7
B6: CCT | D6: =HLOOKUP($B$5,'Dados Gerais'!$D$6:$BI$22,16) -> SINDUSCON/DF x STICOMBE/DF CCT 2024/2025 - 2º TA - N.º DF000276/2024 | E6: DATA-BASE | F6: =HLOOKUP($B$5,'Dados Gerais'!$D$6:$BI$22,17) -> 2024-05-01
B8: MÓDULO 1 - COMPOSIÇÃO DA REMUNERAÇÃO | F8: Valor
C9: A | D9: Salário-Base | F9: =HLOOKUP($B$5,'Dados Gerais'!$D$6:$BI$22,8) -> 3800
C10: B | D10: Adicional de Periculosidade | F10: =HLOOKUP($B$5,'Dados Gerais'!$D$6:$BI$39,26) -> 1140
C11: C | D11: Adicional de Insalubridade | F11: =HLOOKUP($B$5,'Dados Gerais'!$D$6:$BI$39,32) -> 0
C12: D | D12: Adicional Noturno | F12: =HLOOKUP($B$5,'Dados Gerais'!$D$6:$BI$52,47) -> 0 | H12: * Nota 1 - O Módulo 1 refere-se ao valor mensal devido ao empregado pela prestação do serviço no período de 12 meses.
C13: E | D13: Adicional de Hora Extra | F13: =HLOOKUP($B$5,'Dados Gerais'!$D$6:$BI$69,64) -> 0 | H13: * Nota 2 - O adicional de hora extra no feriado trabalhado foi suprimido pela Lei 13.467/17
C14: F | D14: Outros (adicional de sobreaviso) | F14: =HLOOKUP($B$5,'Dados Gerais'!$D$6:$BI$69,34) -> 0 | H14: * Nota 3 - ART. 7º, § 2º, DA LEI Nº 605/49.Sendo mensalista o obreiro, o adicional noturno pago de forma fixa já é considerado integrado para os efeitos do pagamento do repouso semanal remunerado, nos termos do art. 7º, § 2º, da Lei nº 605/49.
D16: TOTAL DA REMUNERAÇÃO | F16: =SUM(F9:F14) -> 4940
B18: MÓDULO 2 - ENCARGOS E BENEFÍCIOS ANUAIS, MENSAIS E DIÁRIOS | E18: Percentuais | F18: Valor
B19: Submódulo 2.1 - 13º Salário, Férias e Adicional de Férias
C20: A | D20: 13º Salário - Calculado no Módulo 7 - Destacado | E20: 0 | F20: =ROUND(E20*F$16,2) -> 0
C21: B | D21: Adicional de Férias | E21: ='[1]Encargos Sociais'!E31 -> 0.0303 | F21: =ROUND(E21*(F$16),2) -> 149.68 | H21: * Nota 1 - O adicional de férias foi calculado dividindo-se por 11, para comportar os 11 meses presentes e ainda o ausente do posto
B23: Submódulo 2.2 - Encargos Previdenciários (GPS), Fundo de Garantia por Tempo de Serviço (FGTS) e Outras Contribuições
C24: A | D24: INSS (art. 22, inciso I, Lei nº 8.212/91) | E24: ='Encargos Sociais'!E14 -> 0.2 | F24: =ROUND(E24*($F$16+$F$41+$F$73),2) -> 1127.51 | H24: * Nota 1 - Os percentuais dos encargos previdenciários, do FGTS e demais contribuições são estabelecidos por legislação vigente.
C25: B | D25: Salário Educação (art. 3º, inciso I, Decreto nº 87.043/82) | E25: ='Encargos Sociais'!E15 -> 0.025 | F25: =ROUND(E25*($F$16+$F$41+$F$73),2) -> 140.94 | H25: * Nota 2 - O SAT, a depender do grau de risco do serviço, irá variar entre 1%, para risco leve, de 2%, para risco médio, e de 3% para risco grave.
C26: C | D26: SAT/RAT (art. 22, II, Lei 8.212/91 e Anexo V, Decreto 6.042/07) - Enquadramento 8211-3/00 | E26: ='Encargos Sociais'!E16 -> 0.01 | F26: 56.38 | H26: * Nota 3 - Base de cálculo - remuneração + ausências + terço constitucional (férias)
C27: D | D27: SESC ou SESI (art. 30, Lei nº 8.036/90 e art. 1º, Lei 8.154/90) | E27: ='Encargos Sociais'!E17 -> 0.015 | F27: 84.56
C28: E | D28: SENAI ou SENAC (Decreto nº 2.318/86) | E28: ='Encargos Sociais'!E18 -> 0.01 | F28: 56.38
C29: F | D29: SEBRAE (§ 3º, art. 8º, Lei 8.029/90, alterada pela Lei nº 8.154/90) | E29: ='Encargos Sociais'!E19 -> 0.006 | F29: 33.83
C30: G | D30: INCRA (art. 1º, I, Decreto Lei 1.146/70 e Lei 7.787, de 30/06/89) | E30: ='Encargos Sociais'!E20 -> 0.002 | F30: 11.28
C31: H | D31: FGTS (Lei Complementar nº 110/01 e art. 30, Lei nº 8.036/90) | E31: ='Encargos Sociais'!E21 -> 0.08 | F31: 451
C32: I | D32: SECONCI (Convenções Coletivas de Trabalho da construção) | E32: ='Encargos Sociais'!E22 -> 0.01 | F32: 56.38
B34: Submódulo 2.3 - Benefícios Mensais e Diários
C35: A | D35: Auxílio Transporte | F35: =HLOOKUP($B$5,'Dados Gerais'!$D$6:$BI$95,83) -> 539.97 | H35: * Nota 1 - O valor informado deverá ser o custo real do benefício (descontado o valor eventualmente pago pelo empregado).
C36: B | D36: Auxílio Alimentação | F36: =HLOOKUP($B$5,'Dados Gerais'!$D$6:$BI$95,90) -> 910 | H36: * Nota 2 - Observar a previsão dos benefícios contidos em Acordos, Convenções e Dissídios Coletivos de Trabalho e o disposto no art. 6º da IN 5/2017
C37: C | D37: Assistência Médica e Familiar | F37: =HLOOKUP($B$5,'Dados Gerais'!$D$6:$BI$103,98) -> 0
C38: D | D38: Outros (Seguro de vida, auxílio funeral, auxílio odontológico e auxílio creche) | F38: =HLOOKUP($B$5,'Dados Gerais'!$D$6:$BI$121,115) -> 13.95
D40: QUADRO-RESUMO DO MÓDULO 2
D41: 2.1 - 13º Salário, Férias e Adicional de Férias - 13º Destacado - Calculado no Módulo 7 | E41: =SUM(E20:E21) -> 0.0303 | F41: =F20+F21 -> 149.68
D42: 2.2 - Encargos Previdenciários (GPS), Fundo de Garantia por Tempo de Serviço (FGTS) e Contribuições | E42: =SUM(E24:E32) -> 0.358 | F42: =SUM(F24:F32) -> 2018.26
D43: 2.3 - Benefícios Mensais e Diários | F43: =SUM(F35:F38) -> 1463.92
D45: TOTAL DOS ENCARGOS E BENEFÍCIOS | F45: =SUM(F41:F43) -> 3631.86
B47: MÓDULO 3 - PREVISÃO PARA RESCISÃO | E47: Percentuais | F47: Valor
C48: A | D48: Aviso Prévio Indenizado (Art. 7º, inciso XXI, da CF/1988 e arts. 477, 487, §1º, e 491 da CLT) | E48: ='Encargos Sociais'!E36 -> 0.0035 | F48: =ROUND(E48*($F$16+$F$73+$F$41),2) -> 19.73 | H48: * Nota 1 - Base de cálculo - remuneração + ausências + 1/3 férias
C49: B | D49: Incidência do FGTS sobre o Aviso Prévio Indenizado (Súmula 305 TST) | E49: ='Encargos Sociais'!E37 -> 0.0003 | F49: 1.69
C50: C | D50: Multa do FGTS e Contribuição Social sobre o Aviso Prévio Indenizado (Art. 18, §1º, da Lei 8.036/1990 e art. 1º da LC nº 110/2001) | E50: ='Encargos Sociais'!E38 -> 0.0011 | F50: 6.2
C51: D | D51: Aviso Prévio Trabalhado (Art. 488, parágrafo único, CLT) | E51: ='Encargos Sociais'!E39 -> 0.0078 | F51: 43.97
C52: E | D52: Incidência de GPS, FGTS e outras contribuições sobre o Aviso Prévio Trabalhado | E52: ='Encargos Sociais'!E40 -> 0.0028 | F52: 15.79
C53: F | D53: Multa do FGTS e Contribuição Social sobre o Aviso Prévio Trabalhado | E53: ='Encargos Sociais'!E41 -> 0.0309 | F53: 174.2
D55: TOTAL DE PREVISÃO PARA RESCISÃO | F55: =SUM(F48:F53) -> 261.58
B57: MÓDULO 4 - CUSTO DO PROFISSIONAL AUSENTE | E57: Percentuais | F57: Valor
B58: Submódulo 4.1 - Ausências Legais
C59: A | D59: Férias (Arts. 129 e 130, inc. I, da CLT) | E59: ='Encargos Sociais'!E25 -> 0.0909 | F59: =ROUND(E59*$F$16,2) -> 449.05 | H59: * Nota 1 - O Módulo 4 refere-se às previsões para custear ausências do próprio profissional (titular do cargo)
C60: B | D60: Ausências Legais (Arts. 131 e 473 da CLT) | E60: ='Encargos Sociais'!E26 -> 0.0079 | F60: 39.03 | H60: * Nota 2 - As férias foram calculadas dividindo-se por 11, para comportar os 11 meses presentes e ainda o ausente do posto
C61: C | D61: Licença-Paternidade (Art. 7º, XIX, e art. 10, §1º, do ADCT, CF/1988 e Art. 1º, II, da Lei 11.770/2008) | E61: ='Encargos Sociais'!E27 -> 0.0008 | F61: 3.95
C62: D | D62: Ausência por Acidente de Trabalho (Art. 131, III, da CLT) | E62: ='Encargos Sociais'!E28 -> 0.0009 | F62: 4.45
C63: E | D63: Afastamento Maternidade (Art. 71 da Lei nº 8.213/1991) | E63: ='Encargos Sociais'!E29 -> 0.0033 | F63: 16.3
C64: F | D64: Auxílio Enfermidade - Doença (Art. 59 da Lei nº 8.213/1991) | E64: ='Encargos Sociais'!E30 -> 0.0071 | F64: 35.07
B66: Submódulo 4.2 - Intrajornada
C67: A | D67: Intervalo para repouso ou alimentação | E67: ='Encargos Sociais'!E33 -> 0 | F67: =ROUND(E67*$F$16,2) -> 0
D69: QUADRO-RESUMO DO MÓDULO 4 | F69: Valor
D70: 4.1 - Ausências Legais | E70: =SUM(E59:E64) -> 0.1109 | F70: =ROUND(E70*$F$16,2) -> 547.85
D71: 4.2 - Intrajornada | E71: =E67 -> 0 | F71: =ROUND(E71*$F$16,2) -> 0
D73: TOTAL DE PREVISÃO PARA RESCISÃO E INTERVALO INTRAJORNADA | F73: =SUM(F70:F71) -> 547.85
B75: MÓDULO 5 - INSUMOS DIVERSOS | F75: Valor
C76: A | D76: Uniformes - aquisição | F76: 0
C77: B | D77: Materiais de consumo relacionados ao posto - aquisição | F77: 0
C78: C | D78: Ferramentas relacionadas ao posto - remuneração da sua depreciação / manutenção | F78: 0
C79: D | D79: Equipamentos relacionados ao posto - remuneração da sua depreciação / manutenção | F79: 0
C80: E | D80: Equipamentos de Proteção Individual - EPI - aquisição | F80: ='EPI - Rel'!J100 -> 75.83
D82: TOTAL DE INSUMOS DIVERSOS | F82: =SUM(F76:F81) -> 75.83 | H82: * Nota - Valores mensais por empregado
B84: MÓDULO 6 - CUSTOS INDIRETOS, TRIBUTOS E LUCRO - BDI | E84: Percentuais | F84: Valor
C85: A | D85: Custos Indiretos | E85: ='BDI - Geral'!E7 -> 0.0357
C86: A.1 | D86: Administração Central | E86: ='BDI - Geral'!E8 -> 0.0303
C87: A.2 | D87: Seguros, Garantias e Riscos | E87: ='BDI - Geral'!E9 -> 0.0054
C88: B | D88: Lucro | E88: ='BDI - Geral'!E11 -> 0.04
C89: C | D89: Tributos | E89: =SUM(E90:E91) -> 0.124
C90: C.1 | D90: Tributos Federais (COFINS, PIS e CPRB) | E90: ='BDI - Geral'!E19 -> 0.074
C91: C.2 | D91: Tributos Distritais (ISS) | E91: ='BDI - Geral'!E24 -> 0.05
C92: D | D92: Despesas Financeiras | E92: ='BDI - Geral'!E14 -> 0.0051
D94: TOTAL DE BDI | E94: ='BDI - Geral'!E27 -> 0.2359 | F94: =ROUND(E94*E102,2) -> 2230.93
D96: QUADRO-RESUMO DO CUSTO MENSAL POR EMPREGADO - SEM O 13º | E96: Valor
D97: Módulo 1 - Composição da Remuneração | E97: =F16 -> 4940
D98: Módulo 2 - Encargos e Benefícios Anuais, Mensais e Diários | E98: =F45 -> 3631.86
D99: Módulo 3 - Provisão para Rescisão | E99: =F55 -> 261.58
D100: Módulo 4 - Custo de Reposição do Profissional Ausente | E100: =F73 -> 547.85
D101: Módulo 5 - Insumos Diversos | E101: =F82 -> 75.83
D102: SUBTOTAL (A+B+C+D+E) | E102: =SUM(E97:E101) -> 9457.12
D103: Módulo 6 - Custos Indiretos, Tributos e Lucro | E103: =F94 -> 2230.93
D105: TOTAL DO POSTO | E105: =SUM(E102:E103) -> 11688.05
B107: MÓDULO 7 - DESTAQUE DO MÓDULO 2 - 13º SALÁRIO | E107: Percentuais | F107: Valor
C108: A | D108: 13º Salário | E108: ='Encargos Sociais'!E32*12/11 -> 0.09087272727 | F108: =ROUND(E108*F$16,2) -> 448.91 | H108: * Nota 1 - Incluindo-se a reincidência das férias do substituto sobre o titular
C109: B | D109: Encargos Sociais sobre o 13º Salário - Taxa calculada no SUBMÓDULO 2.2 | E109: =SUM($E$24:$E$32) -> 0.358 | F109: =ROUND(E109*$F$108,2) -> 160.71 | H109: * Nota 2 - 13º e reflexos calculados à parte a fim de aprovisionamento
C110: C | D110: BDI sobre o 13º Salário - Taxa calculada no MÓDULO 6 | E110: =E94 -> 0.2359 | F110: =ROUND(E110*($F$108+$F$109),2) -> 143.81
D112: TOTAL DO DESTAQUE DO 13º SALÁRIO | F112: =SUM(F108:F110) -> 753.43
D114: QUADRO-RESUMO DO CUSTO MENSAL POR EMPREGADO | E114: Valor
D115: Custo total - sem o 13º Salário | E115: =ROUND(E105,2) -> 11688.05
D116: Destaque do 13º Salário (valor mensal) | E116: =ROUND(F112,2) -> 753.43
D118: TOTAL DO POSTO | E118: =E115+E116 -> 12441.48

Sheet 6
B2: PLANILHA DE ESTIMATIVA DE CUSTOS
B3: Padrão IN 05/2017 e IN 07/2018 - MPDG
B5: 6 | D5: =HLOOKUP($B$5,'Dados Gerais'!$D$6:$BI$22,6) -> MECÂNICO DE MÁQUINAS PESADAS - MANUTENÇÃO | E5: QUANTIDADE | F5: =HLOOKUP($B$5,'Dados Gerais'!$D$6:$BI$22,10) -> 26
B6: CCT | D6: =HLOOKUP($B$5,'Dados Gerais'!$D$6:$BI$22,16) -> SINDUSCON/DF x STICOMBE/DF CCT 2024/2025 - 2º TA - N.º DF000276/2024 | E6: DATA-BASE | F6: =HLOOKUP($B$5,'Dados Gerais'!$D$6:$BI$22,17) -> 2024-05-01
B8: MÓDULO 1 - COMPOSIÇÃO DA REMUNERAÇÃO | F8: Valor
C9: A | D9: Salário-Base | F9: =HLOOKUP($B$5,'Dados Gerais'!$D$6:$BI$22,8) -> 3765.58
C10: B | D10: Adicional de Periculosidade | F10: =HLOOKUP($B$5,'Dados Gerais'!$D$6:$BI$39,26) -> 0
C11: C | D11: Adicional de Insalubridade | F11: =HLOOKUP($B$5,'Dados Gerais'!$D$6:$BI$39,32) -> 303.6
C12: D | D12: Adicional Noturno | F12: =HLOOKUP($B$5,'Dados Gerais'!$D$6:$BI$52,47) -> 0 | H12: * Nota 1 - O Módulo 1 refere-se ao valor mensal devido ao empregado pela prestação do serviço no período de 12 meses.
C13: E | D13: Adicional de Hora Extra | F13: =HLOOKUP($B$5,'Dados Gerais'!$D$6:$BI$69,64) -> 0 | H13: * Nota 2 - O adicional de hora extra no feriado trabalhado foi suprimido pela Lei 13.467/17
C14: F | D14: Outros (adicional de sobreaviso) | F14: =HLOOKUP($B$5,'Dados Gerais'!$D$6:$BI$69,34) -> 0 | H14: * Nota 3 - ART. 7º, § 2º, DA LEI Nº 605/49.Sendo mensalista o obreiro, o adicional noturno pago de forma fixa já é considerado integrado para os efeitos do pagamento do repouso semanal remunerado, nos termos do art. 7º, § 2º, da Lei nº 605/49.
D16: TOTAL DA REMUNERAÇÃO | F16: =SUM(F9:F14) -> 4069.18
B18: MÓDULO 2 - ENCARGOS E BENEFÍCIOS ANUAIS, MENSAIS E DIÁRIOS | E18: Percentuais | F18: Valor
B19: Submódulo 2.1 - 13º Salário, Férias e Adicional de Férias
C20: A | D20: 13º Salário - Calculado no Módulo 7 - Destacado | E20: 0 | F20: =ROUND(E20*F$16,2) -> 0
C21: B | D21: Adicional de Férias | E21: ='[1]Encargos Sociais'!E31 -> 0.0303 | F21: =ROUND(E21*(F$16),2) -> 123.3 | H21: * Nota 1 - O adicional de férias foi calculado dividindo-se por 11, para comportar os 11 meses presentes e ainda o ausente do posto
B23: Submódulo 2.2 - Encargos Previdenciários (GPS), Fundo de Garantia por Tempo de Serviço (FGTS) e Outras Contribuições
C24: A | D24: INSS (art. 22, inciso I, Lei nº 8.212/91) | E24: ='Encargos Sociais'!E14 -> 0.2 | F24: =ROUND(E24*($F$16+$F$41+$F$73),2) -> 928.75 | H24: * Nota 1 - Os percentuais dos encargos previdenciários, do FGTS e demais contribuições são estabelecidos por legislação vigente.
C25: B | D25: Salário Educação (art. 3º, inciso I, Decreto nº 87.043/82) | E25: ='Encargos Sociais'!E15 -> 0.025 | F25: =ROUND(E25*($F$16+$F$41+$F$73),2) -> 116.09 | H25: * Nota 2 - O SAT, a depender do grau de risco do serviço, irá variar entre 1%, para risco leve, de 2%, para risco médio, e de 3% para risco grave.
C26: C | D26: SAT/RAT (art. 22, II, Lei 8.212/91 e Anexo V, Decreto 6.042/07) - Enquadramento 8211-3/00 | E26: ='Encargos Sociais'!E16 -> 0.01 | F26: 46.44 | H26: * Nota 3 - Base de cálculo - remuneração + ausências + terço constitucional (férias)
C27: D | D27: SESC ou SESI (art. 30, Lei nº 8.036/90 e art. 1º, Lei 8.154/90) | E27: ='Encargos Sociais'!E17 -> 0.015 | F27: 69.66
C28: E | D28: SENAI ou SENAC (Decreto nº 2.318/86) | E28: ='Encargos Sociais'!E18 -> 0.01 | F28: 46.44
C29: F | D29: SEBRAE (§ 3º, art. 8º, Lei 8.029/90, alterada pela Lei nº 8.154/90) | E29: ='Encargos Sociais'!E19 -> 0.006 | F29: 27.86
C30: G | D30: INCRA (art. 1º, I, Decreto Lei 1.146/70 e Lei 7.787, de 30/06/89) | E30: ='Encargos Sociais'!E20 -> 0.002 | F30: 9.29
C31: H | D31: FGTS (Lei Complementar nº 110/01 e art. 30, Lei nº 8.036/90) | E31: ='Encargos Sociais'!E21 -> 0.08 | F31: 371.5
C32: I | D32: SECONCI (Convenções Coletivas de Trabalho da construção) | E32: ='Encargos Sociais'!E22 -> 0.01 | F32: 46.44
B34: Submódulo 2.3 - Benefícios Mensais e Diários
C35: A | D35: Auxílio Transporte | F35: =HLOOKUP($B$5,'Dados Gerais'!$D$6:$BI$95,83) -> 539.97 | H35: * Nota 1 - O valor informado deverá ser o custo real do benefício (descontado o valor eventualmente pago pelo empregado).
C36: B | D36: Auxílio Alimentação | F36: =HLOOKUP($B$5,'Dados Gerais'!$D$6:$BI$95,90) -> 910 | H36: * Nota 2 - Observar a previsão dos benefícios contidos em Acordos, Convenções e Dissídios Coletivos de Trabalho e o disposto no art. 6º da IN 5/2017
C37: C | D37: Assistência Médica e Familiar | F37: =HLOOKUP($B$5,'Dados Gerais'!$D$6:$BI$103,98) -> 0
C38: D | D38: Outros (Seguro de vida, auxílio funeral, auxílio odontológico e auxílio creche) | F38: =HLOOKUP($B$5,'Dados Gerais'!$D$6:$BI$121,115) -> 13.95
D40: QUADRO-RESUMO DO MÓDULO 2
D41: 2.1 - 13º Salário, Férias e Adicional de Férias - 13º Destacado - Calculado no Módulo 7 | E41: =SUM(E20:E21) -> 0.0303 | F41: =F20+F21 -> 123.3
D42: 2.2 - Encargos Previdenciários (GPS), Fundo de Garantia por Tempo de Serviço (FGTS) e Contribuições | E42: =SUM(E24:E32) -> 0.358 | F42: =SUM(F24:F32) -> 1662.47
D43: 2.3 - Benefícios Mensais e Diários | F43: =SUM(F35:F38) -> 1463.92
D45: TOTAL DOS ENCARGOS E BENEFÍCIOS | F45: =SUM(F41:F43) -> 3249.69
B47: MÓDULO 3 - PREVISÃO PARA RESCISÃO | E47: Percentuais | F47: Valor
C48: A | D48: Aviso Prévio Indenizado (Art. 7º, inciso XXI, da CF/1988 e arts. 477, 487, §1º, e 491 da CLT) | E48: ='Encargos Sociais'!E36 -> 0.0035 | F48: =ROUND(E48*($F$16+$F$73+$F$41),2) -> 16.25 | H48: * Nota 1 - Base de cálculo - remuneração + ausências + 1/3 férias
C49: B | D49: Incidência do FGTS sobre o Aviso Prévio Indenizado (Súmula 305 TST) | E49: ='Encargos Sociais'!E37 -> 0.0003 | F49: 1.39
C50: C | D50: Multa do FGTS e Contribuição Social sobre o Aviso Prévio Indenizado (Art. 18, §1º, da Lei 8.036/1990 e art. 1º da LC nº 110/2001) | E50: ='Encargos Sociais'!E38 -> 0.0011 | F50: 5.11
C51: D | D51: Aviso Prévio Trabalhado (Art. 488, parágrafo único, CLT) | E51: ='Encargos Sociais'!E39 -> 0.0078 | F51: 36.22
C52: E | D52: Incidência de GPS, FGTS e outras contribuições sobre o Aviso Prévio Trabalhado | E52: ='Encargos Sociais'!E40 -> 0.0028 | F52: 13
C53: F | D53: Multa do FGTS e Contribuição Social sobre o Aviso Prévio Trabalhado | E53: ='Encargos Sociais'!E41 -> 0.0309 | F53: 143.49
D55: TOTAL DE PREVISÃO PARA RESCISÃO | F55: =SUM(F48:F53) -> 215.46
B57: MÓDULO 4 - CUSTO DO PROFISSIONAL AUSENTE | E57: Percentuais | F57: Valor
B58: Submódulo 4.1 - Ausências Legais
C59: A | D59: Férias (Arts. 129 e 130, inc. I, da CLT) | E59: ='Encargos Sociais'!E25 -> 0.0909 | F59: =ROUND(E59*$F$16,2) -> 369.89 | H59: * Nota 1 - O Módulo 4 refere-se às previsões para custear ausências do próprio profissional (titular do cargo)
C60: B | D60: Ausências Legais (Arts. 131 e 473 da CLT) | E60: ='Encargos Sociais'!E26 -> 0.0079 | F60: 32.15 | H60: * Nota 2 - As férias foram calculadas dividindo-se por 11, para comportar os 11 meses presentes e ainda o ausente do posto
C61: C | D61: Licença-Paternidade (Art. 7º, XIX, e art. 10, §1º, do ADCT, CF/1988 e Art. 1º, II, da Lei 11.770/2008) | E61: ='Encargos Sociais'!E27 -> 0.0008 | F61: 3.26
C62: D | D62: Ausência por Acidente de Trabalho (Art. 131, III, da CLT) | E62: ='Encargos Sociais'!E28 -> 0.0009 | F62: 3.66
C63: E | D63: Afastamento Maternidade (Art. 71 da Lei nº 8.213/1991) | E63: ='Encargos Sociais'!E29 -> 0.0033 | F63: 13.43
C64: F | D64: Auxílio Enfermidade - Doença (Art. 59 da Lei nº 8.213/1991) | E64: ='Encargos Sociais'!E30 -> 0.0071 | F64: 28.89
B66: Submódulo 4.2 - Intrajornada
C67: A | D67: Intervalo para repouso ou alimentação | E67: ='Encargos Sociais'!E33 -> 0 | F67: =ROUND(E67*$F$16,2) -> 0
D69: QUADRO-RESUMO DO MÓDULO 4 | F69: Valor
D70: 4.1 - Ausências Legais | E70: =SUM(E59:E64) -> 0.1109 | F70: =ROUND(E70*$F$16,2) -> 451.27
D71: 4.2 - Intrajornada | E71: =E67 -> 0 | F71: =ROUND(E71*$F$16,2) -> 0
D73: TOTAL DE PREVISÃO PARA RESCISÃO E INTERVALO INTRAJORNADA | F73: =SUM(F70:F71) -> 451.27
B75: MÓDULO 5 - INSUMOS DIVERSOS | F75: Valor
C76: A | D76: Uniformes - aquisição | F76: 0
C77: B | D77: Materiais de consumo relacionados ao posto - aquisição | F77: 0
C78: C | D78: Ferramentas relacionadas ao posto - remuneração da sua depreciação / manutenção | F78: 0
C79: D | D79: Equipamentos relacionados ao posto - remuneração da sua depreciação / manutenção | F79: 0
C80: E | D80: Equipamentos de Proteção Individual - EPI - aquisição | F80: ='EPI - Rel'!J81 -> 71.16
D82: TOTAL DE INSUMOS DIVERSOS | F82: =SUM(F76:F81) -> 71.16 | H82: * Nota - Valores mensais por empregado
B84: MÓDULO 6 - CUSTOS INDIRETOS, TRIBUTOS E LUCRO - BDI | E84: Percentuais | F84: Valor
C85: A | D85: Custos Indiretos | E85: ='BDI - Geral'!E7 -> 0.0357
C86: A.1 | D86: Administração Central | E86: ='BDI - Geral'!E8 -> 0.0303
C87: A.2 | D87: Seguros, Garantias e Riscos | E87: ='BDI - Geral'!E9 -> 0.0054
C88: B | D88: Lucro | E88: ='BDI - Geral'!E11 -> 0.04
C89: C | D89: Tributos | E89: =SUM(E90:E91) -> 0.124
C90: C.1 | D90: Tributos Federais (COFINS, PIS e CPRB) | E90: ='BDI - Geral'!E19 -> 0.074
C91: C.2 | D91: Tributos Distritais (ISS) | E91: ='BDI - Geral'!E24 -> 0.05
C92: D | D92: Despesas Financeiras | E92: ='BDI - Geral'!E14 -> 0.0051
D94: TOTAL DE BDI | E94: ='BDI - Geral'!E27 -> 0.2359 | F94: =ROUND(E94*E102,2) -> 1900.59
D96: QUADRO-RESUMO DO CUSTO MENSAL POR EMPREGADO - SEM O 13º | E96: Valor
D97: Módulo 1 - Composição da Remuneração | E97: =F16 -> 4069.18
D98: Módulo 2 - Encargos e Benefícios Anuais, Mensais e Diários | E98: =F45 -> 3249.69
D99: Módulo 3 - Provisão para Rescisão | E99: =F55 -> 215.46
D100: Módulo 4 - Custo de Reposição do Profissional Ausente | E100: =F73 -> 451.27
D101: Módulo 5 - Insumos Diversos | E101: =F82 -> 71.16
D102: SUBTOTAL (A+B+C+D+E) | E102: =SUM(E97:E101) -> 8056.76
D103: Módulo 6 - Custos Indiretos, Tributos e Lucro | E103: =F94 -> 1900.59
D105: TOTAL DO POSTO | E105: =SUM(E102:E103) -> 9957.35
B107: MÓDULO 7 - DESTAQUE DO MÓDULO 2 - 13º SALÁRIO | E107: Percentuais | F107: Valor
C108: A | D108: 13º Salário | E108: ='Encargos Sociais'!E32*12/11 -> 0.09087272727 | F108: =ROUND(E108*F$16,2) -> 369.78 | H108: * Nota 1 - Incluindo-se a reincidência das férias do substituto sobre o titular
C109: B | D109: Encargos Sociais sobre o 13º Salário - Taxa calculada no SUBMÓDULO 2.2 | E109: =SUM($E$24:$E$32) -> 0.358 | F109: =ROUND(E109*$F$108,2) -> 132.38 | H109: * Nota 2 - 13º e reflexos calculados à parte a fim de aprovisionamento
C110: C | D110: BDI sobre o 13º Salário - Taxa calculada no MÓDULO 6 | E110: =E94 -> 0.2359 | F110: =ROUND(E110*($F$108+$F$109),2) -> 118.46
D112: TOTAL DO DESTAQUE DO 13º SALÁRIO | F112: =SUM(F108:F110) -> 620.62
D114: QUADRO-RESUMO DO CUSTO MENSAL POR EMPREGADO | E114: Valor
D115: Custo total - sem o 13º Salário | E115: =ROUND(E105,2) -> 9957.35
D116: Destaque do 13º Salário (valor mensal) | E116: =ROUND(F112,2) -> 620.62
D118: TOTAL DO POSTO | E118: =E115+E116 -> 10577.97

Sheet 7
B2: PLANILHA DE ESTIMATIVA DE CUSTOS
B3: Padrão IN 05/2017 e IN 07/2018 - MPDG
B5: 7 | D5: =HLOOKUP($B$5,'Dados Gerais'!$D$6:$BI$22,6) -> OPERADOR ELETROMECÂNICO - EXPEDIENTE | E5: QUANTIDADE | F5: =HLOOKUP($B$5,'Dados Gerais'!$D$6:$BI$22,10) -> 4
B6: CCT | D6: =HLOOKUP($B$5,'Dados Gerais'!$D$6:$BI$22,16) -> SINDUSCON/DF x STICOMBE/DF CCT 2024/2025 - 2º TA - N.º DF000276/2024 | E6: DATA-BASE | F6: =HLOOKUP($B$5,'Dados Gerais'!$D$6:$BI$22,17) -> 2024-05-01
B8: MÓDULO 1 - COMPOSIÇÃO DA REMUNERAÇÃO | F8: Valor
C9: A | D9: Salário-Base | F9: =HLOOKUP($B$5,'Dados Gerais'!$D$6:$BI$22,8) -> 2727.34
C10: B | D10: Adicional de Periculosidade | F10: =HLOOKUP($B$5,'Dados Gerais'!$D$6:$BI$39,26) -> 0
C11: C | D11: Adicional de Insalubridade | F11: =HLOOKUP($B$5,'Dados Gerais'!$D$6:$BI$39,32) -> 303.6
C12: D | D12: Adicional Noturno | F12: =HLOOKUP($B$5,'Dados Gerais'!$D$6:$BI$52,47) -> 0 | H12: * Nota 1 - O Módulo 1 refere-se ao valor mensal devido ao empregado pela prestação do serviço no período de 12 meses.
C13: E | D13: Adicional de Hora Extra | F13: =HLOOKUP($B$5,'Dados Gerais'!$D$6:$BI$69,64) -> 0 | H13: * Nota 2 - O adicional de hora extra no feriado trabalhado foi suprimido pela Lei 13.467/17
C14: F | D14: Outros (adicional de sobreaviso) | F14: =HLOOKUP($B$5,'Dados Gerais'!$D$6:$BI$69,34) -> 0 | H14: * Nota 3 - ART. 7º, § 2º, DA LEI Nº 605/49.Sendo mensalista o obreiro, o adicional noturno pago de forma fixa já é considerado integrado para os efeitos do pagamento do repouso semanal remunerado, nos termos do art. 7º, § 2º, da Lei nº 605/49.
D16: TOTAL DA REMUNERAÇÃO | F16: =SUM(F9:F14) -> 3030.94
B18: MÓDULO 2 - ENCARGOS E BENEFÍCIOS ANUAIS, MENSAIS E DIÁRIOS | E18: Percentuais | F18: Valor
B19: Submódulo 2.1 - 13º Salário, Férias e Adicional de Férias
C20: A | D20: 13º Salário - Calculado no Módulo 7 - Destacado | E20: 0 | F20: =ROUND(E20*F$16,2) -> 0
C21: B | D21: Adicional de Férias | E21: ='[1]Encargos Sociais'!E31 -> 0.0303 | F21: =ROUND(E21*(F$16),2) -> 91.84 | H21: * Nota 1 - O adicional de férias foi calculado dividindo-se por 11, para comportar os 11 meses presentes e ainda o ausente do posto
B23: Submódulo 2.2 - Encargos Previdenciários (GPS), Fundo de Garantia por Tempo de Serviço (FGTS) e Outras Contribuições
C24: A | D24: INSS (art. 22, inciso I, Lei nº 8.212/91) | E24: ='Encargos Sociais'!E14 -> 0.2 | F24: =ROUND(E24*($F$16+$F$41+$F$73),2) -> 691.78 | H24: * Nota 1 - Os percentuais dos encargos previdenciários, do FGTS e demais contribuições são estabelecidos por legislação vigente.
C25: B | D25: Salário Educação (art. 3º, inciso I, Decreto nº 87.043/82) | E25: ='Encargos Sociais'!E15 -> 0.025 | F25: =ROUND(E25*($F$16+$F$41+$F$73),2) -> 86.47 | H25: * Nota 2 - O SAT, a depender do grau de risco do serviço, irá variar entre 1%, para risco leve, de 2%, para risco médio, e de 3% para risco grave.
C26: C | D26: SAT/RAT (art. 22, II, Lei 8.212/91 e Anexo V, Decreto 6.042/07) - Enquadramento 8211-3/00 | E26: ='Encargos Sociais'!E16 -> 0.01 | F26: 34.59 | H26: * Nota 3 - Base de cálculo - remuneração + ausências + terço constitucional (férias)
C27: D | D27: SESC ou SESI (art. 30, Lei nº 8.036/90 e art. 1º, Lei 8.154/90) | E27: ='Encargos Sociais'!E17 -> 0.015 | F27: 51.88
C28: E | D28: SENAI ou SENAC (Decreto nº 2.318/86) | E28: ='Encargos Sociais'!E18 -> 0.01 | F28: 34.59
C29: F | D29: SEBRAE (§ 3º, art. 8º, Lei 8.029/90, alterada pela Lei nº 8.154/90) | E29: ='Encargos Sociais'!E19 -> 0.006 | F29: 20.75
C30: G | D30: INCRA (art. 1º, I, Decreto Lei 1.146/70 e Lei 7.787, de 30/06/89) | E30: ='Encargos Sociais'!E20 -> 0.002 | F30: 6.92
C31: H | D31: FGTS (Lei Complementar nº 110/01 e art. 30, Lei nº 8.036/90) | E31: ='Encargos Sociais'!E21 -> 0.08 | F31: 276.71
C32: I | D32: SECONCI (Convenções Coletivas de Trabalho da construção) | E32: ='Encargos Sociais'!E22 -> 0.01 | F32: 34.59
B34: Submódulo 2.3 - Benefícios Mensais e Diários
C35: A | D35: Auxílio Transporte | F35: =HLOOKUP($B$5,'Dados Gerais'!$D$6:$BI$95,83) -> 539.97 | H35: * Nota 1 - O valor informado deverá ser o custo real do benefício (descontado o valor eventualmente pago pelo empregado).
C36: B | D36: Auxílio Alimentação | F36: =HLOOKUP($B$5,'Dados Gerais'!$D$6:$BI$95,90) -> 910 | H36: * Nota 2 - Observar a previsão dos benefícios contidos em Acordos, Convenções e Dissídios Coletivos de Trabalho e o disposto no art. 6º da IN 5/2017
C37: C | D37: Assistência Médica e Familiar | F37: =HLOOKUP($B$5,'Dados Gerais'!$D$6:$BI$103,98) -> 0
C38: D | D38: Outros (Seguro de vida, auxílio funeral, auxílio odontológico e auxílio creche) | F38: =HLOOKUP($B$5,'Dados Gerais'!$D$6:$BI$121,115) -> 13.95
D40: QUADRO-RESUMO DO MÓDULO 2
D41: 2.1 - 13º Salário, Férias e Adicional de Férias - 13º Destacado - Calculado no Módulo 7 | E41: =SUM(E20:E21) -> 0.0303 | F41: =F20+F21 -> 91.84
D42: 2.2 - Encargos Previdenciários (GPS), Fundo de Garantia por Tempo de Serviço (FGTS) e Contribuições | E42: =SUM(E24:E32) -> 0.358 | F42: =SUM(F24:F32) -> 1238.28
D43: 2.3 - Benefícios Mensais e Diários | F43: =SUM(F35:F38) -> 1463.92
D45: TOTAL DOS ENCARGOS E BENEFÍCIOS | F45: =SUM(F41:F43) -> 2794.04
B47: MÓDULO 3 - PREVISÃO PARA RESCISÃO | E47: Percentuais | F47: Valor
C48: A | D48: Aviso Prévio Indenizado (Art. 7º, inciso XXI, da CF/1988 e arts. 477, 487, §1º, e 491 da CLT) | E48: ='Encargos Sociais'!E36 -> 0.0035 | F48: =ROUND(E48*($F$16+$F$73+$F$41),2) -> 12.11 | H48: * Nota 1 - Base de cálculo - remuneração + ausências + 1/3 férias
C49: B | D49: Incidência do FGTS sobre o Aviso Prévio Indenizado (Súmula 305 TST) | E49: ='Encargos Sociais'!E37 -> 0.0003 | F49: 1.04
C50: C | D50: Multa do FGTS e Contribuição Social sobre o Aviso Prévio Indenizado (Art. 18, §1º, da Lei 8.036/1990 e art. 1º da LC nº 110/2001) | E50: ='Encargos Sociais'!E38 -> 0.0011 | F50: 3.8
C51: D | D51: Aviso Prévio Trabalhado (Art. 488, parágrafo único, CLT) | E51: ='Encargos Sociais'!E39 -> 0.0078 | F51: 26.98
C52: E | D52: Incidência de GPS, FGTS e outras contribuições sobre o Aviso Prévio Trabalhado | E52: ='Encargos Sociais'!E40 -> 0.0028 | F52: 9.68
C53: F | D53: Multa do FGTS e Contribuição Social sobre o Aviso Prévio Trabalhado | E53: ='Encargos Sociais'!E41 -> 0.0309 | F53: 106.88
D55: TOTAL DE PREVISÃO PARA RESCISÃO | F55: =SUM(F48:F53) -> 160.49
B57: MÓDULO 4 - CUSTO DO PROFISSIONAL AUSENTE | E57: Percentuais | F57: Valor
B58: Submódulo 4.1 - Ausências Legais
C59: A | D59: Férias (Arts. 129 e 130, inc. I, da CLT) | E59: ='Encargos Sociais'!E25 -> 0.0909 | F59: =ROUND(E59*$F$16,2) -> 275.51 | H59: * Nota 1 - O Módulo 4 refere-se às previsões para custear ausências do próprio profissional (titular do cargo)
C60: B | D60: Ausências Legais (Arts. 131 e 473 da CLT) | E60: ='Encargos Sociais'!E26 -> 0.0079 | F60: 23.94 | H60: * Nota 2 - As férias foram calculadas dividindo-se por 11, para comportar os 11 meses presentes e ainda o ausente do posto
C61: C | D61: Licença-Paternidade (Art. 7º, XIX, e art. 10, §1º, do ADCT, CF/1988 e Art. 1º, II, da Lei 11.770/2008) | E61: ='Encargos Sociais'!E27 -> 0.0008 | F61: 2.42
C62: D | D62: Ausência por Acidente de Trabalho (Art. 131, III, da CLT) | E62: ='Encargos Sociais'!E28 -> 0.0009 | F62: 2.73
C63: E | D63: Afastamento Maternidade (Art. 71 da Lei nº 8.213/1991) | E63: ='Encargos Sociais'!E29 -> 0.0033 | F63: 10
C64: F | D64: Auxílio Enfermidade - Doença (Art. 59 da Lei nº 8.213/1991) | E64: ='Encargos Sociais'!E30 -> 0.0071 | F64: 21.52
B66: Submódulo 4.2 - Intrajornada
C67: A | D67: Intervalo para repouso ou alimentação | E67: ='Encargos Sociais'!E33 -> 0 | F67: =ROUND(E67*$F$16,2) -> 0
D69: QUADRO-RESUMO DO MÓDULO 4 | F69: Valor
D70: 4.1 - Ausências Legais | E70: =SUM(E59:E64) -> 0.1109 | F70: =ROUND(E70*$F$16,2) -> 336.13
D71: 4.2 - Intrajornada | E71: =E67 -> 0 | F71: =ROUND(E71*$F$16,2) -> 0
D73: TOTAL DE PREVISÃO PARA RESCISÃO E INTERVALO INTRAJORNADA | F73: =SUM(F70:F71) -> 336.13
B75: MÓDULO 5 - INSUMOS DIVERSOS | F75: Valor
C76: A | D76: Uniformes - aquisição | F76: 0
C77: B | D77: Materiais de consumo relacionados ao posto - aquisição | F77: 0
C78: C | D78: Ferramentas relacionadas ao posto - remuneração da sua depreciação / manutenção | F78: 0
C79: D | D79: Equipamentos relacionados ao posto - remuneração da sua depreciação / manutenção | F79: 0
C80: E | D80: Equipamentos de Proteção Individual - EPI - aquisição | F80: ='EPI - Rel'!J141 -> 42.25
D82: TOTAL DE INSUMOS DIVERSOS | F82: =SUM(F76:F81) -> 42.25 | H82: * Nota - Valores mensais por empregado
B84: MÓDULO 6 - CUSTOS INDIRETOS, TRIBUTOS E LUCRO - BDI | E84: Percentuais | F84: Valor
C85: A | D85: Custos Indiretos | E85: ='BDI - Geral'!E7 -> 0.0357
C86: A.1 | D86: Administração Central | E86: ='BDI - Geral'!E8 -> 0.0303
C87: A.2 | D87: Seguros, Garantias e Riscos | E87: ='BDI - Geral'!E9 -> 0.0054
C88: B | D88: Lucro | E88: ='BDI - Geral'!E11 -> 0.04
C89: C | D89: Tributos | E89: =SUM(E90:E91) -> 0.124
C90: C.1 | D90: Tributos Federais (COFINS, PIS e CPRB) | E90: ='BDI - Geral'!E19 -> 0.074
C91: C.2 | D91: Tributos Distritais (ISS) | E91: ='BDI - Geral'!E24 -> 0.05
C92: D | D92: Despesas Financeiras | E92: ='BDI - Geral'!E14 -> 0.0051
D94: TOTAL DE BDI | E94: ='BDI - Geral'!E27 -> 0.2359 | F94: =ROUND(E94*E102,2) -> 1501.23
D96: QUADRO-RESUMO DO CUSTO MENSAL POR EMPREGADO - SEM O 13º | E96: Valor
D97: Módulo 1 - Composição da Remuneração | E97: =F16 -> 3030.94
D98: Módulo 2 - Encargos e Benefícios Anuais, Mensais e Diários | E98: =F45 -> 2794.04
D99: Módulo 3 - Provisão para Rescisão | E99: =F55 -> 160.49
D100: Módulo 4 - Custo de Reposição do Profissional Ausente | E100: =F73 -> 336.13
D101: Módulo 5 - Insumos Diversos | E101: =F82 -> 42.25
D102: SUBTOTAL (A+B+C+D+E) | E102: =SUM(E97:E101) -> 6363.85
D103: Módulo 6 - Custos Indiretos, Tributos e Lucro | E103: =F94 -> 1501.23
D105: TOTAL DO POSTO | E105: =SUM(E102:E103) -> 7865.08
B107: MÓDULO 7 - DESTAQUE DO MÓDULO 2 - 13º SALÁRIO | E107: Percentuais | F107: Valor
C108: A | D108: 13º Salário | E108: ='Encargos Sociais'!E32*12/11 -> 0.09087272727 | F108: =ROUND(E108*F$16,2) -> 275.43 | H108: * Nota 1 - Incluindo-se a reincidência das férias do substituto sobre o titular
C109: B | D109: Encargos Sociais sobre o 13º Salário - Taxa calculada no SUBMÓDULO 2.2 | E109: =SUM($E$24:$E$32) -> 0.358 | F109: =ROUND(E109*$F$108,2) -> 98.6 | H109: * Nota 2 - 13º e reflexos calculados à parte a fim de aprovisionamento
C110: C | D110: BDI sobre o 13º Salário - Taxa calculada no MÓDULO 6 | E110: =E94 -> 0.2359 | F110: =ROUND(E110*($F$108+$F$109),2) -> 88.23
D112: TOTAL DO DESTAQUE DO 13º SALÁRIO | F112: =SUM(F108:F110) -> 462.26
D114: QUADRO-RESUMO DO CUSTO MENSAL POR EMPREGADO | E114: Valor
D115: Custo total - sem o 13º Salário | E115: =ROUND(E105,2) -> 7865.08
D116: Destaque do 13º Salário (valor mensal) | E116: =ROUND(F112,2) -> 462.26
D118: TOTAL DO POSTO | E118: =E115+E116 -> 8327.34

Sheet 8
B2: PLANILHA DE ESTIMATIVA DE CUSTOS
B3: Padrão IN 05/2017 e IN 07/2018 - MPDG
B5: 8 | D5: =HLOOKUP($B$5,'Dados Gerais'!$D$6:$BI$22,6) -> OPERADOR ELETROMECÂNICO – PLANTONISTA DIURNO | E5: QUANTIDADE | F5: =HLOOKUP($B$5,'Dados Gerais'!$D$6:$BI$22,10) -> 6
B6: CCT | D6: =HLOOKUP($B$5,'Dados Gerais'!$D$6:$BI$22,16) -> SINDUSCON/DF x STICOMBE/DF CCT 2024/2025 - 2º TA - N.º DF000276/2024 | E6: DATA-BASE | F6: =HLOOKUP($B$5,'Dados Gerais'!$D$6:$BI$22,17) -> 2024-05-01
B8: MÓDULO 1 - COMPOSIÇÃO DA REMUNERAÇÃO | F8: Valor
C9: A | D9: Salário-Base | F9: =HLOOKUP($B$5,'Dados Gerais'!$D$6:$BI$22,8) -> 2727.34
C10: B | D10: Adicional de Periculosidade | F10: =HLOOKUP($B$5,'Dados Gerais'!$D$6:$BI$39,26) -> 0
C11: C | D11: Adicional de Insalubridade | F11: =HLOOKUP($B$5,'Dados Gerais'!$D$6:$BI$39,32) -> 303.6
C12: D | D12: Adicional Noturno | F12: =HLOOKUP($B$5,'Dados Gerais'!$D$6:$BI$52,47) -> 0 | H12: * Nota 1 - O Módulo 1 refere-se ao valor mensal devido ao empregado pela prestação do serviço no período de 12 meses.
C13: E | D13: Adicional de Hora Extra | F13: =HLOOKUP($B$5,'Dados Gerais'!$D$6:$BI$69,64) -> 0 | H13: * Nota 2 - O adicional de hora extra no feriado trabalhado foi suprimido pela Lei 13.467/17
C14: F | D14: Outros (adicional de sobreaviso) | F14: =HLOOKUP($B$5,'Dados Gerais'!$D$6:$BI$69,34) -> 0 | H14: * Nota 3 - ART. 7º, § 2º, DA LEI Nº 605/49.Sendo mensalista o obreiro, o adicional noturno pago de forma fixa já é considerado integrado para os efeitos do pagamento do repouso semanal remunerado, nos termos do art. 7º, § 2º, da Lei nº 605/49.
D16: TOTAL DA REMUNERAÇÃO | F16: =SUM(F9:F14) -> 3030.94
B18: MÓDULO 2 - ENCARGOS E BENEFÍCIOS ANUAIS, MENSAIS E DIÁRIOS | E18: Percentuais | F18: Valor
B19: Submódulo 2.1 - 13º Salário, Férias e Adicional de Férias
C20: A | D20: 13º Salário - Calculado no Módulo 7 - Destacado | E20: 0 | F20: =ROUND(E20*F$16,2) -> 0
C21: B | D21: Adicional de Férias | E21: ='[1]Encargos Sociais'!E31 -> 0.0303 | F21: =ROUND(E21*(F$16),2) -> 91.84 | H21: * Nota 1 - O adicional de férias foi calculado dividindo-se por 11, para comportar os 11 meses presentes e ainda o ausente do posto
B23: Submódulo 2.2 - Encargos Previdenciários (GPS), Fundo de Garantia por Tempo de Serviço (FGTS) e Outras Contribuições
C24: A | D24: INSS (art. 22, inciso I, Lei nº 8.212/91) | E24: ='Encargos Sociais'!E14 -> 0.2 | F24: =ROUND(E24*($F$16+$F$41+$F$73),2) -> 711.99 | H24: * Nota 1 - Os percentuais dos encargos previdenciários, do FGTS e demais contribuições são estabelecidos por legislação vigente.
C25: B | D25: Salário Educação (art. 3º, inciso I, Decreto nº 87.043/82) | E25: ='Encargos Sociais'!E15 -> 0.025 | F25: =ROUND(E25*($F$16+$F$41+$F$73),2) -> 89 | H25: * Nota 2 - O SAT, a depender do grau de risco do serviço, irá variar entre 1%, para risco leve, de 2%, para risco médio, e de 3% para risco grave.
C26: C | D26: SAT/RAT (art. 22, II, Lei 8.212/91 e Anexo V, Decreto 6.042/07) - Enquadramento 8211-3/00 | E26: ='Encargos Sociais'!E16 -> 0.01 | F26: 35.6 | H26: * Nota 3 - Base de cálculo - remuneração + ausências + terço constitucional (férias)
C27: D | D27: SESC ou SESI (art. 30, Lei nº 8.036/90 e art. 1º, Lei 8.154/90) | E27: ='Encargos Sociais'!E17 -> 0.015 | F27: 53.4
C28: E | D28: SENAI ou SENAC (Decreto nº 2.318/86) | E28: ='Encargos Sociais'!E18 -> 0.01 | F28: 35.6
C29: F | D29: SEBRAE (§ 3º, art. 8º, Lei 8.029/90, alterada pela Lei nº 8.154/90) | E29: ='Encargos Sociais'!E19 -> 0.006 | F29: 21.36
C30: G | D30: INCRA (art. 1º, I, Decreto Lei 1.146/70 e Lei 7.787, de 30/06/89) | E30: ='Encargos Sociais'!E20 -> 0.002 | F30: 7.12
C31: H | D31: FGTS (Lei Complementar nº 110/01 e art. 30, Lei nº 8.036/90) | E31: ='Encargos Sociais'!E21 -> 0.08 | F31: 284.8
C32: I | D32: SECONCI (Convenções Coletivas de Trabalho da construção) | E32: ='Encargos Sociais'!E22 -> 0.01 | F32: 35.6
B34: Submódulo 2.3 - Benefícios Mensais e Diários
C35: A | D35: Auxílio Transporte | F35: =HLOOKUP($B$5,'Dados Gerais'!$D$6:$BI$95,83) -> 311.52 | H35: * Nota 1 - O valor informado deverá ser o custo real do benefício (descontado o valor eventualmente pago pelo empregado).
C36: B | D36: Auxílio Alimentação | F36: =HLOOKUP($B$5,'Dados Gerais'!$D$6:$BI$95,90) -> 525 | H36: * Nota 2 - Observar a previsão dos benefícios contidos em Acordos, Convenções e Dissídios Coletivos de Trabalho e o disposto no art. 6º da IN 5/2017
C37: C | D37: Assistência Médica e Familiar | F37: =HLOOKUP($B$5,'Dados Gerais'!$D$6:$BI$103,98) -> 0
C38: D | D38: Outros (Seguro de vida, auxílio funeral, auxílio odontológico e auxílio creche) | F38: =HLOOKUP($B$5,'Dados Gerais'!$D$6:$BI$121,115) -> 13.95
D40: QUADRO-RESUMO DO MÓDULO 2
D41: 2.1 - 13º Salário, Férias e Adicional de Férias - 13º Destacado - Calculado no Módulo 7 | E41: =SUM(E20:E21) -> 0.0303 | F41: =F20+F21 -> 91.84
D42: 2.2 - Encargos Previdenciários (GPS), Fundo de Garantia por Tempo de Serviço (FGTS) e Contribuições | E42: =SUM(E24:E32) -> 0.358 | F42: =SUM(F24:F32) -> 1274.47
D43: 2.3 - Benefícios Mensais e Diários | F43: =SUM(F35:F38) -> 850.47
D45: TOTAL DOS ENCARGOS E BENEFÍCIOS | F45: =SUM(F41:F43) -> 2216.78
B47: MÓDULO 3 - PREVISÃO PARA RESCISÃO | E47: Percentuais | F47: Valor
C48: A | D48: Aviso Prévio Indenizado (Art. 7º, inciso XXI, da CF/1988 e arts. 477, 487, §1º, e 491 da CLT) | E48: ='Encargos Sociais'!E36 -> 0.0035 | F48: =ROUND(E48*($F$16+$F$73+$F$41),2) -> 12.46 | H48: * Nota 1 - Base de cálculo - remuneração + ausências + 1/3 férias
C49: B | D49: Incidência do FGTS sobre o Aviso Prévio Indenizado (Súmula 305 TST) | E49: ='Encargos Sociais'!E37 -> 0.0003 | F49: 1.07
C50: C | D50: Multa do FGTS e Contribuição Social sobre o Aviso Prévio Indenizado (Art. 18, §1º, da Lei 8.036/1990 e art. 1º da LC nº 110/2001) | E50: ='Encargos Sociais'!E38 -> 0.0011 | F50: 3.92
C51: D | D51: Aviso Prévio Trabalhado (Art. 488, parágrafo único, CLT) | E51: ='Encargos Sociais'!E39 -> 0.0078 | F51: 27.77
C52: E | D52: Incidência de GPS, FGTS e outras contribuições sobre o Aviso Prévio Trabalhado | E52: ='Encargos Sociais'!E40 -> 0.0028 | F52: 9.97
C53: F | D53: Multa do FGTS e Contribuição Social sobre o Aviso Prévio Trabalhado | E53: ='Encargos Sociais'!E41 -> 0.0309 | F53: 110
D55: TOTAL DE PREVISÃO PARA RESCISÃO | F55: =SUM(F48:F53) -> 165.19
B57: MÓDULO 4 - CUSTO DO PROFISSIONAL AUSENTE | E57: Percentuais | F57: Valor
B58: Submódulo 4.1 - Ausências Legais
C59: A | D59: Férias (Arts. 129 e 130, inc. I, da CLT) | E59: ='Encargos Sociais'!E25 -> 0.0909 | F59: =ROUND(E59*$F$16,2) -> 275.51 | H59: * Nota 1 - O Módulo 4 refere-se às previsões para custear ausências do próprio profissional (titular do cargo)
C60: B | D60: Ausências Legais (Arts. 131 e 473 da CLT) | E60: ='Encargos Sociais'!E26 -> 0.0079 | F60: 23.94 | H60: * Nota 2 - As férias foram calculadas dividindo-se por 11, para comportar os 11 meses presentes e ainda o ausente do posto
C61: C | D61: Licença-Paternidade (Art. 7º, XIX, e art. 10, §1º, do ADCT, CF/1988 e Art. 1º, II, da Lei 11.770/2008) | E61: ='Encargos Sociais'!E27 -> 0.0008 | F61: 2.42
C62: D | D62: Ausência por Acidente de Trabalho (Art. 131, III, da CLT) | E62: ='Encargos Sociais'!E28 -> 0.0009 | F62: 2.73
C63: E | D63: Afastamento Maternidade (Art. 71 da Lei nº 8.213/1991) | E63: ='Encargos Sociais'!E29 -> 0.0033 | F63: 10
C64: F | D64: Auxílio Enfermidade - Doença (Art. 59 da Lei nº 8.213/1991) | E64: ='Encargos Sociais'!E30 -> 0.0071 | F64: 21.52
B66: Submódulo 4.2 - Feriados remunerados
C67: I | D67: Feriados remunerados (plantonistas) | E67: ='Encargos Sociais - Plant'!E33 -> 0.03333333333 | F67: =ROUND(E67*$F$16,2) -> 101.03
D69: QUADRO-RESUMO DO MÓDULO 4 | F69: Valor
D70: 4.1 - Ausências Legais | E70: =SUM(E59:E64) -> 0.1109 | F70: =ROUND(E70*$F$16,2) -> 336.13
D71: 4.2 - Feriados remunerados (plantonistas) | E71: =E67 -> 0.03333333333 | F71: =ROUND(E71*$F$16,2) -> 101.03
D73: TOTAL DE PREVISÃO PARA RESCISÃO E INTERVALO INTRAJORNADA | F73: =SUM(F70:F71) -> 437.16
B75: MÓDULO 5 - INSUMOS DIVERSOS | F75: Valor
C76: A | D76: Uniformes - aquisição | F76: 0
C77: B | D77: Materiais de consumo relacionados ao posto - aquisição | F77: 0
C78: C | D78: Ferramentas relacionadas ao posto - remuneração da sua depreciação / manutenção | F78: 0
C79: D | D79: Equipamentos relacionados ao posto - remuneração da sua depreciação / manutenção | F79: 0
C80: E | D80: Equipamentos de Proteção Individual - EPI - aquisição | F80: ='EPI - Rel'!J141 -> 42.25
D82: TOTAL DE INSUMOS DIVERSOS | F82: =SUM(F76:F81) -> 42.25 | H82: * Nota - Valores mensais por empregado
B84: MÓDULO 6 - CUSTOS INDIRETOS, TRIBUTOS E LUCRO - BDI | E84: Percentuais | F84: Valor
C85: A | D85: Custos Indiretos | E85: ='BDI - Geral'!E7 -> 0.0357
C86: A.1 | D86: Administração Central | E86: ='BDI - Geral'!E8 -> 0.0303
C87: A.2 | D87: Seguros, Garantias e Riscos | E87: ='BDI - Geral'!E9 -> 0.0054
C88: B | D88: Lucro | E88: ='BDI - Geral'!E11 -> 0.04
C89: C | D89: Tributos | E89: =SUM(E90:E91) -> 0.124
C90: C.1 | D90: Tributos Federais (COFINS, PIS e CPRB) | E90: ='BDI - Geral'!E19 -> 0.074
C91: C.2 | D91: Tributos Distritais (ISS) | E91: ='BDI - Geral'!E24 -> 0.05
C92: D | D92: Despesas Financeiras | E92: ='BDI - Geral'!E14 -> 0.0051
D94: TOTAL DE BDI | E94: ='BDI - Geral'!E27 -> 0.2359 | F94: =ROUND(E94*E102,2) -> 1390
D96: QUADRO-RESUMO DO CUSTO MENSAL POR EMPREGADO - SEM O 13º | E96: Valor
D97: Módulo 1 - Composição da Remuneração | E97: =F16 -> 3030.94
D98: Módulo 2 - Encargos e Benefícios Anuais, Mensais e Diários | E98: =F45 -> 2216.78
D99: Módulo 3 - Provisão para Rescisão | E99: =F55 -> 165.19
D100: Módulo 4 - Custo de Reposição do Profissional Ausente | E100: =F73 -> 437.16
D101: Módulo 5 - Insumos Diversos | E101: =F82 -> 42.25
D102: SUBTOTAL (A+B+C+D+E) | E102: =SUM(E97:E101) -> 5892.32
D103: Módulo 6 - Custos Indiretos, Tributos e Lucro | E103: =F94 -> 1390
D105: TOTAL DO POSTO | E105: =SUM(E102:E103) -> 7282.32
B107: MÓDULO 7 - DESTAQUE DO MÓDULO 2 - 13º SALÁRIO | E107: Percentuais | F107: Valor
C108: A | D108: 13º Salário | E108: ='Encargos Sociais'!E32*12/11 -> 0.09087272727 | F108: =ROUND(E108*F$16,2) -> 275.43 | H108: * Nota 1 - Incluindo-se a reincidência das férias do substituto sobre o titular
C109: B | D109: Encargos Sociais sobre o 13º Salário - Taxa calculada no SUBMÓDULO 2.2 | E109: =SUM($E$24:$E$32) -> 0.358 | F109: =ROUND(E109*$F$108,2) -> 98.6 | H109: * Nota 2 - 13º e reflexos calculados à parte a fim de aprovisionamento
C110: C | D110: BDI sobre o 13º Salário - Taxa calculada no MÓDULO 6 | E110: =E94 -> 0.2359 | F110: =ROUND(E110*($F$108+$F$109),2) -> 88.23
D112: TOTAL DO DESTAQUE DO 13º SALÁRIO | F112: =SUM(F108:F110) -> 462.26
D114: QUADRO-RESUMO DO CUSTO MENSAL POR EMPREGADO | E114: Valor
D115: Custo total - sem o 13º Salário | E115: =ROUND(E105,2) -> 7282.32
D116: Destaque do 13º Salário (valor mensal) | E116: =ROUND(F112,2) -> 462.26
D118: TOTAL DO POSTO | E118: =E115+E116 -> 7744.58

Sheet 9
B2: PLANILHA DE ESTIMATIVA DE CUSTOS
B3: Padrão IN 05/2017 e IN 07/2018 - MPDG
B5: 9 | D5: =HLOOKUP($B$5,'Dados Gerais'!$D$6:$BI$22,6) -> OPERADOR ELETROMECÂNICO – PLANTONISTA NOTURNO | E5: QUANTIDADE | F5: =HLOOKUP($B$5,'Dados Gerais'!$D$6:$BI$22,10) -> 6
B6: CCT | D6: =HLOOKUP($B$5,'Dados Gerais'!$D$6:$BI$22,16) -> SINDUSCON/DF x STICOMBE/DF CCT 2024/2025 - 2º TA - N.º DF000276/2024 | E6: DATA-BASE | F6: =HLOOKUP($B$5,'Dados Gerais'!$D$6:$BI$22,17) -> 2024-05-01
B8: MÓDULO 1 - COMPOSIÇÃO DA REMUNERAÇÃO | F8: Valor
C9: A | D9: Salário-Base | F9: =HLOOKUP($B$5,'Dados Gerais'!$D$6:$BI$22,8) -> 2727.34
C10: B | D10: Adicional de Periculosidade | F10: =HLOOKUP($B$5,'Dados Gerais'!$D$6:$BI$39,26) -> 0
C11: C | D11: Adicional de Insalubridade | F11: =HLOOKUP($B$5,'Dados Gerais'!$D$6:$BI$39,32) -> 303.6
C12: D | D12: Adicional Noturno | F12: =HLOOKUP($B$5,'Dados Gerais'!$D$6:$BI$52,47) -> 289.32 | H12: * Nota 1 - O Módulo 1 refere-se ao valor mensal devido ao empregado pela prestação do serviço no período de 12 meses.
C13: E | D13: Adicional de Hora Extra | F13: =HLOOKUP($B$5,'Dados Gerais'!$D$6:$BI$69,64) -> 0 | H13: * Nota 2 - O adicional de hora extra no feriado trabalhado foi suprimido pela Lei 13.467/17
C14: F | D14: Outros (adicional de sobreaviso) | F14: =HLOOKUP($B$5,'Dados Gerais'!$D$6:$BI$69,34) -> 0 | H14: * Nota 3 - ART. 7º, § 2º, DA LEI Nº 605/49.Sendo mensalista o obreiro, o adicional noturno pago de forma fixa já é considerado integrado para os efeitos do pagamento do repouso semanal remunerado, nos termos do art. 7º, § 2º, da Lei nº 605/49.
D16: TOTAL DA REMUNERAÇÃO | F16: =SUM(F9:F14) -> 3320.26
B18: MÓDULO 2 - ENCARGOS E BENEFÍCIOS ANUAIS, MENSAIS E DIÁRIOS | E18: Percentuais | F18: Valor
B19: Submódulo 2.1 - 13º Salário, Férias e Adicional de Férias
C20: A | D20: 13º Salário - Calculado no Módulo 7 - Destacado | E20: 0 | F20: =ROUND(E20*F$16,2) -> 0
C21: B | D21: Adicional de Férias | E21: ='[1]Encargos Sociais'!E31 -> 0.0303 | F21: =ROUND(E21*(F$16),2) -> 100.6 | H21: * Nota 1 - O adicional de férias foi calculado dividindo-se por 11, para comportar os 11 meses presentes e ainda o ausente do posto
B23: Submódulo 2.2 - Encargos Previdenciários (GPS), Fundo de Garantia por Tempo de Serviço (FGTS) e Outras Contribuições
C24: A | D24: INSS (art. 22, inciso I, Lei nº 8.212/91) | E24: ='Encargos Sociais'!E14 -> 0.2 | F24: =ROUND(E24*($F$16+$F$41+$F$73),2) -> 779.95 | H24: * Nota 1 - Os percentuais dos encargos previdenciários, do FGTS e demais contribuições são estabelecidos por legislação vigente.
C25: B | D25: Salário Educação (art. 3º, inciso I, Decreto nº 87.043/82) | E25: ='Encargos Sociais'!E15 -> 0.025 | F25: =ROUND(E25*($F$16+$F$41+$F$73),2) -> 97.49 | H25: * Nota 2 - O SAT, a depender do grau de risco do serviço, irá variar entre 1%, para risco leve, de 2%, para risco médio, e de 3% para risco grave.
C26: C | D26: SAT/RAT (art. 22, II, Lei 8.212/91 e Anexo V, Decreto 6.042/07) - Enquadramento 8211-3/00 | E26: ='Encargos Sociais'!E16 -> 0.01 | F26: 39 | H26: * Nota 3 - Base de cálculo - remuneração + ausências + terço constitucional (férias)
C27: D | D27: SESC ou SESI (art. 30, Lei nº 8.036/90 e art. 1º, Lei 8.154/90) | E27: ='Encargos Sociais'!E17 -> 0.015 | F27: 58.5
C28: E | D28: SENAI ou SENAC (Decreto nº 2.318/86) | E28: ='Encargos Sociais'!E18 -> 0.01 | F28: 39
C29: F | D29: SEBRAE (§ 3º, art. 8º, Lei 8.029/90, alterada pela Lei nº 8.154/90) | E29: ='Encargos Sociais'!E19 -> 0.006 | F29: 23.4
C30: G | D30: INCRA (art. 1º, I, Decreto Lei 1.146/70 e Lei 7.787, de 30/06/89) | E30: ='Encargos Sociais'!E20 -> 0.002 | F30: 7.8
C31: H | D31: FGTS (Lei Complementar nº 110/01 e art. 30, Lei nº 8.036/90) | E31: ='Encargos Sociais'!E21 -> 0.08 | F31: 311.98
C32: I | D32: SECONCI (Convenções Coletivas de Trabalho da construção) | E32: ='Encargos Sociais'!E22 -> 0.01 | F32: 39
B34: Submódulo 2.3 - Benefícios Mensais e Diários
C35: A | D35: Auxílio Transporte | F35: =HLOOKUP($B$5,'Dados Gerais'!$D$6:$BI$95,83) -> 311.52 | H35: * Nota 1 - O valor informado deverá ser o custo real do benefício (descontado o valor eventualmente pago pelo empregado).
C36: B | D36: Auxílio Alimentação | F36: =HLOOKUP($B$5,'Dados Gerais'!$D$6:$BI$95,90) -> 525 | H36: * Nota 2 - Observar a previsão dos benefícios contidos em Acordos, Convenções e Dissídios Coletivos de Trabalho e o disposto no art. 6º da IN 5/2017
C37: C | D37: Assistência Médica e Familiar | F37: =HLOOKUP($B$5,'Dados Gerais'!$D$6:$BI$103,98) -> 0
C38: D | D38: Outros (Seguro de vida, auxílio funeral, auxílio odontológico e auxílio creche) | F38: =HLOOKUP($B$5,'Dados Gerais'!$D$6:$BI$121,115) -> 13.95
D40: QUADRO-RESUMO DO MÓDULO 2
D41: 2.1 - 13º Salário, Férias e Adicional de Férias - 13º Destacado - Calculado no Módulo 7 | E41: =SUM(E20:E21) -> 0.0303 | F41: =F20+F21 -> 100.6
D42: 2.2 - Encargos Previdenciários (GPS), Fundo de Garantia por Tempo de Serviço (FGTS) e Contribuições | E42: =SUM(E24:E32) -> 0.358 | F42: =SUM(F24:F32) -> 1396.12
D43: 2.3 - Benefícios Mensais e Diários | F43: =SUM(F35:F38) -> 850.47
D45: TOTAL DOS ENCARGOS E BENEFÍCIOS | F45: =SUM(F41:F43) -> 2347.19
B47: MÓDULO 3 - PREVISÃO PARA RESCISÃO | E47: Percentuais | F47: Valor
C48: A | D48: Aviso Prévio Indenizado (Art. 7º, inciso XXI, da CF/1988 e arts. 477, 487, §1º, e 491 da CLT) | E48: ='Encargos Sociais'!E36 -> 0.0035 | F48: =ROUND(E48*($F$16+$F$73+$F$41),2) -> 13.65 | H48: * Nota 1 - Base de cálculo - remuneração + ausências + 1/3 férias
C49: B | D49: Incidência do FGTS sobre o Aviso Prévio Indenizado (Súmula 305 TST) | E49: ='Encargos Sociais'!E37 -> 0.0003 | F49: 1.17
C50: C | D50: Multa do FGTS e Contribuição Social sobre o Aviso Prévio Indenizado (Art. 18, §1º, da Lei 8.036/1990 e art. 1º da LC nº 110/2001) | E50: ='Encargos Sociais'!E38 -> 0.0011 | F50: 4.29
C51: D | D51: Aviso Prévio Trabalhado (Art. 488, parágrafo único, CLT) | E51: ='Encargos Sociais'!E39 -> 0.0078 | F51: 30.42
C52: E | D52: Incidência de GPS, FGTS e outras contribuições sobre o Aviso Prévio Trabalhado | E52: ='Encargos Sociais'!E40 -> 0.0028 | F52: 10.92
C53: F | D53: Multa do FGTS e Contribuição Social sobre o Aviso Prévio Trabalhado | E53: ='Encargos Sociais'!E41 -> 0.0309 | F53: 120.5
D55: TOTAL DE PREVISÃO PARA RESCISÃO | F55: =SUM(F48:F53) -> 180.95
B57: MÓDULO 4 - CUSTO DO PROFISSIONAL AUSENTE | E57: Percentuais | F57: Valor
B58: Submódulo 4.1 - Ausências Legais
C59: A | D59: Férias (Arts. 129 e 130, inc. I, da CLT) | E59: ='Encargos Sociais'!E25 -> 0.0909 | F59: =ROUND(E59*$F$16,2) -> 301.81 | H59: * Nota 1 - O Módulo 4 refere-se às previsões para custear ausências do próprio profissional (titular do cargo)
C60: B | D60: Ausências Legais (Arts. 131 e 473 da CLT) | E60: ='Encargos Sociais'!E26 -> 0.0079 | F60: 26.23 | H60: * Nota 2 - As férias foram calculadas dividindo-se por 11, para comportar os 11 meses presentes e ainda o ausente do posto
C61: C | D61: Licença-Paternidade (Art. 7º, XIX, e art. 10, §1º, do ADCT, CF/1988 e Art. 1º, II, da Lei 11.770/2008) | E61: ='Encargos Sociais'!E27 -> 0.0008 | F61: 2.66
C62: D | D62: Ausência por Acidente de Trabalho (Art. 131, III, da CLT) | E62: ='Encargos Sociais'!E28 -> 0.0009 | F62: 2.99
C63: E | D63: Afastamento Maternidade (Art. 71 da Lei nº 8.213/1991) | E63: ='Encargos Sociais'!E29 -> 0.0033 | F63: 10.96
C64: F | D64: Auxílio Enfermidade - Doença (Art. 59 da Lei nº 8.213/1991) | E64: ='Encargos Sociais'!E30 -> 0.0071 | F64: 23.57
B66: Submódulo 4.2 - Feriados remunerados
C67: I | D67: Feriados remunerados (plantonistas) | E67: ='Encargos Sociais - Plant'!E33 -> 0.03333333333 | F67: =ROUND(E67*$F$16,2) -> 110.68
D69: QUADRO-RESUMO DO MÓDULO 4 | F69: Valor
D70: 4.1 - Ausências Legais | E70: =SUM(E59:E64) -> 0.1109 | F70: =ROUND(E70*$F$16,2) -> 368.22
D71: 4.2 - Feriados remunerados (plantonistas) | E71: =E67 -> 0.03333333333 | F71: =ROUND(E71*$F$16,2) -> 110.68
D73: TOTAL DE PREVISÃO PARA RESCISÃO E INTERVALO INTRAJORNADA | F73: =SUM(F70:F71) -> 478.9
B75: MÓDULO 5 - INSUMOS DIVERSOS | F75: Valor
C76: A | D76: Uniformes - aquisição | F76: 0
C77: B | D77: Materiais de consumo relacionados ao posto - aquisição | F77: 0
C78: C | D78: Ferramentas relacionadas ao posto - remuneração da sua depreciação / manutenção | F78: 0
C79: D | D79: Equipamentos relacionados ao posto - remuneração da sua depreciação / manutenção | F79: 0
C80: E | D80: Equipamentos de Proteção Individual - EPI - aquisição | F80: ='EPI - Rel'!J141 -> 42.25
D82: TOTAL DE INSUMOS DIVERSOS | F82: =SUM(F76:F81) -> 42.25 | H82: * Nota - Valores mensais por empregado
B84: MÓDULO 6 - CUSTOS INDIRETOS, TRIBUTOS E LUCRO - BDI | E84: Percentuais | F84: Valor
C85: A | D85: Custos Indiretos | E85: ='BDI - Geral'!E7 -> 0.0357
C86: A.1 | D86: Administração Central | E86: ='BDI - Geral'!E8 -> 0.0303
C87: A.2 | D87: Seguros, Garantias e Riscos | E87: ='BDI - Geral'!E9 -> 0.0054
C88: B | D88: Lucro | E88: ='BDI - Geral'!E11 -> 0.04
C89: C | D89: Tributos | E89: =SUM(E90:E91) -> 0.124
C90: C.1 | D90: Tributos Federais (COFINS, PIS e CPRB) | E90: ='BDI - Geral'!E19 -> 0.074
C91: C.2 | D91: Tributos Distritais (ISS) | E91: ='BDI - Geral'!E24 -> 0.05
C92: D | D92: Despesas Financeiras | E92: ='BDI - Geral'!E14 -> 0.0051
D94: TOTAL DE BDI | E94: ='BDI - Geral'!E27 -> 0.2359 | F94: =ROUND(E94*E102,2) -> 1502.58
D96: QUADRO-RESUMO DO CUSTO MENSAL POR EMPREGADO - SEM O 13º | E96: Valor
D97: Módulo 1 - Composição da Remuneração | E97: =F16 -> 3320.26
D98: Módulo 2 - Encargos e Benefícios Anuais, Mensais e Diários | E98: =F45 -> 2347.19
D99: Módulo 3 - Provisão para Rescisão | E99: =F55 -> 180.95
D100: Módulo 4 - Custo de Reposição do Profissional Ausente | E100: =F73 -> 478.9
D101: Módulo 5 - Insumos Diversos | E101: =F82 -> 42.25
D102: SUBTOTAL (A+B+C+D+E) | E102: =SUM(E97:E101) -> 6369.55
D103: Módulo 6 - Custos Indiretos, Tributos e Lucro | E103: =F94 -> 1502.58
D105: TOTAL DO POSTO | E105: =SUM(E102:E103) -> 7872.13
B107: MÓDULO 7 - DESTAQUE DO MÓDULO 2 - 13º SALÁRIO | E107: Percentuais | F107: Valor
C108: A | D108: 13º Salário | E108: ='Encargos Sociais'!E32*12/11 -> 0.09087272727 | F108: =ROUND(E108*F$16,2) -> 301.72 | H108: * Nota 1 - Incluindo-se a reincidência das férias do substituto sobre o titular
C109: B | D109: Encargos Sociais sobre o 13º Salário - Taxa calculada no SUBMÓDULO 2.2 | E109: =SUM($E$24:$E$32) -> 0.358 | F109: =ROUND(E109*$F$108,2) -> 108.02 | H109: * Nota 2 - 13º e reflexos calculados à parte a fim de aprovisionamento
C110: C | D110: BDI sobre o 13º Salário - Taxa calculada no MÓDULO 6 | E110: =E94 -> 0.2359 | F110: =ROUND(E110*($F$108+$F$109),2) -> 96.66
D112: TOTAL DO DESTAQUE DO 13º SALÁRIO | F112: =SUM(F108:F110) -> 506.4
D114: QUADRO-RESUMO DO CUSTO MENSAL POR EMPREGADO | E114: Valor
D115: Custo total - sem o 13º Salário | E115: =ROUND(E105,2) -> 7872.13
D116: Destaque do 13º Salário (valor mensal) | E116: =ROUND(F112,2) -> 506.4
D118: TOTAL DO POSTO | E118: =E115+E116 -> 8378.53

Sheet 10
B2: PLANILHA DE ESTIMATIVA DE CUSTOS
B3: Padrão IN 05/2017 e IN 07/2018 - MPDG
B5: 10 | D5: =HLOOKUP($B$5,'Dados Gerais'!$D$6:$BI$22,6) -> AUXILIAR MECÂNICO DE AR CONDICIONADO | E5: QUANTIDADE | F5: =HLOOKUP($B$5,'Dados Gerais'!$D$6:$BI$22,10) -> 19
B6: CCT | D6: =HLOOKUP($B$5,'Dados Gerais'!$D$6:$BI$22,16) -> SINDUSCON/DF x STICOMBE/DF CCT 2024/2025 - 2º TA - N.º DF000276/2024 | E6: DATA-BASE | F6: =HLOOKUP($B$5,'Dados Gerais'!$D$6:$BI$22,17) -> 2024-05-01
B8: MÓDULO 1 - COMPOSIÇÃO DA REMUNERAÇÃO | F8: Valor
C9: A | D9: Salário-Base | F9: =HLOOKUP($B$5,'Dados Gerais'!$D$6:$BI$22,8) -> 1921.17
C10: B | D10: Adicional de Periculosidade | F10: =HLOOKUP($B$5,'Dados Gerais'!$D$6:$BI$39,26) -> 0
C11: C | D11: Adicional de Insalubridade | F11: =HLOOKUP($B$5,'Dados Gerais'!$D$6:$BI$39,32) -> 303.6
C12: D | D12: Adicional Noturno | F12: =HLOOKUP($B$5,'Dados Gerais'!$D$6:$BI$52,47) -> 0 | H12: * Nota 1 - O Módulo 1 refere-se ao valor mensal devido ao empregado pela prestação do serviço no período de 12 meses.
C13: E | D13: Adicional de Hora Extra | F13: =HLOOKUP($B$5,'Dados Gerais'!$D$6:$BI$69,64) -> 0 | H13: * Nota 2 - O adicional de hora extra no feriado trabalhado foi suprimido pela Lei 13.467/17
C14: F | D14: Outros (adicional de sobreaviso) | F14: =HLOOKUP($B$5,'Dados Gerais'!$D$6:$BI$69,34) -> 0 | H14: * Nota 3 - ART. 7º, § 2º, DA LEI Nº 605/49.Sendo mensalista o obreiro, o adicional noturno pago de forma fixa já é considerado integrado para os efeitos do pagamento do repouso semanal remunerado, nos termos do art. 7º, § 2º, da Lei nº 605/49.
D16: TOTAL DA REMUNERAÇÃO | F16: =SUM(F9:F14) -> 2224.77
B18: MÓDULO 2 - ENCARGOS E BENEFÍCIOS ANUAIS, MENSAIS E DIÁRIOS | E18: Percentuais | F18: Valor
B19: Submódulo 2.1 - 13º Salário, Férias e Adicional de Férias
C20: A | D20: 13º Salário - Calculado no Módulo 7 - Destacado | E20: 0 | F20: =ROUND(E20*F$16,2) -> 0
C21: B | D21: Adicional de Férias | E21: ='[1]Encargos Sociais'!E31 -> 0.0303 | F21: =ROUND(E21*(F$16),2) -> 67.41 | H21: * Nota 1 - O adicional de férias foi calculado dividindo-se por 11, para comportar os 11 meses presentes e ainda o ausente do posto
B23: Submódulo 2.2 - Encargos Previdenciários (GPS), Fundo de Garantia por Tempo de Serviço (FGTS) e Outras Contribuições
C24: A | D24: INSS (art. 22, inciso I, Lei nº 8.212/91) | E24: ='Encargos Sociais'!E14 -> 0.2 | F24: =ROUND(E24*($F$16+$F$41+$F$73),2) -> 507.78 | H24: * Nota 1 - Os percentuais dos encargos previdenciários, do FGTS e demais contribuições são estabelecidos por legislação vigente.
C25: B | D25: Salário Educação (art. 3º, inciso I, Decreto nº 87.043/82) | E25: ='Encargos Sociais'!E15 -> 0.025 | F25: =ROUND(E25*($F$16+$F$41+$F$73),2) -> 63.47 | H25: * Nota 2 - O SAT, a depender do grau de risco do serviço, irá variar entre 1%, para risco leve, de 2%, para risco médio, e de 3% para risco grave.
C26: C | D26: SAT/RAT (art. 22, II, Lei 8.212/91 e Anexo V, Decreto 6.042/07) - Enquadramento 8211-3/00 | E26: ='Encargos Sociais'!E16 -> 0.01 | F26: 25.39 | H26: * Nota 3 - Base de cálculo - remuneração + ausências + terço constitucional (férias)
C27: D | D27: SESC ou SESI (art. 30, Lei nº 8.036/90 e art. 1º, Lei 8.154/90) | E27: ='Encargos Sociais'!E17 -> 0.015 | F27: 38.08
C28: E | D28: SENAI ou SENAC (Decreto nº 2.318/86) | E28: ='Encargos Sociais'!E18 -> 0.01 | F28: 25.39
C29: F | D29: SEBRAE (§ 3º, art. 8º, Lei 8.029/90, alterada pela Lei nº 8.154/90) | E29: ='Encargos Sociais'!E19 -> 0.006 | F29: 15.23
C30: G | D30: INCRA (art. 1º, I, Decreto Lei 1.146/70 e Lei 7.787, de 30/06/89) | E30: ='Encargos Sociais'!E20 -> 0.002 | F30: 5.08
C31: H | D31: FGTS (Lei Complementar nº 110/01 e art. 30, Lei nº 8.036/90) | E31: ='Encargos Sociais'!E21 -> 0.08 | F31: 203.11
C32: I | D32: SECONCI (Convenções Coletivas de Trabalho da construção) | E32: ='Encargos Sociais'!E22 -> 0.01 | F32: 25.39
B34: Submódulo 2.3 - Benefícios Mensais e Diários
C35: A | D35: Auxílio Transporte | F35: =HLOOKUP($B$5,'Dados Gerais'!$D$6:$BI$95,83) -> 539.97 | H35: * Nota 1 - O valor informado deverá ser o custo real do benefício (descontado o valor eventualmente pago pelo empregado).
C36: B | D36: Auxílio Alimentação | F36: =HLOOKUP($B$5,'Dados Gerais'!$D$6:$BI$95,90) -> 910 | H36: * Nota 2 - Observar a previsão dos benefícios contidos em Acordos, Convenções e Dissídios Coletivos de Trabalho e o disposto no art. 6º da IN 5/2017
C37: C | D37: Assistência Médica e Familiar | F37: =HLOOKUP($B$5,'Dados Gerais'!$D$6:$BI$103,98) -> 0
C38: D | D38: Outros (Seguro de vida, auxílio funeral, auxílio odontológico e auxílio creche) | F38: =HLOOKUP($B$5,'Dados Gerais'!$D$6:$BI$121,115) -> 13.95
D40: QUADRO-RESUMO DO MÓDULO 2
D41: 2.1 - 13º Salário, Férias e Adicional de Férias - 13º Destacado - Calculado no Módulo 7 | E41: =SUM(E20:E21) -> 0.0303 | F41: =F20+F21 -> 67.41
D42: 2.2 - Encargos Previdenciários (GPS), Fundo de Garantia por Tempo de Serviço (FGTS) e Contribuições | E42: =SUM(E24:E32) -> 0.358 | F42: =SUM(F24:F32) -> 908.92
D43: 2.3 - Benefícios Mensais e Diários | F43: =SUM(F35:F38) -> 1463.92
D45: TOTAL DOS ENCARGOS E BENEFÍCIOS | F45: =SUM(F41:F43) -> 2440.25
B47: MÓDULO 3 - PREVISÃO PARA RESCISÃO | E47: Percentuais | F47: Valor
C48: A | D48: Aviso Prévio Indenizado (Art. 7º, inciso XXI, da CF/1988 e arts. 477, 487, §1º, e 491 da CLT) | E48: ='Encargos Sociais'!E36 -> 0.0035 | F48: =ROUND(E48*($F$16+$F$73+$F$41),2) -> 8.89 | H48: * Nota 1 - Base de cálculo - remuneração + ausências + 1/3 férias
C49: B | D49: Incidência do FGTS sobre o Aviso Prévio Indenizado (Súmula 305 TST) | E49: ='Encargos Sociais'!E37 -> 0.0003 | F49: 0.76
C50: C | D50: Multa do FGTS e Contribuição Social sobre o Aviso Prévio Indenizado (Art. 18, §1º, da Lei 8.036/1990 e art. 1º da LC nº 110/2001) | E50: ='Encargos Sociais'!E38 -> 0.0011 | F50: 2.79
C51: D | D51: Aviso Prévio Trabalhado (Art. 488, parágrafo único, CLT) | E51: ='Encargos Sociais'!E39 -> 0.0078 | F51: 19.8
C52: E | D52: Incidência de GPS, FGTS e outras contribuições sobre o Aviso Prévio Trabalhado | E52: ='Encargos Sociais'!E40 -> 0.0028 | F52: 7.11
C53: F | D53: Multa do FGTS e Contribuição Social sobre o Aviso Prévio Trabalhado | E53: ='Encargos Sociais'!E41 -> 0.0309 | F53: 78.45
D55: TOTAL DE PREVISÃO PARA RESCISÃO | F55: =SUM(F48:F53) -> 117.8
B57: MÓDULO 4 - CUSTO DO PROFISSIONAL AUSENTE | E57: Percentuais | F57: Valor
B58: Submódulo 4.1 - Ausências Legais
C59: A | D59: Férias (Arts. 129 e 130, inc. I, da CLT) | E59: ='Encargos Sociais'!E25 -> 0.0909 | F59: =ROUND(E59*$F$16,2) -> 202.23 | H59: * Nota 1 - O Módulo 4 refere-se às previsões para custear ausências do próprio profissional (titular do cargo)
C60: B | D60: Ausências Legais (Arts. 131 e 473 da CLT) | E60: ='Encargos Sociais'!E26 -> 0.0079 | F60: 17.58 | H60: * Nota 2 - As férias foram calculadas dividindo-se por 11, para comportar os 11 meses presentes e ainda o ausente do posto
C61: C | D61: Licença-Paternidade (Art. 7º, XIX, e art. 10, §1º, do ADCT, CF/1988 e Art. 1º, II, da Lei 11.770/2008) | E61: ='Encargos Sociais'!E27 -> 0.0008 | F61: 1.78
C62: D | D62: Ausência por Acidente de Trabalho (Art. 131, III, da CLT) | E62: ='Encargos Sociais'!E28 -> 0.0009 | F62: 2
C63: E | D63: Afastamento Maternidade (Art. 71 da Lei nº 8.213/1991) | E63: ='Encargos Sociais'!E29 -> 0.0033 | F63: 7.34
C64: F | D64: Auxílio Enfermidade - Doença (Art. 59 da Lei nº 8.213/1991) | E64: ='Encargos Sociais'!E30 -> 0.0071 | F64: 15.8
B66: Submódulo 4.2 - Intrajornada
C67: A | D67: Intervalo para repouso ou alimentação | E67: ='Encargos Sociais'!E33 -> 0 | F67: =ROUND(E67*$F$16,2) -> 0
D69: QUADRO-RESUMO DO MÓDULO 4 | F69: Valor
D70: 4.1 - Ausências Legais | E70: =SUM(E59:E64) -> 0.1109 | F70: =ROUND(E70*$F$16,2) -> 246.73
D71: 4.2 - Intrajornada | E71: =E67 -> 0 | F71: =ROUND(E71*$F$16,2) -> 0
D73: TOTAL DE PREVISÃO PARA RESCISÃO E INTERVALO INTRAJORNADA | F73: =SUM(F70:F71) -> 246.73
B75: MÓDULO 5 - INSUMOS DIVERSOS | F75: Valor
C76: A | D76: Uniformes - aquisição | F76: 0
C77: B | D77: Materiais de consumo relacionados ao posto - aquisição | F77: 0
C78: C | D78: Ferramentas relacionadas ao posto - remuneração da sua depreciação / manutenção | F78: 0
C79: D | D79: Equipamentos relacionados ao posto - remuneração da sua depreciação / manutenção | F79: 0
C80: E | D80: Equipamentos de Proteção Individual - EPI - aquisição | F80: ='EPI - Rel'!J119 -> 76.38
D82: TOTAL DE INSUMOS DIVERSOS | F82: =SUM(F76:F81) -> 76.38 | H82: * Nota - Valores mensais por empregado
B84: MÓDULO 6 - CUSTOS INDIRETOS, TRIBUTOS E LUCRO - BDI | E84: Percentuais | F84: Valor
C85: A | D85: Custos Indiretos | E85: ='BDI - Geral'!E7 -> 0.0357
C86: A.1 | D86: Administração Central | E86: ='BDI - Geral'!E8 -> 0.0303
C87: A.2 | D87: Seguros, Garantias e Riscos | E87: ='BDI - Geral'!E9 -> 0.0054
C88: B | D88: Lucro | E88: ='BDI - Geral'!E11 -> 0.04
C89: C | D89: Tributos | E89: =SUM(E90:E91) -> 0.124
C90: C.1 | D90: Tributos Federais (COFINS, PIS e CPRB) | E90: ='BDI - Geral'!E19 -> 0.074
C91: C.2 | D91: Tributos Distritais (ISS) | E91: ='BDI - Geral'!E24 -> 0.05
C92: D | D92: Despesas Financeiras | E92: ='BDI - Geral'!E14 -> 0.0051
D94: TOTAL DE BDI | E94: ='BDI - Geral'!E27 -> 0.2359 | F94: =ROUND(E94*E102,2) -> 1204.49
D96: QUADRO-RESUMO DO CUSTO MENSAL POR EMPREGADO - SEM O 13º | E96: Valor
D97: Módulo 1 - Composição da Remuneração | E97: =F16 -> 2224.77
D98: Módulo 2 - Encargos e Benefícios Anuais, Mensais e Diários | E98: =F45 -> 2440.25
D99: Módulo 3 - Provisão para Rescisão | E99: =F55 -> 117.8
D100: Módulo 4 - Custo de Reposição do Profissional Ausente | E100: =F73 -> 246.73
D101: Módulo 5 - Insumos Diversos | E101: =F82 -> 76.38
D102: SUBTOTAL (A+B+C+D+E) | E102: =SUM(E97:E101) -> 5105.93
D103: Módulo 6 - Custos Indiretos, Tributos e Lucro | E103: =F94 -> 1204.49
D105: TOTAL DO POSTO | E105: =SUM(E102:E103) -> 6310.42
B107: MÓDULO 7 - DESTAQUE DO MÓDULO 2 - 13º SALÁRIO | E107: Percentuais | F107: Valor
C108: A | D108: 13º Salário | E108: ='Encargos Sociais'!E32*12/11 -> 0.09087272727 | F108: =ROUND(E108*F$16,2) -> 202.17 | H108: * Nota 1 - Incluindo-se a reincidência das férias do substituto sobre o titular
C109: B | D109: Encargos Sociais sobre o 13º Salário - Taxa calculada no SUBMÓDULO 2.2 | E109: =SUM($E$24:$E$32) -> 0.358 | F109: =ROUND(E109*$F$108,2) -> 72.38 | H109: * Nota 2 - 13º e reflexos calculados à parte a fim de aprovisionamento
C110: C | D110: BDI sobre o 13º Salário - Taxa calculada no MÓDULO 6 | E110: =E94 -> 0.2359 | F110: =ROUND(E110*($F$108+$F$109),2) -> 64.77
D112: TOTAL DO DESTAQUE DO 13º SALÁRIO | F112: =SUM(F108:F110) -> 339.32
D114: QUADRO-RESUMO DO CUSTO MENSAL POR EMPREGADO | E114: Valor
D115: Custo total - sem o 13º Salário | E115: =ROUND(E105,2) -> 6310.42
D116: Destaque do 13º Salário (valor mensal) | E116: =ROUND(F112,2) -> 339.32
D118: TOTAL DO POSTO | E118: =E115+E116 -> 6649.74

Sheet 11
B2: PLANILHA DE ESTIMATIVA DE CUSTOS
B3: Padrão IN 05/2017 e IN 07/2018 - MPDG
B5: 11 | D5: =HLOOKUP($B$5,'Dados Gerais'!$D$6:$BI$22,6) -> CONTROLADOR DE MATERIAIS | E5: QUANTIDADE | F5: =HLOOKUP($B$5,'Dados Gerais'!$D$6:$BI$22,10) -> 3
B6: CCT | D6: =HLOOKUP($B$5,'Dados Gerais'!$D$6:$BI$22,16) -> SINDUSCON/DF x STICOMBE/DF CCT 2024/2025 - 2º TA - N.º DF000276/2024 | E6: DATA-BASE | F6: =HLOOKUP($B$5,'Dados Gerais'!$D$6:$BI$22,17) -> 2024-05-01
B8: MÓDULO 1 - COMPOSIÇÃO DA REMUNERAÇÃO | F8: Valor
C9: A | D9: Salário-Base | F9: =HLOOKUP($B$5,'Dados Gerais'!$D$6:$BI$22,8) -> 3500
C10: B | D10: Adicional de Periculosidade | F10: =HLOOKUP($B$5,'Dados Gerais'!$D$6:$BI$39,26) -> 0
C11: C | D11: Adicional de Insalubridade | F11: =HLOOKUP($B$5,'Dados Gerais'!$D$6:$BI$39,32) -> 0
C12: D | D12: Adicional Noturno | F12: =HLOOKUP($B$5,'Dados Gerais'!$D$6:$BI$52,47) -> 0 | H12: * Nota 1 - O Módulo 1 refere-se ao valor mensal devido ao empregado pela prestação do serviço no período de 12 meses.
C13: E | D13: Adicional de Hora Extra | F13: =HLOOKUP($B$5,'Dados Gerais'!$D$6:$BI$69,64) -> 0 | H13: * Nota 2 - O adicional de hora extra no feriado trabalhado foi suprimido pela Lei 13.467/17
C14: F | D14: Outros (adicional de sobreaviso) | F14: =HLOOKUP($B$5,'Dados Gerais'!$D$6:$BI$69,34) -> 0 | H14: * Nota 3 - ART. 7º, § 2º, DA LEI Nº 605/49.Sendo mensalista o obreiro, o adicional noturno pago de forma fixa já é considerado integrado para os efeitos do pagamento do repouso semanal remunerado, nos termos do art. 7º, § 2º, da Lei nº 605/49.
D16: TOTAL DA REMUNERAÇÃO | F16: =SUM(F9:F14) -> 3500
B18: MÓDULO 2 - ENCARGOS E BENEFÍCIOS ANUAIS, MENSAIS E DIÁRIOS | E18: Percentuais | F18: Valor
B19: Submódulo 2.1 - 13º Salário, Férias e Adicional de Férias
C20: A | D20: 13º Salário - Calculado no Módulo 7 - Destacado | E20: 0 | F20: =ROUND(E20*F$16,2) -> 0
C21: B | D21: Adicional de Férias | E21: ='[1]Encargos Sociais'!E31 -> 0.0303 | F21: =ROUND(E21*(F$16),2) -> 106.05 | H21: * Nota 1 - O adicional de férias foi calculado dividindo-se por 11, para comportar os 11 meses presentes e ainda o ausente do posto
B23: Submódulo 2.2 - Encargos Previdenciários (GPS), Fundo de Garantia por Tempo de Serviço (FGTS) e Outras Contribuições
C24: A | D24: INSS (art. 22, inciso I, Lei nº 8.212/91) | E24: ='Encargos Sociais'!E14 -> 0.2 | F24: =ROUND(E24*($F$16+$F$41+$F$73),2) -> 798.84 | H24: * Nota 1 - Os percentuais dos encargos previdenciários, do FGTS e demais contribuições são estabelecidos por legislação vigente.
C25: B | D25: Salário Educação (art. 3º, inciso I, Decreto nº 87.043/82) | E25: ='Encargos Sociais'!E15 -> 0.025 | F25: =ROUND(E25*($F$16+$F$41+$F$73),2) -> 99.86 | H25: * Nota 2 - O SAT, a depender do grau de risco do serviço, irá variar entre 1%, para risco leve, de 2%, para risco médio, e de 3% para risco grave.
C26: C | D26: SAT/RAT (art. 22, II, Lei 8.212/91 e Anexo V, Decreto 6.042/07) - Enquadramento 8211-3/00 | E26: ='Encargos Sociais'!E16 -> 0.01 | F26: 39.94 | H26: * Nota 3 - Base de cálculo - remuneração + ausências + terço constitucional (férias)
C27: D | D27: SESC ou SESI (art. 30, Lei nº 8.036/90 e art. 1º, Lei 8.154/90) | E27: ='Encargos Sociais'!E17 -> 0.015 | F27: 59.91
C28: E | D28: SENAI ou SENAC (Decreto nº 2.318/86) | E28: ='Encargos Sociais'!E18 -> 0.01 | F28: 39.94
C29: F | D29: SEBRAE (§ 3º, art. 8º, Lei 8.029/90, alterada pela Lei nº 8.154/90) | E29: ='Encargos Sociais'!E19 -> 0.006 | F29: 23.97
C30: G | D30: INCRA (art. 1º, I, Decreto Lei 1.146/70 e Lei 7.787, de 30/06/89) | E30: ='Encargos Sociais'!E20 -> 0.002 | F30: 7.99
C31: H | D31: FGTS (Lei Complementar nº 110/01 e art. 30, Lei nº 8.036/90) | E31: ='Encargos Sociais'!E21 -> 0.08 | F31: 319.54
C32: I | D32: SECONCI (Convenções Coletivas de Trabalho da construção) | E32: ='Encargos Sociais'!E22 -> 0.01 | F32: 39.94
B34: Submódulo 2.3 - Benefícios Mensais e Diários
C35: A | D35: Auxílio Transporte | F35: =HLOOKUP($B$5,'Dados Gerais'!$D$6:$BI$95,83) -> 539.97 | H35: * Nota 1 - O valor informado deverá ser o custo real do benefício (descontado o valor eventualmente pago pelo empregado).
C36: B | D36: Auxílio Alimentação | F36: =HLOOKUP($B$5,'Dados Gerais'!$D$6:$BI$95,90) -> 910 | H36: * Nota 2 - Observar a previsão dos benefícios contidos em Acordos, Convenções e Dissídios Coletivos de Trabalho e o disposto no art. 6º da IN 5/2017
C37: C | D37: Assistência Médica e Familiar | F37: =HLOOKUP($B$5,'Dados Gerais'!$D$6:$BI$103,98) -> 0
C38: D | D38: Outros (Seguro de vida, auxílio funeral, auxílio odontológico e auxílio creche) | F38: =HLOOKUP($B$5,'Dados Gerais'!$D$6:$BI$121,115) -> 13.95
D40: QUADRO-RESUMO DO MÓDULO 2
D41: 2.1 - 13º Salário, Férias e Adicional de Férias - 13º Destacado - Calculado no Módulo 7 | E41: =SUM(E20:E21) -> 0.0303 | F41: =F20+F21 -> 106.05
D42: 2.2 - Encargos Previdenciários (GPS), Fundo de Garantia por Tempo de Serviço (FGTS) e Contribuições | E42: =SUM(E24:E32) -> 0.358 | F42: =SUM(F24:F32) -> 1429.93
D43: 2.3 - Benefícios Mensais e Diários | F43: =SUM(F35:F38) -> 1463.92
D45: TOTAL DOS ENCARGOS E BENEFÍCIOS | F45: =SUM(F41:F43) -> 2999.9
B47: MÓDULO 3 - PREVISÃO PARA RESCISÃO | E47: Percentuais | F47: Valor
C48: A | D48: Aviso Prévio Indenizado (Art. 7º, inciso XXI, da CF/1988 e arts. 477, 487, §1º, e 491 da CLT) | E48: ='Encargos Sociais'!E36 -> 0.0035 | F48: =ROUND(E48*($F$16+$F$73+$F$41),2) -> 13.98 | H48: * Nota 1 - Base de cálculo - remuneração + ausências + 1/3 férias
C49: B | D49: Incidência do FGTS sobre o Aviso Prévio Indenizado (Súmula 305 TST) | E49: ='Encargos Sociais'!E37 -> 0.0003 | F49: 1.2
C50: C | D50: Multa do FGTS e Contribuição Social sobre o Aviso Prévio Indenizado (Art. 18, §1º, da Lei 8.036/1990 e art. 1º da LC nº 110/2001) | E50: ='Encargos Sociais'!E38 -> 0.0011 | F50: 4.39
C51: D | D51: Aviso Prévio Trabalhado (Art. 488, parágrafo único, CLT) | E51: ='Encargos Sociais'!E39 -> 0.0078 | F51: 31.15
C52: E | D52: Incidência de GPS, FGTS e outras contribuições sobre o Aviso Prévio Trabalhado | E52: ='Encargos Sociais'!E40 -> 0.0028 | F52: 11.18
C53: F | D53: Multa do FGTS e Contribuição Social sobre o Aviso Prévio Trabalhado | E53: ='Encargos Sociais'!E41 -> 0.0309 | F53: 123.42
D55: TOTAL DE PREVISÃO PARA RESCISÃO | F55: =SUM(F48:F53) -> 185.32
B57: MÓDULO 4 - CUSTO DO PROFISSIONAL AUSENTE | E57: Percentuais | F57: Valor
B58: Submódulo 4.1 - Ausências Legais
C59: A | D59: Férias (Arts. 129 e 130, inc. I, da CLT) | E59: ='Encargos Sociais'!E25 -> 0.0909 | F59: =ROUND(E59*$F$16,2) -> 318.15 | H59: * Nota 1 - O Módulo 4 refere-se às previsões para custear ausências do próprio profissional (titular do cargo)
C60: B | D60: Ausências Legais (Arts. 131 e 473 da CLT) | E60: ='Encargos Sociais'!E26 -> 0.0079 | F60: 27.65 | H60: * Nota 2 - As férias foram calculadas dividindo-se por 11, para comportar os 11 meses presentes e ainda o ausente do posto
C61: C | D61: Licença-Paternidade (Art. 7º, XIX, e art. 10, §1º, do ADCT, CF/1988 e Art. 1º, II, da Lei 11.770/2008) | E61: ='Encargos Sociais'!E27 -> 0.0008 | F61: 2.8
C62: D | D62: Ausência por Acidente de Trabalho (Art. 131, III, da CLT) | E62: ='Encargos Sociais'!E28 -> 0.0009 | F62: 3.15
C63: E | D63: Afastamento Maternidade (Art. 71 da Lei nº 8.213/1991) | E63: ='Encargos Sociais'!E29 -> 0.0033 | F63: 11.55
C64: F | D64: Auxílio Enfermidade - Doença (Art. 59 da Lei nº 8.213/1991) | E64: ='Encargos Sociais'!E30 -> 0.0071 | F64: 24.85
B66: Submódulo 4.2 - Intrajornada
C67: A | D67: Intervalo para repouso ou alimentação | E67: ='Encargos Sociais'!E33 -> 0 | F67: =ROUND(E67*$F$16,2) -> 0
D69: QUADRO-RESUMO DO MÓDULO 4 | F69: Valor
D70: 4.1 - Ausências Legais | E70: =SUM(E59:E64) -> 0.1109 | F70: =ROUND(E70*$F$16,2) -> 388.15
D71: 4.2 - Intrajornada | E71: =E67 -> 0 | F71: =ROUND(E71*$F$16,2) -> 0
D73: TOTAL DE PREVISÃO PARA RESCISÃO E INTERVALO INTRAJORNADA | F73: =SUM(F70:F71) -> 388.15
B75: MÓDULO 5 - INSUMOS DIVERSOS | F75: Valor
C76: A | D76: Uniformes - aquisição | F76: 0
C77: B | D77: Materiais de consumo relacionados ao posto - aquisição | F77: 0
C78: C | D78: Ferramentas relacionadas ao posto - remuneração da sua depreciação / manutenção | F78: 0
C79: D | D79: Equipamentos relacionados ao posto - remuneração da sua depreciação / manutenção | F79: 0
C80: E | D80: Equipamentos de Proteção Individual - EPI - aquisição | F80: ='EPI - Rel'!J165 -> 51.48
D82: TOTAL DE INSUMOS DIVERSOS | F82: =SUM(F76:F81) -> 51.48 | H82: * Nota - Valores mensais por empregado
B84: MÓDULO 6 - CUSTOS INDIRETOS, TRIBUTOS E LUCRO - BDI | E84: Percentuais | F84: Valor
C85: A | D85: Custos Indiretos | E85: ='BDI - Geral'!E7 -> 0.0357
C86: A.1 | D86: Administração Central | E86: ='BDI - Geral'!E8 -> 0.0303
C87: A.2 | D87: Seguros, Garantias e Riscos | E87: ='BDI - Geral'!E9 -> 0.0054
C88: B | D88: Lucro | E88: ='BDI - Geral'!E11 -> 0.04
C89: C | D89: Tributos | E89: =SUM(E90:E91) -> 0.124
C90: C.1 | D90: Tributos Federais (COFINS, PIS e CPRB) | E90: ='BDI - Geral'!E19 -> 0.074
C91: C.2 | D91: Tributos Distritais (ISS) | E91: ='BDI - Geral'!E24 -> 0.05
C92: D | D92: Despesas Financeiras | E92: ='BDI - Geral'!E14 -> 0.0051
D94: TOTAL DE BDI | E94: ='BDI - Geral'!E27 -> 0.2359 | F94: =ROUND(E94*E102,2) -> 1680.75
D96: QUADRO-RESUMO DO CUSTO MENSAL POR EMPREGADO - SEM O 13º | E96: Valor
D97: Módulo 1 - Composição da Remuneração | E97: =F16 -> 3500
D98: Módulo 2 - Encargos e Benefícios Anuais, Mensais e Diários | E98: =F45 -> 2999.9
D99: Módulo 3 - Provisão para Rescisão | E99: =F55 -> 185.32
D100: Módulo 4 - Custo de Reposição do Profissional Ausente | E100: =F73 -> 388.15
D101: Módulo 5 - Insumos Diversos | E101: =F82 -> 51.48
D102: SUBTOTAL (A+B+C+D+E) | E102: =SUM(E97:E101) -> 7124.85
D103: Módulo 6 - Custos Indiretos, Tributos e Lucro | E103: =F94 -> 1680.75
D105: TOTAL DO POSTO | E105: =SUM(E102:E103) -> 8805.6
B107: MÓDULO 7 - DESTAQUE DO MÓDULO 2 - 13º SALÁRIO | E107: Percentuais | F107: Valor
C108: A | D108: 13º Salário | E108: ='Encargos Sociais'!E32*12/11 -> 0.09087272727 | F108: =ROUND(E108*F$16,2) -> 318.05 | H108: * Nota 1 - Incluindo-se a reincidência das férias do substituto sobre o titular
C109: B | D109: Encargos Sociais sobre o 13º Salário - Taxa calculada no SUBMÓDULO 2.2 | E109: =SUM($E$24:$E$32) -> 0.358 | F109: =ROUND(E109*$F$108,2) -> 113.86 | H109: * Nota 2 - 13º e reflexos calculados à parte a fim de aprovisionamento
C110: C | D110: BDI sobre o 13º Salário - Taxa calculada no MÓDULO 6 | E110: =E94 -> 0.2359 | F110: =ROUND(E110*($F$108+$F$109),2) -> 101.89
D112: TOTAL DO DESTAQUE DO 13º SALÁRIO | F112: =SUM(F108:F110) -> 533.8
D114: QUADRO-RESUMO DO CUSTO MENSAL POR EMPREGADO | E114: Valor
D115: Custo total - sem o 13º Salário | E115: =ROUND(E105,2) -> 8805.6
D116: Destaque do 13º Salário (valor mensal) | E116: =ROUND(F112,2) -> 533.8
D118: TOTAL DO POSTO | E118: =E115+E116 -> 9339.4

Sheet 12
B2: PLANILHA DE ESTIMATIVA DE CUSTOS
B3: Padrão IN 05/2017 e IN 07/2018 - MPDG
B5: 12 | D5: =HLOOKUP($B$5,'Dados Gerais'!$D$6:$BI$22,6) -> COORDENADOR DE FACILITIES | E5: QUANTIDADE | F5: =HLOOKUP($B$5,'Dados Gerais'!$D$6:$BI$22,10) -> 5
B6: CCT | D6: =HLOOKUP($B$5,'Dados Gerais'!$D$6:$BI$22,16) -> SINDUSCON/DF x STICOMBE/DF CCT 2024/2025 - 2º TA - N.º DF000276/2024 | E6: DATA-BASE | F6: =HLOOKUP($B$5,'Dados Gerais'!$D$6:$BI$22,17) -> 2024-05-01
B8: MÓDULO 1 - COMPOSIÇÃO DA REMUNERAÇÃO | F8: Valor
C9: A | D9: Salário-Base | F9: =HLOOKUP($B$5,'Dados Gerais'!$D$6:$BI$22,8) -> 9424.87
C10: B | D10: Adicional de Periculosidade | F10: =HLOOKUP($B$5,'Dados Gerais'!$D$6:$BI$39,26) -> 0
C11: C | D11: Adicional de Insalubridade | F11: =HLOOKUP($B$5,'Dados Gerais'!$D$6:$BI$39,32) -> 0
C12: D | D12: Adicional Noturno | F12: =HLOOKUP($B$5,'Dados Gerais'!$D$6:$BI$52,47) -> 0 | H12: * Nota 1 - O Módulo 1 refere-se ao valor mensal devido ao empregado pela prestação do serviço no período de 12 meses.
C13: E | D13: Adicional de Hora Extra | F13: =HLOOKUP($B$5,'Dados Gerais'!$D$6:$BI$69,64) -> 0 | H13: * Nota 2 - O adicional de hora extra no feriado trabalhado foi suprimido pela Lei 13.467/17
C14: F | D14: Outros (adicional de sobreaviso) | F14: =HLOOKUP($B$5,'Dados Gerais'!$D$6:$BI$69,34) -> 0 | H14: * Nota 3 - ART. 7º, § 2º, DA LEI Nº 605/49.Sendo mensalista o obreiro, o adicional noturno pago de forma fixa já é considerado integrado para os efeitos do pagamento do repouso semanal remunerado, nos termos do art. 7º, § 2º, da Lei nº 605/49.
D16: TOTAL DA REMUNERAÇÃO | F16: =SUM(F9:F14) -> 9424.87
B18: MÓDULO 2 - ENCARGOS E BENEFÍCIOS ANUAIS, MENSAIS E DIÁRIOS | E18: Percentuais | F18: Valor
B19: Submódulo 2.1 - 13º Salário, Férias e Adicional de Férias
C20: A | D20: 13º Salário - Calculado no Módulo 7 - Destacado | E20: 0 | F20: =ROUND(E20*F$16,2) -> 0
C21: B | D21: Adicional de Férias | E21: ='[1]Encargos Sociais'!E31 -> 0.0303 | F21: =ROUND(E21*(F$16),2) -> 285.57 | H21: * Nota 1 - O adicional de férias foi calculado dividindo-se por 11, para comportar os 11 meses presentes e ainda o ausente do posto
B23: Submódulo 2.2 - Encargos Previdenciários (GPS), Fundo de Garantia por Tempo de Serviço (FGTS) e Outras Contribuições
C24: A | D24: INSS (art. 22, inciso I, Lei nº 8.212/91) | E24: ='Encargos Sociais'!E14 -> 0.2 | F24: =ROUND(E24*($F$16+$F$41+$F$73),2) -> 2151.13 | H24: * Nota 1 - Os percentuais dos encargos previdenciários, do FGTS e demais contribuições são estabelecidos por legislação vigente.
C25: B | D25: Salário Educação (art. 3º, inciso I, Decreto nº 87.043/82) | E25: ='Encargos Sociais'!E15 -> 0.025 | F25: =ROUND(E25*($F$16+$F$41+$F$73),2) -> 268.89 | H25: * Nota 2 - O SAT, a depender do grau de risco do serviço, irá variar entre 1%, para risco leve, de 2%, para risco médio, e de 3% para risco grave.
C26: C | D26: SAT/RAT (art. 22, II, Lei 8.212/91 e Anexo V, Decreto 6.042/07) - Enquadramento 8211-3/00 | E26: ='Encargos Sociais'!E16 -> 0.01 | F26: 107.56 | H26: * Nota 3 - Base de cálculo - remuneração + ausências + terço constitucional (férias)
C27: D | D27: SESC ou SESI (art. 30, Lei nº 8.036/90 e art. 1º, Lei 8.154/90) | E27: ='Encargos Sociais'!E17 -> 0.015 | F27: 161.33
C28: E | D28: SENAI ou SENAC (Decreto nº 2.318/86) | E28: ='Encargos Sociais'!E18 -> 0.01 | F28: 107.56
C29: F | D29: SEBRAE (§ 3º, art. 8º, Lei 8.029/90, alterada pela Lei nº 8.154/90) | E29: ='Encargos Sociais'!E19 -> 0.006 | F29: 64.53
C30: G | D30: INCRA (art. 1º, I, Decreto Lei 1.146/70 e Lei 7.787, de 30/06/89) | E30: ='Encargos Sociais'!E20 -> 0.002 | F30: 21.51
C31: H | D31: FGTS (Lei Complementar nº 110/01 e art. 30, Lei nº 8.036/90) | E31: ='Encargos Sociais'!E21 -> 0.08 | F31: 860.45
C32: I | D32: SECONCI (Convenções Coletivas de Trabalho da construção) | E32: ='Encargos Sociais'!E22 -> 0.01 | F32: 107.56
B34: Submódulo 2.3 - Benefícios Mensais e Diários
C35: A | D35: Auxílio Transporte | F35: =HLOOKUP($B$5,'Dados Gerais'!$D$6:$BI$95,83) -> 539.97 | H35: * Nota 1 - O valor informado deverá ser o custo real do benefício (descontado o valor eventualmente pago pelo empregado).
C36: B | D36: Auxílio Alimentação | F36: =HLOOKUP($B$5,'Dados Gerais'!$D$6:$BI$95,90) -> 910 | H36: * Nota 2 - Observar a previsão dos benefícios contidos em Acordos, Convenções e Dissídios Coletivos de Trabalho e o disposto no art. 6º da IN 5/2017
C37: C | D37: Assistência Médica e Familiar | F37: =HLOOKUP($B$5,'Dados Gerais'!$D$6:$BI$103,98) -> 0
C38: D | D38: Outros (Seguro de vida, auxílio funeral, auxílio odontológico e auxílio creche) | F38: =HLOOKUP($B$5,'Dados Gerais'!$D$6:$BI$121,115) -> 13.95
D40: QUADRO-RESUMO DO MÓDULO 2
D41: 2.1 - 13º Salário, Férias e Adicional de Férias - 13º Destacado - Calculado no Módulo 7 | E41: =SUM(E20:E21) -> 0.0303 | F41: =F20+F21 -> 285.57
D42: 2.2 - Encargos Previdenciários (GPS), Fundo de Garantia por Tempo de Serviço (FGTS) e Contribuições | E42: =SUM(E24:E32) -> 0.358 | F42: =SUM(F24:F32) -> 3850.52
D43: 2.3 - Benefícios Mensais e Diários | F43: =SUM(F35:F38) -> 1463.92
D45: TOTAL DOS ENCARGOS E BENEFÍCIOS | F45: =SUM(F41:F43) -> 5600.01
B47: MÓDULO 3 - PREVISÃO PARA RESCISÃO | E47: Percentuais | F47: Valor
C48: A | D48: Aviso Prévio Indenizado (Art. 7º, inciso XXI, da CF/1988 e arts. 477, 487, §1º, e 491 da CLT) | E48: ='Encargos Sociais'!E36 -> 0.0035 | F48: =ROUND(E48*($F$16+$F$73+$F$41),2) -> 37.64 | H48: * Nota 1 - Base de cálculo - remuneração + ausências + 1/3 férias
C49: B | D49: Incidência do FGTS sobre o Aviso Prévio Indenizado (Súmula 305 TST) | E49: ='Encargos Sociais'!E37 -> 0.0003 | F49: 3.23
C50: C | D50: Multa do FGTS e Contribuição Social sobre o Aviso Prévio Indenizado (Art. 18, §1º, da Lei 8.036/1990 e art. 1º da LC nº 110/2001) | E50: ='Encargos Sociais'!E38 -> 0.0011 | F50: 11.83
C51: D | D51: Aviso Prévio Trabalhado (Art. 488, parágrafo único, CLT) | E51: ='Encargos Sociais'!E39 -> 0.0078 | F51: 83.89
C52: E | D52: Incidência de GPS, FGTS e outras contribuições sobre o Aviso Prévio Trabalhado | E52: ='Encargos Sociais'!E40 -> 0.0028 | F52: 30.12
C53: F | D53: Multa do FGTS e Contribuição Social sobre o Aviso Prévio Trabalhado | E53: ='Encargos Sociais'!E41 -> 0.0309 | F53: 332.35
D55: TOTAL DE PREVISÃO PARA RESCISÃO | F55: =SUM(F48:F53) -> 499.06
B57: MÓDULO 4 - CUSTO DO PROFISSIONAL AUSENTE | E57: Percentuais | F57: Valor
B58: Submódulo 4.1 - Ausências Legais
C59: A | D59: Férias (Arts. 129 e 130, inc. I, da CLT) | E59: ='Encargos Sociais'!E25 -> 0.0909 | F59: =ROUND(E59*$F$16,2) -> 856.72 | H59: * Nota 1 - O Módulo 4 refere-se às previsões para custear ausências do próprio profissional (titular do cargo)
C60: B | D60: Ausências Legais (Arts. 131 e 473 da CLT) | E60: ='Encargos Sociais'!E26 -> 0.0079 | F60: 74.46 | H60: * Nota 2 - As férias foram calculadas dividindo-se por 11, para comportar os 11 meses presentes e ainda o ausente do posto
C61: C | D61: Licença-Paternidade (Art. 7º, XIX, e art. 10, §1º, do ADCT, CF/1988 e Art. 1º, II, da Lei 11.770/2008) | E61: ='Encargos Sociais'!E27 -> 0.0008 | F61: 7.54
C62: D | D62: Ausência por Acidente de Trabalho (Art. 131, III, da CLT) | E62: ='Encargos Sociais'!E28 -> 0.0009 | F62: 8.48
C63: E | D63: Afastamento Maternidade (Art. 71 da Lei nº 8.213/1991) | E63: ='Encargos Sociais'!E29 -> 0.0033 | F63: 31.1
C64: F | D64: Auxílio Enfermidade - Doença (Art. 59 da Lei nº 8.213/1991) | E64: ='Encargos Sociais'!E30 -> 0.0071 | F64: 66.92
B66: Submódulo 4.2 - Intrajornada
C67: A | D67: Intervalo para repouso ou alimentação | E67: ='Encargos Sociais'!E33 -> 0 | F67: =ROUND(E67*$F$16,2) -> 0
D69: QUADRO-RESUMO DO MÓDULO 4 | F69: Valor
D70: 4.1 - Ausências Legais | E70: =SUM(E59:E64) -> 0.1109 | F70: =ROUND(E70*$F$16,2) -> 1045.22
D71: 4.2 - Intrajornada | E71: =E67 -> 0 | F71: =ROUND(E71*$F$16,2) -> 0
D73: TOTAL DE PREVISÃO PARA RESCISÃO E INTERVALO INTRAJORNADA | F73: =SUM(F70:F71) -> 1045.22
B75: MÓDULO 5 - INSUMOS DIVERSOS | F75: Valor
C76: A | D76: Uniformes - aquisição | F76: 0
C77: B | D77: Materiais de consumo relacionados ao posto - aquisição | F77: 0
C78: C | D78: Ferramentas relacionadas ao posto - remuneração da sua depreciação / manutenção | F78: 0
C79: D | D79: Equipamentos relacionados ao posto - remuneração da sua depreciação / manutenção | F79: 0
C80: E | D80: Equipamentos de Proteção Individual - EPI - aquisição | F80: 0
D82: TOTAL DE INSUMOS DIVERSOS | F82: =SUM(F76:F81) -> 0 | H82: * Nota - Valores mensais por empregado
B84: MÓDULO 6 - CUSTOS INDIRETOS, TRIBUTOS E LUCRO - BDI | E84: Percentuais | F84: Valor
C85: A | D85: Custos Indiretos | E85: ='BDI - Geral'!E7 -> 0.0357
C86: A.1 | D86: Administração Central | E86: ='BDI - Geral'!E8 -> 0.0303
C87: A.2 | D87: Seguros, Garantias e Riscos | E87: ='BDI - Geral'!E9 -> 0.0054
C88: B | D88: Lucro | E88: ='BDI - Geral'!E11 -> 0.04
C89: C | D89: Tributos | E89: =SUM(E90:E91) -> 0.124
C90: C.1 | D90: Tributos Federais (COFINS, PIS e CPRB) | E90: ='BDI - Geral'!E19 -> 0.074
C91: C.2 | D91: Tributos Distritais (ISS) | E91: ='BDI - Geral'!E24 -> 0.05
C92: D | D92: Despesas Financeiras | E92: ='BDI - Geral'!E14 -> 0.0051
D94: TOTAL DE BDI | E94: ='BDI - Geral'!E27 -> 0.2359 | F94: =ROUND(E94*E102,2) -> 3908.66
D96: QUADRO-RESUMO DO CUSTO MENSAL POR EMPREGADO - SEM O 13º | E96: Valor
D97: Módulo 1 - Composição da Remuneração | E97: =F16 -> 9424.87
D98: Módulo 2 - Encargos e Benefícios Anuais, Mensais e Diários | E98: =F45 -> 5600.01
D99: Módulo 3 - Provisão para Rescisão | E99: =F55 -> 499.06
D100: Módulo 4 - Custo de Reposição do Profissional Ausente | E100: =F73 -> 1045.22
D101: Módulo 5 - Insumos Diversos | E101: =F82 -> 0
D102: SUBTOTAL (A+B+C+D+E) | E102: =SUM(E97:E101) -> 16569.16
D103: Módulo 6 - Custos Indiretos, Tributos e Lucro | E103: =F94 -> 3908.66
D105: TOTAL DO POSTO | E105: =SUM(E102:E103) -> 20477.82
B107: MÓDULO 7 - DESTAQUE DO MÓDULO 2 - 13º SALÁRIO | E107: Percentuais | F107: Valor
C108: A | D108: 13º Salário | E108: ='Encargos Sociais'!E32*12/11 -> 0.09087272727 | F108: =ROUND(E108*F$16,2) -> 856.46 | H108: * Nota 1 - Incluindo-se a reincidência das férias do substituto sobre o titular
C109: B | D109: Encargos Sociais sobre o 13º Salário - Taxa calculada no SUBMÓDULO 2.2 | E109: =SUM($E$24:$E$32) -> 0.358 | F109: =ROUND(E109*$F$108,2) -> 306.61 | H109: * Nota 2 - 13º e reflexos calculados à parte a fim de aprovisionamento
C110: C | D110: BDI sobre o 13º Salário - Taxa calculada no MÓDULO 6 | E110: =E94 -> 0.2359 | F110: =ROUND(E110*($F$108+$F$109),2) -> 274.37
D112: TOTAL DO DESTAQUE DO 13º SALÁRIO | F112: =SUM(F108:F110) -> 1437.44
D114: QUADRO-RESUMO DO CUSTO MENSAL POR EMPREGADO | E114: Valor
D115: Custo total - sem o 13º Salário | E115: =ROUND(E105,2) -> 20477.82
D116: Destaque do 13º Salário (valor mensal) | E116: =ROUND(F112,2) -> 1437.44
D118: TOTAL DO POSTO | E118: =E115+E116 -> 21915.26

Sheet 13
B2: PLANILHA DE ESTIMATIVA DE CUSTOS
B3: Padrão IN 05/2017 e IN 07/2018 - MPDG
B5: 13 | D5: =HLOOKUP($B$5,'Dados Gerais'!$D$6:$BI$22,6) -> OPERADOR DE CENTRAL DE DETECÇÃO E ALARME DE INCÊNDIO - PLANTONISTA DIURNO | E5: QUANTIDADE | F5: =HLOOKUP($B$5,'Dados Gerais'!$D$6:$BI$22,10) -> 4
B6: CCT | D6: =HLOOKUP($B$5,'Dados Gerais'!$D$6:$BI$22,16) -> SINDUSCON/DF x STICOMBE/DF CCT 2024/2025 - 2º TA - N.º DF000276/2024 | E6: DATA-BASE | F6: =HLOOKUP($B$5,'Dados Gerais'!$D$6:$BI$22,17) -> 2024-05-01
B8: MÓDULO 1 - COMPOSIÇÃO DA REMUNERAÇÃO | F8: Valor
C9: A | D9: Salário-Base | F9: =HLOOKUP($B$5,'Dados Gerais'!$D$6:$BI$22,8) -> 2933.92
C10: B | D10: Adicional de Periculosidade | F10: =HLOOKUP($B$5,'Dados Gerais'!$D$6:$BI$39,26) -> 880.18
C11: C | D11: Adicional de Insalubridade | F11: =HLOOKUP($B$5,'Dados Gerais'!$D$6:$BI$39,32) -> 0
C12: D | D12: Adicional Noturno | F12: =HLOOKUP($B$5,'Dados Gerais'!$D$6:$BI$52,47) -> 0 | H12: * Nota 1 - O Módulo 1 refere-se ao valor mensal devido ao empregado pela prestação do serviço no período de 12 meses.
C13: E | D13: Adicional de Hora Extra | F13: =HLOOKUP($B$5,'Dados Gerais'!$D$6:$BI$69,64) -> 200.04 | H13: * Nota 2 - O adicional de hora extra no feriado trabalhado foi suprimido pela Lei 13.467/17
C14: F | D14: Outros (adicional de sobreaviso) | F14: =HLOOKUP($B$5,'Dados Gerais'!$D$6:$BI$69,34) -> 0 | H14: * Nota 3 - ART. 7º, § 2º, DA LEI Nº 605/49.Sendo mensalista o obreiro, o adicional noturno pago de forma fixa já é considerado integrado para os efeitos do pagamento do repouso semanal remunerado, nos termos do art. 7º, § 2º, da Lei nº 605/49.
D16: TOTAL DA REMUNERAÇÃO | F16: =SUM(F9:F14) -> 4014.14
B18: MÓDULO 2 - ENCARGOS E BENEFÍCIOS ANUAIS, MENSAIS E DIÁRIOS | E18: Percentuais | F18: Valor
B19: Submódulo 2.1 - 13º Salário, Férias e Adicional de Férias
C20: A | D20: 13º Salário - Calculado no Módulo 7 - Destacado | E20: 0 | F20: =ROUND(E20*F$16,2) -> 0
C21: B | D21: Adicional de Férias | E21: ='[1]Encargos Sociais'!E31 -> 0.0303 | F21: =ROUND(E21*(F$16),2) -> 121.63 | H21: * Nota 1 - O adicional de férias foi calculado dividindo-se por 11, para comportar os 11 meses presentes e ainda o ausente do posto
B23: Submódulo 2.2 - Encargos Previdenciários (GPS), Fundo de Garantia por Tempo de Serviço (FGTS) e Outras Contribuições
C24: A | D24: INSS (art. 22, inciso I, Lei nº 8.212/91) | E24: ='Encargos Sociais'!E14 -> 0.2 | F24: =ROUND(E24*($F$16+$F$41+$F$73),2) -> 942.95 | H24: * Nota 1 - Os percentuais dos encargos previdenciários, do FGTS e demais contribuições são estabelecidos por legislação vigente.
C25: B | D25: Salário Educação (art. 3º, inciso I, Decreto nº 87.043/82) | E25: ='Encargos Sociais'!E15 -> 0.025 | F25: =ROUND(E25*($F$16+$F$41+$F$73),2) -> 117.87 | H25: * Nota 2 - O SAT, a depender do grau de risco do serviço, irá variar entre 1%, para risco leve, de 2%, para risco médio, e de 3% para risco grave.
C26: C | D26: SAT/RAT (art. 22, II, Lei 8.212/91 e Anexo V, Decreto 6.042/07) - Enquadramento 8211-3/00 | E26: ='Encargos Sociais'!E16 -> 0.01 | F26: 47.15 | H26: * Nota 3 - Base de cálculo - remuneração + ausências + terço constitucional (férias)
C27: D | D27: SESC ou SESI (art. 30, Lei nº 8.036/90 e art. 1º, Lei 8.154/90) | E27: ='Encargos Sociais'!E17 -> 0.015 | F27: 70.72
C28: E | D28: SENAI ou SENAC (Decreto nº 2.318/86) | E28: ='Encargos Sociais'!E18 -> 0.01 | F28: 47.15
C29: F | D29: SEBRAE (§ 3º, art. 8º, Lei 8.029/90, alterada pela Lei nº 8.154/90) | E29: ='Encargos Sociais'!E19 -> 0.006 | F29: 28.29
C30: G | D30: INCRA (art. 1º, I, Decreto Lei 1.146/70 e Lei 7.787, de 30/06/89) | E30: ='Encargos Sociais'!E20 -> 0.002 | F30: 9.43
C31: H | D31: FGTS (Lei Complementar nº 110/01 e art. 30, Lei nº 8.036/90) | E31: ='Encargos Sociais'!E21 -> 0.08 | F31: 377.18
C32: I | D32: SECONCI (Convenções Coletivas de Trabalho da construção) | E32: ='Encargos Sociais'!E22 -> 0.01 | F32: 47.15
B34: Submódulo 2.3 - Benefícios Mensais e Diários
C35: A | D35: Auxílio Transporte | F35: =HLOOKUP($B$5,'Dados Gerais'!$D$6:$BI$95,83) -> 311.52 | H35: * Nota 1 - O valor informado deverá ser o custo real do benefício (descontado o valor eventualmente pago pelo empregado).
C36: B | D36: Auxílio Alimentação | F36: =HLOOKUP($B$5,'Dados Gerais'!$D$6:$BI$95,90) -> 525 | H36: * Nota 2 - Observar a previsão dos benefícios contidos em Acordos, Convenções e Dissídios Coletivos de Trabalho e o disposto no art. 6º da IN 5/2017
C37: C | D37: Assistência Médica e Familiar | F37: =HLOOKUP($B$5,'Dados Gerais'!$D$6:$BI$103,98) -> 0
C38: D | D38: Outros (Seguro de vida, auxílio funeral, auxílio odontológico e auxílio creche) | F38: =HLOOKUP($B$5,'Dados Gerais'!$D$6:$BI$121,115) -> 13.95
D40: QUADRO-RESUMO DO MÓDULO 2
D41: 2.1 - 13º Salário, Férias e Adicional de Férias - 13º Destacado - Calculado no Módulo 7 | E41: =SUM(E20:E21) -> 0.0303 | F41: =F20+F21 -> 121.63
D42: 2.2 - Encargos Previdenciários (GPS), Fundo de Garantia por Tempo de Serviço (FGTS) e Contribuições | E42: =SUM(E24:E32) -> 0.358 | F42: =SUM(F24:F32) -> 1687.89
D43: 2.3 - Benefícios Mensais e Diários | F43: =SUM(F35:F38) -> 850.47
D45: TOTAL DOS ENCARGOS E BENEFÍCIOS | F45: =SUM(F41:F43) -> 2659.99
B47: MÓDULO 3 - PREVISÃO PARA RESCISÃO | E47: Percentuais | F47: Valor
C48: A | D48: Aviso Prévio Indenizado (Art. 7º, inciso XXI, da CF/1988 e arts. 477, 487, §1º, e 491 da CLT) | E48: ='Encargos Sociais'!E36 -> 0.0035 | F48: =ROUND(E48*($F$16+$F$73+$F$41),2) -> 16.5 | H48: * Nota 1 - Base de cálculo - remuneração + ausências + 1/3 férias
C49: B | D49: Incidência do FGTS sobre o Aviso Prévio Indenizado (Súmula 305 TST) | E49: ='Encargos Sociais'!E37 -> 0.0003 | F49: 1.41
C50: C | D50: Multa do FGTS e Contribuição Social sobre o Aviso Prévio Indenizado (Art. 18, §1º, da Lei 8.036/1990 e art. 1º da LC nº 110/2001) | E50: ='Encargos Sociais'!E38 -> 0.0011 | F50: 5.19
C51: D | D51: Aviso Prévio Trabalhado (Art. 488, parágrafo único, CLT) | E51: ='Encargos Sociais'!E39 -> 0.0078 | F51: 36.77
C52: E | D52: Incidência de GPS, FGTS e outras contribuições sobre o Aviso Prévio Trabalhado | E52: ='Encargos Sociais'!E40 -> 0.0028 | F52: 13.2
C53: F | D53: Multa do FGTS e Contribuição Social sobre o Aviso Prévio Trabalhado | E53: ='Encargos Sociais'!E41 -> 0.0309 | F53: 145.69
D55: TOTAL DE PREVISÃO PARA RESCISÃO | F55: =SUM(F48:F53) -> 218.76
B57: MÓDULO 4 - CUSTO DO PROFISSIONAL AUSENTE | E57: Percentuais | F57: Valor
B58: Submódulo 4.1 - Ausências Legais
C59: A | D59: Férias (Arts. 129 e 130, inc. I, da CLT) | E59: ='Encargos Sociais'!E25 -> 0.0909 | F59: =ROUND(E59*$F$16,2) -> 364.89 | H59: * Nota 1 - O Módulo 4 refere-se às previsões para custear ausências do próprio profissional (titular do cargo)
C60: B | D60: Ausências Legais (Arts. 131 e 473 da CLT) | E60: ='Encargos Sociais'!E26 -> 0.0079 | F60: 31.71 | H60: * Nota 2 - As férias foram calculadas dividindo-se por 11, para comportar os 11 meses presentes e ainda o ausente do posto
C61: C | D61: Licença-Paternidade (Art. 7º, XIX, e art. 10, §1º, do ADCT, CF/1988 e Art. 1º, II, da Lei 11.770/2008) | E61: ='Encargos Sociais'!E27 -> 0.0008 | F61: 3.21
C62: D | D62: Ausência por Acidente de Trabalho (Art. 131, III, da CLT) | E62: ='Encargos Sociais'!E28 -> 0.0009 | F62: 3.61
C63: E | D63: Afastamento Maternidade (Art. 71 da Lei nº 8.213/1991) | E63: ='Encargos Sociais'!E29 -> 0.0033 | F63: 13.25
C64: F | D64: Auxílio Enfermidade - Doença (Art. 59 da Lei nº 8.213/1991) | E64: ='Encargos Sociais'!E30 -> 0.0071 | F64: 28.5
B66: Submódulo 4.2 - Feriados remunerados
C67: I | D67: Feriados remunerados (plantonistas) | E67: ='Encargos Sociais - Plant'!E33 -> 0.03333333333 | F67: =ROUND(E67*$F$16,2) -> 133.8
D69: QUADRO-RESUMO DO MÓDULO 4 | F69: Valor
D70: 4.1 - Ausências Legais | E70: =SUM(E59:E64) -> 0.1109 | F70: =ROUND(E70*$F$16,2) -> 445.17
D71: 4.2 - Feriados remunerados (plantonistas) | E71: =E67 -> 0.03333333333 | F71: =ROUND(E71*$F$16,2) -> 133.8
D73: TOTAL DE PREVISÃO PARA RESCISÃO E INTERVALO INTRAJORNADA | F73: =SUM(F70:F71) -> 578.97
B75: MÓDULO 5 - INSUMOS DIVERSOS | F75: Valor
C76: A | D76: Uniformes - aquisição | F76: 0
C77: B | D77: Materiais de consumo relacionados ao posto - aquisição | F77: 0
C78: C | D78: Ferramentas relacionadas ao posto - remuneração da sua depreciação / manutenção | F78: 0
C79: D | D79: Equipamentos relacionados ao posto - remuneração da sua depreciação / manutenção | F79: 0
C80: E | D80: Equipamentos de Proteção Individual - EPI - aquisição | F80: ='EPI - Rel'!J157 -> 12.31
D82: TOTAL DE INSUMOS DIVERSOS | F82: =SUM(F76:F81) -> 12.31 | H82: * Nota - Valores mensais por empregado
B84: MÓDULO 6 - CUSTOS INDIRETOS, TRIBUTOS E LUCRO - BDI | E84: Percentuais | F84: Valor
C85: A | D85: Custos Indiretos | E85: ='BDI - Geral'!E7 -> 0.0357
C86: A.1 | D86: Administração Central | E86: ='BDI - Geral'!E8 -> 0.0303
C87: A.2 | D87: Seguros, Garantias e Riscos | E87: ='BDI - Geral'!E9 -> 0.0054
C88: B | D88: Lucro | E88: ='BDI - Geral'!E11 -> 0.04
C89: C | D89: Tributos | E89: =SUM(E90:E91) -> 0.124
C90: C.1 | D90: Tributos Federais (COFINS, PIS e CPRB) | E90: ='BDI - Geral'!E19 -> 0.074
C91: C.2 | D91: Tributos Distritais (ISS) | E91: ='BDI - Geral'!E24 -> 0.05
C92: D | D92: Despesas Financeiras | E92: ='BDI - Geral'!E14 -> 0.0051
D94: TOTAL DE BDI | E94: ='BDI - Geral'!E27 -> 0.2359 | F94: =ROUND(E94*E102,2) -> 1765.52
D96: QUADRO-RESUMO DO CUSTO MENSAL POR EMPREGADO - SEM O 13º | E96: Valor
D97: Módulo 1 - Composição da Remuneração | E97: =F16 -> 4014.14
D98: Módulo 2 - Encargos e Benefícios Anuais, Mensais e Diários | E98: =F45 -> 2659.99
D99: Módulo 3 - Provisão para Rescisão | E99: =F55 -> 218.76
D100: Módulo 4 - Custo de Reposição do Profissional Ausente | E100: =F73 -> 578.97
D101: Módulo 5 - Insumos Diversos | E101: =F82 -> 12.31
D102: SUBTOTAL (A+B+C+D+E) | E102: =SUM(E97:E101) -> 7484.17
D103: Módulo 6 - Custos Indiretos, Tributos e Lucro | E103: =F94 -> 1765.52
D105: TOTAL DO POSTO | E105: =SUM(E102:E103) -> 9249.69
B107: MÓDULO 7 - DESTAQUE DO MÓDULO 2 - 13º SALÁRIO | E107: Percentuais | F107: Valor
C108: A | D108: 13º Salário | E108: ='Encargos Sociais'!E32*12/11 -> 0.09087272727 | F108: =ROUND(E108*F$16,2) -> 364.78 | H108: * Nota 1 - Incluindo-se a reincidência das férias do substituto sobre o titular
C109: B | D109: Encargos Sociais sobre o 13º Salário - Taxa calculada no SUBMÓDULO 2.2 | E109: =SUM($E$24:$E$32) -> 0.358 | F109: =ROUND(E109*$F$108,2) -> 130.59 | H109: * Nota 2 - 13º e reflexos calculados à parte a fim de aprovisionamento
C110: C | D110: BDI sobre o 13º Salário - Taxa calculada no MÓDULO 6 | E110: =E94 -> 0.2359 | F110: =ROUND(E110*($F$108+$F$109),2) -> 116.86
D112: TOTAL DO DESTAQUE DO 13º SALÁRIO | F112: =SUM(F108:F110) -> 612.23
D114: QUADRO-RESUMO DO CUSTO MENSAL POR EMPREGADO | E114: Valor
D115: Custo total - sem o 13º Salário | E115: =ROUND(E105,2) -> 9249.69
D116: Destaque do 13º Salário (valor mensal) | E116: =ROUND(F112,2) -> 612.23
D118: TOTAL DO POSTO | E118: =E115+E116 -> 9861.92

Sheet 14
B2: PLANILHA DE ESTIMATIVA DE CUSTOS
B3: Padrão IN 05/2017 e IN 07/2018 - MPDG
B5: 14 | D5: =HLOOKUP($B$5,'Dados Gerais'!$D$6:$BI$22,6) -> OPERADOR DE CENTRAL DE DETECÇÃO E ALARME DE INCÊNDIO - PLANTONISTA NOTURNO | E5: QUANTIDADE | F5: =HLOOKUP($B$5,'Dados Gerais'!$D$6:$BI$22,10) -> 4
B6: CCT | D6: =HLOOKUP($B$5,'Dados Gerais'!$D$6:$BI$22,16) -> SINDUSCON/DF x STICOMBE/DF CCT 2024/2025 - 2º TA - N.º DF000276/2024 | E6: DATA-BASE | F6: =HLOOKUP($B$5,'Dados Gerais'!$D$6:$BI$22,17) -> 2024-05-01
B8: MÓDULO 1 - COMPOSIÇÃO DA REMUNERAÇÃO | F8: Valor
C9: A | D9: Salário-Base | F9: =HLOOKUP($B$5,'Dados Gerais'!$D$6:$BI$22,8) -> 2933.92
C10: B | D10: Adicional de Periculosidade | F10: =HLOOKUP($B$5,'Dados Gerais'!$D$6:$BI$39,26) -> 880.18
C11: C | D11: Adicional de Insalubridade | F11: =HLOOKUP($B$5,'Dados Gerais'!$D$6:$BI$39,32) -> 0
C12: D | D12: Adicional Noturno | F12: =HLOOKUP($B$5,'Dados Gerais'!$D$6:$BI$52,47) -> 364.07 | H12: * Nota 1 - O Módulo 1 refere-se ao valor mensal devido ao empregado pela prestação do serviço no período de 12 meses.
C13: E | D13: Adicional de Hora Extra | F13: =HLOOKUP($B$5,'Dados Gerais'!$D$6:$BI$69,64) -> 200.04 | H13: * Nota 2 - O adicional de hora extra no feriado trabalhado foi suprimido pela Lei 13.467/17
C14: F | D14: Outros (adicional de sobreaviso) | F14: =HLOOKUP($B$5,'Dados Gerais'!$D$6:$BI$69,34) -> 0 | H14: * Nota 3 - ART. 7º, § 2º, DA LEI Nº 605/49.Sendo mensalista o obreiro, o adicional noturno pago de forma fixa já é considerado integrado para os efeitos do pagamento do repouso semanal remunerado, nos termos do art. 7º, § 2º, da Lei nº 605/49.
D16: TOTAL DA REMUNERAÇÃO | F16: =SUM(F9:F14) -> 4378.21
B18: MÓDULO 2 - ENCARGOS E BENEFÍCIOS ANUAIS, MENSAIS E DIÁRIOS | E18: Percentuais | F18: Valor
B19: Submódulo 2.1 - 13º Salário, Férias e Adicional de Férias
C20: A | D20: 13º Salário - Calculado no Módulo 7 - Destacado | E20: 0 | F20: =ROUND(E20*F$16,2) -> 0
C21: B | D21: Adicional de Férias | E21: ='[1]Encargos Sociais'!E31 -> 0.0303 | F21: =ROUND(E21*(F$16),2) -> 132.66 | H21: * Nota 1 - O adicional de férias foi calculado dividindo-se por 11, para comportar os 11 meses presentes e ainda o ausente do posto
B23: Submódulo 2.2 - Encargos Previdenciários (GPS), Fundo de Garantia por Tempo de Serviço (FGTS) e Outras Contribuições
C24: A | D24: INSS (art. 22, inciso I, Lei nº 8.212/91) | E24: ='Encargos Sociais'!E14 -> 0.2 | F24: =ROUND(E24*($F$16+$F$41+$F$73),2) -> 1028.47 | H24: * Nota 1 - Os percentuais dos encargos previdenciários, do FGTS e demais contribuições são estabelecidos por legislação vigente.
C25: B | D25: Salário Educação (art. 3º, inciso I, Decreto nº 87.043/82) | E25: ='Encargos Sociais'!E15 -> 0.025 | F25: 128.56 | H25: * Nota 2 - O SAT, a depender do grau de risco do serviço, irá variar entre 1%, para risco leve, de 2%, para risco médio, e de 3% para risco grave.
C26: C | D26: SAT/RAT (art. 22, II, Lei 8.212/91 e Anexo V, Decreto 6.042/07) - Enquadramento 8211-3/00 | E26: ='Encargos Sociais'!E16 -> 0.01 | F26: 51.42 | H26: * Nota 3 - Base de cálculo - remuneração + ausências + terço constitucional (férias)
C27: D | D27: SESC ou SESI (art. 30, Lei nº 8.036/90 e art. 1º, Lei 8.154/90) | E27: ='Encargos Sociais'!E17 -> 0.015 | F27: 77.14
C28: E | D28: SENAI ou SENAC (Decreto nº 2.318/86) | E28: ='Encargos Sociais'!E18 -> 0.01 | F28: 51.42
C29: F | D29: SEBRAE (§ 3º, art. 8º, Lei 8.029/90, alterada pela Lei nº 8.154/90) | E29: ='Encargos Sociais'!E19 -> 0.006 | F29: 30.85
C30: G | D30: INCRA (art. 1º, I, Decreto Lei 1.146/70 e Lei 7.787, de 30/06/89) | E30: ='Encargos Sociais'!E20 -> 0.002 | F30: 10.28
C31: H | D31: FGTS (Lei Complementar nº 110/01 e art. 30, Lei nº 8.036/90) | E31: ='Encargos Sociais'!E21 -> 0.08 | F31: 411.39
C32: I | D32: SECONCI (Convenções Coletivas de Trabalho da construção) | E32: ='Encargos Sociais'!E22 -> 0.01 | F32: 51.42
B34: Submódulo 2.3 - Benefícios Mensais e Diários
C35: A | D35: Auxílio Transporte | F35: =HLOOKUP($B$5,'Dados Gerais'!$D$6:$BI$95,83) -> 311.52 | H35: * Nota 1 - O valor informado deverá ser o custo real do benefício (descontado o valor eventualmente pago pelo empregado).
C36: B | D36: Auxílio Alimentação | F36: =HLOOKUP($B$5,'Dados Gerais'!$D$6:$BI$95,90) -> 525 | H36: * Nota 2 - Observar a previsão dos benefícios contidos em Acordos, Convenções e Dissídios Coletivos de Trabalho e o disposto no art. 6º da IN 5/2017
C37: C | D37: Assistência Médica e Familiar | F37: =HLOOKUP($B$5,'Dados Gerais'!$D$6:$BI$103,98) -> 0
C38: D | D38: Outros (Seguro de vida, auxílio funeral, auxílio odontológico e auxílio creche) | F38: =HLOOKUP($B$5,'Dados Gerais'!$D$6:$BI$121,115) -> 13.95
D40: QUADRO-RESUMO DO MÓDULO 2
D41: 2.1 - 13º Salário, Férias e Adicional de Férias - 13º Destacado - Calculado no Módulo 7 | E41: =SUM(E20:E21) -> 0.0303 | F41: =F20+F21 -> 132.66
D42: 2.2 - Encargos Previdenciários (GPS), Fundo de Garantia por Tempo de Serviço (FGTS) e Contribuições | E42: =SUM(E24:E32) -> 0.358 | F42: =SUM(F24:F32) -> 1840.95
D43: 2.3 - Benefícios Mensais e Diários | F43: =SUM(F35:F38) -> 850.47
D45: TOTAL DOS ENCARGOS E BENEFÍCIOS | F45: =SUM(F41:F43) -> 2824.08
B47: MÓDULO 3 - PREVISÃO PARA RESCISÃO | E47: Percentuais | F47: Valor
C48: A | D48: Aviso Prévio Indenizado (Art. 7º, inciso XXI, da CF/1988 e arts. 477, 487, §1º, e 491 da CLT) | E48: ='Encargos Sociais'!E36 -> 0.0035 | F48: =ROUND(E48*($F$16+$F$73+$F$41),2) -> 18 | H48: * Nota 1 - Base de cálculo - remuneração + ausências + 1/3 férias
C49: B | D49: Incidência do FGTS sobre o Aviso Prévio Indenizado (Súmula 305 TST) | E49: ='Encargos Sociais'!E37 -> 0.0003 | F49: 1.54
C50: C | D50: Multa do FGTS e Contribuição Social sobre o Aviso Prévio Indenizado (Art. 18, §1º, da Lei 8.036/1990 e art. 1º da LC nº 110/2001) | E50: ='Encargos Sociais'!E38 -> 0.0011 | F50: 5.66
C51: D | D51: Aviso Prévio Trabalhado (Art. 488, parágrafo único, CLT) | E51: ='Encargos Sociais'!E39 -> 0.0078 | F51: 40.11
C52: E | D52: Incidência de GPS, FGTS e outras contribuições sobre o Aviso Prévio Trabalhado | E52: ='Encargos Sociais'!E40 -> 0.0028 | F52: 14.4
C53: F | D53: Multa do FGTS e Contribuição Social sobre o Aviso Prévio Trabalhado | E53: ='Encargos Sociais'!E41 -> 0.0309 | F53: 158.9
D55: TOTAL DE PREVISÃO PARA RESCISÃO | F55: =SUM(F48:F53) -> 238.61
B57: MÓDULO 4 - CUSTO DO PROFISSIONAL AUSENTE | E57: Percentuais | F57: Valor
B58: Submódulo 4.1 - Ausências Legais
C59: A | D59: Férias (Arts. 129 e 130, inc. I, da CLT) | E59: ='Encargos Sociais'!E25 -> 0.0909 | F59: =ROUND(E59*$F$16,2) -> 397.98 | H59: * Nota 1 - O Módulo 4 refere-se às previsões para custear ausências do próprio profissional (titular do cargo)
C60: B | D60: Ausências Legais (Arts. 131 e 473 da CLT) | E60: ='Encargos Sociais'!E26 -> 0.0079 | F60: 34.59 | H60: * Nota 2 - As férias foram calculadas dividindo-se por 11, para comportar os 11 meses presentes e ainda o ausente do posto
C61: C | D61: Licença-Paternidade (Art. 7º, XIX, e art. 10, §1º, do ADCT, CF/1988 e Art. 1º, II, da Lei 11.770/2008) | E61: ='Encargos Sociais'!E27 -> 0.0008 | F61: 3.5
C62: D | D62: Ausência por Acidente de Trabalho (Art. 131, III, da CLT) | E62: ='Encargos Sociais'!E28 -> 0.0009 | F62: 3.94
C63: E | D63: Afastamento Maternidade (Art. 71 da Lei nº 8.213/1991) | E63: ='Encargos Sociais'!E29 -> 0.0033 | F63: 14.45
C64: F | D64: Auxílio Enfermidade - Doença (Art. 59 da Lei nº 8.213/1991) | E64: ='Encargos Sociais'!E30 -> 0.0071 | F64: 31.09
B66: Submódulo 4.2 - Feriados remunerados
C67: I | D67: Feriados remunerados (plantonistas) | E67: ='Encargos Sociais - Plant'!E33 -> 0.03333333333 | F67: =ROUND(E67*$F$16,2) -> 145.94
D69: QUADRO-RESUMO DO MÓDULO 4 | F69: Valor
D70: 4.1 - Ausências Legais | E70: =SUM(E59:E64) -> 0.1109 | F70: =ROUND(E70*$F$16,2) -> 485.54
D71: 4.2 - Feriados remunerados (plantonistas) | E71: =E67 -> 0.03333333333 | F71: =ROUND(E71*$F$16,2) -> 145.94
D73: TOTAL DE PREVISÃO PARA RESCISÃO E INTERVALO INTRAJORNADA | F73: =SUM(F70:F71) -> 631.48
B75: MÓDULO 5 - INSUMOS DIVERSOS | F75: Valor
C76: A | D76: Uniformes - aquisição | F76: 0
C77: B | D77: Materiais de consumo relacionados ao posto - aquisição | F77: 0
C78: C | D78: Ferramentas relacionadas ao posto - remuneração da sua depreciação / manutenção | F78: 0
C79: D | D79: Equipamentos relacionados ao posto - remuneração da sua depreciação / manutenção | F79: 0
C80: E | D80: Equipamentos de Proteção Individual - EPI - aquisição | F80: ='EPI - Rel'!J157 -> 12.31
D82: TOTAL DE INSUMOS DIVERSOS | F82: =SUM(F76:F81) -> 12.31 | H82: * Nota - Valores mensais por empregado
B84: MÓDULO 6 - CUSTOS INDIRETOS, TRIBUTOS E LUCRO - BDI | E84: Percentuais | F84: Valor
C85: A | D85: Custos Indiretos | E85: ='BDI - Geral'!E7 -> 0.0357
C86: A.1 | D86: Administração Central | E86: ='BDI - Geral'!E8 -> 0.0303
C87: A.2 | D87: Seguros, Garantias e Riscos | E87: ='BDI - Geral'!E9 -> 0.0054
C88: B | D88: Lucro | E88: ='BDI - Geral'!E11 -> 0.04
C89: C | D89: Tributos | E89: =SUM(E90:E91) -> 0.124
C90: C.1 | D90: Tributos Federais (COFINS, PIS e CPRB) | E90: ='BDI - Geral'!E19 -> 0.074
C91: C.2 | D91: Tributos Distritais (ISS) | E91: ='BDI - Geral'!E24 -> 0.05
C92: D | D92: Despesas Financeiras | E92: ='BDI - Geral'!E14 -> 0.0051
D94: TOTAL DE BDI | E94: ='BDI - Geral'!E27 -> 0.2359 | F94: =ROUND(E94*E102,2) -> 1907.18
D96: QUADRO-RESUMO DO CUSTO MENSAL POR EMPREGADO - SEM O 13º | E96: Valor
D97: Módulo 1 - Composição da Remuneração | E97: =F16 -> 4378.21
D98: Módulo 2 - Encargos e Benefícios Anuais, Mensais e Diários | E98: =F45 -> 2824.08
D99: Módulo 3 - Provisão para Rescisão | E99: =F55 -> 238.61
D100: Módulo 4 - Custo de Reposição do Profissional Ausente | E100: =F73 -> 631.48
D101: Módulo 5 - Insumos Diversos | E101: =F82 -> 12.31
D102: SUBTOTAL (A+B+C+D+E) | E102: =SUM(E97:E101) -> 8084.69
D103: Módulo 6 - Custos Indiretos, Tributos e Lucro | E103: =F94 -> 1907.18
D105: TOTAL DO POSTO | E105: =SUM(E102:E103) -> 9991.87
B107: MÓDULO 7 - DESTAQUE DO MÓDULO 2 - 13º SALÁRIO | E107: Percentuais | F107: Valor
C108: A | D108: 13º Salário | E108: ='Encargos Sociais'!E32*12/11 -> 0.09087272727 | F108: =ROUND(E108*F$16,2) -> 397.86 | H108: * Nota 1 - Incluindo-se a reincidência das férias do substituto sobre o titular
C109: B | D109: Encargos Sociais sobre o 13º Salário - Taxa calculada no SUBMÓDULO 2.2 | E109: =SUM($E$24:$E$32) -> 0.358 | F109: =ROUND(E109*$F$108,2) -> 142.43 | H109: * Nota 2 - 13º e reflexos calculados à parte a fim de aprovisionamento
C110: C | D110: BDI sobre o 13º Salário - Taxa calculada no MÓDULO 6 | E110: =E94 -> 0.2359 | F110: =ROUND(E110*($F$108+$F$109),2) -> 127.45
D112: TOTAL DO DESTAQUE DO 13º SALÁRIO | F112: =SUM(F108:F110) -> 667.74
D114: QUADRO-RESUMO DO CUSTO MENSAL POR EMPREGADO | E114: Valor
D115: Custo total - sem o 13º Salário | E115: =ROUND(E105,2) -> 9991.87
D116: Destaque do 13º Salário (valor mensal) | E116: =ROUND(F112,2) -> 667.74
D118: TOTAL DO POSTO | E118: =E115+E116 -> 10659.61

Sheet Dados Gerais
B4: INFORMAÇÕES DE ENTRADA
D6: 1 | E6: 2 | F6: 3 | G6: 4 | H6: 5 | I6: 6 | J6: 7 | K6: 8 | L6: 9 | M6: 10 | N6: 11 | O6: 12 | P6: 13 | Q6: 14 | R6: 15 | S6: 16 | T6: 17 | U6: 18 | V6: 19 | W6: 20 | X6: 21 | Y6: 22 | Z6: 23 | AA6: 24 | AB6: 25 | AC6: 26 | AD6: 27 | AE6: 28 | AF6: 29 | AG6: 30 | AH6: 31 | AI6: 32 | AJ6: 33 | AK6: 34 | AL6: 35 | AM6: 36 | AO6: 40 | AP6: 41 | AQ6: 42 | AR6: 43 | AS6: 44 | AT6: 45 | AU6: 46 | AV6: 47 | AW6: 48 | AX6: 49 | AY6: 50 | AZ6: 51 | BA6: 52 | BB6: 53 | BC6: 54 | BD6: 55 | BE6: 56 | BF6: 57 | BG6: 58 | BH6: 59 | BI6: 60
D7: CARGO 1 | E7: CARGO 2 | F7: CARGO 3 | G7: CARGO 4 | H7: CARGO 5 | I7: CARGO 6 | J7: CARGO 7 | K7: CARGO 8 | L7: CARGO 9 | M7: CARGO 10 | N7: CARGO 11 | O7: CARGO 12 | P7: CARGO 13 | Q7: CARGO 14 | R7: CARGO 15 | S7: CARGO 16 | T7: CARGO 17 | U7: CARGO 18 | V7: CARGO 19 | W7: CARGO 20 | X7: CARGO 21 | Y7: CARGO 22 | Z7: CARGO 23 | AA7: CARGO 24 | AB7: CARGO 25 | AC7: CARGO 26 | AD7: CARGO 27 | AE7: CARGO 28 | AF7: CARGO 29 | AG7: CARGO 30 | AH7: CARGO 31 | AI7: CARGO 32 | AJ7: CARGO 33 | AK7: CARGO 34 | AL7: CARGO 35 | AM7: CARGO 36 | AO7: CARGO 40 | AP7: CARGO 41 | AQ7: CARGO 42 | AR7: CARGO 43 | AS7: CARGO 44 | AT7: CARGO 45 | AU7: CARGO 46 | AV7: CARGO 47 | AW7: CARGO 48 | AX7: CARGO 49 | AY7: CARGO 50 | AZ7: CARGO 51 | BA7: CARGO 52 | BB7: CARGO 53 | BC7: CARGO 54 | BD7: CARGO 55 | BE7: CARGO 56 | BF7: CARGO 57 | BG7: CARGO 58 | BH7: CARGO 59 | BI7: CARGO 60
B8: INFORMAÇÕES BÁSICAS
B10: DESCRIÇÃO DOS POSTOS DE SERVIÇO
D11: COORDENADOR DE SERVIÇOS DE MANUTENÇÃO | E11: SUPERVISOR DE MANUTENÇÃO ELETROMECÂNICA | F11: ENCARREGADO ELETROMECÂNICO DE INSTALAÇÕES | G11: MESTRE DE MANUTENÇÃO ELETRÔNICA | H11: MESTRE ELETRICISTA DE MANUTENÇÃO | I11: MECÂNICO DE MÁQUINAS PESADAS - MANUTENÇÃO | J11: OPERADOR ELETROMECÂNICO - EXPEDIENTE | K11: OPERADOR ELETROMECÂNICO – PLANTONISTA DIURNO | L11: OPERADOR ELETROMECÂNICO – PLANTONISTA NOTURNO | M11: AUXILIAR MECÂNICO DE AR CONDICIONADO | N11: CONTROLADOR DE MATERIAIS | O11: COORDENADOR DE FACILITIES | P11: OPERADOR DE CENTRAL DE DETECÇÃO E ALARME DE INCÊNDIO - PLANTONISTA DIURNO | Q11: OPERADOR DE CENTRAL DE DETECÇÃO E ALARME DE INCÊNDIO - PLANTONISTA NOTURNO
B12: REMUNERAÇÕES
D13: 9062.38 | E13: 7340.02 | F13: 5547.7 | G13: 4472.06 | H13: 3800 | I13: 3765.58 | J13: 2727.34 | K13: 2727.34 | L13: 2727.34 | M13: 1921.17 | N13: 3500 | O13: 9424.87 | P13: 2933.92 | Q13: 2933.92
B14: QUANTIDADE DE POSTOS
D15: 1 | E15: 4 | F15: 5 | G15: 2 | H15: 7 | I15: 26 | J15: 4 | K15: 6 | L15: 6 | M15: 19 | N15: 3 | O15: 5 | P15: 4 | Q15: 4
B16: JORNADA
C17: HORAS/DIA | D17: 8 | E17: =D17 -> 8 | F17: =E17 -> 8 | G17: 8 | H17: 8 | I17: 8 | J17: 8 | K17: 8 | L17: 8 | M17: 8 | N17: 8 | O17: 8 | P17: 8 | Q17: 8
C18: DIAS/MÊS | D18: 26 | E18: =D18 -> 26 | F18: =E18 -> 26 | G18: 26 | H18: 26 | I18: =H18 -> 26 | J18: =I18 -> 26 | K18: 15 | L18: =K18 -> 15 | M18: =J18 -> 26 | N18: =M18 -> 26 | O18: =N18 -> 26 | P18: =L18 -> 15 | Q18: =P18 -> 15
C19: HORAS/MÊS | D19: 220 | E19: =D19 -> 220 | F19: =E19 -> 220 | G19: 220 | H19: 220 | I19: 220 | J19: 220 | K19: 220 | L19: 220 | M19: 220 | N19: 220 | O19: 220 | P19: 220 | Q19: 220
B20: CCT UTILIZADA
C21: SINDICATOS E REFERÊNCIA | D21: SINDUSCON/DF x STICOMBE/DF CCT 2024/2025 - 2º TA - N.º DF000276/2024 | E21: =D21 -> SINDUSCON/DF x STICOMBE/DF CCT 2024/2025 - 2º TA - N.º DF000276/2024 | F21: =E21 -> SINDUSCON/DF x STICOMBE/DF CCT 2024/2025 - 2º TA - N.º DF000276/2024 | G21: SINDUSCON/DF x STICOMBE/DF CCT 2024/2025 - 2º TA - N.º DF000276/2024 | H21: SINDUSCON/DF x STICOMBE/DF CCT 2024/2025 - 2º TA - N.º DF000276/2024 | I21: SINDUSCON/DF x STICOMBE/DF CCT 2024/2025 - 2º TA - N.º DF000276/2024 | J21: SINDUSCON/DF x STICOMBE/DF CCT 2024/2025 - 2º TA - N.º DF000276/2024 | K21: SINDUSCON/DF x STICOMBE/DF CCT 2024/2025 - 2º TA - N.º DF000276/2024 | L21: SINDUSCON/DF x STICOMBE/DF CCT 2024/2025 - 2º TA - N.º DF000276/2024 | M21: SINDUSCON/DF x STICOMBE/DF CCT 2024/2025 - 2º TA - N.º DF000276/2024 | N21: SINDUSCON/DF x STICOMBE/DF CCT 2024/2025 - 2º TA - N.º DF000276/2024 | O21: SINDUSCON/DF x STICOMBE/DF CCT 2024/2025 - 2º TA - N.º DF000276/2024 | P21: SINDUSCON/DF x STICOMBE/DF CCT 2024/2025 - 2º TA - N.º DF000276/2024 | Q21: SINDUSCON/DF x STICOMBE/DF CCT 2024/2025 - 2º TA - N.º DF000276/2024
C22: DATA-BASE | D22: 2024-05-01 | E22: =D22 -> 2024-05-01 | F22: =E22 -> 2024-05-01 | G22: 2024-05-01 | H22: 2024-05-01 | I22: 2024-05-01 | J22: 2024-05-01 | K22: 2024-05-01 | L22: 2024-05-01 | M22: 2024-05-01 | N22: 2024-05-01 | O22: 2024-05-01 | P22: 2024-05-01 | Q22: 2024-05-01
B24: ADICIONAIS LEGAIS E GRATIFICAÇÕES
B26: PERICULOSIDADE (PERCENTUAL)
D27: 0 | E27: 0 | F27: 0.3 | G27: 0 | H27: 0.3 | I27: 0 | J27: 0 | K27: 0 | L27: 0 | M27: 0 | N27: 0 | O27: 0 | P27: 0.3 | Q27: 0.3 | Y27: 0.3 | Z27: 0.3 | AA27: 0 | AB27: 0 | AC27: 0 | AD27: 0 | AE27: 0 | AF27: 0 | AG27: 0 | AH27: 0 | AI27: 0 | AJ27: 0 | AK27: 0 | AL27: 0 | AM27: 0
B28: BASE DE CÁLCULO DO ADICIONAL DE PERICULOSIDADE (SALÁRIO BÁSICO)
D29: =D13 -> 9062.38 | E29: =E13 -> 7340.02 | F29: =F13 -> 5547.7 | G29: 4472.06 | H29: 3800 | I29: =I13 -> 3765.58 | J29: 2727.34 | K29: 2727.34 | L29: 2727.34 | M29: 1921.17 | N29: 3500 | O29: 9424.87 | P29: 2933.92 | Q29: 2933.92 | Y29: =Y13 -> 0 | Z29: =Z13 -> 0 | AA29: =AA13 -> 0 | AB29: 0 | AC29: 0 | AD29: 0 | AE29: 0 | AF29: 0 | AG29: 0 | AH29: 0 | AI29: 0 | AJ29: 0 | AK29: 0 | AL29: 0 | AM29: 0
B30: VALOR MENSAL DO ADICIONAL DE PERICULOSIDADE
D31: =ROUND(D27*D13,2) -> 0 | E31: =ROUND(E27*E13,2) -> 0 | F31: =ROUND(F27*F13,2) -> 1664.31 | G31: 0 | H31: 1140 | I31: =ROUND(I27*I13,2) -> 0 | J31: 0 | K31: 0 | L31: 0 | M31: 0 | N31: 0 | O31: 0 | P31: 880.18 | Q31: 880.18 | Y31: =ROUND(Y27*Y13,2) -> 0 | Z31: =ROUND(Z27*Z13,2) -> 0 | AA31: =ROUND(AA27*AA13,2) -> 0 | AB31: 0 | AC31: 0 | AD31: 0 | AE31: 0 | AF31: 0 | AG31: 0 | AH31: 0 | AI31: 0 | AJ31: 0 | AK31: 0 | AL31: 0 | AM31: 0
B32: INSALUBRIDADE (PERCENTUAL)
D33: 0 | E33: 0 | F33: 0 | G33: 0.2 | H33: 0 | I33: 0.2 | J33: 0.2 | K33: 0.2 | L33: 0.2 | M33: 0.2 | N33: 0 | O33: 0 | P33: 0 | Q33: 0 | Y33: 0 | Z33: 0 | AA33: 0 | AB33: 0 | AC33: 0 | AD33: 0 | AE33: 0 | AF33: 0 | AG33: 0 | AH33: 0 | AI33: 0 | AJ33: 0 | AK33: 0 | AL33: 0 | AM33: 0
B34: BASE DE CÁLCULO DO ADICIONAL DE INSALUBRIDADE (SALÁRIO MÍNIMO LEGAL)
D35: 1518 | E35: =D35 -> 1518 | F35: =E35 -> 1518 | G35: 1518 | H35: 1518 | I35: 1518 | J35: 1518 | K35: 1518 | L35: 1518 | M35: 1518 | N35: 1518 | O35: 1518 | P35: 1518 | Q35: 1518 | Y35: 1100 | Z35: 1100 | AA35: 1100 | AB35: 1100 | AC35: 1100 | AD35: 1100 | AL35: 1100
B36: VALOR MENSAL DO ADICIONAL DE INSALUBRIDADE
D37: =ROUND(D33*D35,2) -> 0 | E37: =ROUND(E33*E35,2) -> 0 | F37: =ROUND(F33*F35,2) -> 0 | G37: =ROUND(G33*G35,2) -> 303.6 | H37: 0 | I37: =ROUND(I33*I35,2) -> 303.6 | J37: 303.6 | K37: 303.6 | L37: 303.6 | M37: 303.6 | N37: =ROUND(N33*N35,2) -> 0 | O37: =ROUND(O33*O35,2) -> 0 | P37: =ROUND(P33*P35,2) -> 0 | Q37: =ROUND(Q33*Q35,2) -> 0 | Y37: =ROUND(Y33*Y35,2) -> 0 | Z37: 0 | AA37: 0 | AB37: 0 | AC37: 0 | AD37: 0 | AE37: =ROUND(AE33*AE35,2) -> 0 | AF37: 0 | AG37: 0 | AH37: 0 | AI37: 0 | AJ37: 0 | AK37: 0 | AL37: 0 | AM37: 0
B38: ADICIONAL DE SOBREAVISO - 1/3 do valor da hora normal (estimado 104h por mês)
D39: =ROUND((104/D19)*D13/3,2) -> 1428.01 | E39: =ROUND((104/E19)*E13/3,2) -> 1156.61 | F39: =ROUND((104/F19)*F13/3,2) -> 874.18 | G39: 0 | H39: 0 | I39: 0 | J39: 0 | K39: 0 | L39: 0 | M39: 0 | N39: 0 | O39: 0 | P39: 0 | Q39: 0 | Y39: 0 | Z39: 0 | AA39: 0 | AB39: 0 | AC39: 0 | AD39: 0 | AE39: 0 | AF39: 0 | AG39: 0 | AH39: 0 | AI39: 0 | AJ39: 0 | AK39: 0 | AL39: 0 | AM39: 0
B41: ADICIONAL NOTURNO
B43: INCIDÊNCIA (PERCENTUAL)
D44: 0.2 | E44: 0.2 | F44: 0.2 | G44: 0.2 | H44: 0.2 | I44: 0.2 | J44: 0.2 | K44: 0.2 | L44: 0.2 | M44: 0.2 | N44: 0.2 | O44: 0.2 | P44: 0.2 | Q44: 0.2 | Y44: 0.2 | Z44: 0.2 | AA44: 0.2 | AB44: 0.2 | AC44: 0.2 | AD44: 0.2 | AE44: 0.2 | AF44: 0.2 | AG44: 0.2 | AH44: 0.2 | AI44: 0.2 | AJ44: 0.2 | AK44: 0.2 | AL44: 0.2 | AM44: 0.2
B45: HORAS REAIS POR DIA
D46: 0 | E46: 0 | F46: 0 | G46: 0 | H46: 0 | I46: 0 | J46: 0 | K46: 0 | L46: 7 | M46: 0 | N46: 0 | O46: 0 | P46: 0 | Q46: 7 | Y46: 0 | Z46: 0 | AA46: 0 | AB46: 0 | AC46: 0 | AD46: 0 | AE46: 0 | AF46: 0 | AG46: 0 | AH46: 0 | AI46: 0 | AJ46: 0 | AK46: 0 | AL46: 0 | AM46: 0 | AN46: 0
B47: HORAS FICTAS POR DIA
D48: =D46*8/7 -> 0 | E48: =E46*8/7 -> 0 | F48: =F46*8/7 -> 0 | G48: 0 | H48: 0 | I48: =I46*8/7 -> 0 | J48: 0 | K48: 0 | L48: =L46 -> 7 | M48: 0 | N48: 0 | O48: 0 | P48: 0 | Q48: =Q46 -> 7 | Y48: =Y46*8/7 -> 0 | Z48: =Z46*8/7 -> 0 | AA48: =AA46*8/7 -> 0 | AB48: 0 | AC48: 0 | AD48: 0 | AE48: 0 | AF48: 0 | AG48: 0 | AH48: 0 | AI48: 0 | AJ48: 0 | AK48: 0 | AL48: 0 | AM48: 0
B49: BASE DE CÁLCULO DO ADICIONAL NOTURNO (INCLUINDO ADICIONAIS E GRATIFICAÇÕES)
D50: =D13+D31+D37+D39 -> 10490.39 | E50: =E13+E31+E37+E39 -> 8496.63 | F50: =F13+F31+F37+F39 -> 8086.19 | G50: 4775.66 | H50: 4940 | I50: =I13+I31+I37+I39 -> 4069.18 | J50: 3030.94 | K50: 3030.94 | L50: 3030.94 | M50: 2224.77 | N50: 3500 | O50: 9424.87 | P50: 3814.1 | Q50: 3814.1 | Y50: =Y13+Y31+Y37+Y39 -> 0 | Z50: =Z13+Z31+Z37+Z39 -> 0 | AA50: =AA13+AA31+AA37+AA39 -> 0 | AB50: 0 | AC50: 0 | AD50: 0 | AE50: 0 | AF50: 0 | AG50: 0 | AH50: 0 | AI50: 0 | AJ50: 0 | AK50: 0 | AL50: 0 | AM50: 0
B51: VALOR MENSAL DO ADICIONAL NOTURNO (HORA NORMAL + HORA REDUZIDA) - POR POSTO
D52: =ROUND(D48*D18*D44*D50/D19,2) -> 0 | E52: =ROUND(E48*E18*E44*E50/E19,2) -> 0 | F52: =ROUND(F48*F18*F44*F50/F19,2) -> 0 | G52: 0 | H52: 0 | I52: =ROUND(I48*I18*I44*I50/I19,2) -> 0 | J52: 0 | K52: 0 | L52: 289.32 | M52: 0 | N52: 0 | O52: 0 | P52: 0 | Q52: =ROUND(Q48*Q18*Q44*Q50/Q19,2) -> 364.07 | Y52: =ROUND(Y48*Y18*Y44*Y50/Y19,2) ->  | Z52: =ROUND(Z48*Z18*Z44*Z50/Z19,2) ->  | AA52: =ROUND(AA48*AA18*AA44*AA50/AA19,2) -> 
B54: ADICIONAL DE HORA EXTRA
B56: INCIDÊNCIA (PERCENTUAL 1)
D57: 0.5 | E57: 0.5 | F57: 0.5 | G57: 0.5 | H57: 0.5 | I57: 0.5 | J57: 0.5 | K57: 0.5 | L57: 0.5 | M57: 0.5 | N57: 0.5 | O57: 0.5 | P57: 0.5 | Q57: 0.5 | Y57: 0.5 | Z57: 0.5 | AA57: 0.5 | AB57: 0.5 | AC57: 0.5 | AD57: 0.5 | AE57: 0.5 | AF57: 0.5 | AG57: 0.5 | AH57: 0.5 | AI57: 0.5 | AJ57: 0.5 | AK57: 0.5 | AL57: 0.5 | AM57: 0.5
B58: HORAS EXTRAS POR MÊS (PERCENTUAL 1)
D59: 0 | E59: 0 | F59: 0 | G59: 0 | H59: 0 | I59: 0 | J59: 0 | K59: 0 | L59: 0 | M59: 0 | N59: 0 | O59: 0 | P59: 0 | Q59: 0 | Y59: 0 | Z59: 0 | AA59: 0 | AB59: 0 | AC59: 0 | AD59: 0 | AE59: 0 | AF59: 0 | AG59: 0 | AH59: 0 | AI59: 0 | AJ59: 0 | AK59: 0 | AL59: 0 | AM59: 0
B60: VALOR MENSAL DO ADICIONAL DE HORAS EXTRAS (PERCENTUAL 1) - POR POSTO
D61: =ROUND(D59*D57*D13/D19,2) -> 0 | E61: =ROUND(E59*E57*E13/E19,2) -> 0 | F61: =ROUND(F59*F57*F13/F19,2) -> 0 | G61: 0 | H61: 0 | I61: =ROUND(I59*I57*I13/I19,2) -> 0 | J61: 0 | K61: 0 | L61: 0 | M61: 0 | N61: 0 | O61: 0 | P61: 0 | Q61: 0 | Y61: =ROUND(Y59*Y57*Y13/Y19,2) ->  | Z61: =ROUND(Z59*Z57*Z13/Z19,2) ->  | AA61: =ROUND(AA59*AA57*AA13/AA19,2) -> 
B62: INCIDÊNCIA (PERCENTUAL 2)
D63: 1 | E63: 1 | F63: 1 | G63: 1 | H63: 1 | I63: 1 | J63: 1 | K63: 1 | L63: 1 | M63: 1 | N63: 1 | O63: 1 | P63: 1 | Q63: 1 | Y63: 1 | Z63: 1 | AA63: 1 | AB63: 1 | AC63: 1 | AD63: 1 | AE63: 1 | AF63: 1 | AG63: 1 | AH63: 1 | AI63: 1 | AJ63: 1 | AK63: 1 | AL63: 1 | AM63: 1
B64: HORAS EXTRAS POR MÊS (PERCENTUAL 2)
D65: 0 | E65: 0 | F65: 0 | G65: 0 | H65: 0 | I65: 0 | J65: 0 | K65: 0 | L65: 0 | M65: 0 | N65: 0 | O65: 0 | P65: 15 | Q65: 15 | Y65: 0 | Z65: 0 | AA65: 0 | AB65: 0 | AC65: 0 | AD65: 0 | AE65: 0 | AF65: 0 | AG65: 0 | AH65: 0 | AI65: 0 | AJ65: 0 | AK65: 0 | AL65: 0 | AM65: 0
B66: VALOR MENSAL DO ADICIONAL DE HORAS EXTRAS (PERCENTUAL 2) - POR POSTO
D67: =ROUND(D65*D63*D13/D19,2) -> 0 | E67: =ROUND(E65*E63*E13/E19,2) -> 0 | F67: =ROUND(F65*F63*F13/F19,2) -> 0 | G67: 0 | H67: 0 | I67: =ROUND(I65*I63*I13/I19,2) -> 0 | J67: 0 | K67: 0 | L67: 0 | M67: 0 | N67: 0 | O67: 0 | P67: =ROUND(P65*P63*P13/P19,2) -> 200.04 | Q67: 200.04 | Y67: =ROUND(Y65*Y63*Y13/Y19,2) ->  | Z67: =ROUND(Z65*Z63*Z13/Z19,2) ->  | AA67: =ROUND(AA65*AA63*AA13/AA19,2) -> 
B68: TOTAL MENSAL DOS ADICIONAIS DE HORAS EXTRAS - POR POSTO
D69: =D67+D61 -> 0 | E69: =E67+E61 -> 0 | F69: =F67+F61 -> 0 | G69: 0 | H69: 0 | I69: =I67+I61 -> 0 | J69: 0 | K69: 0 | L69: 0 | M69: 0 | N69: 0 | O69: 0 | P69: =ROUND(P67+P61,2) -> 200.04 | Q69: =ROUND(Q67+Q61,2) -> 200.04 | Y69: =Y67+Y61 ->  | Z69: =Z67+Z61 ->  | AA69: =AA67+AA61 -> 
B71: BENEFÍCIOS COMUNS - AUXÍLIO TRANSPORTE
B73: DISTRIBUIÇÃO ESTIMADA DE PROCEDÊNCIA
C74: Cidade-satélite | D74: =100%-D75 -> 0.34 | E74: =D74 -> 0.34 | F74: =E74 -> 0.34 | G74: 0.34 | H74: 0.34 | I74: 0.34 | J74: 0.34 | K74: 0.34 | L74: 0.34 | M74: 0.34 | N74: 0.34 | O74: 0.34 | P74: 0.34 | Q74: 0.34 | Y74: 0.68 | Z74: 0.68 | AA74: 0.68 | AB74: 0.68 | AC74: 0.68 | AD74: 0.68 | AE74: 0.68 | AF74: 0.68 | AG74: 0.68 | AH74: 0.68 | AI74: 0.68 | AJ74: 0.68 | AK74: 0.68 | AL74: 0.68 | AM74: 0.68
C75: Região do entorno (média ponderada do contrato atual) | D75: =ROUND(23/35,2) -> 0.66 | E75: =D75 -> 0.66 | F75: 0.66 | G75: 0.66 | H75: 0.66 | I75: 0.66 | J75: 0.66 | K75: 0.66 | L75: 0.66 | M75: 0.66 | N75: 0.66 | O75: 0.66 | P75: 0.66 | Q75: 0.66 | Y75: 0.32 | Z75: 0.32 | AA75: 0.32 | AB75: 0.32 | AC75: 0.32 | AD75: 0.32 | AE75: 0.32 | AF75: 0.32 | AG75: 0.32 | AH75: 0.32 | AI75: 0.32 | AJ75: 0.32 | AK75: 0.32 | AL75: 0.32 | AM75: 0.32
C76: Esplanada - apenas para os que vêm do entorno | D76: =D75 -> 0.66 | E76: 0.66 | F76: 0.66 | G76: 0.66 | H76: 0.66 | I76: 0.66 | J76: 0.66 | K76: 0.66 | L76: 0.66 | M76: 0.66 | N76: 0.66 | O76: 0.66 | P76: 0.66 | Q76: 0.66 | Y76: =Y75 -> 0.32 | Z76: =Z75 -> 0.32 | AA76: =AA75 -> 0.32 | AB76: 0.32 | AC76: 0.32 | AD76: 0.32 | AE76: 0.32 | AF76: 0.32 | AG76: 0.32 | AH76: 0.32 | AI76: 0.32 | AJ76: 0.32 | AK76: 0.32 | AL76: 0.32 | AM76: 0.32
B77: VALORES DOS VALES
C78: Cidade-satélite | D78: 5.5 | E78: =D78 -> 5.5 | F78: 5.5 | G78: 5.5 | H78: 5.5 | I78: 5.5 | J78: 5.5 | K78: 5.5 | L78: 5.5 | M78: 5.5 | N78: 5.5 | O78: 5.5 | P78: 5.5 | Q78: 5.5 | AA78: =V78 -> 0 | AB78: 0 | AC78: 0 | AD78: 0 | AE78: 0 | AF78: 0 | AG78: 0 | AH78: 0 | AI78: 0 | AJ78: 0 | AK78: 0 | AL78: 0 | AM78: 0
C79: Região do entorno (média ponderada do contrato atual) | D79: 10.15 | E79: =D79 -> 10.15 | F79: 10.15 | G79: 10.15 | H79: 10.15 | I79: 10.15 | J79: 10.15 | K79: 10.15 | L79: 10.15 | M79: 10.15 | N79: 10.15 | O79: 10.15 | P79: 10.15 | Q79: 10.15 | AA79: 0 | AB79: 0 | AC79: 0 | AD79: 0 | AE79: 0 | AF79: 0 | AG79: 0 | AH79: 0 | AI79: 0 | AJ79: 0 | AK79: 0 | AL79: 0 | AM79: 0
C80: Esplanada | D80: 2.75 | E80: =D80 -> 2.75 | F80: 2.75 | G80: 2.75 | H80: 2.75 | I80: 2.75 | J80: 2.75 | K80: 2.75 | L80: 2.75 | M80: 2.75 | N80: 2.75 | O80: 2.75 | P80: 2.75 | Q80: 2.75 | AA80: 0 | AB80: 0 | AC80: 0 | AD80: 0 | AE80: 0 | AF80: 0 | AG80: 0 | AH80: 0 | AI80: 0 | AJ80: 0 | AK80: 0 | AL80: 0 | AM80: 0
B81: VALOR MENSAL BRUTO DE PAGAMENTO - POR POSTO
D82: =ROUND((D74*D78+D75*D79+D76*D80)*2*D18,2) -> 539.97 | E82: =ROUND((E74*E78+E75*E79+E76*E80)*2*E18,2) -> 539.97 | F82: =ROUND((F74*F78+F75*F79+F76*F80)*2*F18,2) -> 539.97 | G82: 539.97 | H82: 539.97 | I82: =ROUND((I74*I78+I75*I79+I76*I80)*2*I18,2) -> 539.97 | J82: 539.97 | K82: 311.52 | L82: 311.52 | M82: 539.97 | N82: 539.97 | O82: 539.97 | P82: 311.52 | Q82: 311.52 | Y82: =ROUND((Y74*Y78+Y75*Y79+Y76*Y80)*2*Y18,2) -> 0 | Z82: =ROUND((Z74*Z78+Z75*Z79+Z76*Z80)*2*Z18,2) -> 0 | AA82: =ROUND((AA74*AA78+AA75*AA79+AA76*AA80)*2*AA18,2) -> 0 | AB82: 0 | AC82: 0 | AD82: 0 | AE82: 0 | AF82: 0 | AG82: 0 | AH82: 0 | AI82: 0 | AJ82: 0 | AK82: 0 | AL82: 0 | AM82: 0
B83: PERCENTUAL DE DESCONTO
D84: 0 | E84: =D84 -> 0 | F84: =E84 -> 0 | G84: 0 | H84: 0 | I84: 0 | J84: 0 | K84: 0 | L84: 0 | M84: 0 | N84: 0 | O84: 0 | P84: 0 | Q84: 0 | Y84: =X84 -> 0 | Z84: =Y84 -> 0 | AA84: =Z84 -> 0 | AB84: 0 | AC84: 0 | AD84: 0 | AE84: 0 | AF84: 0 | AG84: 0 | AH84: 0 | AI84: 0 | AJ84: 0 | AK84: 0 | AL84: 0 | AM84: 0
B85: VALOR MENSAL DO DESCONTO - POR POSTO
D86: =ROUND(D84*D13,2) -> 0 | E86: =ROUND(E84*E13,2) -> 0 | F86: =ROUND(F84*F13,2) -> 0 | G86: 0 | H86: 0 | I86: =ROUND(I84*I13,2) -> 0 | J86: 0 | K86: 0 | L86: 0 | M86: 0 | N86: 0 | O86: 0 | P86: 0 | Q86: 0 | Y86: =ROUND(Y84*Y13,2) -> 0 | Z86: =ROUND(Z84*Z13,2) -> 0 | AA86: =ROUND(AA84*AA13,2) -> 0 | AB86: 0 | AC86: 0 | AD86: 0 | AE86: 0 | AF86: 0 | AG86: 0 | AH86: 0 | AI86: 0 | AJ86: 0 | AK86: 0 | AL86: 0 | AM86: 0
B87: VALOR MENSAL LÍQUIDO DO VALE TRANSPORTE - POR POSTO
D88: =IF(D82>D86,D82-D86,0) -> 539.97 | E88: =IF(E82>E86,E82-E86,0) -> 539.97 | F88: =IF(F82>F86,F82-F86,0) -> 539.97 | G88: 539.97 | H88: 539.97 | I88: =IF(I82>I86,I82-I86,0) -> 539.97 | J88: 539.97 | K88: 311.52 | L88: 311.52 | M88: 539.97 | N88: 539.97 | O88: 539.97 | P88: 311.52 | Q88: 311.52 | Y88: =IF(Y82>Y86,Y82-Y86,0) -> 0 | Z88: =IF(Z82>Z86,Z82-Z86,0) -> 0 | AA88: =IF(AA82>AA86,AA82-AA86,0) -> 0 | AB88: 0 | AC88: 0 | AD88: 0 | AE88: 0 | AF88: 0 | AG88: 0 | AH88: 0 | AI88: 0 | AJ88: 0 | AK88: 0 | AL88: 0 | AM88: 0
D89: =D88*D15 -> 539.97 | E89: =E88*E15 -> 2159.88 | F89: =F88*F15 -> 2699.85
B90: BENEFÍCIOS COMUNS - AUXÍLIO ALIMENTAÇÃO
C92: VALOR CCT | D92: =ROUND((25.2*0.91)+6,2) -> 28.93 | E92: =D92 -> 28.93 | F92: 28.93 | G92: 28.93 | H92: 28.93 | I92: 28.93 | J92: 28.93 | K92: 28.93 | L92: 28.93 | M92: 28.93 | N92: 28.93 | O92: 28.93 | P92: 28.93 | Q92: 28.93 | Y92: =X92 -> 0 | Z92: =Y92 -> 0 | AA92: =Z92 -> 0 | AB92: 0 | AC92: 0 | AD92: 0 | AE92: 0 | AF92: 0 | AG92: 0 | AH92: 0 | AI92: 0 | AJ92: 0 | AK92: 0 | AL92: 0 | AM92: 0
C93: VALOR CD | D93: 35 | E93: =D93 -> 35 | F93: 35 | G93: 35 | H93: 35 | I93: 35 | J93: 35 | K93: 35 | L93: 35 | M93: 35 | N93: 35 | O93: 35 | P93: 35 | Q93: 35 | Y93: 24.31 | Z93: 24.31 | AA93: 24.31 | AB93: 24.31 | AC93: 24.31 | AD93: 24.31 | AE93: 24.31 | AF93: 24.31 | AG93: 24.31 | AH93: 24.31 | AI93: 24.31 | AJ93: 24.31 | AK93: 24.31 | AL93: 24.31 | AM93: 24.31
B94: VALOR MENSAL DO AUXÍLIO ALIMENTAÇÃO - POR POSTO
D95: =ROUND(LARGE(D92:D93,1)*D18,2) -> 910 | E95: =ROUND(LARGE(E92:E93,1)*E18,2) -> 910 | F95: =ROUND(LARGE(F92:F93,1)*F18,2) -> 910 | G95: =ROUND(LARGE(G92:G93,1)*G18,2) -> 910 | H95: =ROUND(LARGE(H92:H93,1)*H18,2) -> 910 | I95: 910 | J95: =ROUND(LARGE(J92:J93,1)*J18,2) -> 910 | K95: 525 | L95: 525 | M95: 910 | N95: 910 | O95: 910 | P95: 525 | Q95: 525 | Y95: =ROUND(LARGE(Y92:Y93,1)*Y18,2) -> 0 | Z95: =ROUND(LARGE(Z92:Z93,1)*Z18,2) -> 0 | AA95: =ROUND(LARGE(AA92:AA93,1)*AA18,2) -> 0 | AB95: 0 | AC95: 0 | AD95: 0 | AE95: 0 | AF95: 0 | AG95: 0 | AH95: 0 | AI95: 0 | AJ95: 0 | AK95: 0 | AL95: 0 | AM95: 0
D96: =D95*D15 -> 910 | E96: =E95*E15 -> 3640 | F96: =F95*F15 -> 4550
B97: BENEFÍCIOS ESPECIAIS - ASSISTÊNCIA MÉDICA E FAMILIAR
C99: OBRIGAÇÃO DE PAGTO | D99: NÃO | E99: NÃO | F99: NÃO | G99: NÃO | H99: NÃO | I99: NÃO | J99: NÃO | K99: NÃO | L99: NÃO | M99: NÃO | N99: NÃO | O99: NÃO | P99: NÃO | Q99: NÃO | Y99: NÃO | Z99: NÃO | AA99: NÃO | AB99: NÃO | AC99: NÃO | AD99: NÃO | AE99: NÃO | AF99: NÃO | AG99: NÃO | AH99: NÃO | AI99: NÃO | AJ99: NÃO | AK99: NÃO | AL99: NÃO | AM99: NÃO
C100: VALOR CCT | D100: 0 | E100: 0 | F100: 0 | G100: 0 | H100: 0 | I100: 0 | J100: 0 | K100: 0 | L100: 0 | M100: 0 | N100: 0 | O100: 0 | P100: 0 | Q100: 0 | Y100: 0 | Z100: 0 | AA100: 0 | AB100: 0 | AC100: 0 | AD100: 0 | AE100: 0 | AF100: 0 | AG100: 0 | AH100: 0 | AI100: 0 | AJ100: 0 | AK100: 0 | AL100: 0 | AM100: 0
C101: VALOR MERCADO | D101: 0 | E101: 0 | F101: 0 | G101: 0 | H101: 0 | I101: 0 | J101: 0 | K101: 0 | L101: 0 | M101: 0 | N101: 0 | O101: 0 | P101: 0 | Q101: 0 | Y101: 0 | Z101: 0 | AA101: 0 | AB101: 0 | AC101: 0 | AD101: 0 | AE101: 0 | AF101: 0 | AG101: 0 | AH101: 0 | AI101: 0 | AJ101: 0 | AK101: 0 | AL101: 0 | AM101: 0
B102: VALOR MENSAL DO AUXÍLIO ESPECIAL - ASSISTÊNCIA MÉDICA E FAMILIAR - POR POSTO
D103: =IF(D99="SIM",ROUND(SMALL(D100:D101,1),2),0) -> 0 | E103: =IF(E99="SIM",ROUND(SMALL(E100:E101,1),2),0) -> 0 | F103: =IF(F99="SIM",ROUND(SMALL(F100:F101,1),2),0) -> 0 | G103: 0 | H103: 0 | I103: =IF(I99="SIM",ROUND(SMALL(I100:I101,1),2),0) -> 0 | J103: 0 | K103: 0 | L103: 0 | M103: 0 | N103: 0 | O103: 0 | P103: 0 | Q103: 0 | Y103: =IF(Y99="SIM",ROUND(SMALL(Y100:Y101,1),2),0) -> 0 | Z103: 0 | AA103: 0 | AB103: 0 | AC103: 0 | AD103: 0 | AE103: 0 | AF103: 0 | AG103: 0 | AH103: 0 | AI103: 0 | AJ103: 0 | AK103: 0 | AL103: 0 | AM103: 0
B105: BENEFÍCIOS ESPECIAIS - SEGURO DE VIDA E AUXÍLIO-FUNERAL, AUX ODONT, AUX CRECHE
B107: SEGURO DE VIDA E AUXÍLIO FUNERAL
C108: OBRIGAÇÃO DE PAGTO | D108: SIM | E108: SIM | F108: SIM | G108: SIM | H108: SIM | I108: SIM | J108: SIM | K108: SIM | L108: SIM | M108: SIM | N108: SIM | O108: SIM | P108: SIM | Q108: SIM | Y108: SIM | Z108: SIM | AA108: SIM | AB108: SIM | AC108: SIM | AD108: SIM | AE108: SIM | AF108: SIM | AG108: SIM | AH108: SIM | AI108: SIM | AJ108: SIM | AK108: SIM | AL108: SIM | AM108: SIM
C109: VALOR CCT
C110: VALOR MERCADO | D110: 13.95 | E110: 13.95 | F110: 13.95 | G110: 13.95 | H110: 13.95 | I110: 13.95 | J110: 13.95 | K110: 13.95 | L110: 13.95 | M110: 13.95 | N110: 13.95 | O110: 13.95 | P110: 13.95 | Q110: 13.95 | AA110: 18.4 | AB110: 18.4 | AC110: 18.4 | AD110: 18.4 | AE110: 18.4 | AF110: 18.4 | AG110: 18.4 | AH110: 18.4 | AI110: 18.4 | AJ110: 18.4 | AK110: 18.4 | AL110: 18.4 | AM110: 18.4
B111: VALOR MENSAL DO AUXÍLIO ESPECIAL - SEGURO DE VIDA E AUXÍLIO FUNERAL - POR POSTO
D112: =IF(D108="SIM",ROUND(SMALL(D109:D110,1),2),0) -> 13.95 | E112: 13.95 | F112: 13.95 | G112: 13.95 | H112: 13.95 | I112: 13.95 | J112: 13.95 | K112: 13.95 | L112: 13.95 | M112: 13.95 | N112: 13.95 | O112: 13.95 | P112: 13.95 | Q112: 13.95 | Y112: =IF(Y108="SIM",ROUND(SMALL(Y109:Y110,1),2),0) ->  | AA112: 18.4 | AB112: 18.4 | AC112: 18.4 | AD112: 18.4 | AE112: 18.4 | AF112: 18.4 | AG112: 18.4 | AH112: 18.4 | AI112: 18.4 | AJ112: 18.4 | AK112: 18.4 | AL112: 18.4 | AM112: 18.4
B113: AUXÍLIO ODONTOLÓGICO
C114: OBRIGAÇÃO DE PAGTO | D114: NÃO | E114: NÃO | F114: NÃO | G114: NÃO | H114: NÃO | I114: NÃO | J114: NÃO | K114: NÃO | L114: NÃO | M114: NÃO | N114: NÃO | O114: NÃO | P114: NÃO | Q114: NÃO | Y114: NÃO | Z114: NÃO | AA114: NÃO | AB114: NÃO | AC114: NÃO | AD114: NÃO | AE114: NÃO | AF114: NÃO | AG114: NÃO | AH114: NÃO | AI114: NÃO | AJ114: NÃO | AK114: NÃO | AL114: NÃO | AM114: NÃO
C115: VALOR CCT | D115: 0 | E115: 0 | F115: 0 | G115: 0 | H115: 0 | I115: 0 | J115: 0 | K115: 0 | L115: 0 | M115: 0 | N115: 0 | O115: 0 | P115: 0 | Q115: 0 | Y115: 0 | Z115: 0 | AA115: 0 | AB115: 0 | AC115: 0 | AD115: 0 | AE115: 0 | AF115: 0 | AG115: 0 | AH115: 0 | AI115: 0 | AJ115: 0 | AK115: 0 | AL115: 0 | AM115: 0
C116: VALOR MERCADO | D116: 0 | E116: 0 | F116: 0 | G116: 0 | H116: 0 | I116: 0 | J116: 0 | K116: 0 | L116: 0 | M116: 0 | N116: 0 | O116: 0 | P116: 0 | Q116: 0 | Y116: 0 | Z116: 0 | AA116: 0 | AB116: 0 | AC116: 0 | AD116: 0 | AE116: 0 | AF116: 0 | AG116: 0 | AH116: 0 | AI116: 0 | AJ116: 0 | AK116: 0 | AL116: 0 | AM116: 0
B117: VALOR MENSAL DO AUXÍLIO ESPECIAL - AUXILIO ODONTOLOGICO - POR POSTO
D118: =IF(D114="SIM",ROUND(SMALL(D115:D116,1),2),0) -> 0 | E118: 0 | F118: 0 | G118: 0 | H118: 0 | I118: 0 | J118: 0 | K118: 0 | L118: 0 | M118: 0 | N118: 0 | O118: 0 | P118: 0 | Q118: 0 | Y118: =IF(Y114="SIM",ROUND(SMALL(Y115:Y116,1),2),0) -> 0 | Z118: 0 | AA118: 0 | AB118: 0 | AC118: 0 | AD118: 0 | AE118: 0 | AF118: 0 | AG118: 0 | AH118: 0 | AI118: 0 | AJ118: 0 | AK118: 0 | AL118: 0 | AM118: 0
B119: TOTAL MENSAL DOS AUXÍLIOS ESPECIAIS - POR POSTO
D120: =+D112+D118 -> 13.95 | E120: 13.95 | F120: 13.95 | G120: 13.95 | H120: 13.95 | I120: 13.95 | J120: 13.95 | K120: 13.95 | L120: 13.95 | M120: 13.95 | N120: 13.95 | O120: 13.95 | P120: 13.95 | Q120: 13.95 | Y120: =+Y112+Y118 ->  | AA120: 18.4 | AB120: 18.4 | AC120: 18.4 | AD120: 18.4 | AE120: 18.4 | AF120: 18.4 | AG120: 18.4 | AH120: 18.4 | AI120: 18.4 | AJ120: 18.4 | AK120: 18.4 | AL120: 18.4 | AM120: 18.4
Y124: =Y95+Y88 -> 0 | Z124: 0 | AA124: 0 | AB124: 0 | AC124: 0 | AD124: 0 | AE124: 0 | AF124: 0 | AG124: 0 | AH124: 0 | AI124: 0 | AJ124: 0 | AK124: 0 | AL124: 0 | AM124: 0

Sheet Encargos Sociais
B4: ENCARGOS SOCIAIS SOBRE A MÃO DE OBRA
E5: Percentuais
B7: Referência:
C8: SINAPI/MPU
B10: Categorias:
C11: TODAS, EXCETO PLANTONISTAS
B13: GRUPO A: Encargos Sociais Básicos - Previdenciários (GPS), Fundo de Garantia por Tempo de Serviço (FGTS) e Outras Contribuições | E13: =ROUND(SUM(E14:E22),4) -> 0.358
C14: A | D14: INSS (art. 22, inciso I, Lei nº 8.212/91) | E14: 0.2
C15: B | D15: Salário Educação (art. 3º, inciso I, Decreto nº 87.043/82) | E15: 0.025 | G15: * Nota 1 - Os percentuais dos encargos previdenciários, do FGTS e demais contribuições são estabelecidos por legislação vigente.
C16: C | D16: SAT/RAT (art. 22, II, Lei 8.212/91 e Anexo V, Decreto 6.042/07) - Enquadramento 9103-1/00 | E16: 0.01 | G16: * Nota 2 - O SAT, a depender do grau de risco do serviço, irá variar entre 1%, para risco leve, de 2%, para risco médio, e de 3% para risco grave.
C17: D | D17: SESC ou SESI (art. 30, Lei nº 8.036/90 e art. 1º, Lei 8.154/90) | E17: 0.015 | G17: * Nota 3 - Os percentuais do Submódulo 2.2 incidem sobre o Módulo 1, o Submódulo 2.1, o Módulo 3, o Módulo 4 e o Módulo 6.
C18: E | D18: SENAI ou SENAC (Decreto nº 2.318/86) | E18: 0.01
C19: F | D19: SEBRAE (§ 3º, art. 8º, Lei 8.029/90, alterada pela Lei nº 8.154/90) | E19: 0.006
C20: G | D20: INCRA (art. 1º, I, Decreto Lei 1.146/70 e Lei 7.787, de 30/06/89) | E20: 0.002
C21: H | D21: FGTS (Lei Complementar nº 110/01 e art. 30, Lei nº 8.036/90) | E21: 0.08
C22: I | D22: SECONCI (Convenções Coletivas de Trabalho da construção) | E22: 0.01
B24: GRUPO B: Encargos Sociais Relacionados ao Custo do Profissional Ausente - Ausências Legais | E24: =ROUND(SUM(E25:E33),4) -> 0.2245
C25: A | D25: Férias (Arts. 129 e 130, inc. I, da CLT) | E25: =ROUND(1/11,4) -> 0.0909 | G25: * Nota 1 - As alíneas “A” a “F” referem-se somente ao custo que será pago ao repositor pelos dias trabalhados quando da necessidade de substituir a mão de obra alocada na prestação do serviço.
C26: B | D26: Ausências Legais (Arts. 131 e 473 da CLT) | E26: =ROUND(2/252,4) -> 0.0079 | G26: * Nota 2 - Adotou-se a estimativa do SINAPI de 2 dias por ano. Em 252 dias úteis por ano.
C27: C | D27: Licença-Paternidade (Art. 7º, XIX, e art. 10, §1º, do ADCT, CF/1988 e Art. 1º, II, da Lei 11.770/2008) | E27: =ROUND((5/(30*12))*0.0596,4) -> 0.0008 | G27: * Nota 3 - Utilizada a proporção de 50% para homens, 5 dias de afastamento, e a probabilidade de um trabalhador requerer a Licença Paternidade em 5,96%, conforme SINAPI (Anuário Estatístico da Previdência Social - 2017)
C28: D | D28: Ausência por Acidente de Trabalho (Art. 131, III, da CLT) | E28: =ROUND(0.0205*15/360,4) -> 0.0009 | G28: * Nota 4 - Utilzada a estatística de 2,05% dos contribuintes beneficiados com a emissão do auxílio, conforme Anuário Estatístico da Previdência Social. Afastamento de 15 dias a cargo da empresa.
C29: E | D29: Afastamento Maternidade (Art. 71 da Lei nº 8.213/1991) | E29: =ROUND(0.0508*(120/360)*(30+30*4/3)/360,4) -> 0.0033 | G29: * Nota 5 - Utilizada a estimativa de 120 dias de afastamento, e a probabilidade de uma trabalhadora requerer a Licença Maternidade em 5,08%, conforme SINAPI (citando dados do IBGE 2017) - A própria previdência paga o benefício pelos 120 dias, contudo o empregador arca com o 13º e com as férias
C30: F | D30: Auxílio Enfermidade - Doença (Art. 59 da Lei nº 8.213/1991) | E30: =ROUND(((0.0376*15)+2)/360,4) -> 0.0071 | G30: * Nota 6 - Utilizada a estatística de 3,76% dos contribuintes beneficiados com o auxílio, conforme Anuário Estatístico da Previdência Social de 2016 (acrescidos de 2 dias ao ano, para os quais o trabalhador nem requer o benefício da Previdência - conforme SINAPI)
C31: G | D31: Adicional de Férias (componente do Submódulo 2.1) | E31: =ROUND(1/3*1/11,4) -> 0.0303 | G31: * Nota 7 - O adicional de férias contido no Submódulo 2.1 corresponde a 1/3 da remuneração que, por sua vez, é dividida por 12 contome Nota 1.
C32: H | D32: 13º Salário (destacado na planilha de custos) | E32: 0.0833 | G32: * Nota 8 - Provisiona-se, mensalmente, o proporcional a 1/12 dos valores referentes a gratificação natalina e adicional de férias.
C33: I | D33: Intervalo para repouso ou alimentação (componente do Submódulo 4.2) | E33: 0
B35: GRUPO C: Encargos Sociais Relacionados à Previsão para Rescisão Trabalhista | E35: =ROUND(SUM(E36:E41),4) -> 0.0464
C36: A | D36: Aviso Prévio Indenizado (Art. 7º, inciso XXI, da CF/1988 e arts. 477, 487, §1º, e 491 da CLT) | E36: =ROUND(0.035*30/300,4) -> 0.0035 | G36: * Nota 1 - Considerou-se 3,5% de demitidos sem justa causa ao ano e recebendo aviso indenizado
C37: B | D37: Incidência do FGTS sobre o Aviso Prévio Indenizado (Súmula 305 TST) | E37: =ROUND(E21*E36,4) -> 0.0003
C38: C | D38: Multa do FGTS e Contribuição Social sobre o Aviso Prévio Indenizado (Art. 18, §1º, da Lei 8.036/1990 e art. 1º da LC nº 110/2001) | E38: =ROUND(0.4*E21*0.035,4) -> 0.0011 | G38: * Nota 2 - Incide sobre a Remuneração + 13º salário (1/12) + Férias (1/12) + Adicional de Férias (1/36) x 40% multa para o empregador x 8% FGTS x taxa de rotatividade estimada 3,5%
C39: D | D39: Aviso Prévio Trabalhado (Art. 488, parágrafo único, CLT) | E39: =ROUND((7/360)*12/30,4) -> 0.0078 | G39: * Nota 3 - Considerou-se demissões de 100% ao final do contrato, com um prazo médio estimado de 30 meses
C40: E | D40: Incidência de GPS, FGTS e outras contribuições sobre o Aviso Prévio Trabalhado | E40: =ROUND(E39*E13,4) -> 0.0028
C41: F | D41: Multa do FGTS e Contribuição Social sobre o Aviso Prévio Trabalhado | E41: =ROUND((0.4*E21*(1-0.035)),4) -> 0.0309 | G41: * Nota 4 - Incide sobre a Remuneração + 13º salário (1/12) + Férias (1/12) + Adicional de Férias (1/36) x 40% multa para o empregador x 8% FGTS x (1- taxa de rotatividade estimada Nota2)
B43: GRUPO D: Reincidências | E43: =ROUND(SUM(E44:E44),4) -> 0.0804
C44: A | D44: Reincidência do Grupo A sobre o Grupo B | E44: =ROUND(E13*E24,4) -> 0.0804
D46: SOMATÓRIO - ENCARGOS SOCIAIS SOBRE A MÃO DE OBRA | E46: =E43+E35+E24+E13 -> 0.7093

Sheet Encargos Sociais - HE
B4: ENCARGOS SOCIAIS SOBRE A MÃO DE OBRA
E5: Percentuais
B7: Referência:
C8: SINAPI/MPU
B10: Categorias:
C11: TODAS, EXCETO PLANTONISTAS
B13: GRUPO A: Encargos Sociais Básicos - Previdenciários (GPS), Fundo de Garantia por Tempo de Serviço (FGTS) e Outras Contribuições | E13: =ROUND(SUM(E14:E22),4) -> 0.358
C14: A | D14: INSS (art. 22, inciso I, Lei nº 8.212/91) | E14: 0.2
C15: B | D15: Salário Educação (art. 3º, inciso I, Decreto nº 87.043/82) | E15: 0.025 | G15: * Nota 1 - Os percentuais dos encargos previdenciários, do FGTS e demais contribuições são estabelecidos por legislação vigente.
C16: C | D16: SAT/RAT (art. 22, II, Lei 8.212/91 e Anexo V, Decreto 6.042/07) - Enquadramento 9103-1/00 | E16: 0.01 | G16: * Nota 2 - O SAT, a depender do grau de risco do serviço, irá variar entre 1%, para risco leve, de 2%, para risco médio, e de 3% para risco grave.
C17: D | D17: SESC ou SESI (art. 30, Lei nº 8.036/90 e art. 1º, Lei 8.154/90) | E17: 0.015 | G17: * Nota 3 - Os percentuais do Submódulo 2.2 incidem sobre o Módulo 1, o Submódulo 2.1, o Módulo 3, o Módulo 4 e o Módulo 6.
C18: E | D18: SENAI ou SENAC (Decreto nº 2.318/86) | E18: 0.01
C19: F | D19: SEBRAE (§ 3º, art. 8º, Lei 8.029/90, alterada pela Lei nº 8.154/90) | E19: 0.006
C20: G | D20: INCRA (art. 1º, I, Decreto Lei 1.146/70 e Lei 7.787, de 30/06/89) | E20: 0.002
C21: H | D21: FGTS (Lei Complementar nº 110/01 e art. 30, Lei nº 8.036/90) | E21: 0.08
C22: I | D22: SECONCI (Convenções Coletivas de Trabalho da construção) | E22: 0.01
B24: GRUPO B: Encargos Sociais Relacionados ao Custo do Profissional Ausente - Ausências Legais | E24: =ROUND(SUM(E25:E33),4) -> 0.3912
C25: A | D25: Férias (Arts. 129 e 130, inc. I, da CLT) | E25: =ROUND(1/11,4) -> 0.0909 | G25: * Nota 1 - As alíneas “A” a “F” referem-se somente ao custo que será pago ao repositor pelos dias trabalhados quando da necessidade de substituir a mão de obra alocada na prestação do serviço.
C26: B | D26: Ausências Legais (Arts. 131 e 473 da CLT) | E26: =ROUND(2/252,4) -> 0.0079 | G26: * Nota 2 - Adotou-se a estimativa do SINAPI de 2 dias por ano. Em 252 dias úteis por ano.
C27: C | D27: Licença-Paternidade (Art. 7º, XIX, e art. 10, §1º, do ADCT, CF/1988 e Art. 1º, II, da Lei 11.770/2008) | E27: =ROUND((5/(30*12))*0.0596,4) -> 0.0008 | G27: * Nota 3 - Utilizada a proporção de 50% para homens, 5 dias de afastamento, e a probabilidade de um trabalhador requerer a Licença Paternidade em 5,96%, conforme SINAPI (Anuário Estatístico da Previdência Social - 2017)
C28: D | D28: Ausência por Acidente de Trabalho (Art. 131, III, da CLT) | E28: =ROUND(0.0205*15/360,4) -> 0.0009 | G28: * Nota 4 - Utilzada a estatística de 2,05% dos contribuintes beneficiados com a emissão do auxílio, conforme Anuário Estatístico da Previdência Social. Afastamento de 15 dias a cargo da empresa.
C29: E | D29: Afastamento Maternidade (Art. 71 da Lei nº 8.213/1991) | E29: =ROUND(0.0508*(120/360)*(30+30*4/3)/360,4) -> 0.0033 | G29: * Nota 5 - Utilizada a estimativa de 120 dias de afastamento, e a probabilidade de uma trabalhadora requerer a Licença Maternidade em 5,08%, conforme SINAPI (citando dados do IBGE 2017) - A própria previdência paga o benefício pelos 120 dias, contudo o empregador arca com o 13º e com as férias
C30: F | D30: Auxílio Enfermidade - Doença (Art. 59 da Lei nº 8.213/1991) | E30: =ROUND(((0.0376*15)+2)/360,4) -> 0.0071 | G30: * Nota 6 - Utilizada a estatística de 3,76% dos contribuintes beneficiados com o auxílio, conforme Anuário Estatístico da Previdência Social de 2016 (acrescidos de 2 dias ao ano, para os quais o trabalhador nem requer o benefício da Previdência - conforme SINAPI)
C31: G | D31: Adicional de Férias (componente do Submódulo 2.1) | E31: =ROUND(1/3*1/11,4) -> 0.0303 | G31: * Nota 7 - O adicional de férias contido no Submódulo 2.1 corresponde a 1/3 da remuneração que, por sua vez, é dividida por 12 contome Nota 1.
C32: H | D32: 13º Salário (destacado na planilha de custos) | E32: 0.0833 | G32: * Nota 8 - Provisiona-se, mensalmente, o proporcional a 1/12 dos valores referentes a gratificação natalina e adicional de férias.
C33: I | D33: Repouso Semanal Remunerado (DSR) | E33: =5/30 -> 0.1666666667
B35: GRUPO C: Encargos Sociais Relacionados à Previsão para Rescisão Trabalhista | E35: =ROUND(SUM(E36:E41),4) -> 0.0464
C36: A | D36: Aviso Prévio Indenizado (Art. 7º, inciso XXI, da CF/1988 e arts. 477, 487, §1º, e 491 da CLT) | E36: =ROUND(0.035*30/300,4) -> 0.0035 | G36: * Nota 1 - Considerou-se 3,5% de demitidos sem justa causa ao ano e recebendo aviso indenizado
C37: B | D37: Incidência do FGTS sobre o Aviso Prévio Indenizado (Súmula 305 TST) | E37: =ROUND(E21*E36,4) -> 0.0003
C38: C | D38: Multa do FGTS e Contribuição Social sobre o Aviso Prévio Indenizado (Art. 18, §1º, da Lei 8.036/1990 e art. 1º da LC nº 110/2001) | E38: =ROUND(0.4*E21*0.035,4) -> 0.0011 | G38: * Nota 2 - Incide sobre a Remuneração + 13º salário (1/12) + Férias (1/12) + Adicional de Férias (1/36) x 40% multa para o empregador x 8% FGTS x taxa de rotatividade estimada 3,5%
C39: D | D39: Aviso Prévio Trabalhado (Art. 488, parágrafo único, CLT) | E39: =ROUND((7/360)*12/30,4) -> 0.0078 | G39: * Nota 3 - Considerou-se demissões de 100% ao final do contrato, com um prazo médio estimado de 30 meses
C40: E | D40: Incidência de GPS, FGTS e outras contribuições sobre o Aviso Prévio Trabalhado | E40: =ROUND(E39*E13,4) -> 0.0028
C41: F | D41: Multa do FGTS e Contribuição Social sobre o Aviso Prévio Trabalhado | E41: =ROUND((0.4*E21*(1-0.035)),4) -> 0.0309 | G41: * Nota 4 - Incide sobre a Remuneração + 13º salário (1/12) + Férias (1/12) + Adicional de Férias (1/36) x 40% multa para o empregador x 8% FGTS x (1- taxa de rotatividade estimada Nota2)
B43: GRUPO D: Reincidências | E43: =ROUND(SUM(E44:E44),4) -> 0.14
C44: A | D44: Reincidência do Grupo A sobre o Grupo B | E44: =ROUND(E13*E24,4) -> 0.14
D46: SOMATÓRIO - ENCARGOS SOCIAIS SOBRE A MÃO DE OBRA | E46: =E43+E35+E24+E13 -> 0.9356

Sheet Encargos Sociais - Plant
B4: ENCARGOS SOCIAIS SOBRE A MÃO DE OBRA
E5: Percentuais
B7: Referência:
C8: SINAPI/MPU
B10: Categorias:
C11: 8, 9, 13, 14
B13: GRUPO A: Encargos Sociais Básicos - Previdenciários (GPS), Fundo de Garantia por Tempo de Serviço (FGTS) e Outras Contribuições | E13: =ROUND(SUM(E14:E22),4) -> 0.358
C14: A | D14: INSS (art. 22, inciso I, Lei nº 8.212/91) | E14: 0.2
C15: B | D15: Salário Educação (art. 3º, inciso I, Decreto nº 87.043/82) | E15: 0.025 | G15: * Nota 1 - Os percentuais dos encargos previdenciários, do FGTS e demais contribuições são estabelecidos por legislação vigente.
C16: C | D16: SAT/RAT (art. 22, II, Lei 8.212/91 e Anexo V, Decreto 6.042/07) - Enquadramento 9103-1/00 | E16: 0.01 | G16: * Nota 2 - O SAT, a depender do grau de risco do serviço, irá variar entre 1%, para risco leve, de 2%, para risco médio, e de 3% para risco grave.
C17: D | D17: SESC ou SESI (art. 30, Lei nº 8.036/90 e art. 1º, Lei 8.154/90) | E17: 0.015 | G17: * Nota 3 - Os percentuais do Submódulo 2.2 incidem sobre o Módulo 1, o Submódulo 2.1, o Módulo 3, o Módulo 4 e o Módulo 6.
C18: E | D18: SENAI ou SENAC (Decreto nº 2.318/86) | E18: 0.01
C19: F | D19: SEBRAE (§ 3º, art. 8º, Lei 8.029/90, alterada pela Lei nº 8.154/90) | E19: 0.006
C20: G | D20: INCRA (art. 1º, I, Decreto Lei 1.146/70 e Lei 7.787, de 30/06/89) | E20: 0.002
C21: H | D21: FGTS (Lei Complementar nº 110/01 e art. 30, Lei nº 8.036/90) | E21: 0.08
C22: I | D22: SECONCI (Convenções Coletivas de Trabalho da construção) | E22: 0.01
B24: GRUPO B: Encargos Sociais Relacionados ao Custo do Profissional Ausente - Ausências Legais | E24: =ROUND(SUM(E25:E33),4) -> 0.2578
C25: A | D25: Férias (Arts. 129 e 130, inc. I, da CLT) | E25: =ROUND(1/11,4) -> 0.0909 | G25: * Nota 1 - As alíneas “A” a “F” referem-se somente ao custo que será pago ao repositor pelos dias trabalhados quando da necessidade de substituir a mão de obra alocada na prestação do serviço.
C26: B | D26: Ausências Legais (Arts. 131 e 473 da CLT) | E26: =ROUND(2/252,4) -> 0.0079 | G26: * Nota 2 - Adotou-se a estimativa do SINAPI de 2 dias por ano. Em 252 dias úteis por ano.
C27: C | D27: Licença-Paternidade (Art. 7º, XIX, e art. 10, §1º, do ADCT, CF/1988 e Art. 1º, II, da Lei 11.770/2008) | E27: =ROUND((5/(30*12))*0.0596,4) -> 0.0008 | G27: * Nota 3 - Utilizada a proporção de 50% para homens, 5 dias de afastamento, e a probabilidade de um trabalhador requerer a Licença Paternidade em 5,96%, conforme SINAPI (Anuário Estatístico da Previdência Social - 2017)
C28: D | D28: Ausência por Acidente de Trabalho (Art. 131, III, da CLT) | E28: =ROUND(0.0205*15/360,4) -> 0.0009 | G28: * Nota 4 - Utilzada a estatística de 2,05% dos contribuintes beneficiados com a emissão do auxílio, conforme Anuário Estatístico da Previdência Social. Afastamento de 15 dias a cargo da empresa.
C29: E | D29: Afastamento Maternidade (Art. 71 da Lei nº 8.213/1991) | E29: =ROUND(0.0508*(120/360)*(30+30*4/3)/360,4) -> 0.0033 | G29: * Nota 5 - Utilizada a estimativa de 120 dias de afastamento, e a probabilidade de uma trabalhadora requerer a Licença Maternidade em 5,08%, conforme SINAPI (citando dados do IBGE 2017) - A própria previdência paga o benefício pelos 120 dias, contudo o empregador arca com o 13º e com as férias
C30: F | D30: Auxílio Enfermidade - Doença (Art. 59 da Lei nº 8.213/1991) | E30: =ROUND(((0.0376*15)+2)/360,4) -> 0.0071 | G30: * Nota 6 - Utilizada a estatística de 3,76% dos contribuintes beneficiados com o auxílio, conforme Anuário Estatístico da Previdência Social de 2016 (acrescidos de 2 dias ao ano, para os quais o trabalhador nem requer o benefício da Previdência - conforme SINAPI)
C31: G | D31: Adicional de Férias (componente do Submódulo 2.1) | E31: =ROUND(1/3*1/11,4) -> 0.0303 | G31: * Nota 7 - O adicional de férias contido no Submódulo 2.1 corresponde a 1/3 da remuneração que, por sua vez, é dividida por 12 contome Nota 1.
C32: H | D32: 13º Salário (destacado na planilha de custos) | E32: 0.0833 | G32: * Nota 8 - Provisiona-se, mensalmente, o proporcional a 1/12 dos valores referentes a gratificação natalina e adicional de férias.
C33: I | D33: Feriados remunerados (plantonistas) | E33: =12/360 -> 0.03333333333 | G33: * Nota 9 - Em média, 12 feriados anuais
B35: GRUPO C: Encargos Sociais Relacionados à Previsão para Rescisão Trabalhista | E35: =ROUND(SUM(E36:E41),4) -> 0.0464
C36: A | D36: Aviso Prévio Indenizado (Art. 7º, inciso XXI, da CF/1988 e arts. 477, 487, §1º, e 491 da CLT) | E36: =ROUND(0.035*30/300,4) -> 0.0035 | G36: * Nota 1 - Considerou-se 3,5% de demitidos sem justa causa ao ano e recebendo aviso indenizado
C37: B | D37: Incidência do FGTS sobre o Aviso Prévio Indenizado (Súmula 305 TST) | E37: =ROUND(E21*E36,4) -> 0.0003
C38: C | D38: Multa do FGTS e Contribuição Social sobre o Aviso Prévio Indenizado (Art. 18, §1º, da Lei 8.036/1990 e art. 1º da LC nº 110/2001) | E38: =ROUND(0.4*E21*0.035,4) -> 0.0011 | G38: * Nota 2 - Incide sobre a Remuneração + 13º salário (1/12) + Férias (1/12) + Adicional de Férias (1/36) x 40% multa para o empregador x 8% FGTS x taxa de rotatividade estimada 3,5%
C39: D | D39: Aviso Prévio Trabalhado (Art. 488, parágrafo único, CLT) | E39: =ROUND((7/360)*12/30,4) -> 0.0078 | G39: * Nota 3 - Considerou-se demissões de 100% ao final do contrato, com um prazo médio estimado de 30 meses
C40: E | D40: Incidência de GPS, FGTS e outras contribuições sobre o Aviso Prévio Trabalhado | E40: =ROUND(E39*E13,4) -> 0.0028
C41: F | D41: Multa do FGTS e Contribuição Social sobre o Aviso Prévio Trabalhado | E41: =ROUND((0.4*E21*(1-0.035)),4) -> 0.0309 | G41: * Nota 4 - Incide sobre a Remuneração + 13º salário (1/12) + Férias (1/12) + Adicional de Férias (1/36) x 40% multa para o empregador x 8% FGTS x (1- taxa de rotatividade estimada Nota2)
B43: GRUPO D: Reincidências | E43: =ROUND(SUM(E44:E44),4) -> 0.0923
C44: A | D44: Reincidência do Grupo A sobre o Grupo B | E44: =ROUND(E13*E24,4) -> 0.0923
D46: SOMATÓRIO - ENCARGOS SOCIAIS SOBRE A MÃO DE OBRA | E46: =E43+E35+E24+E13 -> 0.7545

Sheet BDI - Geral
B4: COMPOSIÇÃO DA TAXA DE CUSTOS INDIRETOS, TRIBUTOS E LUCRO - BDI
B5: APLICAÇÃO: MÃO DE OBRA, 13º, HORAS EXTRAS (SOB DEMANDA), SREP, EPI, UNIFORMES, FERRAMENTAS, EQUIPAMENTOS, MATERIAIS DE CONSUMO,PROFISSIONAIS NÃO RESIDENTES, VEÍCULOS E SERVIÇOS ADICIONAIS | E5: Percentuais
B7: Custos Indiretos da Contratada | E7: =SUM(E8:E9) -> 0.0357
C8: A | D8: Administração Central - Inclui despesas para o atendimento às exigências da NR-04 | E8: 0.0303 | G8: * Nota 1 - O Somatório da Administração Central com o Lucro deve ser inferior a 12%
C9: B | D9: Seguros, Garantias e Riscos | E9: =0.34%+0.2% -> 0.0054 | G9: * Nota 2 - O risco previsto para o porte do contrato majorado em mais 0,20% devido ao não pagamento dos insumos componentes do custo do posto quando da ausência do mesmo.
B11: Lucro | E11: =SUM(E12:E12) -> 0.04
C12: A | D12: Lucro Real sobre os Custos Administrados | E12: 0.04
B14: Despesas Financeiras | E14: =E15 -> 0.0051
C15: A | D15: Cálculo Baseado no Prazo para a Restituição dos Desembolsos Realizados pelo Contratado e na Taxa de Retorno Arbitrada | E15: =ROUND((1+E17)^(E16/252)-1,4) -> 0.0051 | G15: * Nota 1 - DF = [(1+TR)^(DU/252)]/100
C16: A.1 | D16: Dias Úteis Considerados | E16: 11 | G16: * Nota 2 - Diferença de dias entre o desembolso, pelo contratado, e o pagamento, pela Câmara
C17: A.2 | D17: Taxa de Retorno | E17: 0.1225 | G17: * Nota 3 - A taxa sugerida é a meta da SELIC
B19: Impostos - Tributos Federais | E19: =SUM(E20:E22) -> 0.074
C20: A | D20: Contribuição para o Financiamento da Seguridade Social - COFINS | E20: =ROUND(0.8*7.6%,4) -> 0.0608 | G20: * Nota 1 - Redução de 20% considerando as deduções permitidas em Lei, conforme SENGE, citado pelo TCU - Acórdão 2622/2013
C21: B | D21: Programa de Integração Social - PIS | E21: =ROUND(0.8*1.65%,4) -> 0.0132 | G21: * Nota 2 - Redução de 20% considerando as deduções permitidas em Lei, conforme SENGE, citado pelo TCU - Acórdão 2622/2013
C22: C | D22: Contribuição Previdenciária sobre a Receita Bruta - CPRB | E22: 0 | G22: * Nota 3 - Lei 12.546/2011 - Verificar atualizações e setores beneficiados
B24: Impostos - Tributos Distritais | E24: =SUM(E25:E25) -> 0.05
C25: A | D25: Imposto sobre Serviço de Qualquer Natureza - ISS | E25: 0.05 | G25: * Nota 1 - Adotada a alíquota de 5% considerando o enquadramento como fornecimento de mão de obra contratada pelo prestador, serviço previsto no item 17.05 do Manual do Substitutivo Tributário do ISS/DF e artigo 27 do Decreto 25.508/2005 do GDF
D27: SOMATÓRIO - BDI | E27: =ROUND((((1+E7)*(1+E11)*(1+E14)/(1-E19-E24))-1),4) -> 0.2359 | G27: * Nota 1 - [(1+AC+SGR)*(1+L)*(1+DF)/(1-CONFINS-PIS-CPRB-ISS)]-1

Sheet BDI - Demanda
B4: COMPOSIÇÃO DA TAXA DE CUSTOS INDIRETOS, TRIBUTOS E LUCRO - BDI
B5: APLICAÇÃO: TRANSPORTE POR CHAMADO (SOB DEMANDA), MATERIAIS E SERVIÇOS PARA INSTALAÇÃO (SOB DEMANDA), MATERIAIS E SERVIÇOS PARA MANUTENÇÃO CORRETIVA (SOB DEMANDA) | E5: Percentuais
B7: Custos Indiretos da Contratada | E7: =SUM(E8:E9) -> 0.0207
C8: A | D8: Administração Central - Inclui despesas para o atendimento às exigências da NR-04 | E8: 0.0173 | G8: * Nota 1 - O Somatório da Administração Central com o Lucro deve ser inferior a 12%
C9: B | D9: Seguros, Garantias e Riscos | E9: =0.34% -> 0.0034
B11: Lucro | E11: =SUM(E12:E12) -> 0.0267
C12: A | D12: Lucro Real sobre os Custos Administrados | E12: 0.0267
B14: Despesas Financeiras | E14: =E15 -> 0.0051
C15: A | D15: Cálculo Baseado no Prazo para a Restituição dos Desembolsos Realizados pelo Contratado e na Taxa de Retorno Arbitrada | E15: =ROUND((1+E17)^(E16/252)-1,4) -> 0.0051 | G15: * Nota 1 - DF = [(1+TR)^(DU/252)]/100
C16: A.1 | D16: Dias Úteis Considerados | E16: 11 | G16: * Nota 2 - Diferença de dias entre o desembolso, pelo contratado, e o pagamento, pela Câmara
C17: A.2 | D17: Taxa de Retorno | E17: 0.1225 | G17: * Nota 3 - A taxa sugerida é a meta da SELIC
B19: Impostos - Tributos Federais | E19: =SUM(E20:E22) -> 0.0093
C20: A | D20: Contribuição para o Financiamento da Seguridade Social - COFINS | E20: =ROUND(7.6%*10%,4) -> 0.0076 | G20: * Nota 1 - Redução da base de cálculo para 10%, equivalente à estimativa de valor agregado sobre os itens sob demanda.
C21: B | D21: Programa de Integração Social - PIS | E21: =ROUND(1.65%*10%,4) -> 0.0017 | G21: * Nota 2 - Redução da base de cálculo para 10%, equivalente à estimativa de valor agregado sobre os itens sob demanda.
C22: C | D22: Contribuição Previdenciária sobre a Receita Bruta - CPRB | E22: 0 | G22: * Nota 3 - Lei 12.546/2011 - Verificar atualizações e setores beneficiados
B24: Impostos - Tributos Distritais | E24: =SUM(E25:E25) -> 0.05
C25: A | D25: Imposto sobre Serviço de Qualquer Natureza - ISS | E25: 0.05 | G25: * Nota 1 - Adotada a alíquota de 5% considerando o enquadramento como fornecimento de mão de obra contratada pelo prestador, serviço previsto no item 17.05 do Manual do Substitutivo Tributário do ISS/DF e artigo 27 do Decreto 25.508/2005 do GDF
D27: SOMATÓRIO - BDI | E27: =ROUND((((1+E7)*(1+E11)*(1+E14)/(1-E19-E24))-1),4) -> 0.1197 | G27: * Nota 1 - [(1+AC+SGR)*(1+L)*(1+DF)/(1-CONFINS-PIS-CPRB-ISS)]-1

Sheet EPI - Rel
B3: EPI - EQUIPAMENTOS DE PROTEÇÃO INDIVIDUAL - AQUISIÇÃO
C6: CATEGORIAS | G6: QUANTIDADE
C8: 2 | D8: SUPERVISOR DE MANUTENÇÃO ELETROMECÂNICA | G8: 4 | I8: =SUM(I11:I22) -> 668.45 | J8: =ROUND(I8/12,2) -> 55.7
C10: ITEM | D10: DESCRIÇÃO | E10: QUANT ANUAL/ POSTO DE TRABALHO | F10: UNIDADE | G10: VALOR
C12: 1 | D12: Protetor auditivo, do tipo inserção pré-moldado, de silicone, lavável, com cordão e tamanho único, com proteção mínima de 18 dB(A) de atenuação pelo método NRRsf. Ref: 3M | E12: 3 | F12: UND | G12: 5.2 | I12: =ROUND(E12*G12,2) -> 15.6
C13: 2 | D13: Protetor auditivo, do tipo concha, constituído por duas conchas em plásticos, apresentando almofadas de espuma em suas laterais e em seu interior, haste de sustentação (acima da cabeça) em plástico rígido almofadado e metal que mantém as conchas seladas contra a região das orelhas do usuário e que sustenta as conchas. Atenuação mínima de 20 dB(A) pelo método NRRsf. Ref.: 3M modelo Muffler | E13: 1 | F13: UND | G13: 87.01 | I13: 87.01
C14: 3 | D14: Óculos de segurança constituídos de armação e visor confeccionados em uma única peça de policarbonato INCOLOR, anti-risco, apoio nasal de plástico maleável ou elastômero. Hastes tipo espátula confeccionadas de material plástico, com acabamento emborrachado, articuladas através de parafusos metálicos. Resistente a alto impacto, devendo apresentar a marcação na lente em conformidade com a norma ANSI/ISEA Z87.1-2015. Ref.: 3M, modelo Securefit 400. | E14: 1 | F14: UND | G14: 55.83 | I14: 55.83
C15: 4 | D15: Óculos de segurança constituídos de armação e visor confeccionados em uma única peça de policarbonato CINZA, anti-risco, apoio nasal de plástico maleável ou elastômero. Hastes tipo espátula confeccionadas de material plástico, com acabamento emborrachado, articuladas através de parafusos metálicos. Resistente a alto impacto, devendo apresentar a marcação na lente em conformidade com a norma ANSI/ISEA Z87.1-2015. Ref.: 3M, modelo Securefit 400. | E15: 1 | F15: UND | G15: 59.02 | I15: 59.02
C16: 5 | D16: Capacete de segurança em polietileno de alta densidade, na cor BRANCA, com aba frontal, casco com nervuras, suspensão em tecido, com Faixa anti-suor, regulagem de tamanho com ajuste simples, com jugular ajustável, proteção contra riscos elétricos. Ref.: MSA | E16: 1 | F16: UND | G16: 82.76 | I16: 82.76
C17: 6 | D17: Respirador purificador de ar tipo, peça semifacial filtrante para partículas (PFF2), com formato dobrável, solda ultra-sônica em todo o seu perímetro. Fita elástica branca fixada nas laterais externas do respirador, perfazendo uma alça na para fixação na parte superior da cabeça e a outra na parte inferior, para fixação na altura da nuca do usuário. A parte superior externa da peça possui tira de material metálico moldável, utilizada para ajuste no septo nasal. Na face lateral do respirador existe um dispositivo de material plástico, dotado internamente de uma válvula de exalação. DEVERÁ APRESENTAR O SELO DE APROVAÇÃO DO INMETRO. Ref.: 3M | E17: 4 | F17: UND | G17: 5.92 | I17: 23.68
C18: 7 | D18: Luva de segurança confeccionada em vaqueta, com formato de 05 dedos, reforço na palma, reforço na costura entre o polegar e o indicador e entre os dedos anelares, punho curto (7 a 10 cm), elastico de ajuste no dorso. Ref. Plascouro | E18: 1 | F18: PARES | G18: 18.02 | I18: 18.02
C19: 8 | D19: Luva de malha pigmentada, tricotada em 4 fios de algodão e poliéster, com pigmentos em PVC antiderrapante na palma e face dos dedos, acabamento em overloque e punho com elástico, na cor branca. Marca SuperSafety | E19: 1 | F19: PARES | G19: 4.04 | I19: 4.04
C20: 9 | D20: Botina de segurança confeccionada em couro nobuck e material têxtil; proteção contra risco elétrico; fechamento em cadarço; colarinho acolchoado; forração em tecido transpirável; palmilha de montagem em não tecido costurada/fixada junto ao cabedal; biqueira em composite; solado em PU bidensidade bicolor com sistema de absorção de impacto, injetado diretamente no cabedal; resistência ao escorregamento SRC. Cor preta ou marrom escura (café). Ref.: Bracol, modelo Dubai. | E20: 2 | F20: PARES | G20: 147.68 | I20: 295.36
C21: 10 | D21: Boné tipo Árabe confeccionado em helanca com viés na aba, elástico interno traseiro para ajuste de tamanho, fechamento da saia em velcro. MARCA(S) DE REFERÊNCIA: Nexus | E21: 1 | F21: UND | G21: 11.61 | I21: 11.61
C22: 11 | D22: Creme protetor para pele. Luva químina 3 em 1. Proteção contra os produtos químicos: tintas, solventes, graxas, óleos, colas, poeiras e resinas. Resistente a água, óleo e tinta. Sem solicone. Com brnaqueador ótico. Grupo 3. Bisnaga de 200g. Ref.: Luvex Special CA 11070 | E22: 1 | F22: UND | G22: 15.52 | I22: 15.52
I23: 0
C24: CATEGORIAS | G24: QUANTIDADE
C26: 1 | D26: COORDENADOR DE SERVIÇOS DE MANUTENÇÃO | G26: 1 | I26: =SUM(I29:I40) -> 915.81 | J26: =ROUND(I26/12,2) -> 76.32
C28: ITEM | D28: DESCRIÇÃO | E28: QUANT ANUAL/ POSTO DE TRABALHO | F28: UNIDADE | G28: VALOR
C30: 1 | D30: Protetor auditivo, do tipo inserção pré-moldado, de silicone, lavável, com cordão e tamanho único, com proteção mínima de 18 dB(A) de atenuação pelo método NRRsf. Ref: 3M | E30: 4 | F30: UND | G30: 5.2 | I30: =ROUND(E30*G30,2) -> 20.8
C31: 2 | D31: Protetor auditivo, do tipo concha, constituído por duas conchas em plásticos, apresentando almofadas de espuma em suas laterais e em seu interior, haste de sustentação (acima da cabeça) em plástico rígido almofadado e metal que mantém as conchas seladas contra a região das orelhas do usuário e que sustenta as conchas. Atenuação mínima de 20 dB(A) pelo método NRRsf. Ref.: 3M modelo Muffler | E31: 2 | F31: UND | G31: 87.01 | I31: 174.02
C32: 3 | D32: Óculos de segurança constituídos de armação e visor confeccionados em uma única peça de policarbonato INCOLOR, anti-risco, apoio nasal de plástico maleável ou elastômero. Hastes tipo espátula confeccionadas de material plástico, com acabamento emborrachado, articuladas através de parafusos metálicos. Resistente a alto impacto, devendo apresentar a marcação na lente em conformidade com a norma ANSI/ISEA Z87.1-2015. Ref.: 3M, modelo Securefit 400. | E32: 2 | F32: UND | G32: 55.83 | I32: 111.66
C33: 4 | D33: Óculos de segurança constituídos de armação e visor confeccionados em uma única peça de policarbonato CINZA, anti-risco, apoio nasal de plástico maleável ou elastômero. Hastes tipo espátula confeccionadas de material plástico, com acabamento emborrachado, articuladas através de parafusos metálicos. Resistente a alto impacto, devendo apresentar a marcação na lente em conformidade com a norma ANSI/ISEA Z87.1-2015. Ref.: 3M, modelo Securefit 400. | E33: 2 | F33: UND | G33: 59.02 | I33: 118.04
C34: 5 | D34: Capacete de segurança em polietileno de alta densidade, na cor BRANCA, com aba frontal, casco com nervuras, suspensão em tecido, com Faixa anti-suor, regulagem de tamanho com ajuste simples, com jugular ajustável, proteção contra riscos elétricos. Ref.: MSA | E34: 1 | F34: UND | G34: 82.76 | I34: 82.76
C35: 6 | D35: Respirador purificador de ar tipo, peça semifacial filtrante para partículas (PFF2), com formato dobrável, solda ultra-sônica em todo o seu perímetro. Fita elástica branca fixada nas laterais externas do respirador, perfazendo uma alça na para fixação na parte superior da cabeça e a outra na parte inferior, para fixação na altura da nuca do usuário. A parte superior externa da peça possui tira de material metálico moldável, utilizada para ajuste no septo nasal. Na face lateral do respirador existe um dispositivo de material plástico, dotado internamente de uma válvula de exalação. DEVERÁ APRESENTAR O SELO DE APROVAÇÃO DO INMETRO. Ref.: 3M | E35: 4 | F35: UND | G35: 5.92 | I35: 23.68
C36: 7 | D36: Luva de segurança confeccionada em vaqueta, com formato de 05 dedos, reforço na palma, reforço na costura entre o polegar e o indicador e entre os dedos anelares, punho curto (7 a 10 cm), elastico de ajuste no dorso. Ref. Plascouro | E36: 1 | F36: PARES | G36: 18.02 | I36: 18.02
C37: 8 | D37: Luva de malha pigmentada, tricotada em 4 fios de algodão e poliéster, com pigmentos em PVC antiderrapante na palma e face dos dedos, acabamento em overloque e punho com elástico, na cor branca. Marca SuperSafety | E37: 1 | F37: PARES | G37: 4.04 | I37: 4.04
C38: 9 | D38: Bota em PVC, impermeável, forrada internamente, cano médio, resistência ao escorregamento do solado SRC. Ref. MARLUVAS | E38: 1 | F38: PARES | G38: 55.82 | I38: 55.82
C39: 10 | D39: Botina de segurança confeccionada em couro nobuck e material têxtil; proteção contra risco elétrico; fechamento em cadarço; colarinho acolchoado; forração em tecido transpirável; palmilha de montagem em não tecido costurada/fixada junto ao cabedal; biqueira em composite; solado em PU bidensidade bicolor com sistema de absorção de impacto, injetado diretamente no cabedal; resistência ao escorregamento SRC. Cor preta ou marrom escura (café). Ref.: Bracol, modelo Dubai. | E39: 2 | F39: PARES | G39: 147.68 | I39: 295.36
C40: 11 | D40: Boné tipo Árabe confeccionado em helanca com viés na aba, elástico interno traseiro para ajuste de tamanho, fechamento da saia em velcro. MARCA(S) DE REFERÊNCIA: Nexus | E40: 1 | F40: UND | G40: 11.61 | I40: 11.61
I41: 0
C42: CATEGORIAS | G42: QUANTIDADE
C44: 3 | D44: ENCARREGADO ELETROMECÂNICO DE INSTALAÇÕES | G44: 5 | I44: =SUM(I47:I57) -> 680.19 | J44: =ROUND(I44/12,2) -> 56.68
C46: ITEM | D46: DESCRIÇÃO | E46: QUANT ANUAL/ POSTO DE TRABALHO | F46: UNIDADE | G46: VALOR
I47: 0
C48: 1 | D48: Protetor auditivo, do tipo inserção pré-moldado, de silicone, lavável, com cordão e tamanho único, com proteção mínima de 18 dB(A) de atenuação pelo método NRRsf. Ref: 3M | E48: 4 | F48: UND | G48: 5.2 | I48: 20.8
C49: 2 | D49: Protetor auditivo, do tipo concha, constituído por duas conchas em plásticos, apresentando almofadas de espuma em suas laterais e em seu interior, haste de sustentação (acima da cabeça) em plástico rígido almofadado e metal que mantém as conchas seladas contra a região das orelhas do usuário e que sustenta as conchas. Atenuação mínima de 20 dB(A) pelo método NRRsf. Ref.: 3M modelo Muffler | E49: 1 | F49: UND | G49: 87.01 | I49: 87.01
C50: 3 | D50: Óculos de segurança constituídos de armação e visor confeccionados em uma única peça de policarbonato INCOLOR, anti-risco, apoio nasal de plástico maleável ou elastômero. Hastes tipo espátula confeccionadas de material plástico, com acabamento emborrachado, articuladas através de parafusos metálicos. Resistente a alto impacto, devendo apresentar a marcação na lente em conformidade com a norma ANSI/ISEA Z87.1-2015. Ref.: 3M, modelo Securefit 400. | E50: 1 | F50: UND | G50: 55.83 | I50: 55.83
C51: 4 | D51: Óculos de segurança constituídos de armação e visor confeccionados em uma única peça de policarbonato CINZA, anti-risco, apoio nasal de plástico maleável ou elastômero. Hastes tipo espátula confeccionadas de material plástico, com acabamento emborrachado, articuladas através de parafusos metálicos. Resistente a alto impacto, devendo apresentar a marcação na lente em conformidade com a norma ANSI/ISEA Z87.1-2015. Ref.: 3M, modelo Securefit 400. | E51: 1 | F51: UND | G51: 59.02 | I51: 59.02
C52: 5 | D52: Capacete de segurança em polietileno de alta densidade, na cor BRANCA, com aba frontal, casco com nervuras, suspensão em tecido, com Faixa anti-suor, regulagem de tamanho com ajuste simples, com jugular ajustável, proteção contra riscos elétricos. Ref.: MSA | E52: 1 | F52: UND | G52: 82.76 | I52: 82.76
C53: 6 | D53: Respirador purificador de ar tipo, peça semifacial filtrante para partículas (PFF2), com formato dobrável, solda ultra-sônica em todo o seu perímetro. Fita elástica branca fixada nas laterais externas do respirador, perfazendo uma alça na para fixação na parte superior da cabeça e a outra na parte inferior, para fixação na altura da nuca do usuário. A parte superior externa da peça possui tira de material metálico moldável, utilizada para ajuste no septo nasal. Na face lateral do respirador existe um dispositivo de material plástico, dotado internamente de uma válvula de exalação. DEVERÁ APRESENTAR O SELO DE APROVAÇÃO DO INMETRO. Ref.: 3M | E53: 4 | F53: UND | G53: 5.92 | I53: 23.68
C54: 7 | D54: Luva de segurança confeccionada em vaqueta, com formato de 05 dedos, reforço na palma, reforço na costura entre o polegar e o indicador e entre os dedos anelares, punho curto (7 a 10 cm), elastico de ajuste no dorso. Ref. Plascouro | E54: 2 | F54: PARES | G54: 18.02 | I54: 36.04
C55: 8 | D55: Luva de malha pigmentada, tricotada em 4 fios de algodão e poliéster, com pigmentos em PVC antiderrapante na palma e face dos dedos, acabamento em overloque e punho com elástico, na cor branca. Marca SuperSafety | E55: 2 | F55: PARES | G55: 4.04 | I55: 8.08
C56: 9 | D56: Botina de segurança confeccionada em couro nobuck e material têxtil; proteção contra risco elétrico; fechamento em cadarço; colarinho acolchoado; forração em tecido transpirável; palmilha de montagem em não tecido costurada/fixada junto ao cabedal; biqueira em composite; solado em PU bidensidade bicolor com sistema de absorção de impacto, injetado diretamente no cabedal; resistência ao escorregamento SRC. Cor preta ou marrom escura (café). Ref.: Bracol, modelo Dubai. | E56: 2 | F56: PARES | G56: 147.68 | I56: 295.36
C57: 10 | D57: Boné tipo Árabe confeccionado em helanca com viés na aba, elástico interno traseiro para ajuste de tamanho, fechamento da saia em velcro. MARCA(S) DE REFERÊNCIA: Nexus | E57: 1 | F57: UND | G57: 11.61 | I57: 11.61
I58: 0
C59: CATEGORIAS | G59: QUANTIDADE
C61: 4 | D61: MESTRE DE MANUTENÇÃO ELETRÔNICA | G61: 2 | I61: =SUM(I64:I77) -> 817.2 | J61: =ROUND(I61/12,2) -> 68.1
C63: ITEM | D63: DESCRIÇÃO | E63: QUANT ANUAL/ POSTO DE TRABALHO | F63: UNIDADE | G63: VALOR
I64: 0
C65: 1 | D65: Protetor auditivo, do tipo inserção pré-moldado, de silicone, lavável, com cordão e tamanho único, com proteção mínima de 18 dB(A) de atenuação pelo método NRRsf. Ref: 3M | E65: 4 | F65: UND | G65: 5.2 | I65: 20.8
C66: 2 | D66: Protetor auditivo, do tipo concha, constituído por duas conchas em plásticos, apresentando almofadas de espuma em suas laterais e em seu interior, haste de sustentação (acima da cabeça) em plástico rígido almofadado e metal que mantém as conchas seladas contra a região das orelhas do usuário e que sustenta as conchas. Atenuação mínima de 20 dB(A) pelo método NRRsf. Ref.: 3M modelo Muffler | E66: 1 | F66: UND | G66: 87.01 | I66: 87.01
C67: 3 | D67: Óculos de segurança constituídos de armação e visor confeccionados em uma única peça de policarbonato INCOLOR, anti-risco, apoio nasal de plástico maleável ou elastômero. Hastes tipo espátula confeccionadas de material plástico, com acabamento emborrachado, articuladas através de parafusos metálicos. Resistente a alto impacto, devendo apresentar a marcação na lente em conformidade com a norma ANSI/ISEA Z87.1-2015. Ref.: 3M, modelo Securefit 400. | E67: 1 | F67: UND | G67: 55.83 | I67: 55.83
C68: 4 | D68: Óculos de segurança constituídos de armação e visor confeccionados em uma única peça de policarbonato CINZA, anti-risco, apoio nasal de plástico maleável ou elastômero. Hastes tipo espátula confeccionadas de material plástico, com acabamento emborrachado, articuladas através de parafusos metálicos. Resistente a alto impacto, devendo apresentar a marcação na lente em conformidade com a norma ANSI/ISEA Z87.1-2015. Ref.: 3M, modelo Securefit 400. | E68: 1 | F68: UND | G68: 59.02 | I68: 59.02
C69: 5 | D69: CAPACETE DE SEGURANÇA, com carneira, sistema de ajuste perimetral e jugular, tipo III (sem aba); com casco rígido; sem porosidade; não deverá ser condutor de corrente elétrica; na cor vermelha Ref. Ultra Safe | E69: 1 | F69: UND | G69: 176.33 | I69: 176.33
C70: 6 | D70: Respirador purificador de ar tipo, peça semifacial filtrante para partículas (PFF2), com formato dobrável, solda ultra-sônica em todo o seu perímetro. Fita elástica branca fixada nas laterais externas do respirador, perfazendo uma alça na para fixação na parte superior da cabeça e a outra na parte inferior, para fixação na altura da nuca do usuário. A parte superior externa da peça possui tira de material metálico moldável, utilizada para ajuste no septo nasal. Na face lateral do respirador existe um dispositivo de material plástico, dotado internamente de uma válvula de exalação. DEVERÁ APRESENTAR O SELO DE APROVAÇÃO DO INMETRO. Ref.: 3M | E70: 4 | F70: UND | G70: 5.92 | I70: 23.68
C71: 7 | D71: Luva de segurança confeccionada em vaqueta, com formato de 05 dedos, reforço na palma, reforço na costura entre o polegar e o indicador e entre os dedos anelares, punho curto (7 a 10 cm), elastico de ajuste no dorso. Ref. Plascouro | E71: 2 | F71: PARES | G71: 18.02 | I71: 36.04
C72: 8 | D72: Luvas em poliuretano, cor preta, acabamento liso, com forro em poliamida, sem costura, punho tricotado c/ elástico. tamanho P, M e G. Ref. Promat modelo multitato 750 PT | E72: 2 | F72: PARES | G72: 4.03 | I72: 8.06
C73: 9 | D73: Luva de Vaqueta com punho de raspa de 20 cm, reforço na palma, polegar e indicador confeccionado em raspa. Possui elástico de ajuste no dorso. Ref.: LUVEQ | E73: 2 | F73: PARES | G73: 29.3 | I73: 58.6
C74: 10 | D74: Luva de malha pigmentada, tricotada em 4 fios de algodão e poliéster, com pigmentos em PVC antiderrapante na palma e face dos dedos, acabamento em overloque e punho com elástico, na cor branca. Marca SuperSafety | E74: 2 | F74: PARES | G74: 4.04 | I74: 8.08
C75: 11 | D75: Botina de segurança, fechamento em elástico (laterais), sem componentes metálicos, cabedal em couro curtido na cor preta, dorso acolchoado, palmilha de montagem em não tecido, palmilha de conforto em tecido antibactéria e antifungos, forração interna, BIQUEIRA EM COMPOSITE, solado de poliuretano bidensidade injetado diretamente ao cabedal, solado com perfil antiderrapante (SRC) e sistemas de absorção de impacto. Deverá possuir PROTEÇÃO CONTRA RISCO ELÉTRICO. Peso máximo (por pé de calçado) de 400g. Em conformidade com a ABNT NBR ISO 20345 e NBR 16603. Ref.: MARLUVAS | E75: 2 | F75: PARES | G75: 128.31 | I75: 256.62
C76: 12 | D76: Creme protetor para pele. Luva químina 3 em 1. Proteção contra os produtos químicos: tintas, solventes, graxas, óleos, colas, poeiras e resinas. Resistente a água, óleo e tinta. Sem solicone. Com brnaqueador ótico. Grupo 3. Bisnaga de 200g. Ref.: Luvex Special CA 11070 | E76: 1 | F76: UND | G76: 15.52 | I76: 15.52
C77: 13 | D77: Boné tipo Árabe confeccionado em helanca com viés na aba, elástico interno traseiro para ajuste de tamanho, fechamento da saia em velcro. MARCA(S) DE REFERÊNCIA: Nexus | E77: 1 | F77: UND | G77: 11.61 | I77: 11.61
I78: 0
C79: CATEGORIAS | G79: QUANTIDADE
C81: 6 | D81: MECÂNICO DE MÁQUINAS PESADAS - MANUTENÇÃO | G81: 26 | I81: =SUM(I84:I97) -> 853.89 | J81: =ROUND(I81/12,2) -> 71.16
C83: ITEM | D83: DESCRIÇÃO | E83: QUANT ANUAL/ POSTO DE TRABALHO | F83: UNIDADE | G83: VALOR
C84: 1 | D84: Protetor auditivo, do tipo inserção pré-moldado, de silicone, lavável, com cordão e tamanho único, com proteção mínima de 18 dB(A) de atenuação pelo método NRRsf. Ref: 3M | E84: 4 | F84: UND | G84: 5.2 | I84: 20.8
C85: 2 | D85: Protetor auditivo, do tipo concha, constituído por duas conchas em plásticos, apresentando almofadas de espuma em suas laterais e em seu interior, haste de sustentação (acima da cabeça) em plástico rígido almofadado e metal que mantém as conchas seladas contra a região das orelhas do usuário e que sustenta as conchas. Atenuação mínima de 20 dB(A) pelo método NRRsf. Ref.: 3M modelo Muffler | E85: 1 | F85: UND | G85: 87.01 | I85: 87.01
C86: 3 | D86: Óculos de segurança constituídos de armação e visor confeccionados em uma única peça de policarbonato INCOLOR, anti-risco, apoio nasal de plástico maleável ou elastômero. Hastes tipo espátula confeccionadas de material plástico, com acabamento emborrachado, articuladas através de parafusos metálicos. Resistente a alto impacto, devendo apresentar a marcação na lente em conformidade com a norma ANSI/ISEA Z87.1-2015. Ref.: 3M, modelo Securefit 400. | E86: 2 | F86: UND | G86: 55.83 | I86: 111.66
C87: 4 | D87: Óculos de segurança constituídos de armação e visor confeccionados em uma única peça de policarbonato CINZA, anti-risco, apoio nasal de plástico maleável ou elastômero. Hastes tipo espátula confeccionadas de material plástico, com acabamento emborrachado, articuladas através de parafusos metálicos. Resistente a alto impacto, devendo apresentar a marcação na lente em conformidade com a norma ANSI/ISEA Z87.1-2015. Ref.: 3M, modelo Securefit 400. | E87: 2 | F87: UND | G87: 59.02 | I87: 118.04
C88: 5 | D88: Capacete de segurança em polietileno de alta densidade, na cor AZUL, com aba frontal, casco com nervuras, suspensão em tecido, com Faixa anti-suor, regulagem de tamanho com ajuste simples, com jugular ajustável, proteção contra riscos elétricos. Ref.: MSA | E88: 1 | F88: UND | G88: 63.95 | I88: 63.95
C89: 6 | D89: Respirador purificador de ar tipo, peça semifacial filtrante para partículas (PFF2), com formato dobrável, solda ultra-sônica em todo o seu perímetro. Fita elástica branca fixada nas laterais externas do respirador, perfazendo uma alça na para fixação na parte superior da cabeça e a outra na parte inferior, para fixação na altura da nuca do usuário. A parte superior externa da peça possui tira de material metálico moldável, utilizada para ajuste no septo nasal. Na face lateral do respirador existe um dispositivo de material plástico, dotado internamente de uma válvula de exalação. DEVERÁ APRESENTAR O SELO DE APROVAÇÃO DO INMETRO. Ref.: 3M | E89: 12 | F89: UND | G89: 5.92 | I89: 71.04
C90: 7 | D90: Luva de segurança confeccionada em vaqueta, com formato de 05 dedos, reforço na palma, reforço na costura entre o polegar e o indicador e entre os dedos anelares, punho curto (7 a 10 cm), elastico de ajuste no dorso. Ref. Plascouro | E90: 2 | F90: PARES | G90: 18.02 | I90: 36.04
C91: 8 | D91: Luva de segurança confeccionada em borracha natural (látex), espessura de 0,60mm, forrada internamente com flocos de algodão, palma antiderrapante, punho médio liso. Tamanhos de 7 (P) ao 10 (XG).Ref.: Mucambo | E91: 2 | F91: PARES | G91: 4.03 | I91: 8.06
C92: 9 | D92: Luva de Vaqueta com punho de raspa de 20 cm, reforço na palma, polegar e indicador confeccionado em raspa. Possui elástico de ajuste no dorso. Ref.: LUVEQ | E92: 1 | F92: PARES | G92: 29.3 | I92: 29.3
C93: 10 | D93: Luva de malha pigmentada, tricotada em 4 fios de algodão e poliéster, com pigmentos em PVC antiderrapante na palma e face dos dedos, acabamento em overloque e punho com elástico, na cor branca. Marca SuperSafety | E93: 6 | F93: PARES | G93: 4.04 | I93: 24.24
C94: 11 | D94: Botina de segurança, fechamento em elástico (laterais), sem componentes metálicos, cabedal em couro curtido na cor preta, dorso acolchoado, palmilha de montagem em não tecido, palmilha de conforto em tecido antibactéria e antifungos, forração interna, BIQUEIRA EM COMPOSITE, solado de poliuretano bidensidade injetado diretamente ao cabedal, solado com perfil antiderrapante (SRC) e sistemas de absorção de impacto. Deverá possuir PROTEÇÃO CONTRA RISCO ELÉTRICO. Peso máximo (por pé de calçado) de 400g. Em conformidade com a ABNT NBR ISO 20345 e NBR 16603. Ref.: MARLUVAS | E94: 2 | F94: PARES | G94: 128.31 | I94: =ROUND(E94*G94,2) -> 256.62
C95: 12 | D95: Creme protetor para pele. Luva químina 3 em 1. Proteção contra os produtos químicos: tintas, solventes, graxas, óleos, colas, poeiras e resinas. Resistente a água, óleo e tinta. Sem solicone. Com brnaqueador ótico. Grupo 3. Bisnaga de 200g. Ref.: Luvex Special CA 11070 | E95: 1 | F95: UND | G95: 15.52 | I95: 15.52
C96: 13 | D96: Boné tipo Árabe confeccionado em helanca com viés na aba, elástico interno traseiro para ajuste de tamanho, fechamento da saia em velcro. MARCA(S) DE REFERÊNCIA: Nexus | E96: 1 | F96: UND | G96: 11.61 | I96: 11.61
I97: 0
C98: CATEGORIAS | G98: QUANTIDADE
C100: 5 | D100: MESTRE ELETRICISTA DE MANUTENÇÃO | G100: 7 | I100: =SUM(I104:I116) -> 910.01 | J100: =ROUND(I100/12,2) -> 75.83
C102: ITEM | D102: DESCRIÇÃO | E102: QUANT ANUAL/ POSTO DE TRABALHO | F102: UNIDADE | G102: VALOR
I103: 0
C104: 1 | D104: Protetor auditivo, do tipo inserção pré-moldado, de silicone, lavável, com cordão e tamanho único, com proteção mínima de 18 dB(A) de atenuação pelo método NRRsf. Ref: 3M | E104: 3 | F104: UND | G104: 5.2 | I104: 15.6
C105: 2 | D105: Protetor auditivo, do tipo concha, constituído por duas conchas em plásticos, apresentando almofadas de espuma em suas laterais e em seu interior, haste de sustentação (acima da cabeça) em plástico rígido almofadado e metal que mantém as conchas seladas contra a região das orelhas do usuário e que sustenta as conchas. Atenuação mínima de 20 dB(A) pelo método NRRsf. Ref.: 3M modelo Muffler | E105: 1 | F105: UND | G105: 87.01 | I105: 87.01
C106: 3 | D106: Óculos de segurança constituídos de armação e visor confeccionados em uma única peça de policarbonato INCOLOR, anti-risco, apoio nasal de plástico maleável ou elastômero. Hastes tipo espátula confeccionadas de material plástico, com acabamento emborrachado, articuladas através de parafusos metálicos. Resistente a alto impacto, devendo apresentar a marcação na lente em conformidade com a norma ANSI/ISEA Z87.1-2015. Ref.: 3M, modelo Securefit 400. | E106: 2 | F106: UND | G106: 55.83 | I106: 111.66
C107: 4 | D107: Óculos de segurança constituídos de armação e visor confeccionados em uma única peça de policarbonato CINZA, anti-risco, apoio nasal de plástico maleável ou elastômero. Hastes tipo espátula confeccionadas de material plástico, com acabamento emborrachado, articuladas através de parafusos metálicos. Resistente a alto impacto, devendo apresentar a marcação na lente em conformidade com a norma ANSI/ISEA Z87.1-2015. Ref.: 3M, modelo Securefit 400. | E107: 2 | F107: UND | G107: 59.02 | I107: 118.04
C108: 5 | D108: CAPACETE DE SEGURANÇA, com carneira, sistema de ajuste perimetral e jugular, tipo III (sem aba); com casco rígido; sem porosidade; não deverá ser condutor de corrente elétrica; na cor vermelha Ref. Ultra Safe | E108: 1 | F108: UND | G108: 176.33 | I108: 176.33
C109: 6 | D109: Respirador purificador de ar tipo, peça semifacial filtrante para partículas (PFF2), com formato dobrável, solda ultra-sônica em todo o seu perímetro. Fita elástica branca fixada nas laterais externas do respirador, perfazendo uma alça na para fixação na parte superior da cabeça e a outra na parte inferior, para fixação na altura da nuca do usuário. A parte superior externa da peça possui tira de material metálico moldável, utilizada para ajuste no septo nasal. Na face lateral do respirador existe um dispositivo de material plástico, dotado internamente de uma válvula de exalação. DEVERÁ APRESENTAR O SELO DE APROVAÇÃO DO INMETRO. Ref.: 3M | E109: 4 | F109: UND | G109: 5.92 | I109: 23.68
C110: 7 | D110: Luva de segurança confeccionada em vaqueta, com formato de 05 dedos, reforço na palma, reforço na costura entre o polegar e o indicador e entre os dedos anelares, punho curto (7 a 10 cm), elastico de ajuste no dorso. Ref. Plascouro | E110: 2 | F110: PARES | G110: 18.02 | I110: 36.04
C111: 8 | D111: Luvas em poliuretano, cor preta, acabamento liso, com forro em poliamida, sem costura, punho tricotado c/ elástico. tamanho P, M e G. Ref. Promat modelo multitato 750 PT | E111: 2 | F111: PARES | G111: =G90 -> 18.02 | I111: 36.04
C112: 9 | D112: Luva de Vaqueta com punho de raspa de 20 cm, reforço na palma, polegar e indicador confeccionado em raspa. Possui elástico de ajuste no dorso. Ref.: LUVEQ | E112: 1 | F112: PARES | G112: 29.3 | I112: 29.3
C113: 10 | D113: Luva de malha pigmentada, tricotada em 4 fios de algodão e poliéster, com pigmentos em PVC antiderrapante na palma e face dos dedos, acabamento em overloque e punho com elástico, na cor branca. Marca SuperSafety | E113: 2 | F113: PARES | G113: 4.04 | I113: 8.08
C114: 11 | D114: Botina de segurança, fechamento em elástico (laterais), sem componentes metálicos, cabedal em couro curtido na cor preta, dorso acolchoado, palmilha de montagem em não tecido, palmilha de conforto em tecido antibactéria e antifungos, forração interna, BIQUEIRA EM COMPOSITE, solado de poliuretano bidensidade injetado diretamente ao cabedal, solado com perfil antiderrapante (SRC) e sistemas de absorção de impacto. Deverá possuir PROTEÇÃO CONTRA RISCO ELÉTRICO. Peso máximo (por pé de calçado) de 400g. Em conformidade com a ABNT NBR ISO 20345 e NBR 16603. Ref.: MARLUVAS | E114: 2 | F114: PARES | G114: 128.31 | I114: 256.62
C115: 12 | D115: Boné tipo Árabe confeccionado em helanca com viés na aba, elástico interno traseiro para ajuste de tamanho, fechamento da saia em velcro. MARCA(S) DE REFERÊNCIA: Nexus | E115: 1 | F115: UND | G115: 11.61 | I115: 11.61
C117: CATEGORIAS | G117: QUANTIDADE
C119: 10 | D119: AUXILIAR MECÂNICO DE AR CONDICIONADO | G119: 19 | I119: =SUM(I123:I137) -> 916.5 | J119: =ROUND(I119/12,2) -> 76.38
I120: 0
C121: ITEM | D121: DESCRIÇÃO | E121: QUANT ANUAL/ POSTO DE TRABALHO | F121: UNIDADE | G121: VALOR
I122: 0
C123: 1 | D123: Protetor auditivo, do tipo inserção pré-moldado, de silicone, lavável, com cordão e tamanho único, com proteção mínima de 18 dB(A) de atenuação pelo método NRRsf. Ref: 3M | E123: 4 | F123: UND | G123: 5.2 | I123: 20.8
C124: 2 | D124: Protetor auditivo, do tipo concha, constituído por duas conchas em plásticos, apresentando almofadas de espuma em suas laterais e em seu interior, haste de sustentação (acima da cabeça) em plástico rígido almofadado e metal que mantém as conchas seladas contra a região das orelhas do usuário e que sustenta as conchas. Atenuação mínima de 20 dB(A) pelo método NRRsf. Ref.: 3M modelo Muffler | E124: 1 | F124: UND | G124: 87.01 | I124: 87.01
C125: 3 | D125: Óculos de segurança constituídos de armação e visor confeccionados em uma única peça de policarbonato INCOLOR, anti-risco, apoio nasal de plástico maleável ou elastômero. Hastes tipo espátula confeccionadas de material plástico, com acabamento emborrachado, articuladas através de parafusos metálicos. Resistente a alto impacto, devendo apresentar a marcação na lente em conformidade com a norma ANSI/ISEA Z87.1-2015. Ref.: 3M, modelo Securefit 400. | E125: 2 | F125: UND | G125: 55.83 | I125: 111.66
C126: 4 | D126: Óculos de segurança constituídos de armação e visor confeccionados em uma única peça de policarbonato CINZA, anti-risco, apoio nasal de plástico maleável ou elastômero. Hastes tipo espátula confeccionadas de material plástico, com acabamento emborrachado, articuladas através de parafusos metálicos. Resistente a alto impacto, devendo apresentar a marcação na lente em conformidade com a norma ANSI/ISEA Z87.1-2015. Ref.: 3M, modelo Securefit 400. | E126: 2 | F126: UND | G126: 59.02 | I126: 118.04
C127: 5 | D127: Capacete de segurança em polietileno de alta densidade, na cor AZUL, com aba frontal, casco com nervuras, suspensão em tecido, com Faixa anti-suor, regulagem de tamanho com ajuste simples, com jugular ajustável, proteção contra riscos elétricos. Ref.: MSA | E127: 1 | F127: UND | G127: 63.95 | I127: 63.95
C128: 6 | D128: Respirador purificador de ar tipo, peça semifacial filtrante para partículas (PFF2), com formato dobrável, solda ultra-sônica em todo o seu perímetro. Fita elástica branca fixada nas laterais externas do respirador, perfazendo uma alça na para fixação na parte superior da cabeça e a outra na parte inferior, para fixação na altura da nuca do usuário. A parte superior externa da peça possui tira de material metálico moldável, utilizada para ajuste no septo nasal. Na face lateral do respirador existe um dispositivo de material plástico, dotado internamente de uma válvula de exalação. DEVERÁ APRESENTAR O SELO DE APROVAÇÃO DO INMETRO. Ref.: 3M | E128: 12 | F128: UND | G128: 5.92 | I128: 71.04
C129: 7 | D129: Luva de segurança confeccionada em vaqueta, com formato de 05 dedos, reforço na palma, reforço na costura entre o polegar e o indicador e entre os dedos anelares, punho curto (7 a 10 cm), elastico de ajuste no dorso. Ref. Plascouro | E129: 2 | F129: PARES | G129: 18.02 | I129: 36.04
C130: 8 | D130: Luva de segurança confeccionada em borracha natural (látex), espessura de 0,60mm, forrada internamente com flocos de algodão, palma antiderrapante, punho médio liso. Tamanhos de 7 (P) ao 10 (XG).Ref.: Mucambo | E130: 4 | F130: PARES | G130: 4.03 | I130: 16.12
C131: 9 | D131: Luva de Vaqueta com punho de raspa de 20 cm, reforço na palma, polegar e indicador confeccionado em raspa. Possui elástico de ajuste no dorso. Ref.: LUVEQ | E131: 1 | F131: PARES | G131: 29.3 | I131: 29.3
C132: 10 | D132: Luva de malha pigmentada, tricotada em 4 fios de algodão e poliéster, com pigmentos em PVC antiderrapante na palma e face dos dedos, acabamento em overloque e punho com elástico, na cor branca. Marca SuperSafety | E132: 3 | F132: PARES | G132: 4.04 | I132: 12.12
C133: 11 | D133: Avental em PVC (forrado), 70 X 120CM de largura e comprimento (aproximadamente), corpo inteiro na frente, contendo tiras fixadas no avental, que deverão ser amarradas no pescoço e na cintura. REF.: MAICOL | E133: 1 | F133: UND | G133: 10.85 | I133: 10.85
C134: 12 | D134: Bota em PVC, impermeável, forrada internamente, cano médio, resistência ao escorregamento do solado SRC. Ref. MARLUVAS | E134: 1 | F134: PARES | G134: 55.82 | I134: 55.82
C135: 13 | D135: Botina de segurança, fechamento em elástico (laterais), sem componentes metálicos, cabedal em couro curtido na cor preta, dorso acolchoado, palmilha de montagem em não tecido, palmilha de conforto em tecido antibactéria e antifungos, forração interna, BIQUEIRA EM COMPOSITE, solado de poliuretano bidensidade injetado diretamente ao cabedal, solado com perfil antiderrapante (SRC) e sistemas de absorção de impacto. Deverá possuir PROTEÇÃO CONTRA RISCO ELÉTRICO. Peso máximo (por pé de calçado) de 400g. Em conformidade com a ABNT NBR ISO 20345 e NBR 16603. Ref.: MARLUVAS | E135: 2 | F135: PARES | G135: 128.31 | I135: 256.62
C136: 14 | D136: Creme protetor para pele. Luva químina 3 em 1. Proteção contra os produtos químicos: tintas, solventes, graxas, óleos, colas, poeiras e resinas. Resistente a água, óleo e tinta. Sem solicone. Com brnaqueador ótico. Grupo 3. Bisnaga de 200g. Ref.: Luvex Special CA 11070 | E136: 1 | F136: UND | G136: 15.52 | I136: 15.52
C137: 15 | D137: Boné tipo Árabe confeccionado em helanca com viés na aba, elástico interno traseiro para ajuste de tamanho, fechamento da saia em velcro. MARCA(S) DE REFERÊNCIA: Nexus | E137: 1 | F137: UND | G137: 11.61 | I137: 11.61
I138: 0
C139: CATEGORIAS | G139: QUANTIDADE
I140: 0
C141: 7 | D141: OPERADOR ELETROMECÂNICO - EXPEDIENTE | G141: 4 | I141: =SUM(I147:I153) -> 507 | J141: =ROUND(I141/12,2) -> 42.25
C142: 8 | D142: OPERADOR ELETROMECÂNICO - PLANTONISTA DIURNO | G142: 6 | I142: 0
C143: 9 | D143: OPERADOR ELETROMECÂNICO - PLANTONISTA NOTURNO | G143: 6 | I143: 0
I144: 0
C145: ITEM | D145: DESCRIÇÃO | E145: QUANT ANUAL/ POSTO DE TRABALHO | F145: UNIDADE | G145: VALOR
I146: 0
C147: 1 | D147: Protetor auditivo, do tipo inserção pré-moldado, de silicone, lavável, com cordão e tamanho único, com proteção mínima de 18 dB(A) de atenuação pelo método NRRsf. Ref: 3M | E147: 4 | F147: UND | G147: 5.2 | I147: 20.8
C148: 2 | D148: Protetor auditivo, do tipo concha, constituído por duas conchas em plásticos, apresentando almofadas de espuma em suas laterais e em seu interior, haste de sustentação (acima da cabeça) em plástico rígido almofadado e metal que mantém as conchas seladas contra a região das orelhas do usuário e que sustenta as conchas. Atenuação mínima de 20 dB(A) pelo método NRRsf. Ref.: 3M modelo Muffler | E148: 1 | F148: UND | G148: 87.01 | I148: 87.01
C149: 3 | D149: Óculos de segurança constituídos de armação e visor confeccionados em uma única peça de policarbonato INCOLOR, anti-risco, apoio nasal de plástico maleável ou elastômero. Hastes tipo espátula confeccionadas de material plástico, com acabamento emborrachado, articuladas através de parafusos metálicos. Resistente a alto impacto, devendo apresentar a marcação na lente em conformidade com a norma ANSI/ISEA Z87.1-2015. Ref.: 3M, modelo Securefit 400. | E149: 1 | F149: UND | G149: 55.83 | I149: 55.83
C150: 4 | D150: Óculos de segurança constituídos de armação e visor confeccionados em uma única peça de policarbonato CINZA, anti-risco, apoio nasal de plástico maleável ou elastômero. Hastes tipo espátula confeccionadas de material plástico, com acabamento emborrachado, articuladas através de parafusos metálicos. Resistente a alto impacto, devendo apresentar a marcação na lente em conformidade com a norma ANSI/ISEA Z87.1-2015. Ref.: 3M, modelo Securefit 400. | E150: 1 | F150: UND | G150: 59.02 | I150: 59.02
C151: 5 | D151: Respirador purificador de ar tipo, peça semifacial filtrante para partículas (PFF2), com formato dobrável, solda ultra-sônica em todo o seu perímetro. Fita elástica branca fixada nas laterais externas do respirador, perfazendo uma alça na para fixação na parte superior da cabeça e a outra na parte inferior, para fixação na altura da nuca do usuário. A parte superior externa da peça possui tira de material metálico moldável, utilizada para ajuste no septo nasal. Na face lateral do respirador existe um dispositivo de material plástico, dotado internamente de uma válvula de exalação. DEVERÁ APRESENTAR O SELO DE APROVAÇÃO DO INMETRO. Ref.: 3M | E151: 4 | F151: UND | G151: 5.92 | I151: 23.68
C152: 6 | D152: Luva de malha pigmentada, tricotada em 4 fios de algodão e poliéster, com pigmentos em PVC antiderrapante na palma e face dos dedos, acabamento em overloque e punho com elástico, na cor branca. Marca SuperSafety | E152: 1 | F152: PARES | G152: 4.04 | I152: 4.04
C153: 7 | D153: Botina de segurança, fechamento em elástico (laterais), sem componentes metálicos, cabedal em couro curtido na cor preta, dorso acolchoado, palmilha de montagem em não tecido, palmilha de conforto em tecido antibactéria e antifungos, forração interna, BIQUEIRA EM COMPOSITE, solado de poliuretano bidensidade injetado diretamente ao cabedal, solado com perfil antiderrapante (SRC) e sistemas de absorção de impacto. Deverá possuir PROTEÇÃO CONTRA RISCO ELÉTRICO. Peso máximo (por pé de calçado) de 400g. Em conformidade com a ABNT NBR ISO 20345 e NBR 16603. Ref.: MARLUVAS | E153: 2 | F153: PARES | G153: 128.31 | I153: 256.62
I154: 0
C155: CATEGORIAS | G155: QUANTIDADE
I156: 0
C157: 13 | D157: OPERADOR DE CENTRAL DE DETECÇÃO E ALARME DE INCÊNDIO - PLANTONISTA DIURNO | G157: 4 | I157: =I161 -> 147.68 | J157: =ROUND(I157/12,2) -> 12.31
C158: 14 | D158: OPERADOR DE CENTRAL DE DETECÇÃO E ALARME DE INCÊNDIO - PLANTONISTA NOTURNO | G158: 4 | I158: =ROUND(E158*G158,2) -> 0
I159: 0
C160: ITEM | D160: DESCRIÇÃO | E160: QUANT ANUAL/ POSTO DE TRABALHO | F160: UNIDADE | G160: VALOR
C161: 1 | D161: Botina de segurança confeccionada em couro nobuck e material têxtil; proteção contra risco elétrico; fechamento em cadarço; colarinho acolchoado; forração em tecido transpirável; palmilha de montagem em não tecido costurada/fixada junto ao cabedal; biqueira em composite; solado em PU bidensidade bicolor com sistema de absorção de impacto, injetado diretamente no cabedal; resistência ao escorregamento SRC. Cor preta ou marrom escura (café). Ref.: Bracol, modelo Dubai. | E161: 1 | F161: PARES | G161: 147.68 | I161: 147.68
I162: 0
C163: CATEGORIAS | G163: QUANTIDADE
I164: 0
C165: 11 | D165: CONTROLADOR DE MATERIAIS | G165: 3 | I165: =SUM(I168:I175) -> 617.8 | J165: =ROUND(I165/12,2) -> 51.48
I166: 0
C167: ITEM | D167: DESCRIÇÃO | E167: QUANT ANUAL/ POSTO DE TRABALHO | F167: UNIDADE | G167: VALOR
C168: 1 | D168: Protetor auditivo, do tipo inserção pré-moldado, de silicone, lavável, com cordão e tamanho único, com proteção mínima de 18 dB(A) de atenuação pelo método NRRsf. Ref: 3M | E168: 4 | F168: UND | G168: 5.2 | I168: 20.8
C169: 2 | D169: Protetor auditivo, do tipo concha, constituído por duas conchas em plásticos, apresentando almofadas de espuma em suas laterais e em seu interior, haste de sustentação (acima da cabeça) em plástico rígido almofadado e metal que mantém as conchas seladas contra a região das orelhas do usuário e que sustenta as conchas. Atenuação mínima de 20 dB(A) pelo método NRRsf. Ref.: 3M modelo Muffler | E169: 1 | F169: UND | G169: 87.01 | I169: 87.01
C170: 3 | D170: Respirador purificador de ar tipo, peça semifacial filtrante para partículas (PFF2), com formato dobrável, solda ultra-sônica em todo o seu perímetro. Fita elástica branca fixada nas laterais externas do respirador, perfazendo uma alça na para fixação na parte superior da cabeça e a outra na parte inferior, para fixação na altura da nuca do usuário. A parte superior externa da peça possui tira de material metálico moldável, utilizada para ajuste no septo nasal. Na face lateral do respirador existe um dispositivo de material plástico, dotado internamente de uma válvula de exalação. DEVERÁ APRESENTAR O SELO DE APROVAÇÃO DO INMETRO. Ref.: 3M | E170: 5 | F170: UND | G170: 5.92 | I170: 29.6
C171: 4 | D171: Luva de segurança confeccionada em vaqueta, com formato de 05 dedos, reforço na palma, reforço na costura entre o polegar e o indicador e entre os dedos anelares, punho curto (7 a 10 cm), elastico de ajuste no dorso. Ref. Plascouro | E171: 2 | F171: UND | G171: 18.02 | I171: 36.04
C172: 5 | D172: Luva de malha pigmentada, tricotada em 4 fios de algodão e poliéster, com pigmentos em PVC antiderrapante na palma e face dos dedos, acabamento em overloque e punho com elástico, na cor branca. Marca SuperSafety | E172: 3 | F172: UND | G172: 4.04 | I172: 12.12
C173: 6 | D173: Botina de segurança, fechamento em elástico (laterais), sem componentes metálicos, cabedal em couro curtido na cor preta, dorso acolchoado, palmilha de montagem em não tecido, palmilha de conforto em tecido antibactéria e antifungos, forração interna, BIQUEIRA EM COMPOSITE, solado de poliuretano bidensidade injetado diretamente ao cabedal, solado com perfil antiderrapante (SRC) e sistemas de absorção de impacto. Deverá possuir PROTEÇÃO CONTRA RISCO ELÉTRICO. Peso máximo (por pé de calçado) de 400g. Em conformidade com a ABNT NBR ISO 20345 e NBR 16603. Ref.: MARLUVAS | E173: 2 | F173: PARES | G173: 128.31 | I173: 256.62
C174: 7 | D174: Óculos de segurança constituídos de armação e visor confeccionados em uma única peça de policarbonato INCOLOR, anti-risco, apoio nasal de plástico maleável ou elastômero. Hastes tipo espátula confeccionadas de material plástico, com acabamento emborrachado, articuladas através de parafusos metálicos. Resistente a alto impacto, devendo apresentar a marcação na lente em conformidade com a norma ANSI/ISEA Z87.1-2015. Ref.: 3M, modelo Securefit 400. | E174: 2 | F174: UND | G174: 55.83 | I174: 111.66
C175: 8 | D175: Capacete de segurança em polietileno de alta densidade, na cor AZUL, com aba frontal, casco com nervuras, suspensão em tecido, com Faixa anti-suor, regulagem de tamanho com ajuste simples, com jugular ajustável, proteção contra riscos elétricos. Ref.: MSA | E175: 1 | F175: UND | G175: 63.95 | I175: 63.95

Sheet SREP
B4: SISTEMA DE REGISTRO ELETRÔNICO DE PRESENÇA - SREP
C7: PAGAMENTO DA DEPRECIAÇÃO
B8: Cód. | C8: ITEM | D8: DESCRIÇÃO | E8: QUANT ANUAL | F8: CONTA SIAFI | G8: VALOR DE AQ. | H8: % RESIDUAL | I8: VIDA ÚTIL | J8: DEP. MENSAL | K8: CUSTO TOTAL | L8: BDI (%) | M8: PREÇO TOTAL | N8: FONTE | O8: REFERÊNCIA
B10: 10.01.01 | C10: P.001 | D10: Equipamento de Registro Eletrônico de Ponto, de parede, com teclado externo e leitor biométrico, em conformidade com a Portaria 1.510/2009 do MT | E10: 7 | F10: 12311.01.24 (máquinas e equip eletrônicos) | G10: 1705.92 | H10: 0.1 | I10: 10 | J10: =G10*(1-H10)/(I10*12) -> 12.7944 | K10: =ROUND(J10*E10,3) -> 89.561 | L10: ='BDI - Geral'!E27 -> 0.2359 | M10: =ROUND(K10*(1+L10),2) -> 110.69 | N10: COTAÇÃO
C13: PAGAMENTO DA MANUTENÇÃO
C14: ITEM | D14: DESCRIÇÃO | H14: K (calculado) | I14: MENSAL DEPR. | J14: % MAN X DEP | K14: MENSAL MAN. | L14: BDI (%) | M14: PREÇO TOTAL
D16: Todos os itens | H16: =H23 -> 1.90003968 | I16: =K10 -> 89.561 | J16: =H16 -> 1.90003968 | K16: =I16*H16 -> 170.1694538 | L16: =L10 -> 0.2359 | M16: =ROUND(K16*(1+L16),2) -> 210.31
E18: K1 | F18: K2 | G18: K3 | H18: K4
E19: 0.85 | F19: 1 | G19: 0.8 | H19: 1.4
E20: K5 | F20: K6 | G20: K7 | H20: K8
E21: 1 | F21: 0.6 | G21: 1.6 | H21: 1.1
E22: K9 | F22: K10 | G22: K11 | H22: RESULTADO
D23: * a descrição de cada coeficiente segue abaixo | E23: 1.5 | F23: 0.9 | G23: 1.4 | H23: =E19*F19*G19*H19*E21*F21*G21*H21*E23*F23*G23 -> 1.90003968
C26: PAGAMENTO DO SOFTWARE
B27: Cód. | C27: ITEM | D27: DESCRIÇÃO | I27: QUANTIDADE | J27: UNIDADE | K27: UNIT. MENSAL | L27: BDI (%) | M27: PREÇO TOTAL
B29: 10.03.01 | C29: P.002 | D29: Software Ponto Secullum 4 - até 200 usuário - manutenção e suporte técnico com backup - Web Nuvem - Mensalidade | I29: 1 | J29: Licença/mês | K29: 823.53 | L29: =L35 -> 0.2359 | M29: =ROUND(I29*K29*(1+L29),2) -> 1017.8 | N29: COTAÇÃO
C32: MATERIAL DE CONSUMO ASSOCIADO
B33: Cód. | C33: ITEM | D33: DESCRIÇÃO | G33: QUANTID/ANO | H33: UNIDADE | I33: VALOR DE AQ. | J33: ANUAL MAT | K33: MENSAL MAT | L33: BDI (%) | M33: PREÇO TOTAL
B35: 10.04.01 | C35: P.003 | D35: Bobina térmica específica para o registrador eletrônico de ponto, com papel termossensível, superfície de impressão externa ao rolo, durabilidade de impressão mínima de 5 anos e comprimento mínimo de 300m | G35: 8 | H35: Bobina | I35: 34.1 | J35: =I35*G35 -> 272.8 | K35: =J35/12 -> 22.73333333 | L35: =L16 -> 0.2359 | M35: =ROUNDUP(K35*(1+L35),2) -> 28.1 | N35: COTAÇÃO
C38: MATERIAL DE CONSUMO ASSOCIADO
C39: ITEM | D39: DESCRIÇÃO | M39: PREÇO TOTAL
C41: 1 | D41: Componente DEPRECIAÇÃO | M41: =M10 -> 110.69
C42: 2 | D42: Componente MANUTENÇÃO | M42: =M16 -> 210.31
C43: 3 | D43: Componente SOFTWARE | M43: =M29 -> 1017.8
C44: 4 | D44: Componente MATERIAL DE CONSUMO ASSOCIADO | M44: =M35 -> 28.1
L46: SOMATÓRIO TOTAL MENSAL | M46: =ROUND(SUM(M40:M45),2) -> 1366.9
L47: SOMATÓRIO TOTAL ANUAL | M47: =ROUND(M46*12,2) -> 16402.8
C50: MATERIAL DE CONSUMO ASSOCIADO
C51: MEMÓRIA DE CÁLCULO DO COEFICIENTE DE CORRELAÇÃO MANUTENÇÃO X DEPRECIAÇÃO (K)
C53: JUSTIFICATIVAS | E53: TIPO | F53: K1 | H53: Condições de Trab | I53: K4 | K53: Tempo Vida (anos) | L53: K6 | N53: Temperatura | O53: K8
E54: Guindaste | F54: 0.5 | H54: Em espera | I54: 0.4 | K54: 1 | L54: 0.6 | N54: Muito quente (> 40º C) | O54: 1.3
C55: K1 | D55: Considerado o valor médio de 0,85 | E55: Caminhão-comum | F55: 0.8 | H55: Leves | I55: 0.8 | K55: 2 | L55: 0.7 | N55: Quente (30º a 40º C) | O55: 1.1
C56: K2 | D56: Considerado o operador médio | E56: Fora-de-estrada | F56: 1 | H56: Médias | I56: 1 | K56: 3 | L56: 0.8 | N56: Médio (10º a 30º C) | O56: 1
C57: K3 | D57: Consideradas ferramentas de primeira qualidade | E57: Carregadeira | F57: 1 | H57: Pesadas | I57: 1.4 | K57: 4 | L57: 0.9 | N57: Frio (< 10º C) | O57: 1.2
C58: K4 | D58: Há todo o tipo de trabalho, foi considerado condições pesadas | E58: Escavadeira | F58: 1.4 | H58: Severas | I58: 2 | K58: 5 | L58: 1
C59: K5 | D59: Considerando manutenção normal | E59: Motoescrêiper | F59: 1.1 | K59: 6 | L59: 1 | N59: Ritmo de Trabalho | O59: K9
C60: K6 | D60: Equipamentos novos | E60: Trator de esteira | F60: 1.2 | H60: Manutenção | I60: K5 | K60: 7 | L60: 1 | N60: Folgado | O60: 0.9
C61: K7 | D61: 44h por dia, 252 dias por ano | H61: Excelente | I61: 0.6 | K61: 8 | L61: 1.2 | N61: Médio | O61: 1
C62: K8 | D62: Clima quente, acima de 30º C | E62: Qualid do Operador | F62: K2 | H62: Boa | I62: 0.8 | K62: 9 | L62: 1.3 | N62: Com pressa | O62: 1.5
C63: K9 | D63: Ritmo de trabalho usualmente com pressa | E63: Excelente | F63: 0.8 | H63: Média | I63: 1 | K63: 10 | L63: 1.4
C64: K10 | D64: Considerado o operador médio | E64: Boa | F64: 0.9 | H64: Ruim | I64: 1.5 | K64: 11 | L64: 2 | N64: Conh do Serviço | O64: K10
C65: K11 | D65: Foi considerada a opção de aluguel a terceiros, ainda que a simulação seja dos custos do contratado, contudo a execução dos serviços é em local de terceiros | E65: Média | F65: 1 | H65: Inexistente | I65: 3 | K65: 15 | L65: 2 | N65: Grande | O65: 0.8
E66: Ruim | F66: 1.2 | N66: Médio | O66: 0.9
E67: Péssima | F67: 2 | H67: Horas de Uso | I67: K7 | J67: 6000 | K67: 1 | N67: Pouco | O67: 1
H68: 1000 | I68: 0.5 | J68: 8000 | K68: 1.3
E69: Qualidade do Equip | F69: K3 | H69: 2000 | I69: 0.5 | J69: 10000 | K69: 1.6 | N69: Tipo do Serviço | O69: K11
E70: De primeira | F70: 0.8 | H70: 3000 | I70: 0.6 | J70: 12000 | K70: 1.9 | N70: Mina ou Pedreira | O70: 0.8
E71: Média | F71: 1 | H71: 4000 | I71: 0.7 | J71: 15000 | K71: 2.3 | N71: Construção Geral | O71: 1
E72: Ruim | F72: 1.5 | H72: 5000 | I72: 0.9 | J72: 20000 | K72: 3 | N72: Aluguel a Terceiros | O72: 1.4
E74: Fonte:
E75: MATTOS, Aldo Dórea. Como preparar orçamentos de obras. São Paulo: Pini, 2006. 281 p., il

Sheet EPI - N.Rel
B4: EPI NÃO RELACIONADOS DIRETAMENTE A UM POSTO DE TRABALHO - AQUISIÇÃO
C7: ITEM | D7: DESCRIÇÃO | E7: QUANT ANUAL | F7: UNIDADE | G7: CUSTO UNITÁRIO | H7: CUSTO ANUAL | I7: BDI (%) | J7: PREÇO TOTAL | K7: FONTE
C9: 1 | D9: Avental de raspa de couro tipo BARBEIRO confeccionado em raspa, mangas em raspa, elástico nas costas e punhos, tira em raspa; fivela metálica na cintura, para ajuste; costura reforçada em linha de algodão. REF.: ZANEL | E9: 6 | F9: UND | G9: 112.96 | H9: =G9*E9 -> 677.76 | I9: ='BDI - Geral'!E27 -> 0.2359 | J9: =H9*(1+I9) -> 837.643584
C10: 2 | D10: Barreira Modular Articulável confeccionada em material plástico (polietileno), cor amarela. composta por 6 módulos, conectados entre si. aplicação: isolamento, sinalização, delimitação de áreas. Quando fechada, a sua estrutura modular resulta em um pequeno volume. Dimensões aproximadas aberta (cm) 240 x 100 x 3. Peso máximo 12 kg | E10: 10 | F10: UND | G10: 2177.71 | H10: =G10*E10 -> 21777.1 | I10: =I9 -> 0.2359 | J10: =H10*(1+I10) -> 26914.31789
C11: 3 | D11: Bloqueador solar (1 LITRO) com fator de proteção solar no mínimo de 30 (UV FPS 30) com propriedade repelente a insetos. Inodoro MARCA(S) DE REFERÊNCIA: LUVEX. | E11: 7 | F11: UND | G11: 117.33 | H11: 821.31 | I11: =I10 -> 0.2359 | J11: 1015.057029
C12: 4 | D12: Boné tipo Árabe confeccionado em helanca com viés na aba, elástico interno traseiro para ajuste de tamanho, fechamento da saia em velcro. | E12: 2 | F12: UND | G12: 11.61 | H12: 23.22 | I12: 0.2359 | J12: 28.697598
C13: 5 | D13: Bota em PVC, impermeável, forrada internamente, cano médio, resistência ao escorregamento do solado SRC. Ref. MARLUVAS. | E13: 2 | F13: PARES | G13: 55.82 | H13: 111.64 | I13: 0.2359 | J13: 137.975876
C14: 6 | D14: Calça de segurança IMPERMEÁVEL na cor amarela, tipo pijama, confeccionada em tecido de poliéster plastificado (ou similar) com PVC em uma das faces, com cordão na cintura para ajustes e costura por meio de solda eletrônica. Ref. Brascamp | E14: 50 | F14: UND | G14: 20.84 | H14: 1042 | I14: 0.2359 | J14: 1287.8078
C15: 7 | D15: Capacete de segurança em polietileno de alta densidade, na cor AZUL, com aba frontal, casco com nervuras, suspensão em tecido, com Faixa anti-suor, regulagem de tamanho com ajuste simples, com jugular ajustável, proteção contra riscos elétricos. Ref.: MSA | E15: 1 | F15: UND | G15: 63.95 | H15: 63.95 | I15: 0.2359 | J15: 79.035805
C16: 8 | D16: Cartucho químico para Vapores orgânicos e gases ácidos compatível com o respirador de meia peça facial Ref. 6003 3M | E16: 90 | F16: PARES | G16: 92.63 | H16: 8336.7 | I16: 0.2359 | J16: 10303.32753
C17: 9 | D17: Cinta para Amarração com catraca e gancho tipo J para amarração e transporte de cargas pesadas. Gancho e catraca em aço bicromatizado. Produzida em material 100% poliéster, quimicamente tratada para menor absorção de água. Com costuras em cor diferente para indicar sua capacidade. Capacidade mínima 5 Toneladas; Comprimento mínimo de 9 metros; Elasticidade: 7% e Largura: 50mm. Referência: ROBUSTEC | E17: 7 | F17: CONJ | G17: 134.73 | H17: 943.11 | I17: 0.2359 | J17: 1165.589649
C18: 10 | D18: Cinto de segurança tipo paraquedista; confeccionado em fita de poliéster (min. 40mm); Pontos de conexão: peitoral, umbilical, dorsal, laterais na cintura; Provido de alças de suspensão nos ombros para trabalho em espaço confinado; Ajuste nas pernas, cintura e suspensório; Alças para ferramentas; Proteção acolchoada lombar e nas pernas; em conformidade com as normas NBR 15835:2010, NBR 15836:2010. Deverá ser acompanhado de TALABARTE em Y (max. 1,50m de comprimento), 02 ganchos dupla trava em aço com abertura de 50 a 60 mm; com absorvedor de energia com ganho olhal dupla trava com abertura de 15 a 20 mm . Ref.: MG cintos, modelo Mult 1270 | E18: 10 | F18: CONJ | G18: 722.76 | H18: 7227.6 | I18: 0.2359 | J18: 8932.59084
C19: 12 | D19: Corda de Segurança Semi-Estática. Diâmetro 12 milímetros. Cor branca. Carga mínima de ruptura de 20 kN. Trançado triplo (externo e interno em poliamida, intermediário em polipropileno) e alma central em multifilamento de poliamida. Possui fita de identificação (alerta) interna em multifilamento polipropileno. Ref.: 3M Altiseg | E19: 50 | F19: METROS | G19: 10.48 | H19: 524 | I19: 0.2359 | J19: 647.6116
C20: 13 | D20: Filtro mecânico para poeiras, névoas e fumos. a ser utilizado de forma combinada com o cartucho. Compatível com o respirador de meia peça facial a ser adquirido. Ref.: 5N11 3M | E20: 90 | F20: PARES | G20: 24.05 | H20: 2164.5 | I20: 0.2359 | J20: 2675.10555
C21: 14 | D21: Fita de sinalização (zebrada), com listas laranja e preta intercaladas-rolo 200 m x 70 mm. Ref.: 3M | E21: 8 | F21: UND | G21: 72.28 | H21: 578.24 | I21: 0.2359 | J21: 714.646816
C22: 15 | D22: Lente de reposição compatível com a Máscara de solda fornecida | E22: 7 | F22: UND | G22: 18.18 | H22: 127.26 | I22: 0.2359 | J22: 157.280634
C23: 16 | D23: Luva de Vaqueta com punho de raspa de 20 cm, reforço na palma, polegar e indicador confeccionado em raspa. Possui elástico de ajuste no dorso. Ref.: LUVEQ | E23: 2 | F23: PARES | G23: 29.3 | H23: 58.6 | I23: 0.2359 | J23: 72.42374
C24: 17 | D24: Luvas de segurança isolamento em borracha para alta tensão classe 00, 2,5 KV 500 volts, com luva de vaqueta (cobertura), com cinta ajustável em vaqueta, punho 15cm em raspa. Marca Ref. Orion | E24: 7 | F24: PARES | G24: 338.72 | H24: 2371.04 | I24: 0.2359 | J24: 2930.368336
C25: 17 | D25: Macacão de segurança em Tyvek, impermeável, com capuz, para proteção química, cor branca. Ref.: Dupont | E25: 70 | F25: UND | G25: 65.69 | H25: 4598.3 | I25: 0.2359 | J25: 5683.03897
C26: 17 | D26: Máscara de solda confeccionada em policarbonato e poliamida, leve, filtro de escurecimento automático, bateria de lítio recarregável através de células solares, controle manual de tonalidade de 4/9-13, nível de sensibilidade ajustável para baixo e alto, carneira (suspensão) com aparador de suor e catraca com ajuste para baixo e para trás. Ref. Vicsa Optech Danny | E26: 14 | F26: UND | G26: 410.51 | H26: 5747.14 | I26: 0.2359 | J26: 7102.890326
C27: 17 | D27: MOSQUETÃO OVAL dupla trava de segurança em rosca; abertura mínima de 19 mm e carga de ruptura de 25 kN. Em aço. | E27: 5 | F27: UND | G27: 26.8 | H27: 134 | I27: 0.2359 | J27: 165.6106
C28: 18 | D28: Óculos de sobreposição INCOLOR, constituído de armação e visor confeccionados em uma única peça de policarbonato com apoio (do nariz) anatômico. Permite a sobreposição em óculos de grau. Hastes do tipo espátula confeccionadas do mesmo material da armação. Possui fendas para ventilação fixadas à armação e orifícios para cordão. REF. CARBOGRAFITE Mod. Provision. | E28: 10 | F28: UND | G28: 11.03 | H28: 110.3 | I28: 0.2359 | J28: 136.31977
C29: 19 | D29: Protetor Facial de Segurança, constituído de coroa e carneira de plástico, com regulagem de tamanho através de ajuste simples e visor em policarbonato incolor, 20cm. Ref.: Ledan | E29: 20 | F29: UND | G29: 61.5 | H29: 1230 | I29: 0.2359 | J29: 1520.157
C30: 20 | D30: Respirador de meia peça facial, compatibilidade com filtros químicos, mecânicos ou combinados, encaixes para dois filtros/cartuchos. Diferentes opções de tamanhos para proporcionar vedação adequada aos tipos de rostos dos usuários. Ref.: 3M, modelo 6200 | E30: 45 | F30: UND | G30: 148.16 | H30: 6667.2 | I30: 0.2359 | J30: 8239.99248
C31: 21 | D31: Respirador purificador de ar tipo, peça semifacial filtrante para partículas (PFF2), com formato dobrável, solda ultra-sônica em todo o seu perímetro. Fita elástica branca fixada nas laterais externas do respirador, perfazendo uma alça na para fixação na parte superior da cabeça e a outra na parte inferior, para fixação na altura da nuca do usuário. A parte superior externa da peça possui tira de material metálico moldável, utilizada para ajuste no septo nasal. Na face lateral do respirador existe um dispositivo de material plástico, dotado internamente de uma válvula de exalação. DEVERÁ APRESENTAR O SELO DE APROVAÇÃO DO INMETRO. Ref.: 3M | E31: 60 | F31: UND | G31: 5.92 | H31: 355.2 | I31: 0.2359 | J31: 438.99168
C32: 22 | D32: Retentor plastico para filtro. Compatível com o respirador de meia peça facial a ser adquirido. Ref.: 3M 5011 | E32: 90 | F32: PARES | G32: 21.41 | H32: 1926.9 | I32: 0.2359 | J32: 2381.45571
C33: 23 | D33: Tapete de Borracha Isolante, superfície antiderrapante e base com acabamento texturizado, tensão de ensaio 5.000 Volts, tensão de uso 1.000 Volts, espessura mínima 3 mm, dimensões aproximadas: 610 x 2000mm, cor preta. Ref.: Orion classe 0 | E33: 3 | F33: UND | G33: 313.79 | H33: 941.37 | I33: 0.2359 | J33: 1163.439183
C34: 24 | D34: Tenda piramidal. Dimensões aproximadas: Comprimento: 3m; Largura: 3m; Altura: 2,5m. Estrutura em aço carbono com pintura epóxi à pó na cor branca ou azul. Pés em alumínio; Tecido impermeável. Ref. TMS | E34: 3 | F34: UND | G34: 1562.08 | H34: 4686.24 | I34: 0.2359 | J34: 5791.724016
C35: 25 | D35: Touca Árabe, sem aba, confeccionada em tecido helanca ou brim, fechamento em velcro abaixo do queixo e elástico na parte traseira para ajuste. REF.: Vale Verde | E35: 42 | F35: UND | G35: 10.4 | H35: 436.8 | I35: 0.2359 | J35: 539.84112
C36: 26 | D36: Vestimenta tipo capa (para chuva), confeccionada em PVC forrada em poliéster, fechamento frontal com botões plásticos de pressão, costuras através de solda eletrônica, com mangas e capuz, comprimento mínimo 1,15m. ref. CARBOGRAFITE | E36: 31 | F36: UND | G36: 22.78 | H36: 706.18 | I36: 0.2359 | J36: 872.767862
I38: SOMATÓRIO TOTAL MENSAL | J38: =ROUND(SUM(J8:K37)/12,2) -> 7661.31
I39: SOMATÓRIO TOTAL ANUAL | J39: =J38*12 -> 91935.72 | M39: =SUM($H$9:$H$36) -> 74387.66

Sheet Uniformes
B4: UNIFORMES - AQUISIÇÃO
D7: ITEM | E7: DESCRIÇÃO | F7: QUANT ANUAL | G7: UNIDADE | H7: CUSTO UNITÁRIO | I7: CUSTO ANUAL | J7: BDI (%) | K7: PREÇO TOTAL | L7: FONTE
D9: U.001 | E9: Calça jeans | F9: =328+56 -> 384 | G9: unid | H9: 47.27 | I9: =H9*F9 -> 18151.68 | J9: ='BDI - Geral'!E27 -> 0.2359 | K9: =I9*(1+J9) -> 22433.66131
D10: U.002 | E10: Guarda-pó com manga curta, em brim, com bolso plástico para acomodar o crachá de identificação | F10: 312 | G10: unid | H10: 72.99 | I10: =H10*F10 -> 22772.88 | J10: =J9 -> 0.2359 | K10: =I10*(1+J10) -> 28145.00239
D11: U.003 | E11: Meia confeccionada em lã térmica ou algodão, na cor branca ou preta | F11: =328+56 -> 384 | G11: par | H11: 13.75 | I11: 5280 | J11: =J10 -> 0.2359 | K11: 6525.552
D12: U.004 | E12: Camisa de gola, em algodão, com manga curta, com bolso para acomodar o crachá, em uma cor diferente do guarda-pó operacional | F12: 56 | G12: unid | H12: 51.63 | I12: 2891.28 | J12: =J11 -> 0.2359 | K12: 3573.332952
D13: U.005 | E13: Camisa com manga curta com faixa refletiva, tecido respirável, com bolso plástico para acomodar crachá de identificação | F13: 16 | G13: unid | H13: 62.76 | I13: 1004.16 | J13: =J12 -> 0.2359 | K13: 1241.041344
J15: SOMATÓRIO TOTAL MENSAL | K15: =ROUND(SUM(K8:K14)/12,2) -> 5159.88
J16: SOMATÓRIO TOTAL ANUAL | K16: =K15*12 -> 61918.56 | N16: =SUM($I$9:$I$13) -> 50100

Sheet Ferramentas
B4: EQUIPAMENTOS - PAGAMENTO DA DEPRECIAÇÃO / MANUTENÇÃO
C7: PAGAMENTO DA DEPRECIAÇÃO
B8: CÓD. | C8: ITEM | D8: DESCRIÇÃO | E8: QUANT ANUAL | F8: UNIDADE | G8: VALOR DE AQ. | H8: % RESIDUAL | I8: VIDA ÚTIL | J8: DEP. MENSAL | K8: CUSTO MENSAL | L8: BDI (%) | M8: PREÇO MENSAL | N8: FONTE | O8: REFERÊNCIA
C10: F.001 | D10: Alicate Amperímetro Digital Profissional Minipa Et-3200a (marca de referência) | E10: 10 | F10: un | G10: 360.4566667 | H10: 0.1 | I10: 10 | J10: =G10*(1-H10)/(I10*12) -> 2.703425 | K10: =J10*E10 -> 27.03425 | L10: ='BDI - Geral'!$E$27 -> 0.2359 | M10: =ROUND(K10*(1+L10),2) -> 33.41 | N10: Cotação
C11: F.002 | D11: Alicate bico de papagaio 12 polegadas | E11: 26 | F11: un | G11: 66.26333333 | H11: 0.1 | I11: 10 | J11: =G11*(1-H11)/(I11*12) -> 0.496975 | K11: =J11*E11 -> 12.92135 | L11: =L10 -> 0.2359 | M11: =ROUND(K11*(1+L11),2) -> 15.97 | N11: Cotação
C12: F.003 | D12: Alicate de bico curvo, 8" marca ref. BELZER OU GEDORE | E12: 26 | F12: un | G12: 143.2633333 | H12: 0.1 | I12: 10 | J12: 1.074475 | K12: 27.93635 | L12: =L11 -> 0.2359 | M12: =ROUND(K12*(1+L12),2) -> 34.53 | N12: Cotação
C13: F.004 | D13: Alicate de bico reto de 6" marca ref. BELZER OU GEDORE | E13: 26 | F13: un | G13: 64.16333333 | H13: 0.1 | I13: 10 | J13: 0.481225 | K13: 12.51185 | L13: 0.2359 | M13: =ROUND(K13*(1+L13),2) -> 15.46 | N13: Cotação
C14: F.005 | D14: Alicate de corte diagonal 6 polegadas profissional | E14: 10 | F14: un | G14: 47.13 | H14: 0.1 | I14: 10 | J14: 0.353475 | K14: 3.53475 | L14: 0.2359 | M14: =ROUND(K14*(1+L14),2) -> 4.37 | N14: Cotação
C15: F.006 | D15: Alicate de pressão 10 polegadas emborrachado | E15: 26 | F15: un | G15: 50.23666667 | H15: 0.1 | I15: 10 | J15: 0.376775 | K15: 9.79615 | L15: 0.2359 | M15: =ROUND(K15*(1+L15),2) -> 12.11 | N15: Cotação
C16: F.007 | D16: Alicate decapador de cabos elétricos de 0,5 a 6 mm² | E16: 8 | F16: un | G16: 172.53 | H16: 0.1 | I16: 10 | J16: 1.293975 | K16: 10.3518 | L16: 0.2359 | M16: =ROUND(K16*(1+L16),2) -> 12.79 | N16: Cotação
C17: F.008 | D17: Alicate lacrador de tubos, marca de referência ROTHENBERGER | E17: 14 | F17: un | G17: 278.1633333 | H17: 0.1 | I17: 10 | J17: 2.086225 | K17: 29.20715 | L17: 0.2359 | M17: =ROUND(K17*(1+L17),2) -> 36.1 | N17: Cotação
C18: F.009 | D18: Alicate p/ rebite (marca de referência) POP | E18: 30 | F18: un | G18: 97.58333333 | H18: 0.1 | I18: 10 | J18: 0.731875 | K18: 21.95625 | L18: 0.2359 | M18: =ROUND(K18*(1+L18),2) -> 27.14 | N18: Cotação
C19: F.010 | D19: Alicate para crimpar terminais pré isolados de 0,5 a 6,0 mm | E19: 8 | F19: un | G19: 165.5433333 | H19: 0.1 | I19: 10 | J19: 1.241575 | K19: 9.9326 | L19: 0.2359 | M19: =ROUND(K19*(1+L19),2) -> 12.28 | N19: Cotação
C20: F.011 | D20: Alicate de corte DIAGONAL 7.1/2 FORÇA DUPLA, REF. VONDER | E20: 16 | F20: un | G20: 109.1733333 | H20: 0.1 | I20: 10 | J20: 0.8188 | K20: 13.1008 | L20: 0.2359 | M20: =ROUND(K20*(1+L20),2) -> 16.19 | N20: Cotação
C21: F.012 | D21: Alicate universal 8" ref. Belzer-219022BBR (marca de referência) | E21: 30 | F21: un | G21: 97.59666667 | H21: 0.1 | I21: 10 | J21: 0.731975 | K21: 21.95925 | L21: 0.2359 | M21: =ROUND(K21*(1+L21),2) -> 27.14 | N21: Cotação
C22: F.013 | D22: Alicate de impacto punch down REF. Wurth - 07158301 | E22: 2 | F22: un | G22: 74.69 | H22: 0.1 | I22: 10 | J22: 0.560175 | K22: 1.12035 | L22: 0.2359 | M22: =ROUND(K22*(1+L22),2) -> 1.38 | N22: Cotação
C23: F.014 | D23: Anemômetro digital com termohigrômetro, REF. MINIPA MDA-11A (SEM CERTIFICADO) | E23: 4 | F23: un | G23: 398.0733333 | H23: 0.1 | I23: 10 | J23: 2.98555 | K23: 11.9422 | L23: 0.2359 | M23: =ROUND(K23*(1+L23),2) -> 14.76 | N23: Cotação
C24: F.015 | D24: Arco de serra regulável 12" ref. Tramontina-43302012 (marca de referência) | E24: 30 | F24: un | G24: 71.07666667 | H24: 0.1 | I24: 10 | J24: 0.533075 | K24: 15.99225 | L24: 0.2359 | M24: =ROUND(K24*(1+L24),2) -> 19.76 | N24: Cotação
C25: F.016 | D25: Aspirador de pó p/aspirar ar e água mínimo 20 litros 220V (Ref. WAP GTW INOX 20 1.600W 20L) | E25: 10 | F25: un | G25: 687.6733333 | H25: 0.1 | I25: 10 | J25: 5.15755 | K25: 51.5755 | L25: 0.2359 | M25: =ROUND(K25*(1+L25),2) -> 63.74 | N25: Cotação
C26: F.017 | D26: Balança eletrônica para pesagem de fluido refrigerante – MASTERCOOL (Ref. 298210 100KG) | E26: 2 | F26: un | G26: 1714.386667 | H26: 0.1 | I26: 10 | J26: 12.8579 | K26: 25.7158 | L26: 0.2359 | M26: =ROUND(K26*(1+L26),2) -> 31.78 | N26: Cotação
C27: F.018 | D27: Balança eletrônica de 0 a 25 Kg | E27: 1 | F27: un | G27: 928.5866667 | H27: 0.1 | I27: 10 | J27: 6.9644 | K27: 6.9644 | L27: 0.2359 | M27: =ROUND(K27*(1+L27),2) -> 8.61 | N27: Cotação
C28: F.019 | D28: Bico de corte maçarico acetileno - referência: WHITE MARTINS 1502 (bico nº 10) | E28: 6 | F28: un | G28: 70.9 | H28: 0.1 | I28: 10 | J28: 0.53175 | K28: 3.1905 | L28: 0.2359 | M28: =ROUND(K28*(1+L28),2) -> 3.94 | N28: Cotação
C29: F.020 | D29: Bomba de alto vácuo 5 CFM (DUPLO ESTÁGIO) | E29: 2 | F29: un | G29: 1100.73 | H29: 0.1 | I29: 10 | J29: 8.255475 | K29: 16.51095 | L29: 0.2359 | M29: =ROUND(K29*(1+L29),2) -> 20.41 | N29: Cotação
C30: F.021 | D30: Bomba de alto vácuo 12 CFM (DUPLO ESTÁGIO) | E30: 2 | F30: un | G30: 1976.503333 | H30: 0.1 | I30: 10 | J30: 14.823775 | K30: 29.64755 | L30: 0.2359 | M30: =ROUND(K30*(1+L30),2) -> 36.64 | N30: Cotação
C31: F.022 | D31: Bomba de alto vácuo 18 CFM (DUPLO ESTÁGIO) | E31: 1 | F31: un | G31: 12425.49 | H31: 0.1 | I31: 10 | J31: 93.191175 | K31: 93.191175 | L31: 0.2359 | M31: =ROUND(K31*(1+L31),2) -> 115.17 | N31: Cotação
C32: F.023 | D32: Bomba de alto vácuo 24 CFM (DUPLO ESTÁGIO) | E32: 1 | F32: un | G32: 12800 | H32: 0.1 | I32: 10 | J32: 96 | K32: 96 | L32: 0.2359 | M32: =ROUND(K32*(1+L32),2) -> 118.65 | N32: Cotação
C33: F.024 | D33: Bomba de alto vácuo 30 CFM (DUPLO ESTÁGIO) | E33: 0 | F33: un | G33: 21592.584 | H33: 0.1 | I33: 10 | J33: 161.94438 | K33: 0 | L33: 0.2359 | M33: =ROUND(K33*(1+L33),2) -> 0 | N33: Cotação
C34: F.025 | D34: Bomba de engraxar (manual) pequena – referência: VONDER BMV-0500 | E34: 12 | F34: un | G34: 167.9966667 | H34: 0.1 | I34: 10 | J34: 1.259975 | K34: 15.1197 | L34: 0.2359 | M34: =ROUND(K34*(1+L34),2) -> 18.69 | N34: Cotação
C35: F.026 | D35: Bomba de óleo (manual) industrial – referência: BOZZA modelo 8631-G2, de 24 litros, com carrinho | E35: 2 | F35: un | G35: 1286.716667 | H35: 0.1 | I35: 10 | J35: 9.650375 | K35: 19.30075 | L35: 0.2359 | M35: =ROUND(K35*(1+L35),2) -> 23.85 | N35: Cotação
C36: F.027 | D36: Bomba p/ lavagem de circuito frigorígeno (injetor de gás 141b) | E36: 1 | F36: un | G36: 301.33 | H36: 0.1 | I36: 10 | J36: 2.259975 | K36: 2.259975 | L36: 0.2359 | M36: =ROUND(K36*(1+L36),2) -> 2.79 | N36: Cotação
C37: F.028 | D37: Bomba para amostra de ar para análise da qualidade do ar - referência: MERCK MAS-100 NT e certificado de calibração | E37: 1 | F37: un | G37: 86974.04 | H37: 0.1 | I37: 10 | J37: 652.3053 | K37: 652.3053 | L37: 0.2359 | M37: =ROUND(K37*(1+L37),2) -> 806.18 | N37: Cotação
C38: F.029 | D38: Cabo de extensão trifásica, 30 metros, bitola 35 mm², para 150 A – referência: MASTER-AC CE 5150 | E38: 2 | F38: un | G38: 3041.23 | H38: 0.1 | I38: 10 | J38: 22.809225 | K38: 45.61845 | L38: 0.2359 | M38: =ROUND(K38*(1+L38),2) -> 56.38 | N38: Cotação
C39: F.030 | D39: Caixa de ferramentas com 7 gavetas e cadeado. | E39: 33 | F39: un | G39: 156.4633333 | H39: 0.1 | I39: 10 | J39: 1.173475 | K39: 38.724675 | L39: 0.2359 | M39: =ROUND(K39*(1+L39),2) -> 47.86 | N39: Cotação
